Workbook

Sheet Sheet1
A1: pCO2* | B1: latitude | C1: longitude | D1: time | E1: Da e. ime | F1: EquilPumpOn pco2 | G1: EquilPumpOn Temp | H1: EquilPumpOn Pressure | I1: EquilPumpOff pco2 | J1: EquilPumpOff Temp | K1: EquilPumpOff Pressure | L1: EquilPumpOff Humidity | M1: ZeroPumpOn pco2 | N1: ZeroPumpOn Temp | O1: ZeroPumpOn Pressure | P1: ZeroPumpOff pco2 | Q1: ZeroPumpOff Temp | R1: ZeroPumpOff Pressure | S1: AirPumpOn pco2 | T1: AirPumpOn Temp | U1: AirPumpOn Pressure | V1: AirPumpOff pco2 | W1: AirPumpOff Temp | X1: AirPumpOff Pressure | Y1: AirPumpOff Humidity | Z1: StandardFlowOn Pressure | AA1: StandardFlowOff pco2 | AB1: StandardFlowOff Temp | AC1: StandardFlowOff Pressure | AD1: StandardFlowOff pco2 Humidity | AE1: Durafet pH 1 | AF1: Durafet pH 2 | AG1: Durafet pH 3 | AH1: Durafet pH 4 | AI1: Durafet pH 5 | AJ1: Durafet pH 6 | AK1: Can Humidity | AL1: 0 | AM1: 0
A2: pCO2 | B2: 36.80266167 | C2: -121.78808 | D2: 2013-05-09T04:31:04Z | E2: 2013-05-09T03:31:27 | F2: 542.56 | G2: 19.836 | H2: 86.636 | I2: 536.97 | J2: 19.901 | K2: 103.05 | L2: 2.0631 | M2: -2.2418 | N2: 20.074 | O2: 93.694 | P2: -1.5656 | Q2: 20.107 | R2: 101.95 | S2: 408.8 | T2: 20.27 | U2: 86.461 | V2: 403.97 | W2: 20.335 | X2: 102.03 | Y2: 2.0136 | Z2: 0 | AA2: 0 | AB2: 0 | AC2: 0 | AD2: 0 | AE2: 76.48 | AF2: 76.51 | AG2: 76.47 | AH2: 76.48 | AI2: 76.57 | AJ2: 76.63 | AK2: 1.6295 | AL2: 0 | AM2: 0
A3: pCO2 | B3: 36.80289333 | C3: -121.7877733 | D3: 2013-05-09T05:31:06Z | E3: 2013-05-09T04:31:27 | F3: 542.05 | G3: 19.793 | H3: 86.811 | I3: 536.19 | J3: 19.869 | K3: 103.11 | L3: 2.056 | M3: -2.1918 | N3: 20.053 | O3: 93.99 | P3: -1.6505 | Q3: 20.074 | R3: 102.31 | S3: 410.6 | T3: 20.248 | U3: 86.542 | V3: 405.17 | W3: 20.303 | X3: 102.07 | Y3: 2.0111 | Z3: 0 | AA3: 0 | AB3: 0 | AC3: 0 | AD3: 0 | AE3: 76.68 | AF3: 83.43 | AG3: 78.98 | AH3: 77.26 | AI3: 77.03 | AJ3: 76.87 | AK3: 1.6263 | AL3: 0 | AM3: 0
A4: pCO2 | B4: 36.80259333 | C4: -121.7880083 | D4: 2013-05-09T06:31:04Z | E4: 2013-05-09T05:31:29 | F4: 542.89 | G4: 19.772 | H4: 86.892 | I4: 536.34 | J4: 19.836 | K4: 103.12 | L4: 2.0479 | M4: -2.2979 | N4: 20.009 | O4: 94.125 | P4: -1.6509 | Q4: 20.042 | R4: 102.33 | S4: 412.77 | T4: 20.216 | U4: 86.569 | V4: 407.58 | W4: 20.27 | X4: 102.1 | Y4: 2.0049 | Z4: 0 | AA4: 0 | AB4: 0 | AC4: 0 | AD4: 0 | AE4: 76.92 | AF4: 76.88 | AG4: 76.79 | AH4: 76.9 | AI4: 76.75 | AJ4: 76.95 | AK4: 1.6232 | AL4: 0 | AM4: 0
A5: pCO2 | B5: 36.8028 | C5: -121.7879233 | D5: 2013-05-09T07:31:05Z | E5: 2013-05-09T06:31:27 | F5: 543.26 | G5: 19.75 | H5: 86.865 | I5: 537.21 | J5: 19.815 | K5: 103.12 | L5: 2.0477 | M5: -2.2274 | N5: 19.988 | O5: 93.99 | P5: -1.479 | Q5: 20.02 | R5: 102.5 | S5: 413.05 | T5: 20.183 | U5: 86.582 | V5: 408.21 | W5: 20.259 | X5: 102.08 | Y5: 2.0061 | Z5: 0 | AA5: 0 | AB5: 0 | AC5: 0 | AD5: 0 | AE5: 76.95 | AF5: 76.99 | AG5: 76.97 | AH5: 76.82 | AI5: 77.01 | AJ5: 77.02 | AK5: 1.6198 | AL5: 0 | AM5: 0
A6: pCO2 | B6: 36.80251333 | C6: -121.7879567 | D6: 2013-05-09T08:31:04Z | E6: 2013-05-09T07:31:29 | F6: 544.08 | G6: 19.728 | H6: 86.865 | I6: 538.13 | J6: 19.793 | K6: 103.12 | L6: 2.0384 | M6: -2.0992 | N6: 19.966 | O6: 94.556 | P6: -1.5554 | Q6: 19.999 | R6: 102.8 | S6: 410.37 | T6: 20.161 | U6: 86.677 | V6: 405.21 | W6: 20.226 | X6: 102.1 | Y6: 1.9992 | Z6: 0 | AA6: 0 | AB6: 0 | AC6: 0 | AD6: 0 | AE6: 76.99 | AF6: 77.12 | AG6: 77.12 | AH6: 77.01 | AI6: 77.01 | AJ6: 76.95 | AK6: 1.6172 | AL6: 0 | AM6: 0
A7: pCO2 | B7: 36.79994167 | C7: -121.7872917 | D7: 2013-05-09T09:31:04Z | E7: 2013-05-09T08:31:27 | F7: 544.48 | G7: 19.707 | H7: 86.785 | I7: 537.87 | J7: 19.782 | K7: 103.09 | L7: 2.0402 | M7: -2.1187 | N7: 19.955 | O7: 94.125 | P7: -1.7066 | Q7: 19.977 | R7: 102.58 | S7: 410.56 | T7: 20.14 | U7: 86.556 | V7: 405.53 | W7: 20.216 | X7: 102.06 | Y7: 1.999 | Z7: 0 | AA7: 0 | AB7: 0 | AC7: 0 | AD7: 0 | AE7: 76.94 | AF7: 77.13 | AG7: 77.05 | AH7: 76.94 | AI7: 76.95 | AJ7: 76.99 | AK7: 1.6142 | AL7: 0 | AM7: 0
A8: pCO2 | B8: 36.80288667 | C8: -121.78838 | D8: 2013-05-09T10:31:04Z | E8: 2013-05-09T09:31:27 | F8: 544.91 | G8: 19.707 | H8: 86.919 | I8: 539.04 | J8: 19.771 | K8: 103.07 | L8: 2.0389 | M8: -1.9811 | N8: 19.944 | O8: 94.098 | P8: -1.4555 | Q8: 19.977 | R8: 102.33 | S8: 417.6 | T8: 20.15 | U8: 86.717 | V8: 412.55 | W8: 20.216 | X8: 102.04 | Y8: 1.9954 | Z8: 0 | AA8: 0 | AB8: 0 | AC8: 0 | AD8: 0 | AE8: 77.02 | AF8: 77.09 | AG8: 76.99 | AH8: 77.02 | AI8: 77.02 | AJ8: 77.07 | AK8: 1.6124 | AL8: 0 | AM8: 0
A9: pCO2 | B9: 36.80288167 | C9: -121.788015 | D9: 2013-05-09T11:31:03Z | E9: 2013-05-09T10:31:27 | F9: 545.88 | G9: 19.728 | H9: 86.744 | I9: 539.56 | J9: 19.804 | K9: 103.07 | L9: 2.0469 | M9: -2.0985 | N9: 19.988 | O9: 93.99 | P9: -1.6158 | Q9: 20.009 | R9: 102.31 | S9: 416.78 | T9: 20.183 | U9: 86.488 | V9: 411.64 | W9: 20.237 | X9: 102.03 | Y9: 2.0047 | Z9: 0 | AA9: 0 | AB9: 0 | AC9: 0 | AD9: 0 | AE9: 77.02 | AF9: 77.12 | AG9: 76.07 | AH9: 77.06 | AI9: 77.07 | AJ9: 77.07 | AK9: 1.6095 | AL9: 0 | AM9: 0
A10: pCO2 | B10: 36.802425 | C10: -121.7878367 | D10: 2013-05-09T12:31:05Z | E10: 2013-05-09T11:31:27 | F10: 546.27 | G10: 19.75 | H10: 86.65 | I10: 539.81 | J10: 19.804 | K10: 103.05 | L10: 2.0441 | M10: -2.0309 | N10: 19.988 | O10: 94.152 | P10: -1.4961 | Q10: 20.02 | R10: 102.68 | S10: 415.36 | T10: 20.183 | U10: 86.502 | V10: 409.91 | W10: 20.248 | X10: 102.02 | Y10: 2.0028 | Z10: 0 | AA10: 0 | AB10: 0 | AC10: 0 | AD10: 0 | AE10: 77.05 | AF10: 77.23 | AG10: 77.1 | AH10: 77.08 | AI10: 77.07 | AJ10: 77.01 | AK10: 1.609 | AL10: 0 | AM10: 0
A11: pCO2 | B11: 36.80290833 | C11: -121.78831 | D11: 2013-05-09T13:31:04Z | E11: 2013-05-09T12:31:29 | F11: 547.2 | G11: 19.75 | H11: 86.811 | I11: 540.47 | J11: 19.815 | K11: 103.04 | L11: 2.0429 | M11: -2.0383 | N11: 19.988 | O11: 94.286 | P11: -1.542 | Q11: 20.02 | R11: 102.56 | S11: 415.79 | T11: 20.194 | U11: 86.475 | V11: 410.67 | W11: 20.259 | X11: 102.02 | Y11: 2.0051 | Z11: 0 | AA11: 0 | AB11: 0 | AC11: 0 | AD11: 0 | AE11: 77.09 | AF11: 77.08 | AG11: 77.14 | AH11: 77.11 | AI11: 76.97 | AJ11: 76.64 | AK11: 1.6059 | AL11: 0 | AM11: 0
A12: pCO2 | B12: 36.80177667 | C12: -121.7888917 | D12: 2013-05-09T14:31:04Z | E12: 2013-05-09T13:31:29 | F12: 547.45 | G12: 19.815 | H12: 86.798 | I12: 541.16 | J12: 19.89 | K12: 103.08 | L12: 2.0516 | M12: -2.2084 | N12: 20.074 | O12: 94.434 | P12: -1.7652 | Q12: 20.096 | R12: 102.95 | S12: 417.88 | T12: 20.27 | U12: 86.529 | V12: 412.92 | W12: 20.335 | X12: 102.04 | Y12: 2.0132 | Z12: 0 | AA12: 0 | AB12: 0 | AC12: 0 | AD12: 0 | AE12: 76.53 | AF12: 76.7 | AG12: 76.58 | AH12: 76.65 | AI12: 76.6 | AJ12: 76.36 | AK12: 1.6051 | AL12: 0 | AM12: 0
A13: pCO2 | B13: 36.80287167 | C13: -121.7917467 | D13: 2013-05-09T15:31:05Z | E13: 2013-05-09T14:31:27 | F13: 547.78 | G13: 19.901 | H13: 86.987 | I13: 541.24 | J13: 19.966 | K13: 103.13 | L13: 2.0554 | M13: -2.2852 | N13: 20.161 | O13: 94.461 | P13: -1.5945 | Q13: 20.183 | R13: 102.69 | S13: 420.59 | T13: 20.357 | U13: 86.677 | V13: 415.28 | W13: 20.412 | X13: 102.11 | Y13: 2.0187 | Z13: 0 | AA13: 0 | AB13: 0 | AC13: 0 | AD13: 0 | AE13: 76.5 | AF13: 76.64 | AG13: 76.55 | AH13: 76.54 | AI13: 76.51 | AJ13: 76.47 | AK13: 1.6042 | AL13: 0 | AM13: 0
A14: pCO2 | B14: 36.80259 | C14: -121.7879633 | D14: 2013-05-09T16:31:06Z | E14: 2013-05-09T15:31:29 | F14: 545.91 | G14: 19.988 | H14: 86.96 | I14: 540.28 | J14: 20.053 | K14: 103.19 | L14: 2.0648 | M14: -2.2354 | N14: 20.226 | O14: 94.232 | P14: -1.7992 | Q14: 20.259 | R14: 102.64 | S14: 437.54 | T14: 20.423 | U14: 86.677 | V14: 432.37 | W14: 20.488 | X14: 102.15 | Y14: 2.0224 | Z14: 0 | AA14: 0 | AB14: 0 | AC14: 0 | AD14: 0 | AE14: 76.47 | AF14: 76.66 | AG14: 76.56 | AH14: 76.54 | AI14: 76.53 | AJ14: 76.52 | AK14: 1.6045 | AL14: 0 | AM14: 0
A15: pCO2 | B15: 36.80270667 | C15: -121.7880333 | D15: 2013-05-09T17:31:05Z | E15: 2013-05-09T16:31:29 | F15: 547.99 | G15: 19.988 | H15: 86.892 | I15: 541.92 | J15: 20.063 | K15: 103.2 | L15: 2.0652 | M15: -2.2761 | N15: 20.248 | O15: 94.448 | P15: -1.6806 | Q15: 20.27 | R15: 102.74 | S15: 444.53 | T15: 20.444 | U15: 86.749 | V15: 438.82 | W15: 20.499 | X15: 102.2 | Y15: 2.0188 | Z15: 0 | AA15: 0 | AB15: 0 | AC15: 0 | AD15: 0 | AE15: 76.53 | AF15: 76.67 | AG15: 76.51 | AH15: 76.52 | AI15: 76.64 | AJ15: 76.59 | AK15: 1.6061 | AL15: 0 | AM15: 0
A16: pCO2 | B16: 36.80320167 | C16: -121.7875767 | D16: 2013-05-09T18:31:04Z | E16: 2013-05-09T17:31:27 | F16: 548.29 | G16: 19.966 | H16: 86.973 | I16: 541.56 | J16: 20.042 | K16: 103.23 | L16: 2.0645 | M16: -2.4065 | N16: 20.226 | O16: 94.111 | P16: -1.7092 | Q16: 20.248 | R16: 102.58 | S16: 452.53 | T16: 20.423 | U16: 86.704 | V16: 448.01 | W16: 20.477 | X16: 102.2 | Y16: 2.0209 | Z16: 0 | AA16: 0 | AB16: 0 | AC16: 0 | AD16: 0 | AE16: 76.6 | AF16: 76.62 | AG16: 76.43 | AH16: 76.67 | AI16: 76.59 | AJ16: 76.57 | AK16: 1.6057 | AL16: 0 | AM16: 0
A17: pCO2 | B17: 36.79709 | C17: -121.8018183 | D17: 2013-05-09T19:31:05Z | E17: 2013-05-09T18:31:27 | F17: 549.68 | G17: 19.944 | H17: 86.838 | I17: 543.53 | J17: 20.02 | K17: 103.18 | L17: 2.0638 | M17: -2.2925 | N17: 20.205 | O17: 94.3 | P17: -1.6391 | Q17: 20.226 | R17: 102.68 | S17: 439.22 | T17: 20.401 | U17: 86.623 | V17: 433.78 | W17: 20.455 | X17: 102.15 | Y17: 2.0194 | Z17: 0 | AA17: 0 | AB17: 0 | AC17: 0 | AD17: 0 | AE17: 76.48 | AF17: 76.62 | AG17: 76.54 | AH17: 76.49 | AI17: 76.47 | AJ17: 76.63 | AK17: 1.605 | AL17: 0 | AM17: 0
A18: pCO2 | B18: 36.80297333 | C18: -121.7881333 | D18: 2013-05-09T20:31:06Z | E18: 2013-05-09T19:31:27 | F18: 549.14 | G18: 19.923 | H18: 86.879 | I18: 541.79 | J18: 19.998 | K18: 103.18 | L18: 2.0569 | M18: -2.311 | N18: 20.183 | O18: 94.556 | P18: -1.6739 | Q18: 20.205 | R18: 102.8 | S18: 433.74 | T18: 20.379 | U18: 86.636 | V18: 429.11 | W18: 20.433 | X18: 102.14 | Y18: 2.0144 | Z18: 0 | AA18: 0 | AB18: 0 | AC18: 0 | AD18: 0 | AE18: 76.64 | AF18: 76.66 | AG18: 76.57 | AH18: 76.65 | AI18: 76.62 | AJ18: 76.52 | AK18: 1.6041 | AL18: 0 | AM18: 0
A19: pCO2 | B19: 36.80288667 | C19: -121.7878167 | D19: 2013-05-09T21:31:04Z | E19: 2013-05-09T20:31:29 | F19: 547.82 | G19: 19.901 | H19: 86.798 | I19: 541.4 | J19: 19.966 | K19: 103.16 | L19: 2.0551 | M19: -2.2572 | N19: 20.139 | O19: 94.178 | P19: -1.6767 | Q19: 20.172 | R19: 102.61 | S19: 412.1 | T19: 20.346 | U19: 86.596 | V19: 407.19 | W19: 20.401 | X19: 102.16 | Y19: 2.0116 | Z19: 103.17 | AA19: 404.56 | AB19: 20.63 | AC19: 102.17 | AD19: 1.8735 | AE19: 76.51 | AF19: 77.28 | AG19: 76.64 | AH19: 76.61 | AI19: 76.58 | AJ19: 76.59 | AK19: 1.6032 | AL19: 0 | AM19: 0
A20: pCO2 | B20: 36.817535 | C20: -121.84939 | D20: 2013-05-09T22:31:05Z | E20: 2013-05-09T21:31:27 | F20: 547.6 | G20: 19.966 | H20: 86.865 | I20: 540.94 | J20: 20.031 | K20: 103.15 | L20: 2.0433 | M20: -2.1969 | N20: 20.205 | O20: 94.556 | P20: -1.8357 | Q20: 20.237 | R20: 102.97 | S20: 411.69 | T20: 20.401 | U20: 86.582 | V20: 406.62 | W20: 20.455 | X20: 102.12 | Y20: 2.0045 | Z20: 0 | AA20: 0 | AB20: 0 | AC20: 0 | AD20: 0 | AE20: 76.54 | AF20: 76.68 | AG20: 76.65 | AH20: 76.63 | AI20: 76.6 | AJ20: 76.56 | AK20: 1.6006 | AL20: 0 | AM20: 0
A21: pCO2 | B21: 36.80216333 | C21: -121.7878167 | D21: 2013-05-09T23:31:04Z | E21: 2013-05-09T22:31:27 | F21: 547.26 | G21: 19.901 | H21: 86.726 | I21: 540.45 | J21: 19.977 | K21: 103.12 | L21: 2.0495 | M21: -2.139 | N21: 20.161 | O21: 94.03 | P21: -1.6066 | Q21: 20.183 | R21: 102.46 | S21: 413.71 | T21: 20.357 | U21: 86.448 | V21: 408.87 | W21: 20.412 | X21: 102.07 | Y21: 2.0081 | Z21: 0 | AA21: 0 | AB21: 0 | AC21: 0 | AD21: 0 | AE21: 76.61 | AF21: 76.76 | AG21: 76.74 | AH21: 76.63 | AI21: 76.49 | AJ21: 76.62 | AK21: 1.5989 | AL21: 0 | AM21: 0
A22: pCO2 | B22: 36.80271667 | C22: -121.787995 | D22: 2013-05-10T00:31:05Z | E22: 2013-05-09T23:31:27 | F22: 547.09 | G22: 19.901 | H22: 86.717 | I22: 541.04 | J22: 19.977 | K22: 103.05 | L22: 2.0493 | M22: -2.1902 | N22: 20.161 | O22: 93.99 | P22: -1.541 | Q22: 20.183 | R22: 102.81 | S22: 411.56 | T22: 20.357 | U22: 86.569 | V22: 406.82 | W22: 20.412 | X22: 102.04 | Y22: 2.0059 | Z22: 0 | AA22: 0 | AB22: 0 | AC22: 0 | AD22: 0 | AE22: 76.59 | AF22: 76.75 | AG22: 76.76 | AH22: 76.72 | AI22: 76.54 | AJ22: 76.66 | AK22: 1.5979 | AL22: 0 | AM22: 0
A23: pCO2 | B23: 36.80284667 | C23: -121.7880883 | D23: 2013-05-10T01:31:05Z | E23: 2013-05-10T00:31:28 | F23: 548.47 | G23: 19.955 | H23: 86.677 | I23: 542.04 | J23: 20.02 | K23: 103.03 | L23: 2.0608 | M23: -2.1945 | N23: 20.205 | O23: 94.03 | P23: -1.7566 | Q23: 20.226 | R23: 102.66 | S23: 414.32 | T23: 20.401 | U23: 86.677 | V23: 409.33 | W23: 20.455 | X23: 101.99 | Y23: 2.0079 | Z23: 0 | AA23: 0 | AB23: 0 | AC23: 0 | AD23: 0 | AE23: 76.73 | AF23: 76.84 | AG23: 76.71 | AH23: 76.74 | AI23: 76.63 | AJ23: 76.69 | AK23: 1.5966 | AL23: 0 | AM23: 0
A24: pCO2 | B24: 36.801455 | C24: -121.7916117 | D24: 2013-05-10T02:31:05Z | E24: 2013-05-10T01:31:27 | F24: 547.51 | G24: 20.009 | H24: 86.892 | I24: 541.47 | J24: 20.085 | K24: 103.04 | L24: 2.0579 | M24: -2.3907 | N24: 20.27 | O24: 94.071 | P24: -1.8487 | Q24: 20.292 | R24: 102.33 | S24: 411.35 | T24: 20.466 | U24: 86.623 | V24: 406.64 | W24: 20.521 | X24: 101.99 | Y24: 2.0088 | Z24: 0 | AA24: 0 | AB24: 0 | AC24: 0 | AD24: 0 | AE24: 76.64 | AF24: 76.75 | AG24: 76.78 | AH24: 76.78 | AI24: 76.8 | AJ24: 76.67 | AK24: 1.5966 | AL24: 0 | AM24: 0
A25: pCO2 | B25: 36.80053 | C25: -121.7875717 | D25: 2013-05-10T03:31:05Z | E25: 2013-05-10T02:31:27 | F25: 547.67 | G25: 20.009 | H25: 86.758 | I25: 541.4 | J25: 20.074 | K25: 103.05 | L25: 2.0577 | M25: -2.3643 | N25: 20.259 | O25: 93.559 | P25: -1.8033 | Q25: 20.292 | R25: 101.72 | S25: 409.07 | T25: 20.455 | U25: 86.609 | V25: 404.14 | W25: 20.51 | X25: 102.02 | Y25: 2.0119 | Z25: 0 | AA25: 0 | AB25: 0 | AC25: 0 | AD25: 0 | AE25: 76.71 | AF25: 76.81 | AG25: 76.81 | AH25: 76.82 | AI25: 76.8 | AJ25: 76.75 | AK25: 1.5977 | AL25: 0 | AM25: 0
A26: pCO2 | B26: 36.80275 | C26: -121.7883467 | D26: 2013-05-10T04:31:05Z | E26: 2013-05-10T03:31:27 | F26: 548.52 | G26: 19.966 | H26: 86.946 | I26: 542.1 | J26: 20.042 | K26: 103.08 | L26: 2.0566 | M26: -2.3769 | N26: 20.226 | O26: 93.438 | P26: -1.826 | Q26: 20.248 | R26: 101.33 | S26: 410.8 | T26: 20.423 | U26: 86.704 | V26: 405.78 | W26: 20.477 | X26: 102.08 | Y26: 2.01 | Z26: 0 | AA26: 0 | AB26: 0 | AC26: 0 | AD26: 0 | AE26: 76.78 | AF26: 76.91 | AG26: 76.93 | AH26: 76.85 | AI26: 76.9 | AJ26: 76.84 | AK26: 1.5988 | AL26: 0 | AM26: 0
A27: pCO2 | B27: 36.80152 | C27: -121.7879083 | D27: 2013-05-10T05:31:05Z | E27: 2013-05-10T04:31:27 | F27: 548.59 | G27: 19.944 | H27: 87.189 | I27: 542.14 | J27: 20.009 | K27: 103.15 | L27: 2.0451 | M27: -2.3463 | N27: 20.183 | O27: 93.599 | P27: -1.7823 | Q27: 20.216 | R27: 101.76 | S27: 412.79 | T27: 20.379 | U27: 86.744 | V27: 407.92 | W27: 20.444 | X27: 102.14 | Y27: 2.0091 | Z27: 0 | AA27: 0 | AB27: 0 | AC27: 0 | AD27: 0 | AE27: 76.93 | AF27: 76.95 | AG27: 76.91 | AH27: 77.01 | AI27: 76.76 | AJ27: 76.91 | AK27: 1.5981 | AL27: 0 | AM27: 0
A28: pCO2 | B28: 36.81845 | C28: -121.7928283 | D28: 2013-05-10T06:31:05Z | E28: 2013-05-10T05:31:27 | F28: 548.36 | G28: 19.879 | H28: 87.081 | I28: 541.92 | J28: 19.955 | K28: 103.16 | L28: 2.0442 | M28: -2.2139 | N28: 20.139 | O28: 93.357 | P28: -1.7369 | Q28: 20.15 | R28: 101.8 | S28: 413.74 | T28: 20.324 | U28: 86.785 | V28: 409.1 | W28: 20.39 | X28: 102.15 | Y28: 2.0012 | Z28: 0 | AA28: 0 | AB28: 0 | AC28: 0 | AD28: 0 | AE28: 76.9 | AF28: 76.99 | AG28: 76.94 | AH28: 76.88 | AI28: 76.94 | AJ28: 76.92 | AK28: 1.5965 | AL28: 0 | AM28: 0
A29: pCO2 | B29: 36.81255667 | C29: -121.7833183 | D29: 2013-05-10T07:31:05Z | E29: 2013-05-10T06:31:27 | F29: 548.19 | G29: 19.836 | H29: 87.094 | I29: 541.84 | J29: 19.901 | K29: 103.23 | L29: 2.0433 | M29: -1.9862 | N29: 20.074 | O29: 93.438 | P29: -1.6204 | Q29: 20.107 | R29: 101.38 | S29: 415.53 | T29: 20.281 | U29: 86.758 | V29: 410.52 | W29: 20.346 | X29: 102.19 | Y29: 1.9988 | Z29: 0 | AA29: 0 | AB29: 0 | AC29: 0 | AD29: 0 | AE29: 76.9 | AF29: 76.92 | AG29: 76.88 | AH29: 76.89 | AI29: 76.79 | AJ29: 76.76 | AK29: 1.5954 | AL29: 0 | AM29: 0
A30: pCO2 | B30: 36.75591167 | C30: -121.7710183 | D30: 2013-05-10T08:31:04Z | E30: 2013-05-10T07:31:28 | F30: 548.47 | G30: 19.815 | H30: 87.296 | I30: 541.91 | J30: 19.879 | K30: 103.24 | L30: 2.0389 | M30: -2.116 | N30: 20.053 | O30: 93.451 | P30: -1.6761 | Q30: 20.085 | R30: 101.96 | S30: 422.47 | T30: 20.259 | U30: 86.744 | V30: 418.51 | W30: 20.324 | X30: 102.21 | Y30: 2.0016 | Z30: 0 | AA30: 0 | AB30: 0 | AC30: 0 | AD30: 0 | AE30: 76.82 | AF30: 76.9 | AG30: 76.84 | AH30: 76.72 | AI30: 76.73 | AJ30: 76.68 | AK30: 1.5937 | AL30: 0 | AM30: 0
A31: pCO2 | B31: 36.75591167 | C31: -121.7710183 | D31: 2013-05-10T09:31:06Z | E31: 2013-05-10T08:31:28 | F31: 549.16 | G31: 19.793 | H31: 87.108 | I31: 542.65 | J31: 19.869 | K31: 103.22 | L31: 2.0375 | M31: -2.2932 | N31: 20.053 | O31: 93.68 | P31: -1.5822 | Q31: 20.064 | R31: 101.94 | S31: 422.01 | T31: 20.248 | U31: 86.798 | V31: 416.72 | W31: 20.303 | X31: 102.19 | Y31: 1.997 | Z31: 0 | AA31: 0 | AB31: 0 | AC31: 0 | AD31: 0 | AE31: 76.77 | AF31: 76.73 | AG31: 76.9 | AH31: 76.83 | AI31: 76.76 | AJ31: 76.79 | AK31: 1.5929 | AL31: 0 | AM31: 0
A32: pCO2 | B32: 36.80262333 | C32: -121.7877183 | D32: 2013-05-10T10:31:05Z | E32: 2013-05-10T09:31:27 | F32: 549.35 | G32: 19.793 | H32: 87.04 | I32: 542.7 | J32: 19.847 | K32: 103.16 | L32: 2.0349 | M32: -2.1574 | N32: 20.031 | O32: 93.384 | P32: -1.6173 | Q32: 20.064 | R32: 101.63 | S32: 422.61 | T32: 20.226 | U32: 86.69 | V32: 417.17 | W32: 20.281 | X32: 102.15 | Y32: 1.9969 | Z32: 0 | AA32: 0 | AB32: 0 | AC32: 0 | AD32: 0 | AE32: 76.73 | AF32: 76.65 | AG32: 76.87 | AH32: 76.75 | AI32: 76.74 | AJ32: 76.74 | AK32: 1.5921 | AL32: 0 | AM32: 0
A33: pCO2 | B33: 36.802755 | C33: -121.7880517 | D33: 2013-05-10T11:31:06Z | E33: 2013-05-10T10:31:27 | F33: 549.23 | G33: 19.761 | H33: 86.987 | I33: 542.64 | J33: 19.825 | K33: 103.18 | L33: 2.0349 | M33: -2.1495 | N33: 20.009 | O33: 93.572 | P33: -1.7802 | Q33: 20.042 | R33: 101.55 | S33: 419.36 | T33: 20.205 | U33: 86.695 | V33: 414.61 | W33: 20.259 | X33: 102.14 | Y33: 1.997 | Z33: 0 | AA33: 0 | AB33: 0 | AC33: 0 | AD33: 0 | AE33: 76.78 | AF33: 76.88 | AG33: 76.89 | AH33: 76.66 | AI33: 76.85 | AJ33: 76.84 | AK33: 1.5901 | AL33: 0 | AM33: 0
A34: pCO2 | B34: 36.80269167 | C34: -121.7880183 | D34: 2013-05-10T12:31:04Z | E34: 2013-05-10T11:31:28 | F34: 550.18 | G34: 19.75 | H34: 86.838 | I34: 543.65 | J34: 19.825 | K34: 103.11 | L34: 2.0363 | M34: -2.3413 | N34: 20.009 | O34: 93.29 | P34: -1.608 | Q34: 20.031 | R34: 101.65 | S34: 417.18 | T34: 20.205 | U34: 86.609 | V34: 411.95 | W34: 20.259 | X34: 102.06 | Y34: 1.9967 | Z34: 0 | AA34: 0 | AB34: 0 | AC34: 0 | AD34: 0 | AE34: 76.8 | AF34: 76.9 | AG34: 76.67 | AH34: 76.79 | AI34: 76.85 | AJ34: 76.82 | AK34: 1.588 | AL34: 0 | AM34: 0
A35: pCO2 | B35: 36.80299167 | C35: -121.788465 | D35: 2013-05-10T13:31:05Z | E35: 2013-05-10T12:31:27 | F35: 550.34 | G35: 19.772 | H35: 86.919 | I35: 544.14 | J35: 19.825 | K35: 103.08 | L35: 2.0431 | M35: -2.2551 | N35: 20.009 | O35: 93.343 | P35: -1.564 | Q35: 20.042 | R35: 101.49 | S35: 418.42 | T35: 20.205 | U35: 86.569 | V35: 413.47 | W35: 20.27 | X35: 102.06 | Y35: 2.0038 | Z35: 0 | AA35: 0 | AB35: 0 | AC35: 0 | AD35: 0 | AE35: 76.84 | AF35: 76.85 | AG35: 76.79 | AH35: 76.89 | AI35: 76.87 | AJ35: 76.91 | AK35: 1.5866 | AL35: 0 | AM35: 0
A36: pCO2 | B36: 36.79583833 | C36: -121.8459433 | D36: 2013-05-10T18:30:54Z | E36: 2013-05-10T17:31:33 | F36: 421.91 | G36: 19.653 | H36: 85.882 | I36: 416.2 | J36: 19.739 | K36: 102.27 | L36: 2.0002 | M36: -2.2867 | N36: 19.944 | O36: 92.926 | P36: -1.8001 | Q36: 19.977 | R36: 100.8 | S36: 420.79 | T36: 20.183 | U36: 86.852 | V36: 415.48 | W36: 20.259 | X36: 102.28 | Y36: 1.9402 | Z36: 0 | AA36: 0 | AB36: 0 | AC36: 0 | AD36: 0 | AE36: 66.55 | AF36: 66.37 | AG36: 88.08 | AH36: 86.91 | AI36: 88.61 | AJ36: 88.15 | AK36: 1.5602 | AL36: 0 | AM36: 0
A37: pCO2 | B37: 36.797525 | C37: -121.8537417 | D37: 2013-05-10T19:30:54Z | E37: 2013-05-10T18:31:16 | F37: 276.41 | G37: 16.69 | H37: 86.658 | I37: 270.38 | J37: 16.742 | K37: 103.03 | L37: 1.9834 | M37: -0.072758 | N37: 16.855 | O37: 92.495 | P37: 0.056205 | Q37: 16.876 | R37: 100.61 | S37: 417.61 | T37: 16.979 | U37: 86.604 | V37: 411.22 | W37: 17.01 | X37: 102.31 | Y37: 1.9741 | Z37: 0 | AA37: 0 | AB37: 0 | AC37: 0 | AD37: 0 | AE37: 88.47 | AF37: 88.65 | AG37: 89.93 | AH37: 91.08 | AI37: 91.44 | AJ37: 91.7 | AK37: 1.6493 | AL37: 0 | AM37: 0
A38: pCO2 | B38: 36.795565 | C38: -121.8653533 | D38: 2013-05-10T20:30:54Z | E38: 2013-05-10T19:31:16 | F38: 231.81 | G38: 14.714 | H38: 86.537 | I38: 227.62 | J38: 14.774 | K38: 102.65 | L38: 1.9529 | M38: 0.42419 | N38: 14.944 | O38: 92.165 | P38: 0.65653 | Q38: 14.974 | R38: 100.57 | S38: 409.85 | T38: 15.125 | U38: 86.497 | V38: 403.46 | W38: 15.176 | X38: 102.28 | Y38: 1.9439 | Z38: 0 | AA38: 0 | AB38: 0 | AC38: 0 | AD38: 0 | AE38: 91.73 | AF38: 91.34 | AG38: 91.3 | AH38: 90.69 | AI38: 90.29 | AJ38: 90.11 | AK38: 1.6204 | AL38: 0 | AM38: 0
A39: pCO2 | B39: 36.794225 | C39: -121.8746417 | D39: 2013-05-10T21:30:54Z | E39: 2013-05-10T20:31:16 | F39: 252.28 | G39: 14.165 | H39: 85.891 | I39: 247.39 | J39: 14.224 | K39: 102.43 | L39: 1.9405 | M39: 0.60456 | N39: 14.404 | O39: 92.34 | P39: 0.88442 | Q39: 14.434 | R39: 100.93 | S39: 409.59 | T39: 14.594 | U39: 86.362 | V39: 403.87 | W39: 14.644 | X39: 102.25 | Y39: 1.9287 | Z39: 0 | AA39: 0 | AB39: 0 | AC39: 0 | AD39: 0 | AE39: 89.53 | AF39: 88.2 | AG39: 87.32 | AH39: 86.89 | AI39: 86.69 | AJ39: 86.41 | AK39: 1.6079 | AL39: 0 | AM39: 0
A40: pCO2 | B40: 36.79299833 | C40: -121.8820783 | D40: 2013-05-10T22:30:55Z | E40: 2013-05-10T21:31:17 | F40: 281.95 | G40: 13.788 | H40: 86.497 | I40: 277.26 | J40: 13.847 | K40: 102.37 | L40: 1.929 | M40: 0.69742 | N40: 14.026 | O40: 92.717 | P40: 0.89979 | Q40: 14.055 | R40: 101.11 | S40: 409.39 | T40: 14.215 | U40: 86.847 | V40: 403.45 | W40: 14.274 | X40: 102.24 | Y40: 1.9177 | Z40: 0 | AA40: 0 | AB40: 0 | AC40: 0 | AD40: 0 | AE40: 86.77 | AF40: 85.66 | AG40: 85.39 | AH40: 85.08 | AI40: 84.5 | AJ40: 84.1 | AK40: 1.6032 | AL40: 0 | AM40: 0
A41: pCO2 | B41: 36.79247833 | C41: -121.8847517 | D41: 2013-05-10T23:30:54Z | E41: 2013-05-10T22:31:16 | F41: 310.64 | G41: 13.55 | H41: 85.985 | I41: 304.47 | J41: 13.609 | K41: 102.26 | L41: 1.9268 | M41: 1.0059 | N41: 13.788 | O41: 92.744 | P41: 1.1667 | Q41: 13.817 | R41: 101.21 | S41: 409.64 | T41: 13.986 | U41: 86.578 | V41: 403.74 | W41: 14.046 | X41: 102.2 | Y41: 1.9259 | Z41: 0 | AA41: 0 | AB41: 0 | AC41: 0 | AD41: 0 | AE41: 83.64 | AF41: 83.48 | AG41: 82.78 | AH41: 81.69 | AI41: 80.83 | AJ41: 80.52 | AK41: 1.6031 | AL41: 0 | AM41: 0
A42: pCO2 | B42: 36.79083833 | C42: -121.8870517 | D42: 2013-05-11T00:30:54Z | E42: 2013-05-10T23:31:16 | F42: 361.29 | G42: 13.353 | H42: 85.931 | I42: 355.98 | J42: 13.422 | K42: 102.33 | L42: 1.9216 | M42: 0.89932 | N42: 13.609 | O42: 92.233 | P42: 1.007 | Q42: 13.639 | R42: 100.82 | S42: 409.47 | T42: 13.798 | U42: 86.429 | V42: 403.78 | W42: 13.857 | X42: 102.13 | Y42: 1.9244 | Z42: 0 | AA42: 0 | AB42: 0 | AC42: 0 | AD42: 0 | AE42: 80.57 | AF42: 79.61 | AG42: 78.73 | AH42: 78.11 | AI42: 78.13 | AJ42: 77.93 | AK42: 1.5972 | AL42: 0 | AM42: 0
A43: pCO2 | B43: 36.78997 | C43: -121.8917883 | D43: 2013-05-11T01:30:56Z | E43: 2013-05-11T00:31:16 | F43: 416.14 | G43: 13.175 | H43: 85.864 | I43: 409.27 | J43: 13.234 | K43: 102.25 | L43: 1.925 | M43: 1.0356 | N43: 13.412 | O43: 92.3 | P43: 1.1408 | Q43: 13.441 | R43: 101.16 | S43: 409.6 | T43: 13.609 | U43: 86.322 | V43: 403.39 | W43: 13.669 | X43: 102.08 | Y43: 1.9201 | Z43: 0 | AA43: 0 | AB43: 0 | AC43: 0 | AD43: 0 | AE43: 76.99 | AF43: 76.84 | AG43: 76.82 | AH43: 76.66 | AI43: 76.71 | AJ43: 76.78 | AK43: 1.5956 | AL43: 0 | AM43: 0
A44: pCO2 | B44: 36.78850333 | C44: -121.9007967 | D44: 2013-05-11T02:30:54Z | E44: 2013-05-11T01:31:18 | F44: 422.83 | G44: 12.988 | H44: 85.702 | I44: 415.63 | J44: 13.057 | K44: 102.25 | L44: 1.9159 | M44: 1.1568 | N44: 13.234 | O44: 92.017 | P44: 1.2661 | Q44: 13.264 | R44: 100.35 | S44: 409.72 | T44: 13.432 | U44: 86.51 | V44: 403.01 | W44: 13.491 | X44: 102.09 | Y44: 1.9164 | Z44: 0 | AA44: 0 | AB44: 0 | AC44: 0 | AD44: 0 | AE44: 76.63 | AF44: 76.62 | AG44: 76.55 | AH44: 76.53 | AI44: 76.52 | AJ44: 76.58 | AK44: 1.5961 | AL44: 0 | AM44: 0
A45: pCO2 | B45: 36.786525 | C45: -121.9142533 | D45: 2013-05-11T03:30:55Z | E45: 2013-05-11T02:31:16 | F45: 379.96 | G45: 12.88 | H45: 85.864 | I45: 373.11 | J45: 12.949 | K45: 102.32 | L45: 1.9175 | M45: 1.1896 | N45: 13.126 | O45: 92.327 | P45: 1.4274 | Q45: 13.146 | R45: 100.78 | S45: 408.93 | T45: 13.323 | U45: 86.726 | V45: 402.75 | W45: 13.392 | X45: 102.13 | Y45: 1.9143 | Z45: 0 | AA45: 0 | AB45: 0 | AC45: 0 | AD45: 0 | AE45: 76.64 | AF45: 79.94 | AG45: 79.37 | AH45: 79.27 | AI45: 78.5 | AJ45: 77.06 | AK45: 1.5951 | AL45: 0 | AM45: 0
A46: pCO2 | B46: 36.78325667 | C46: -121.9348367 | D46: 2013-05-11T04:30:54Z | E46: 2013-05-11T03:31:17 | F46: 418.01 | G46: 12.92 | H46: 85.999 | I46: 412.22 | J46: 12.998 | K46: 102.29 | L46: 1.912 | M46: 1.0352 | N46: 13.175 | O46: 92.448 | P46: 1.1698 | Q46: 13.205 | R46: 101.03 | S46: 408.75 | T46: 13.372 | U46: 86.739 | V46: 402.75 | W46: 13.432 | X46: 102.17 | Y46: 1.9103 | Z46: 0 | AA46: 0 | AB46: 0 | AC46: 0 | AD46: 0 | AE46: 76.78 | AF46: 76.79 | AG46: 76.83 | AH46: 76.82 | AI46: 76.99 | AJ46: 77.18 | AK46: 1.5914 | AL46: 0 | AM46: 0
A47: pCO2 | B47: 36.780255 | C47: -121.9531317 | D47: 2013-05-11T05:30:56Z | E47: 2013-05-11T04:31:16 | F47: 414.65 | G47: 12.812 | H47: 85.77 | I47: 408.45 | J47: 12.88 | K47: 102.01 | L47: 1.9129 | M47: 1.082 | N47: 13.057 | O47: 92.34 | P47: 1.3895 | Q47: 13.087 | R47: 100.65 | S47: 409.05 | T47: 13.254 | U47: 86.739 | V47: 403.27 | W47: 13.313 | X47: 102.18 | Y47: 1.9112 | Z47: 0 | AA47: 0 | AB47: 0 | AC47: 0 | AD47: 0 | AE47: 77.33 | AF47: 77.16 | AG47: 76.66 | AH47: 76.83 | AI47: 77.27 | AJ47: 77.47 | AK47: 1.5881 | AL47: 0 | AM47: 0
A48: pCO2 | B48: 36.77775667 | C48: -121.9693517 | D48: 2013-05-11T06:30:55Z | E48: 2013-05-11T05:31:17 | F48: 411.28 | G48: 12.763 | H48: 86.12 | I48: 404.08 | J48: 12.831 | K48: 102.21 | L48: 1.9101 | M48: 1.1761 | N48: 13.018 | O48: 92.475 | P48: 1.3553 | Q48: 13.047 | R48: 100.53 | S48: 411.22 | T48: 13.215 | U48: 86.712 | V48: 405.3 | W48: 13.274 | X48: 102.2 | Y48: 1.9088 | Z48: 0 | AA48: 0 | AB48: 0 | AC48: 0 | AD48: 0 | AE48: 77.48 | AF48: 77.35 | AG48: 77.66 | AH48: 77.81 | AI48: 77.23 | AJ48: 77.1 | AK48: 1.5843 | AL48: 0 | AM48: 0
A49: pCO2 | B49: 36.77532333 | C49: -121.985195 | D49: 2013-05-11T07:30:54Z | E49: 2013-05-11T06:31:16 | F49: 420.38 | G49: 12.812 | H49: 86.147 | I49: 413.37 | J49: 12.88 | K49: 102.39 | L49: 1.9118 | M49: 1.3581 | N49: 13.057 | O49: 92.314 | P49: 1.553 | Q49: 13.087 | R49: 101.01 | S49: 411.26 | T49: 13.264 | U49: 86.604 | V49: 405.16 | W49: 13.323 | X49: 102.2 | Y49: 1.9134 | Z49: 0 | AA49: 0 | AB49: 0 | AC49: 0 | AD49: 0 | AE49: 76.92 | AF49: 77.04 | AG49: 77.23 | AH49: 77.28 | AI49: 77.64 | AJ49: 77.78 | AK49: 1.5807 | AL49: 0 | AM49: 0
A50: pCO2 | B50: 36.77266667 | C50: -122.002585 | D50: 2013-05-11T08:30:55Z | E50: 2013-05-11T07:31:17 | F50: 405.01 | G50: 12.851 | H50: 85.77 | I50: 397.91 | J50: 12.92 | K50: 102.33 | L50: 1.9229 | M50: 1.1352 | N50: 13.097 | O50: 92.421 | P50: 1.3586 | Q50: 13.126 | R50: 100.96 | S50: 410.65 | T50: 13.303 | U50: 86.402 | V50: 404.75 | W50: 13.363 | X50: 102.22 | Y50: 1.9172 | Z50: 0 | AA50: 0 | AB50: 0 | AC50: 0 | AD50: 0 | AE50: 77.91 | AF50: 78.09 | AG50: 78.2 | AH50: 78.32 | AI50: 78.42 | AJ50: 78.39 | AK50: 1.5801 | AL50: 0 | AM50: 0
A51: pCO2 | B51: 36.80125333 | C51: -122.0037117 | D51: 2013-05-11T09:30:55Z | E51: 2013-05-11T08:31:17 | F51: 395.97 | G51: 12.9 | H51: 85.805 | I51: 389.45 | J51: 12.979 | K51: 102.45 | L51: 1.9203 | M51: 1.2157 | N51: 13.156 | O51: 92.502 | P51: 1.2284 | Q51: 13.185 | R51: 101.23 | S51: 414.18 | T51: 13.363 | U51: 86.416 | V51: 407.84 | W51: 13.412 | X51: 102.2 | Y51: 1.9153 | Z51: 0 | AA51: 0 | AB51: 0 | AC51: 0 | AD51: 0 | AE51: 78.49 | AF51: 78.6 | AG51: 78.63 | AH51: 78.62 | AI51: 78.6 | AJ51: 78.49 | AK51: 1.5789 | AL51: 0 | AM51: 0
A52: pCO2 | B52: 36.76993167 | C52: -122.019775 | D52: 2013-05-11T10:30:55Z | E52: 2013-05-11T09:31:16 | F52: 403.88 | G52: 12.93 | H52: 86.039 | I52: 396.62 | J52: 12.998 | K52: 102.25 | L52: 1.9142 | M52: 1.2655 | N52: 13.175 | O52: 92.515 | P52: 1.1651 | Q52: 13.205 | R52: 100.72 | S52: 412.85 | T52: 13.382 | U52: 86.564 | V52: 406.76 | W52: 13.442 | X52: 102.16 | Y52: 1.9129 | Z52: 0 | AA52: 0 | AB52: 0 | AC52: 0 | AD52: 0 | AE52: 78.18 | AF52: 78.16 | AG52: 78.37 | AH52: 78.48 | AI52: 78.4 | AJ52: 78.5 | AK52: 1.5838 | AL52: 0 | AM52: 0
A53: pCO2 | B53: 36.767335 | C53: -122.0357617 | D53: 2013-05-11T11:30:56Z | E53: 2013-05-11T10:31:16 | F53: 402.87 | G53: 12.92 | H53: 85.298 | I53: 395.28 | J53: 12.988 | K53: 101.78 | L53: 1.9247 | M53: 1.1045 | N53: 13.175 | O53: 92.071 | P53: 1.3047 | Q53: 13.205 | R53: 100.76 | S53: 413.73 | T53: 13.382 | U53: 86.12 | V53: 407.38 | W53: 13.432 | X53: 102.09 | Y53: 1.9156 | Z53: 0 | AA53: 0 | AB53: 0 | AC53: 0 | AD53: 0 | AE53: 78.44 | AF53: 78.27 | AG53: 78.27 | AH53: 78.02 | AI53: 77.98 | AJ53: 78.02 | AK53: 1.5781 | AL53: 0 | AM53: 0
A54: pCO2 | B54: 36.76540333 | C54: -122.0484967 | D54: 2013-05-11T12:30:55Z | E54: 2013-05-11T11:31:17 | F54: 403.85 | G54: 12.92 | H54: 85.595 | I54: 396.76 | J54: 12.979 | K54: 102.29 | L54: 1.9287 | M54: 1.2452 | N54: 13.156 | O54: 92.031 | P54: 1.3388 | Q54: 13.185 | R54: 100.76 | S54: 416.02 | T54: 13.363 | U54: 86.12 | V54: 410.13 | W54: 13.432 | X54: 102.06 | Y54: 1.9208 | Z54: 0 | AA54: 0 | AB54: 0 | AC54: 0 | AD54: 0 | AE54: 78.08 | AF54: 78.12 | AG54: 78.12 | AH54: 78.08 | AI54: 77.9 | AJ54: 77.82 | AK54: 1.5738 | AL54: 0 | AM54: 0
A55: pCO2 | B55: 36.763635 | C55: -122.058595 | D55: 2013-05-11T13:30:54Z | E55: 2013-05-11T12:31:16 | F55: 410.9 | G55: 12.91 | H55: 85.702 | I55: 404 | J55: 12.979 | K55: 102.21 | L55: 1.9221 | M55: 1.1273 | N55: 13.156 | O55: 92.152 | P55: 1.2503 | Q55: 13.185 | R55: 100.73 | S55: 415.96 | T55: 13.363 | U55: 86.268 | V55: 409.47 | W55: 13.422 | X55: 102.02 | Y55: 1.9149 | Z55: 0 | AA55: 0 | AB55: 0 | AC55: 0 | AD55: 0 | AE55: 77.72 | AF55: 77.73 | AG55: 77.72 | AH55: 77.69 | AI55: 77.73 | AJ55: 77.69 | AK55: 1.572 | AL55: 0 | AM55: 0
A56: pCO2 | B56: 36.76241833 | C56: -122.0670233 | D56: 2013-05-11T14:30:55Z | E56: 2013-05-11T13:31:16 | F56: 413.05 | G56: 12.9 | H56: 85.433 | I56: 406.3 | J56: 12.959 | K56: 102.16 | L56: 1.9285 | M56: 1.2938 | N56: 13.146 | O56: 91.815 | P56: 1.2982 | Q56: 13.166 | R56: 100.28 | S56: 416.51 | T56: 13.343 | U56: 86.093 | V56: 410.41 | W56: 13.412 | X56: 102.06 | Y56: 1.9207 | Z56: 0 | AA56: 0 | AB56: 0 | AC56: 0 | AD56: 0 | AE56: 77.66 | AF56: 77.66 | AG56: 77.63 | AH56: 77.71 | AI56: 77.71 | AJ56: 77.75 | AK56: 1.5716 | AL56: 0 | AM56: 0
A57: pCO2 | B57: 36.760915 | C57: -122.0769233 | D57: 2013-05-11T15:30:54Z | E57: 2013-05-11T14:31:17 | F57: 412.06 | G57: 12.88 | H57: 85.756 | I57: 405.83 | J57: 12.949 | K57: 102.32 | L57: 1.9206 | M57: 1.1937 | N57: 13.126 | O57: 92.044 | P57: 1.353 | Q57: 13.146 | R57: 100.66 | S57: 418.24 | T57: 13.323 | U57: 86.241 | V57: 412.03 | W57: 13.382 | X57: 102.04 | Y57: 1.9152 | Z57: 0 | AA57: 0 | AB57: 0 | AC57: 0 | AD57: 0 | AE57: 77.71 | AF57: 77.73 | AG57: 77.67 | AH57: 77.6 | AI57: 77.48 | AJ57: 77.52 | AK57: 1.5732 | AL57: 0 | AM57: 0
A58: pCO2 | B58: 36.75912333 | C58: -122.0882167 | D58: 2013-05-11T16:30:55Z | E58: 2013-05-11T15:31:16 | F58: 417.69 | G58: 12.851 | H58: 85.541 | I58: 411.44 | J58: 12.92 | K58: 102.29 | L58: 1.9273 | M58: 1.2104 | N58: 13.097 | O58: 92.138 | P58: 1.3418 | Q58: 13.126 | R58: 100.84 | S58: 417.3 | T58: 13.294 | U58: 86.12 | V58: 411.04 | W58: 13.353 | X58: 102.08 | Y58: 1.9179 | Z58: 103.13 | AA58: 406.44 | AB58: 13.58 | AC58: 102.06 | AD58: 1.7899 | AE58: 77.37 | AF58: 77.44 | AG58: 77.36 | AH58: 77.41 | AI58: 77.43 | AJ58: 77.51 | AK58: 1.5759 | AL58: 0 | AM58: 0
A59: pCO2 | B59: 36.75796667 | C59: -122.0961333 | D59: 2013-05-11T17:30:55Z | E59: 2013-05-11T16:31:17 | F59: 416.82 | G59: 12.92 | H59: 85.568 | I59: 409.52 | J59: 12.988 | K59: 102.2 | L59: 1.9206 | M59: 1.3369 | N59: 13.156 | O59: 92.085 | P59: 1.357 | Q59: 13.185 | R59: 100.72 | S59: 412.1 | T59: 13.363 | U59: 86.12 | V59: 406.38 | W59: 13.422 | X59: 102.06 | Y59: 1.9202 | Z59: 0 | AA59: 0 | AB59: 0 | AC59: 0 | AD59: 0 | AE59: 77.55 | AF59: 77.66 | AG59: 77.74 | AH59: 77.56 | AI59: 77.62 | AJ59: 77.61 | AK59: 1.5739 | AL59: 0 | AM59: 0
A60: pCO2 | B60: 36.75669667 | C60: -122.10336 | D60: 2013-05-11T18:30:55Z | E60: 2013-05-11T17:31:16 | F60: 417.11 | G60: 12.871 | H60: 86.322 | I60: 409.73 | J60: 12.939 | K60: 102.3 | L60: 1.9099 | M60: 1.2081 | N60: 13.116 | O60: 92.462 | P60: 1.4924 | Q60: 13.146 | R60: 100.96 | S60: 410.96 | T60: 13.313 | U60: 86.537 | V60: 404.89 | W60: 13.372 | X60: 102.08 | Y60: 1.9131 | Z60: 0 | AA60: 0 | AB60: 0 | AC60: 0 | AD60: 0 | AE60: 77.61 | AF60: 77.64 | AG60: 77.72 | AH60: 77.68 | AI60: 77.75 | AJ60: 77.66 | AK60: 1.5725 | AL60: 0 | AM60: 0
A61: pCO2 | B61: 36.75642 | C61: -122.1058583 | D61: 2013-05-11T19:30:55Z | E61: 2013-05-11T18:31:16 | F61: 416.07 | G61: 12.841 | H61: 86.147 | I61: 409.58 | J61: 12.91 | K61: 102.33 | L61: 1.9114 | M61: 1.2173 | N61: 13.097 | O61: 92.448 | P61: 1.3114 | Q61: 13.126 | R61: 100.7 | S61: 410.43 | T61: 13.284 | U61: 86.497 | V61: 404.57 | W61: 13.353 | X61: 102.09 | Y61: 1.9129 | Z61: 0 | AA61: 0 | AB61: 0 | AC61: 0 | AD61: 0 | AE61: 77.62 | AF61: 77.81 | AG61: 77.53 | AH61: 77.38 | AI61: 77.28 | AJ61: 77.22 | AK61: 1.5755 | AL61: 0 | AM61: 0
A62: pCO2 | B62: 36.75581333 | C62: -122.1093633 | D62: 2013-05-11T20:30:54Z | E62: 2013-05-11T19:31:16 | F62: 424.98 | G62: 12.822 | H62: 86.133 | I62: 418.86 | J62: 12.89 | K62: 102.3 | L62: 1.9094 | M62: 1.1709 | N62: 13.077 | O62: 92.462 | P62: 1.2771 | Q62: 13.106 | R62: 100.78 | S62: 410.43 | T62: 13.274 | U62: 86.618 | V62: 404.25 | W62: 13.333 | X62: 102.09 | Y62: 1.9129 | Z62: 0 | AA62: 0 | AB62: 0 | AC62: 0 | AD62: 0 | AE62: 77.12 | AF62: 77.07 | AG62: 77.15 | AH62: 77.03 | AI62: 76.97 | AJ62: 77.21 | AK62: 1.5761 | AL62: 0 | AM62: 0
A63: pCO2 | B63: 36.754645 | C63: -122.1164583 | D63: 2013-05-11T21:30:56Z | E63: 2013-05-11T20:31:16 | F63: 421.82 | G63: 12.822 | H63: 85.729 | I63: 414.86 | J63: 12.89 | K63: 102.33 | L63: 1.927 | M63: 1.1174 | N63: 13.077 | O63: 92.448 | P63: 1.3434 | Q63: 13.106 | R63: 101.19 | S63: 410.6 | T63: 13.274 | U63: 86.147 | V63: 404.41 | W63: 13.333 | X63: 102.09 | Y63: 1.9275 | Z63: 0 | AA63: 0 | AB63: 0 | AC63: 0 | AD63: 0 | AE63: 77.31 | AF63: 77.34 | AG63: 77.37 | AH63: 77.14 | AI63: 76.86 | AJ63: 76.77 | AK63: 1.576 | AL63: 0 | AM63: 0
A64: pCO2 | B64: 36.75341833 | C64: -122.1248217 | D64: 2013-05-11T22:30:56Z | E64: 2013-05-11T21:31:16 | F64: 439.74 | G64: 12.763 | H64: 85.321 | I64: 432.2 | J64: 12.831 | K64: 101.74 | L64: 1.9291 | M64: 1.2316 | N64: 13.018 | O64: 92.017 | P64: 1.3936 | Q64: 13.047 | R64: 100.82 | S64: 410.72 | T64: 13.205 | U64: 86.106 | V64: 403.8 | W64: 13.274 | X64: 102.08 | Y64: 1.93 | Z64: 0 | AA64: 0 | AB64: 0 | AC64: 0 | AD64: 0 | AE64: 76.52 | AF64: 76.21 | AG64: 76.23 | AH64: 76.25 | AI64: 76.31 | AJ64: 76.22 | AK64: 1.5753 | AL64: 0 | AM64: 0
A65: pCO2 | B65: 36.75211333 | C65: -122.1330183 | D65: 2013-05-11T23:30:55Z | E65: 2013-05-11T22:31:17 | F65: 445.16 | G65: 12.674 | H65: 85.406 | I65: 437.54 | J65: 12.743 | K65: 102.1 | L65: 1.9364 | M65: 1.2517 | N65: 12.92 | O65: 91.937 | P65: 1.5298 | Q65: 12.949 | R65: 100.76 | S65: 410.3 | T65: 13.126 | U65: 85.985 | V65: 404.4 | W65: 13.175 | X65: 102.04 | Y65: 1.9326 | Z65: 0 | AA65: 0 | AB65: 0 | AC65: 0 | AD65: 0 | AE65: 76.18 | AF65: 75.91 | AG65: 75.67 | AH65: 75.61 | AI65: 75.42 | AJ65: 75.15 | AK65: 1.5744 | AL65: 0 | AM65: 0
A66: pCO2 | B66: 36.751065 | C66: -122.14021 | D66: 2013-05-12T00:30:51Z | E66: 2013-05-11T23:31:16 | F66: 457.66 | G66: 12.616 | H66: 85.514 | I66: 449.76 | J66: 12.675 | K66: 101.74 | L66: 1.9231 | M66: 1.3073 | N66: 12.861 | O66: 91.923 | P66: 1.4709 | Q66: 12.89 | R66: 100.65 | S66: 410.82 | T66: 13.057 | U66: 86.079 | V66: 404.49 | W66: 13.116 | X66: 102.02 | Y66: 1.9266 | Z66: 0 | AA66: 0 | AB66: 0 | AC66: 0 | AD66: 0 | AE66: 75.17 | AF66: 75.51 | AG66: 75.78 | AH66: 75.91 | AI66: 76.12 | AJ66: 76.23 | AK66: 1.5757 | AL66: 0 | AM66: 0
A67: pCO2 | B67: 36.74957 | C67: -122.14915 | D67: 2013-05-12T01:30:51Z | E67: 2013-05-12T00:31:16 | F67: 447.79 | G67: 12.577 | H67: 85.783 | I67: 440.69 | J67: 12.645 | K67: 102.37 | L67: 1.9287 | M67: 1.4504 | N67: 12.822 | O67: 92.61 | P67: 1.5982 | Q67: 12.851 | R67: 101.24 | S67: 410.99 | T67: 13.028 | U67: 86.079 | V67: 404.85 | W67: 13.087 | X67: 102.01 | Y67: 1.9268 | Z67: 0 | AA67: 0 | AB67: 0 | AC67: 0 | AD67: 0 | AE67: 76.03 | AF67: 75.8 | AG67: 75.86 | AH67: 75.52 | AI67: 75.53 | AJ67: 75.53 | AK67: 1.5742 | AL67: 0 | AM67: 0
A68: pCO2 | B68: 36.74732167 | C68: -122.1635733 | D68: 2013-05-12T02:30:53Z | E68: 2013-05-12T01:31:16 | F68: 452.19 | G68: 12.537 | H68: 85.204 | I68: 445.25 | J68: 12.606 | K68: 101.86 | L68: 1.9268 | M68: 1.4437 | N68: 12.782 | O68: 91.842 | P68: 1.4684 | Q68: 12.812 | R68: 100.35 | S68: 411.14 | T68: 12.989 | U68: 86.052 | V68: 404.59 | W68: 13.047 | X68: 101.97 | Y68: 1.9249 | Z68: 0 | AA68: 0 | AB68: 0 | AC68: 0 | AD68: 0 | AE68: 75.54 | AF68: 75.82 | AG68: 76.13 | AH68: 76.25 | AI68: 76.06 | AJ68: 75.95 | AK68: 1.5733 | AL68: 0 | AM68: 0
A69: pCO2 | B69: 36.744485 | C69: -122.181145 | D69: 2013-05-12T03:30:51Z | E69: 2013-05-12T02:31:18 | F69: 450.14 | G69: 12.489 | H69: 85.186 | I69: 443.79 | J69: 12.557 | K69: 101.89 | L69: 1.9281 | M69: 1.2574 | N69: 12.733 | O69: 91.963 | P69: 1.6029 | Q69: 12.773 | R69: 100.63 | S69: 410.78 | T69: 12.93 | U69: 85.985 | V69: 404.91 | W69: 12.998 | X69: 102.01 | Y69: 1.9251 | Z69: 0 | AA69: 0 | AB69: 0 | AC69: 0 | AD69: 0 | AE69: 75.83 | AF69: 75.79 | AG69: 75.83 | AH69: 75.78 | AI69: 75.35 | AJ69: 75.02 | AK69: 1.5714 | AL69: 0 | AM69: 0
A70: pCO2 | B70: 36.74187333 | C70: -122.198285 | D70: 2013-05-12T04:30:52Z | E70: 2013-05-12T03:31:16 | F70: 467.7 | G70: 12.459 | H70: 85.783 | I70: 460.63 | J70: 12.528 | K70: 102.41 | L70: 1.924 | M70: 1.3953 | N70: 12.704 | O70: 92.462 | P70: 1.6734 | Q70: 12.733 | R70: 101.16 | S70: 410.77 | T70: 12.9 | U70: 86.133 | V70: 404.9 | W70: 12.969 | X70: 102.02 | Y70: 1.9208 | Z70: 0 | AA70: 0 | AB70: 0 | AC70: 0 | AD70: 0 | AE70: 74.91 | AF70: 74.74 | AG70: 74.83 | AH70: 74.71 | AI70: 75.16 | AJ70: 75.31 | AK70: 1.5741 | AL70: 0 | AM70: 0
A71: pCO2 | B71: 36.738645 | C71: -122.2187833 | D71: 2013-05-12T05:30:52Z | E71: 2013-05-12T04:31:16 | F71: 461.77 | G71: 12.41 | H71: 85.352 | I71: 454.01 | J71: 12.479 | K71: 101.71 | L71: 1.9221 | M71: 1.3212 | N71: 12.665 | O71: 92.058 | P71: 1.5478 | Q71: 12.694 | R71: 100.89 | S71: 411.34 | T71: 12.861 | U71: 86.106 | V71: 405.08 | W71: 12.92 | X71: 102.12 | Y71: 1.9213 | Z71: 0 | AA71: 0 | AB71: 0 | AC71: 0 | AD71: 0 | AE71: 75.44 | AF71: 75.2 | AG71: 75.31 | AH71: 75.38 | AI71: 75.31 | AJ71: 75.6 | AK71: 1.5735 | AL71: 0 | AM71: 0
A72: pCO2 | B72: 36.73543833 | C72: -122.2396117 | D72: 2013-05-12T06:30:51Z | E72: 2013-05-12T05:31:16 | F72: 456.24 | G72: 12.43 | H72: 85.204 | I72: 448.52 | J72: 12.498 | K72: 100.92 | L72: 1.9267 | M72: 1.3311 | N72: 12.684 | O72: 91.398 | P72: 1.5217 | Q72: 12.704 | R72: 100.15 | S72: 410.8 | T72: 12.881 | U72: 86.106 | V72: 405.05 | W72: 12.939 | X72: 102.14 | Y72: 1.9222 | Z72: 0 | AA72: 0 | AB72: 0 | AC72: 0 | AD72: 0 | AE72: 75.58 | AF72: 75.56 | AG72: 75.08 | AH72: 75.13 | AI72: 75.26 | AJ72: 75.32 | AK72: 1.5715 | AL72: 0 | AM72: 0
A73: pCO2 | B73: 36.73166 | C73: -122.26356 | D73: 2013-05-12T07:30:52Z | E73: 2013-05-12T06:31:16 | F73: 459.55 | G73: 12.459 | H73: 85.541 | I73: 451.88 | J73: 12.528 | K73: 102.2 | L73: 1.926 | M73: 1.4386 | N73: 12.714 | O73: 91.586 | P73: 1.5813 | Q73: 12.743 | R73: 100.54 | S73: 412.17 | T73: 12.91 | U73: 86.079 | V73: 406.18 | W73: 12.979 | X73: 102.14 | Y73: 1.9229 | Z73: 0 | AA73: 0 | AB73: 0 | AC73: 0 | AD73: 0 | AE73: 75.28 | AF73: 75.37 | AG73: 75.43 | AH73: 75.5 | AI73: 75.53 | AJ73: 75.5 | AK73: 1.5726 | AL73: 0 | AM73: 0
A74: pCO2 | B74: 36.72795833 | C74: -122.28707 | D74: 2013-05-12T08:30:52Z | E74: 2013-05-12T07:31:16 | F74: 457.22 | G74: 12.489 | H74: 85.662 | I74: 449.22 | J74: 12.557 | K74: 102.08 | L74: 1.9222 | M74: 1.2807 | N74: 12.733 | O74: 92.004 | P74: 1.5767 | Q74: 12.773 | R74: 100.93 | S74: 412.91 | T74: 12.93 | U74: 86.106 | V74: 406.56 | W74: 12.998 | X74: 102.14 | Y74: 1.923 | Z74: 0 | AA74: 0 | AB74: 0 | AC74: 0 | AD74: 0 | AE74: 75.51 | AF74: 75.53 | AG74: 75.5 | AH74: 75.54 | AI74: 75.2 | AJ74: 75.07 | AK74: 1.5768 | AL74: 0 | AM74: 0
A75: pCO2 | B75: 36.724685 | C75: -122.307555 | D75: 2013-05-12T09:30:52Z | E75: 2013-05-12T08:31:17 | F75: 457.66 | G75: 12.41 | H75: 85.671 | I75: 450.9 | J75: 12.489 | K75: 102.26 | L75: 1.9231 | M75: 1.257 | N75: 12.665 | O75: 91.99 | P75: 1.5269 | Q75: 12.694 | R75: 100.9 | S75: 412.84 | T75: 12.861 | U75: 86.012 | V75: 406.29 | W75: 12.92 | X75: 102.1 | Y75: 1.9261 | Z75: 0 | AA75: 0 | AB75: 0 | AC75: 0 | AD75: 0 | AE75: 75.16 | AF75: 75.39 | AG75: 75.62 | AH75: 75.4 | AI75: 74.72 | AJ75: 74.89 | AK75: 1.5767
A76: pCO2 | B76: 36.72170333 | C76: -122.3265433 | D76: 2013-05-12T10:30:53Z | E76: 2013-05-12T09:31:17 | F76: 457.44 | G76: 12.313 | H76: 85.999 | I76: 450.11 | J76: 12.381 | K76: 102.17 | L76: 1.9092 | M76: 1.2671 | N76: 12.567 | O76: 92.273 | P76: 1.4134 | Q76: 12.596 | R76: 101.13 | S76: 412.14 | T76: 12.763 | U76: 86.429 | V76: 405.83 | W76: 12.822 | X76: 102.08 | Y76: 1.916 | Z76: 0 | AA76: 0 | AB76: 0 | AC76: 0 | AD76: 0 | AE76: 75.12 | AF76: 75.47 | AG76: 75.54 | AH76: 75.74 | AI76: 75.89 | AJ76: 75.99 | AK76: 1.5753 | AL76: 0 | AM76: 0
A77: pCO2 | B77: 36.71845167 | C77: -122.3473217 | D77: 2013-05-12T11:30:52Z | E77: 2013-05-12T10:31:17 | F77: 447.27 | G77: 12.313 | H77: 86.066 | I77: 439.4 | J77: 12.381 | K77: 102.68 | L77: 1.9224 | M77: 1.4298 | N77: 12.567 | O77: 92.327 | P77: 1.3645 | Q77: 12.596 | R77: 101.08 | S77: 412.61 | T77: 12.773 | U77: 86.12 | V77: 406.25 | W77: 12.822 | X77: 102.09 | Y77: 1.9216 | Z77: 0 | AA77: 0 | AB77: 0 | AC77: 0 | AD77: 0 | AE77: 76.01 | AF77: 75.86 | AG77: 75.61 | AH77: 75.73 | AI77: 75.54 | AJ77: 75.54 | AK77: 1.5723 | AL77: 0 | AM77: 0
A78: pCO2 | B78: 36.71193167 | C78: -122.3607917 | D78: 2013-05-12T12:30:52Z | E78: 2013-05-12T11:31:16 | F78: 461.32 | G78: 12.332 | H78: 86.12 | I78: 454.22 | J78: 12.401 | K78: 102.01 | L78: 1.9082 | M78: 1.4947 | N78: 12.586 | O78: 92.596 | P78: 1.489 | Q78: 12.616 | R78: 100.81 | S78: 412.09 | T78: 12.782 | U78: 86.483 | V78: 406.05 | W78: 12.841 | X78: 102.08 | Y78: 1.9119 | Z78: 0 | AA78: 0 | AB78: 0 | AC78: 0 | AD78: 0 | AE78: 75.4 | AF78: 75.27 | AG78: 75.33 | AH78: 75.49 | AI78: 75.68 | AJ78: 75.78 | AK78: 1.5729 | AL78: 0 | AM78: 0
A79: pCO2 | B79: 36.70389167 | C79: -122.3700233 | D79: 2013-05-12T13:30:51Z | E79: 2013-05-12T12:31:16 | F79: 447.53 | G79: 12.371 | H79: 86.066 | I79: 440.57 | J79: 12.44 | K79: 102.56 | L79: 1.9183 | M79: 1.2954 | N79: 12.626 | O79: 92.866 | P79: 1.6279 | Q79: 12.655 | R79: 101.46 | S79: 411.92 | T79: 12.822 | U79: 86.47 | V79: 405.75 | W79: 12.881 | X79: 102.09 | Y79: 1.9151 | Z79: 0 | AA79: 0 | AB79: 0 | AC79: 0 | AD79: 0 | AE79: 75.93 | AF79: 76.01 | AG79: 76.1 | AH79: 76.18 | AI79: 76.22 | AJ79: 76.22 | AK79: 1.5703 | AL79: 0 | AM79: 0
A80: pCO2 | B80: 36.69896833 | C80: -122.375675 | D80: 2013-05-12T14:30:51Z | E80: 2013-05-12T13:31:17 | F80: 445.77 | G80: 12.459 | H80: 86.201 | I80: 438.15 | J80: 12.528 | K80: 102.17 | L80: 1.912 | M80: 1.3769 | N80: 12.724 | O80: 92.556 | P80: 1.4755 | Q80: 12.733 | R80: 101.21 | S80: 411.69 | T80: 12.91 | U80: 86.564 | V80: 405.79 | W80: 12.979 | X80: 102.13 | Y80: 1.9122 | Z80: 0 | AA80: 0 | AB80: 0 | AC80: 0 | AD80: 0 | AE80: 76.12 | AF80: 76.1 | AG80: 76.09 | AH80: 76.13 | AI80: 76.15 | AJ80: 76.29 | AK80: 1.5693 | AL80: 0 | AM80: 0
A81: pCO2 | B81: 36.69876167 | C81: -122.37815 | D81: 2013-05-12T15:30:52Z | E81: 2013-05-12T14:31:16 | F81: 439.66 | G81: 12.518 | H81: 86.214 | I81: 433.17 | J81: 12.586 | K81: 102.87 | L81: 1.9238 | M81: 1.3037 | N81: 12.773 | O81: 92.489 | P81: 1.5264 | Q81: 12.792 | R81: 101.24 | S81: 411.95 | T81: 12.969 | U81: 86.133 | V81: 405.33 | W81: 13.038 | X81: 102.17 | Y81: 1.9264 | Z81: 103.25 | AA81: 406.21 | AB81: 13.264 | AC81: 102.17 | AD81: 1.794 | AE81: 76.51 | AF81: 76.59 | AG81: 76.71 | AH81: 76.79 | AI81: 77.01 | AJ81: 77.19 | AK81: 1.5702 | AL81: 0 | AM81: 0
A82: pCO2 | B82: 36.71423667 | C82: -122.3584133 | D82: 2013-05-12T16:30:52Z | E82: 2013-05-12T15:31:16 | F82: 428.96 | G82: 12.723 | H82: 85.877 | I82: 421.23 | J82: 12.792 | K82: 102.51 | L82: 1.9285 | M82: 1.1585 | N82: 12.979 | O82: 92.314 | P82: 1.4751 | Q82: 13.008 | R82: 101.09 | S82: 412.79 | T82: 13.175 | U82: 86.106 | V82: 405.8 | W82: 13.234 | X82: 102.17 | Y82: 1.9321 | Z82: 0 | AA82: 0 | AB82: 0 | AC82: 0 | AD82: 0 | AE82: 77.33 | AF82: 77.1 | AG82: 76.96 | AH82: 76.85 | AI82: 76.82 | AJ82: 76.77 | AK82: 1.5708 | AL82: 0 | AM82: 0
A83: pCO2 | B83: 36.72121833 | C83: -122.330415 | D83: 2013-05-12T17:30:52Z | E83: 2013-05-12T16:31:16 | F83: 439.71 | G83: 12.704 | H83: 85.81 | I83: 432.67 | J83: 12.763 | K83: 102.25 | L83: 1.9308 | M83: 1.1902 | N83: 12.939 | O83: 92.098 | P83: 1.4546 | Q83: 12.979 | R83: 100.9 | S83: 412.65 | T83: 13.146 | U83: 86.12 | V83: 406.5 | W83: 13.205 | X83: 102.2 | Y83: 1.9348 | Z83: 0 | AA83: 0 | AB83: 0 | AC83: 0 | AD83: 0 | AE83: 76.54 | AF83: 76.49 | AG83: 76.4 | AH83: 76.45 | AI83: 76.51 | AJ83: 76.52 | AK83: 1.572 | AL83: 0 | AM83: 0
A84: pCO2 | B84: 36.72601667 | C84: -122.2989783 | D84: 2013-05-12T18:30:52Z | E84: 2013-05-12T17:31:16 | F84: 435 | G84: 12.665 | H84: 85.218 | I84: 428.11 | J84: 12.733 | K84: 101.12 | L84: 1.9248 | M84: 1.2897 | N84: 12.92 | O84: 91.91 | P84: 1.3109 | Q84: 12.949 | R84: 100.77 | S84: 412.88 | T84: 13.116 | U84: 86.12 | V84: 406.24 | W84: 13.175 | X84: 102.2 | Y84: 1.936 | Z84: 0 | AA84: 0 | AB84: 0 | AC84: 0 | AD84: 0 | AE84: 76.78 | AF84: 76.84 | AG84: 76.89 | AH84: 76.96 | AI84: 76.83 | AJ84: 76.91 | AK84: 1.5689 | AL84: 0 | AM84: 0
A85: pCO2 | B85: 36.73035167 | C85: -122.2720583 | D85: 2013-05-12T19:30:51Z | E85: 2013-05-12T18:31:17 | F85: 434.84 | G85: 12.665 | H85: 85.218 | I85: 427.9 | J85: 12.733 | K85: 101.2 | L85: 1.9224 | M85: 1.1744 | N85: 12.92 | O85: 92.058 | P85: 1.383 | Q85: 12.939 | R85: 100.62 | S85: 412.67 | T85: 13.107 | U85: 86.16 | V85: 405.99 | W85: 13.175 | X85: 102.17 | Y85: 1.9351 | Z85: 0 | AA85: 0 | AB85: 0 | AC85: 0 | AD85: 0 | AE85: 76.87 | AF85: 76.78 | AG85: 76.69 | AH85: 76.57 | AI85: 76.36 | AJ85: 76.55 | AK85: 1.5704 | AL85: 0 | AM85: 0
A86: pCO2 | B86: 36.73350833 | C86: -122.2520133 | D86: 2013-05-12T20:30:53Z | E86: 2013-05-12T19:31:16 | F86: 432.85 | G86: 12.616 | H86: 85.743 | I86: 425.69 | J86: 12.684 | K86: 101.85 | L86: 1.9146 | M86: 1.3215 | N86: 12.871 | O86: 92.542 | P86: 1.4704 | Q86: 12.89 | R86: 101.39 | S86: 412.08 | T86: 13.067 | U86: 86.497 | V86: 406.24 | W86: 13.126 | X86: 102.13 | Y86: 1.9261 | Z86: 0 | AA86: 0 | AB86: 0 | AC86: 0 | AD86: 0 | AE86: 76.8 | AF86: 76.82 | AG86: 76.76 | AH86: 76.79 | AI86: 76.71 | AJ86: 76.51 | AK86: 1.5667 | AL86: 0 | AM86: 0
A87: pCO2 | B87: 36.73648667 | C87: -122.2328567 | D87: 2013-05-12T21:30:51Z | E87: 2013-05-12T20:31:17 | F87: 440.69 | G87: 12.596 | H87: 85.325 | I87: 434.51 | J87: 12.665 | K87: 101.56 | L87: 1.9255 | M87: 1.1989 | N87: 12.841 | O87: 92.071 | P87: 1.4068 | Q87: 12.871 | R87: 100.82 | S87: 412.23 | T87: 13.038 | U87: 86.147 | V87: 405.62 | W87: 13.097 | X87: 102.1 | Y87: 1.9329 | Z87: 0 | AA87: 0 | AB87: 0 | AC87: 0 | AD87: 0 | AE87: 76.61 | AF87: 76.44 | AG87: 75.9 | AH87: 75.96 | AI87: 75.64 | AJ87: 75.27 | AK87: 1.568 | AL87: 0 | AM87: 0
A88: pCO2 | B88: 36.7389 | C88: -122.2166517 | D88: 2013-05-12T22:30:52Z | E88: 2013-05-12T21:31:16 | F88: 466.32 | G88: 12.547 | H88: 85.069 | I88: 461.43 | J88: 12.626 | K88: 101.59 | L88: 1.9246 | M88: 1.2812 | N88: 12.802 | O88: 91.667 | P88: 1.5191 | Q88: 12.831 | R88: 100.63 | S88: 411.94 | T88: 12.998 | U88: 85.999 | V88: 405.68 | W88: 13.057 | X88: 102.05 | Y88: 1.9365 | Z88: 0 | AA88: 0 | AB88: 0 | AC88: 0 | AD88: 0 | AE88: 74.98 | AF88: 75.12 | AG88: 75.02 | AH88: 75.41 | AI88: 75.11 | AJ88: 75.42 | AK88: 1.568 | AL88: 0 | AM88: 0
A89: pCO2 | B89: 36.741035 | C89: -122.20295 | D89: 2013-05-12T23:30:52Z | E89: 2013-05-12T22:31:16 | F89: 462.3 | G89: 12.577 | H89: 85.352 | I89: 453.73 | J89: 12.645 | K89: 100.93 | L89: 1.9196 | M89: 1.1437 | N89: 12.822 | O89: 91.546 | P89: 1.3963 | Q89: 12.851 | R89: 100.22 | S89: 412.01 | T89: 13.028 | U89: 86.308 | V89: 405.65 | W89: 13.087 | X89: 101.95 | Y89: 1.9257 | Z89: 0 | AA89: 0 | AB89: 0 | AC89: 0 | AD89: 0 | AE89: 75.53 | AF89: 75.63 | AG89: 75.59 | AH89: 75.66 | AI89: 75.67 | AJ89: 75.71 | AK89: 1.5641 | AL89: 0 | AM89: 0
A90: pCO2 | B90: 36.743045 | C90: -122.1915367 | D90: 2013-05-13T00:30:56Z | E90: 2013-05-12T23:31:16 | F90: 461.95 | G90: 12.616 | H90: 84.76 | I90: 452.88 | J90: 12.684 | K90: 101.05 | L90: 1.9259 | M90: 1.3782 | N90: 12.861 | O90: 91.586 | P90: 1.5559 | Q90: 12.89 | R90: 100.63 | S90: 412.17 | T90: 13.067 | U90: 85.877 | V90: 405.78 | W90: 13.116 | X90: 101.91 | Y90: 1.9363 | Z90: 0 | AA90: 0 | AB90: 0 | AC90: 0 | AD90: 0 | AE90: 75.71 | AF90: 75.61 | AG90: 75.59 | AH90: 75.49 | AI90: 75.37 | AJ90: 75.26 | AK90: 1.5648 | AL90: 0 | AM90: 0
A91: pCO2 | B91: 36.74499667 | C91: -122.1787483 | D91: 2013-05-13T01:30:57Z | E91: 2013-05-13T00:31:16 | F91: 473.08 | G91: 12.596 | H91: 84.746 | I91: 462.63 | J91: 12.665 | K91: 100.8 | L91: 1.9215 | M91: 1.2361 | N91: 12.841 | O91: 91.708 | P91: 1.5085 | Q91: 12.871 | R91: 100.51 | S91: 412.13 | T91: 13.038 | U91: 85.864 | V91: 406.12 | W91: 13.097 | X91: 101.86 | Y91: 1.9329 | Z91: 0 | AA91: 0 | AB91: 0 | AC91: 0 | AD91: 0 | AE91: 75.12 | AF91: 74.94 | AG91: 74.86 | AH91: 74.77 | AI91: 74.7 | AJ91: 74.7 | AK91: 1.5651 | AL91: 0 | AM91: 0
A92: pCO2 | B92: 36.747305 | C92: -122.1639167 | D92: 2013-05-13T02:30:56Z | E92: 2013-05-13T01:31:16 | F92: 478.71 | G92: 12.498 | H92: 84.719 | I92: 472.22 | J92: 12.567 | K92: 101.09 | L92: 1.922 | M92: 1.1602 | N92: 12.743 | O92: 91.761 | P92: 1.4675 | Q92: 12.773 | R92: 100.31 | S92: 411.81 | T92: 12.939 | U92: 85.877 | V92: 405.9 | W92: 12.998 | X92: 101.78 | Y92: 1.9307 | Z92: 0 | AA92: 0 | AB92: 0 | AC92: 0 | AD92: 0 | AE92: 74.59 | AF92: 74.39 | AG92: 74.31 | AH92: 74.08 | AI92: 74.1 | AJ92: 74.12 | AK92: 1.5667 | AL92: 0 | AM92: 0
A93: pCO2 | B93: 36.74971167 | C93: -122.1481567 | D93: 2013-05-13T03:30:57Z | E93: 2013-05-13T02:31:16 | F93: 483.48 | G93: 12.371 | H93: 84.773 | I93: 475.66 | J93: 12.449 | K93: 100.45 | L93: 1.9047 | M93: 1.3843 | N93: 12.626 | O93: 91.91 | P93: 1.3832 | Q93: 12.655 | R93: 100.18 | S93: 412.21 | T93: 12.822 | U93: 86.295 | V93: 406.02 | W93: 12.881 | X93: 101.77 | Y93: 1.9197 | Z93: 0 | AA93: 0 | AB93: 0 | AC93: 0 | AD93: 0 | AE93: 74.19 | AF93: 74.32 | AG93: 74.38 | AH93: 74.22 | AI93: 74.36 | AJ93: 74.14 | AK93: 1.5632 | AL93: 0 | AM93: 0
A94: pCO2 | B94: 36.75247333 | C94: -122.1309033 | D94: 2013-05-13T04:30:57Z | E94: 2013-05-13T03:31:17 | F94: 494.94 | G94: 12.274 | H94: 84.76 | I94: 487.53 | J94: 12.352 | K94: 100.49 | L94: 1.9077 | M94: 1.4394 | N94: 12.528 | O94: 91.533 | P94: 1.6192 | Q94: 12.557 | R94: 100.02 | S94: 411.93 | T94: 12.724 | U94: 86.281 | V94: 406.1 | W94: 12.782 | X94: 101.85 | Y94: 1.9175 | Z94: 0 | AA94: 0 | AB94: 0 | AC94: 0 | AD94: 0 | AE94: 73.82 | AF94: 73.66 | AG94: 73.6 | AH94: 73.57 | AI94: 73.54 | AJ94: 73.41 | AK94: 1.5646 | AL94: 0 | AM94: 0
A95: pCO2 | B95: 36.75531 | C95: -122.1128517 | D95: 2013-05-13T05:30:56Z | E95: 2013-05-13T04:31:17 | F95: 500.47 | G95: 12.157 | H95: 84.262 | I95: 492.19 | J95: 12.235 | K95: 100.42 | L95: 1.9121 | M95: 1.432 | N95: 12.41 | O95: 91.95 | P95: 1.5369 | Q95: 12.44 | R95: 100.47 | S95: 412.45 | T95: 12.616 | U95: 86.389 | V95: 406.41 | W95: 12.665 | X95: 101.87 | Y95: 1.9131 | Z95: 0 | AA95: 0 | AB95: 0 | AC95: 0 | AD95: 0 | AE95: 73.49 | AF95: 73.53 | AG95: 73.88 | AH95: 74.02 | AI95: 74.05 | AJ95: 75 | AK95: 1.565 | AL95: 0 | AM95: 0
A96: pCO2 | B96: 36.75803333 | C96: -122.0949033 | D96: 2013-05-13T06:30:57Z | E96: 2013-05-13T05:31:16 | F96: 435.82 | G96: 12.157 | H96: 84.809 | I96: 427.48 | J96: 12.225 | K96: 100.53 | L96: 1.9029 | M96: 1.3039 | N96: 12.41 | O96: 91.465 | P96: 1.578 | Q96: 12.44 | R96: 99.935 | S96: 411.76 | T96: 12.616 | U96: 86.308 | V96: 406.04 | W96: 12.665 | X96: 101.9 | Y96: 1.9169 | Z96: 0 | AA96: 0 | AB96: 0 | AC96: 0 | AD96: 0 | AE96: 76.04 | AF96: 77.05 | AG96: 77.69 | AH96: 77.92 | AI96: 78.47 | AJ96: 78.76 | AK96: 1.5649 | AL96: 0 | AM96: 0
A97: pCO2 | B97: 36.760635 | C97: -122.0782683 | D97: 2013-05-13T07:30:57Z | E97: 2013-05-13T06:31:16 | F97: 402.32 | G97: 12.352 | H97: 84.921 | I97: 394.27 | J97: 12.42 | K97: 100.82 | L97: 1.9131 | M97: 1.3335 | N97: 12.606 | O97: 91.748 | P97: 1.4271 | Q97: 12.635 | R97: 100.46 | S97: 412.17 | T97: 12.812 | U97: 86.281 | V97: 406 | W97: 12.881 | X97: 101.89 | Y97: 1.9189 | Z97: 0 | AA97: 0 | AB97: 0 | AC97: 0 | AD97: 0 | AE97: 78.89 | AF97: 78.75 | AG97: 79.15 | AH97: 79.62 | AI97: 79.85 | AJ97: 80.15 | AK97: 1.5599 | AL97: 0 | AM97: 0
A98: pCO2 | B98: 36.763085 | C98: -122.0631867 | D98: 2013-05-13T08:30:55Z | E98: 2013-05-13T07:31:18 | F98: 368.2 | G98: 12.479 | H98: 85.083 | I98: 363.05 | J98: 12.547 | K98: 100.73 | L98: 1.9103 | M98: 1.3663 | N98: 12.733 | O98: 91.788 | P98: 1.4503 | Q98: 12.753 | R98: 100.34 | S98: 412.92 | T98: 12.93 | U98: 86.295 | V98: 406 | W98: 12.998 | X98: 101.89 | Y98: 1.9202 | Z98: 0 | AA98: 0 | AB98: 0 | AC98: 0 | AD98: 0 | AE98: 80.11 | AF98: 81.86 | AG98: 82.82 | AH98: 83.01 | AI98: 82.93 | AJ98: 83.63 | AK98: 1.5628 | AL98: 0 | AM98: 0
A99: pCO2 | B99: 36.76582333 | C99: -122.045685 | D99: 2013-05-13T09:30:56Z | E99: 2013-05-13T08:31:16 | F99: 328.91 | G99: 12.733 | H99: 85.016 | I99: 324.11 | J99: 12.812 | K99: 101.19 | L99: 1.9204 | M99: 1.1666 | N99: 12.998 | O99: 91.842 | P99: 1.4049 | Q99: 13.028 | R99: 100.19 | S99: 411.69 | T99: 13.205 | U99: 86.214 | V99: 405.62 | W99: 13.264 | X99: 101.86 | Y99: 1.9242 | Z99: 0 | AA99: 0 | AB99: 0 | AC99: 0 | AD99: 0 | AE99: 83.59 | AF99: 83.66 | AG99: 83.76 | AH99: 82.37 | AI99: 82.32 | AJ99: 83.04 | AK99: 1.5608 | AL99: 0 | AM99: 0
A100: pCO2 | B100: 36.76905833 | C100: -122.02468 | D100: 2013-05-13T10:30:55Z | E100: 2013-05-13T09:31:16 | F100: 351.92 | G100: 13.028 | H100: 84.235 | I100: 346.83 | J100: 13.097 | K100: 99.988 | L100: 1.9267 | M100: 0.88915 | N100: 13.274 | O100: 91.371 | P100: 1.299 | Q100: 13.303 | R100: 100.2 | S100: 411.71 | T100: 13.481 | U100: 86.187 | V100: 405.96 | W100: 13.55 | X100: 101.85 | Y100: 1.9275 | Z100: 0 | AA100: 0 | AB100: 0 | AC100: 0 | AD100: 0 | AE100: 82.74 | AF100: 81.52 | AG100: 80.31 | AH100: 79.55 | AI100: 78.4 | AJ100: 77.83 | AK100: 1.5603 | AL100: 0 | AM100: 0
A101: pCO2 | B101: 36.77272333 | C101: -122.0016917 | D101: 2013-05-13T11:30:57Z | E101: 2013-05-13T10:31:16 | F101: 432.3 | G101: 13.087 | H101: 84.719 | I101: 425.45 | J101: 13.156 | K101: 100.65 | L101: 1.9326 | M101: 1.0581 | N101: 13.333 | O101: 91.358 | P101: 1.2952 | Q101: 13.363 | R101: 100.34 | S101: 411.75 | T101: 13.53 | U101: 86.147 | V101: 405.91 | W101: 13.59 | X101: 101.83 | Y101: 1.9306 | Z101: 0 | AA101: 0 | AB101: 0 | AC101: 0 | AD101: 0 | AE101: 77.35 | AF101: 76.92 | AG101: 76.9 | AH101: 76.83 | AI101: 76.78 | AJ101: 76.75 | AK101: 1.5623 | AL101: 0 | AM101: 0
A102: pCO2 | B102: 36.77664667 | C102: -121.9766517 | D102: 2013-05-13T12:30:56Z | E102: 2013-05-13T11:31:16 | F102: 434.44 | G102: 12.988 | H102: 84.257 | I102: 425.48 | J102: 13.057 | K102: 100.27 | L102: 1.9347 | M102: 1.1417 | N102: 13.234 | O102: 90.859 | P102: 1.2632 | Q102: 13.264 | R102: 100.02 | S102: 412.67 | T102: 13.442 | U102: 86.187 | V102: 406.58 | W102: 13.501 | X102: 101.82 | Y102: 1.9308 | Z102: 0 | AA102: 0 | AB102: 0 | AC102: 0 | AD102: 0 | AE102: 76.88 | AF102: 77.14 | AG102: 77.4 | AH102: 77.75 | AI102: 77.85 | AJ102: 77.71 | AK102: 1.5626 | AL102: 0 | AM102: 0
A103: pCO2 | B103: 36.77997 | C103: -121.9549533 | D103: 2013-05-13T13:30:56Z | E103: 2013-05-13T12:31:16 | F103: 440.03 | G103: 12.998 | H103: 84.275 | I103: 432.86 | J103: 13.067 | K103: 100.19 | L103: 1.9249 | M103: 1.1428 | N103: 13.244 | O103: 90.954 | P103: 1.2712 | Q103: 13.264 | R103: 99.894 | S103: 420.94 | T103: 13.442 | U103: 86.187 | V103: 414.61 | W103: 13.511 | X103: 101.85 | Y103: 1.9252 | Z103: 0 | AA103: 0 | AB103: 0 | AC103: 0 | AD103: 0 | AE103: 77.34 | AF103: 76.58 | AG103: 76.57 | AH103: 76.7 | AI103: 76.94 | AJ103: 76.97 | AK103: 1.5618 | AL103: 0 | AM103: 0
A104: pCO2 | B104: 36.78304167 | C104: -121.935325 | D104: 2013-05-13T14:30:56Z | E104: 2013-05-13T13:31:16 | F104: 438.87 | G104: 12.89 | H104: 84.814 | I104: 431.68 | J104: 12.959 | K104: 100.7 | L104: 1.9221 | M104: 1.1101 | N104: 13.136 | O104: 91.438 | P104: 1.2163 | Q104: 13.166 | R104: 100.24 | S104: 417.91 | T104: 13.343 | U104: 86.281 | V104: 411.54 | W104: 13.392 | X104: 101.94 | Y104: 1.9269 | Z104: 103.04 | AA104: 405.87 | AB104: 13.619 | AC104: 101.94 | AD104: 1.7944 | AE104: 76.83 | AF104: 76.7 | AG104: 76.78 | AH104: 76.79 | AI104: 77.13 | AJ104: 79.16 | AK104: 1.5622 | AL104: 0 | AM104: 0
A105: pCO2 | B105: 36.78579833 | C105: -121.9179383 | D105: 2013-05-13T15:30:56Z | E105: 2013-05-13T14:31:17 | F105: 408.95 | G105: 13.008 | H105: 84.221 | I105: 401.79 | J105: 13.077 | K105: 100.1 | L105: 1.92 | M105: 1.1222 | N105: 13.254 | O105: 91.075 | P105: 1.1208 | Q105: 13.284 | R105: 99.8 | S105: 420.2 | T105: 13.461 | U105: 86.174 | V105: 413.65 | W105: 13.521 | X105: 101.97 | Y105: 1.9289 | Z105: 0 | AA105: 0 | AB105: 0 | AC105: 0 | AD105: 0 | AE105: 79.08 | AF105: 78.81 | AG105: 78.68 | AH105: 78.47 | AI105: 79.43 | AJ105: 79.49 | AK105: 1.5589 | AL105: 0 | AM105: 0
A106: pCO2 | B106: 36.78840833 | C106: -121.90076 | D106: 2013-05-13T16:30:57Z | E106: 2013-05-13T15:31:16 | F106: 395.76 | G106: 13.116 | H106: 84.868 | I106: 389.43 | J106: 13.185 | K106: 101 | L106: 1.9311 | M106: 1.1009 | N106: 13.372 | O106: 91.735 | P106: 1.1301 | Q106: 13.402 | R106: 100.51 | S106: 416.14 | T106: 13.58 | U106: 86.254 | V106: 409.66 | W106: 13.639 | X106: 102.04 | Y106: 1.9334 | Z106: 0 | AA106: 0 | AB106: 0 | AC106: 0 | AD106: 0 | AE106: 79.23 | AF106: 79.4 | AG106: 80.04 | AH106: 80.55 | AI106: 80.78 | AJ106: 80.84 | AK106: 1.5588 | AL106: 0 | AM106: 0
A107: pCO2 | B107: 36.79096167 | C107: -121.88484 | D107: 2013-05-13T17:30:56Z | E107: 2013-05-13T16:31:16 | F107: 367.52 | G107: 13.264 | H107: 85.218 | I107: 360.83 | J107: 13.333 | K107: 101.98 | L107: 1.9405 | M107: 0.85958 | N107: 13.53 | O107: 92.044 | P107: 0.98088 | Q107: 13.54 | R107: 100.85 | S107: 420.56 | T107: 13.728 | U107: 86.227 | V107: 413.88 | W107: 13.788 | X107: 102.06 | Y107: 1.942 | Z107: 0 | AA107: 0 | AB107: 0 | AC107: 0 | AD107: 0 | AE107: 80.77 | AF107: 81.66 | AG107: 82.78 | AH107: 83.59 | AI107: 83.3 | AJ107: 82.94 | AK107: 1.5557 | AL107: 0 | AM107: 0
A108: pCO2 | B108: 36.78937333 | C108: -121.874795 | D108: 2013-05-13T18:30:57Z | E108: 2013-05-13T17:31:16 | F108: 328.84 | G108: 13.57 | H108: 85.245 | I108: 322.5 | J108: 13.639 | K108: 102.45 | L108: 1.9574 | M108: 0.80885 | N108: 13.827 | O108: 92.542 | P108: 0.83956 | Q108: 13.857 | R108: 101.64 | S108: 421.8 | T108: 14.036 | U108: 86.174 | V108: 415.19 | W108: 14.095 | X108: 102.06 | Y108: 1.9512 | Z108: 0 | AA108: 0 | AB108: 0 | AC108: 0 | AD108: 0 | AE108: 82.89 | AF108: 84.15 | AG108: 82.41 | AH108: 83.82 | AI108: 84.55 | AJ108: 84.56 | AK108: 1.5514 | AL108: 0 | AM108: 0
A109: pCO2 | B109: 36.792985 | C109: -121.8615983 | D109: 2013-05-13T19:30:57Z | E109: 2013-05-13T18:31:16 | F109: 288.12 | G109: 13.768 | H109: 85.312 | I109: 283.56 | J109: 13.847 | K109: 102.4 | L109: 1.9574 | M109: 0.61493 | N109: 14.026 | O109: 92.731 | P109: 0.83872 | Q109: 14.055 | R109: 101.81 | S109: 411.77 | T109: 14.225 | U109: 86.295 | V109: 405.66 | W109: 14.294 | X109: 102.04 | Y109: 1.9528 | Z109: 0 | AA109: 0 | AB109: 0 | AC109: 0 | AD109: 0 | AE109: 86.24 | AF109: 86.88 | AG109: 87.25 | AH109: 87.78 | AI109: 90 | AJ109: 90.75 | AK109: 1.5568 | AL109: 0 | AM109: 0
A110: pCO2 | B110: 36.79685833 | C110: -121.8472767 | D110: 2013-05-13T20:30:56Z | E110: 2013-05-13T19:31:17 | F110: 239.8 | G110: 14.016 | H110: 85.15 | I110: 235.41 | J110: 14.085 | K110: 102.14 | L110: 1.9644 | M110: 0.63186 | N110: 14.264 | O110: 92.408 | P110: 0.58831 | Q110: 14.304 | R110: 100.98 | S110: 411.47 | T110: 14.484 | U110: 86.147 | V110: 405.69 | W110: 14.534 | X110: 101.97 | Y110: 1.9591 | Z110: 0 | AA110: 0 | AB110: 0 | AC110: 0 | AD110: 0 | AE110: 91.11 | AF110: 91.05 | AG110: 90.95 | AH110: 90.95 | AI110: 90.87 | AJ110: 92.03 | AK110: 1.5545 | AL110: 0 | AM110: 0
A111: pCO2 | B111: 36.79738667 | C111: -121.8549667 | D111: 2013-05-13T21:30:56Z | E111: 2013-05-13T20:31:16 | F111: 215.36 | G111: 14.165 | H111: 85.164 | I111: 210.69 | J111: 14.224 | K111: 102.29 | L111: 1.9707 | M111: 0.58642 | N111: 14.424 | O111: 92.542 | P111: 0.57797 | Q111: 14.444 | R111: 101.63 | S111: 411.73 | T111: 14.624 | U111: 86.174 | V111: 405.51 | W111: 14.684 | X111: 101.9 | Y111: 1.9614 | Z111: 0 | AA111: 0 | AB111: 0 | AC111: 0 | AD111: 0 | AE111: 92.93 | AF111: 93.46 | AG111: 93.37 | AH111: 92.83 | AI111: 90.78 | AJ111: 87.87 | AK111: 1.5565 | AL111: 0 | AM111: 0
A112: pCO2 | B112: 36.794715 | C112: -121.8711467 | D112: 2013-05-13T22:30:56Z | E112: 2013-05-13T21:31:16 | F112: 294.68 | G112: 14.215 | H112: 84.342 | I112: 290.17 | J112: 14.284 | K112: 101.27 | L112: 1.9703 | M112: 0.59095 | N112: 14.444 | O112: 91.681 | P112: 0.95886 | Q112: 14.474 | R112: 100.55 | S112: 411.42 | T112: 14.644 | U112: 86.066 | V112: 405.36 | W112: 14.704 | X112: 101.82 | Y112: 1.9578 | Z112: 0 | AA112: 0 | AB112: 0 | AC112: 0 | AD112: 0 | AE112: 86.64 | AF112: 85.73 | AG112: 82.65 | AH112: 82.46 | AI112: 81.79 | AJ112: 81.07 | AK112: 1.5565 | AL112: 0 | AM112: 0
A113: pCO2 | B113: 36.792005 | C113: -121.887985 | D113: 2013-05-13T23:30:56Z | E113: 2013-05-13T22:31:17 | F113: 302.62 | G113: 13.807 | H113: 84.154 | I113: 297.97 | J113: 13.867 | K113: 101.16 | L113: 1.9619 | M113: 0.57722 | N113: 14.045 | O113: 91.452 | P113: 0.67363 | Q113: 14.075 | R113: 100.55 | S113: 411.91 | T113: 14.244 | U113: 85.864 | V113: 405.02 | W113: 14.304 | X113: 101.74 | Y113: 1.9592 | Z113: 0 | AA113: 0 | AB113: 0 | AC113: 0 | AD113: 0 | AE113: 83.22 | AF113: 85.46 | AG113: 85.31 | AH113: 84.87 | AI113: 84.39 | AJ113: 83.58 | AK113: 1.5613 | AL113: 0 | AM113: 0
A114: pCO2 | B114: 36.78962 | C114: -121.9030133 | D114: 2013-05-14T00:30:57Z | E114: 2013-05-13T23:31:16 | F114: 376.02 | G114: 13.698 | H114: 83.871 | I114: 368.84 | J114: 13.768 | K114: 100.49 | L114: 1.9515 | M114: 0.67393 | N114: 13.946 | O114: 91.559 | P114: 1.116 | Q114: 13.976 | R114: 100.12 | S114: 412.02 | T114: 14.135 | U114: 85.945 | V114: 405.71 | W114: 14.195 | X114: 101.66 | Y114: 1.9525 | Z114: 0 | AA114: 0 | AB114: 0 | AC114: 0 | AD114: 0 | AE114: 81.85 | AF114: 80.3 | AG114: 79.76 | AH114: 80.03 | AI114: 79.41 | AJ114: 79.57 | AK114: 1.5571 | AL114: 0 | AM114: 0
A115: pCO2 | B115: 36.78773833 | C115: -121.9147433 | D115: 2013-05-14T01:30:56Z | E115: 2013-05-14T00:31:17 | F115: 389.32 | G115: 13.451 | H115: 84.356 | I115: 383.99 | J115: 13.52 | K115: 101.08 | L115: 1.9437 | M115: 0.97216 | N115: 13.708 | O115: 91.708 | P115: 1.0795 | Q115: 13.728 | R115: 100.63 | S115: 412.2 | T115: 13.897 | U115: 85.85 | V115: 406.28 | W115: 13.956 | X115: 101.59 | Y115: 1.9463 | Z115: 0 | AA115: 0 | AB115: 0 | AC115: 0 | AD115: 0 | AE115: 79.72 | AF115: 79.53 | AG115: 79.87 | AH115: 80.19 | AI115: 80.2 | AJ115: 80.08 | AK115: 1.5573 | AL115: 0 | AM115: 0
A116: pCO2 | B116: 36.78591 | C116: -121.9262117 | D116: 2013-05-14T02:30:57Z | E116: 2013-05-14T01:31:16 | F116: 387.78 | G116: 13.343 | H116: 83.965 | I116: 380.75 | J116: 13.412 | K116: 100.69 | L116: 1.9497 | M116: 0.8956 | N116: 13.59 | O116: 91.438 | P116: 1.0102 | Q116: 13.619 | R116: 100.58 | S116: 413.08 | T116: 13.788 | U116: 85.648 | V116: 406.15 | W116: 13.847 | X116: 101.58 | Y116: 1.9484 | Z116: 0 | AA116: 0 | AB116: 0 | AC116: 0 | AD116: 0 | AE116: 79.81 | AF116: 79.64 | AG116: 79.72 | AH116: 79.74 | AI116: 80.08 | AJ116: 80.03 | AK116: 1.5556 | AL116: 0 | AM116: 0
A117: pCO2 | B117: 36.78344333 | C117: -121.94136 | D117: 2013-05-14T03:30:57Z | E117: 2013-05-14T02:31:16 | F117: 383.31 | G117: 13.274 | H117: 84.208 | I117: 376.86 | J117: 13.333 | K117: 100.66 | L117: 1.9433 | M117: 1.0275 | N117: 13.511 | O117: 91.129 | P117: 1.0381 | Q117: 13.54 | R117: 99.719 | S117: 412.54 | T117: 13.718 | U117: 85.931 | V117: 406.51 | W117: 13.778 | X117: 101.62 | Y117: 1.9388 | Z117: 0 | AA117: 0 | AB117: 0 | AC117: 0 | AD117: 0 | AE117: 79.91 | AF117: 79.9 | AG117: 79.96 | AH117: 79.9 | AI117: 80.03 | AJ117: 80.15 | AK117: 1.5529 | AL117: 0 | AM117: 0
A118: pCO2 | B118: 36.78045833 | C118: -121.9605 | D118: 2013-05-14T04:30:56Z | E118: 2013-05-14T03:31:18 | F118: 375.23 | G118: 13.175 | H118: 83.912 | I118: 368.48 | J118: 13.234 | K118: 100.35 | L118: 1.9398 | M118: 0.97225 | N118: 13.412 | O118: 90.954 | P118: 1.206 | Q118: 13.441 | R118: 99.733 | S118: 413.86 | T118: 13.619 | U118: 85.797 | V118: 407.65 | W118: 13.679 | X118: 101.66 | Y118: 1.9403 | Z118: 0 | AA118: 0 | AB118: 0 | AC118: 0 | AD118: 0 | AE118: 80.23 | AF118: 80.29 | AG118: 80.24 | AH118: 80.22 | AI118: 80.11 | AJ118: 80.08 | AK118: 1.5522 | AL118: 0 | AM118: 0
A119: pCO2 | B119: 36.77693167 | C119: -121.9825283 | D119: 2013-05-14T05:30:57Z | E119: 2013-05-14T04:31:16 | F119: 373.96 | G119: 13.077 | H119: 83.992 | I119: 368.48 | J119: 13.146 | K119: 101.29 | L119: 1.9489 | M119: 1.1069 | N119: 13.333 | O119: 91.384 | P119: 1.1911 | Q119: 13.353 | R119: 100.46 | S119: 412.86 | T119: 13.521 | U119: 85.837 | V119: 406.65 | W119: 13.58 | X119: 101.71 | Y119: 1.9404 | Z119: 0 | AA119: 0 | AB119: 0 | AC119: 0 | AD119: 0 | AE119: 80.05 | AF119: 80.93 | AG119: 81.57 | AH119: 82.14 | AI119: 82.03 | AJ119: 82.77 | AK119: 1.5523 | AL119: 0 | AM119: 0
A120: pCO2 | B120: 36.77358 | C120: -122.0036633 | D120: 2013-05-14T06:30:57Z | E120: 2013-05-14T05:31:16 | F120: 343.59 | G120: 13.047 | H120: 84.194 | I120: 337.13 | J120: 13.116 | K120: 101.32 | L120: 1.9509 | M120: 0.99177 | N120: 13.294 | O120: 91.613 | P120: 1.0976 | Q120: 13.323 | R120: 100.18 | S120: 413.42 | T120: 13.491 | U120: 85.958 | V120: 406.61 | W120: 13.55 | X120: 101.71 | Y120: 1.9356 | Z120: 0 | AA120: 0 | AB120: 0 | AC120: 0 | AD120: 0 | AE120: 82.73 | AF120: 82.22 | AG120: 81.79 | AH120: 81.75 | AI120: 81.86 | AJ120: 81.95 | AK120: 1.5508 | AL120: 0 | AM120: 0
A121: pCO2 | B121: 36.76975333 | C121: -122.0264783 | D121: 2013-05-14T07:30:56Z | E121: 2013-05-14T06:31:17 | F121: 354.27 | G121: 12.93 | H121: 85.231 | I121: 347.8 | J121: 12.998 | K121: 102.22 | L121: 1.9352 | M121: 1.0858 | N121: 13.175 | O121: 92.044 | P121: 1.2089 | Q121: 13.205 | R121: 101.05 | S121: 414.23 | T121: 13.382 | U121: 85.945 | V121: 407.68 | W121: 13.442 | X121: 101.7 | Y121: 1.9339 | Z121: 0 | AA121: 0 | AB121: 0 | AC121: 0 | AD121: 0 | AE121: 81.79 | AF121: 81.43 | AG121: 81.44 | AH121: 80.86 | AI121: 80.36 | AJ121: 80.19 | AK121: 1.5501 | AL121: 0 | AM121: 0
A122: pCO2 | B122: 36.76593333 | C122: -122.0509967 | D122: 2013-05-14T08:30:56Z | E122: 2013-05-14T07:31:16 | F122: 401.56 | G122: 12.782 | H122: 84.823 | I122: 393.97 | J122: 12.861 | K122: 101.73 | L122: 1.9208 | M122: 1.0897 | N122: 13.038 | O122: 92.206 | P122: 1.3341 | Q122: 13.057 | R122: 101.17 | S122: 413.89 | T122: 13.225 | U122: 85.972 | V122: 407.32 | W122: 13.284 | X122: 101.71 | Y122: 1.9284 | Z122: 0 | AA122: 0 | AB122: 0 | AC122: 0 | AD122: 0 | AE122: 79.3 | AF122: 78.36 | AG122: 77 | AH122: 77.16 | AI122: 77.63 | AJ122: 78.08 | AK122: 1.5515 | AL122: 0 | AM122: 0
A123: pCO2 | B123: 36.76245667 | C123: -122.072165 | D123: 2013-05-14T09:30:56Z | E123: 2013-05-14T08:31:16 | F123: 404.7 | G123: 12.498 | H123: 85.083 | I123: 396.99 | J123: 12.557 | K123: 102.04 | L123: 1.9261 | M123: 1.3376 | N123: 12.743 | O123: 92.367 | P123: 1.2948 | Q123: 12.773 | R123: 100.93 | S123: 413.87 | T123: 12.939 | U123: 86.012 | V123: 407.43 | W123: 12.998 | X123: 101.7 | Y123: 1.9243 | Z123: 0 | AA123: 0 | AB123: 0 | AC123: 0 | AD123: 0 | AE123: 77.95 | AF123: 78.35 | AG123: 78.56 | AH123: 78.69 | AI123: 78.62 | AJ123: 78.93 | AK123: 1.552 | AL123: 0 | AM123: 0
A124: pCO2 | B124: 36.759685 | C124: -122.089845 | D124: 2013-05-14T10:30:57Z | E124: 2013-05-14T09:31:16 | F124: 399.59 | G124: 12.391 | H124: 84.517 | I124: 392.22 | J124: 12.449 | K124: 101.44 | L124: 1.9146 | M124: 1.0571 | N124: 12.645 | O124: 92.058 | P124: 1.4493 | Q124: 12.665 | R124: 101.27 | S124: 413.53 | T124: 12.841 | U124: 85.958 | V124: 407.36 | W124: 12.9 | X124: 101.67 | Y124: 1.9179 | Z124: 0 | AA124: 0 | AB124: 0 | AC124: 0 | AD124: 0 | AE124: 78.9 | AF124: 78.78 | AG124: 78.36 | AH124: 78.39 | AI124: 77.89 | AJ124: 77.8 | AK124: 1.5471 | AL124: 0 | AM124: 0
A125: pCO2 | B125: 36.757 | C125: -122.1067717 | D125: 2013-05-14T11:30:56Z | E125: 2013-05-14T10:31:16 | F125: 428.83 | G125: 12.391 | H125: 84.571 | I125: 419.58 | J125: 12.459 | K125: 101.44 | L125: 1.9152 | M125: 1.2295 | N125: 12.645 | O125: 91.708 | P125: 1.4321 | Q125: 12.675 | R125: 100.94 | S125: 413.6 | T125: 12.831 | U125: 85.877 | V125: 407 | W125: 12.9 | X125: 101.67 | Y125: 1.924 | Z125: 0 | AA125: 0 | AB125: 0 | AC125: 0 | AD125: 0 | AE125: 77.3 | AF125: 76.92 | AG125: 76.81 | AH125: 76.17 | AI125: 75.86 | AJ125: 73.58 | AK125: 1.5457 | AL125: 0 | AM125: 0
A126: pCO2 | B126: 36.75443 | C126: -122.1228667 | D126: 2013-05-14T12:30:57Z | E126: 2013-05-14T11:31:16 | F126: 497.44 | G126: 12.254 | H126: 84.809 | I126: 489.83 | J126: 12.322 | K126: 101.7 | L126: 1.9267 | M126: 1.5416 | N126: 12.508 | O126: 91.95 | P126: 1.6423 | Q126: 12.538 | R126: 101.05 | S126: 413.86 | T126: 12.694 | U126: 85.797 | V126: 407.45 | W126: 12.753 | X126: 101.71 | Y126: 1.9273 | Z126: 0 | AA126: 0 | AB126: 0 | AC126: 0 | AD126: 0 | AE126: 73.28 | AF126: 73.16 | AG126: 73 | AH126: 73.01 | AI126: 73.14 | AJ126: 73.21 | AK126: 1.5483 | AL126: 0 | AM126: 0
A127: pCO2 | B127: 36.75261833 | C127: -122.1343883 | D127: 2013-05-14T13:30:57Z | E127: 2013-05-14T12:31:16 | F127: 498.34 | G127: 12.03 | H127: 83.436 | I127: 489.21 | J127: 12.098 | K127: 101.67 | L127: 1.9181 | M127: 1.4096 | N127: 12.283 | O127: 91.977 | P127: 1.539 | Q127: 12.303 | R127: 100.94 | S127: 414.14 | T127: 12.479 | U127: 85.689 | V127: 407.18 | W127: 12.538 | X127: 101.68 | Y127: 1.9181 | Z127: 102.78 | AA127: 406.17 | AB127: 12.763 | AC127: 101.68 | AD127: 1.7825 | AE127: 73.22 | AF127: 73.39 | AG127: 73.52 | AH127: 73.63 | AI127: 73.77 | AJ127: 73.8 | AK127: 1.5489 | AL127: 0 | AM127: 0
A128: pCO2 | B128: 36.75086833 | C128: -122.1445333 | D128: 2013-05-14T14:30:58Z | E128: 2013-05-14T13:31:17 | F128: 491.9 | G128: 12.079 | H128: 83.669 | I128: 484.77 | J128: 12.147 | K128: 100.55 | L128: 1.9016 | M128: 1.5728 | N128: 12.323 | O128: 91.223 | P128: 1.7399 | Q128: 12.362 | R128: 100.15 | S128: 414.27 | T128: 12.518 | U128: 85.945 | V128: 407.69 | W128: 12.587 | X128: 101.74 | Y128: 1.9127 | Z128: 0 | AA128: 0 | AB128: 0 | AC128: 0 | AD128: 0 | AE128: 73.8 | AF128: 73.83 | AG128: 73.88 | AH128: 74 | AI128: 73.97 | AJ128: 73.99 | AK128: 1.5446 | AL128: 0 | AM128: 0
A129: pCO2 | B129: 36.749645 | C129: -122.1525033 | D129: 2013-05-14T15:30:57Z | E129: 2013-05-14T14:31:18 | F129: 492.29 | G129: 12.03 | H129: 83.938 | I129: 483.51 | J129: 12.098 | K129: 101.51 | L129: 1.9179 | M129: 1.2587 | N129: 12.283 | O129: 91.613 | P129: 1.6832 | Q129: 12.303 | R129: 100.34 | S129: 413.76 | T129: 12.479 | U129: 85.729 | V129: 407.06 | W129: 12.547 | X129: 101.7 | Y129: 1.9185 | Z129: 0 | AA129: 0 | AB129: 0 | AC129: 0 | AD129: 0 | AE129: 73.82 | AF129: 73.7 | AG129: 73.68 | AH129: 73.71 | AI129: 73.83 | AJ129: 73.82 | AK129: 1.5426 | AL129: 0 | AM129: 0
A130: pCO2 | B130: 36.74863167 | C130: -122.158235 | D130: 2013-05-14T16:30:57Z | E130: 2013-05-14T15:31:16 | F130: 486.02 | G130: 12.02 | H130: 83.817 | I130: 478.07 | J130: 12.088 | K130: 101.55 | L130: 1.9173 | M130: 1.4956 | N130: 12.264 | O130: 91.492 | P130: 1.6715 | Q130: 12.293 | R130: 100.68 | S130: 413.47 | T130: 12.469 | U130: 85.77 | V130: 407.45 | W130: 12.528 | X130: 101.75 | Y130: 1.9227 | Z130: 0 | AA130: 0 | AB130: 0 | AC130: 0 | AD130: 0 | AE130: 73.87 | AF130: 73.95 | AG130: 73.74 | AH130: 73.97 | AI130: 73.68 | AJ130: 73.83 | AK130: 1.5413 | AL130: 0 | AM130: 0
A131: pCO2 | B131: 36.74797333 | C131: -122.163165 | D131: 2013-05-14T17:30:57Z | E131: 2013-05-14T16:31:16 | F131: 485.83 | G131: 12.02 | H131: 84.45 | I131: 477.93 | J131: 12.088 | K131: 102.05 | L131: 1.91 | M131: 1.6174 | N131: 12.274 | O131: 92.327 | P131: 1.6338 | Q131: 12.303 | R131: 101.23 | S131: 413.9 | T131: 12.479 | U131: 85.891 | V131: 407.36 | W131: 12.538 | X131: 101.79 | Y131: 1.92 | Z131: 0 | AA131: 0 | AB131: 0 | AC131: 0 | AD131: 0 | AE131: 74.13 | AF131: 74.01 | AG131: 73.93 | AH131: 73.9 | AI131: 73.92 | AJ131: 73.91 | AK131: 1.5412 | AL131: 0 | AM131: 0
A132: pCO2 | B132: 36.74682667 | C132: -122.1693683 | D132: 2013-05-14T18:30:59Z | E132: 2013-05-14T17:31:16 | F132: 492 | G132: 12.059 | H132: 84.311 | I132: 483.79 | J132: 12.118 | K132: 101.91 | L132: 1.9154 | M132: 1.3797 | N132: 12.313 | O132: 92.165 | P132: 1.4371 | Q132: 12.342 | R132: 100.85 | S132: 413.36 | T132: 12.518 | U132: 86.066 | V132: 407.36 | W132: 12.567 | X132: 101.83 | Y132: 1.9178 | Z132: 0 | AA132: 0 | AB132: 0 | AC132: 0 | AD132: 0 | AE132: 73.87 | AF132: 73.77 | AG132: 73.79 | AH132: 73.64 | AI132: 73.54 | AJ132: 73.54 | AK132: 1.5403 | AL132: 0 | AM132: 0
A133: pCO2 | B133: 36.745815 | C133: -122.176425 | D133: 2013-05-14T19:30:57Z | E133: 2013-05-14T18:31:18 | F133: 499.23 | G133: 12.118 | H133: 83.853 | I133: 491.7 | J133: 12.186 | K133: 101.47 | L133: 1.9188 | M133: 1.5552 | N133: 12.371 | O133: 91.708 | P133: 1.5008 | Q133: 12.401 | R133: 101.03 | S133: 413.28 | T133: 12.577 | U133: 86.106 | V133: 406.97 | W133: 12.645 | X133: 101.87 | Y133: 1.9207 | Z133: 0 | AA133: 0 | AB133: 0 | AC133: 0 | AD133: 0 | AE133: 73.48 | AF133: 73.52 | AG133: 73.7 | AH133: 73.77 | AI133: 73.81 | AJ133: 73.66 | AK133: 1.5386 | AL133: 0 | AM133: 0
A134: pCO2 | B134: 36.74464833 | C134: -122.1835217 | D134: 2013-05-14T20:30:57Z | E134: 2013-05-14T19:31:16 | F134: 496.71 | G134: 12.196 | H134: 84.033 | I134: 487.13 | J134: 12.274 | K134: 101.16 | L134: 1.9178 | M134: 1.5232 | N134: 12.449 | O134: 91.856 | P134: 1.7635 | Q134: 12.479 | R134: 100.76 | S134: 413.75 | T134: 12.655 | U134: 85.85 | V134: 406.99 | W134: 12.714 | X134: 101.85 | Y134: 1.9267 | Z134: 0 | AA134: 0 | AB134: 0 | AC134: 0 | AD134: 0 | AE134: 73.68 | AF134: 73.73 | AG134: 73.64 | AH134: 73.61 | AI134: 73.55 | AJ134: 73.62 | AK134: 1.5383 | AL134: 0 | AM134: 0
A135: pCO2 | B135: 36.74388833 | C135: -122.188375 | D135: 2013-05-14T21:30:57Z | E135: 2013-05-14T20:31:16 | F135: 496.11 | G135: 12.254 | H135: 84.069 | I135: 487.52 | J135: 12.322 | K135: 101.32 | L135: 1.9147 | M135: 1.2976 | N135: 12.508 | O135: 91.856 | P135: 1.5217 | Q135: 12.538 | R135: 100.84 | S135: 413.26 | T135: 12.714 | U135: 85.958 | V135: 406.63 | W135: 12.773 | X135: 101.83 | Y135: 1.9248 | Z135: 0 | AA135: 0 | AB135: 0 | AC135: 0 | AD135: 0 | AE135: 73.7 | AF135: 73.77 | AG135: 73.9 | AH135: 73.91 | AI135: 73.97 | AJ135: 73.95 | AK135: 1.5395 | AL135: 0 | AM135: 0
A136: pCO2 | B136: 36.74309333 | C136: -122.193145 | D136: 2013-05-14T22:30:58Z | E136: 2013-05-14T21:31:16 | F136: 492.47 | G136: 12.332 | H136: 84.06 | I136: 483.52 | J136: 12.401 | K136: 101.31 | L136: 1.9162 | M136: 1.2878 | N136: 12.586 | O136: 91.815 | P136: 1.5479 | Q136: 12.616 | R136: 100.63 | S136: 413.32 | T136: 12.782 | U136: 86.052 | V136: 407.02 | W136: 12.841 | X136: 101.79 | Y136: 1.9235 | Z136: 0 | AA136: 0 | AB136: 0 | AC136: 0 | AD136: 0 | AE136: 73.86 | AF136: 74.15 | AG136: 74.88 | AH136: 75.02 | AI136: 75.16 | AJ136: 75.27 | AK136: 1.5386 | AL136: 0 | AM136: 0
A137: pCO2 | B137: 36.74182333 | C137: -122.200435 | D137: 2013-05-14T23:30:58Z | E137: 2013-05-14T22:31:16 | F137: 470.95 | G137: 12.391 | H137: 83.588 | I137: 464.62 | J137: 12.449 | K137: 101.03 | L137: 1.9162 | M137: 1.2546 | N137: 12.645 | O137: 90.981 | P137: 1.3343 | Q137: 12.675 | R137: 99.881 | S137: 413.42 | T137: 12.841 | U137: 85.77 | V137: 406.75 | W137: 12.9 | X137: 101.73 | Y137: 1.9245 | Z137: 0 | AA137: 0 | AB137: 0 | AC137: 0 | AD137: 0 | AE137: 75.29 | AF137: 75.2 | AG137: 75.14 | AH137: 75.39 | AI137: 75.3 | AJ137: 75.4 | AK137: 1.5376 | AL137: 0 | AM137: 0
A138: pCO2 | B138: 36.74138 | C138: -122.2051883 | D138: 2013-05-15T00:30:57Z | E138: 2013-05-14T23:31:16 | F138: 463.92 | G138: 12.42 | H138: 84.45 | I138: 454.82 | J138: 12.489 | K138: 101.83 | L138: 1.9243 | M138: 1.3928 | N138: 12.665 | O138: 92.138 | P138: 1.5507 | Q138: 12.694 | R138: 100.8 | S138: 413.43 | T138: 12.871 | U138: 85.958 | V138: 406.98 | W138: 12.93 | X138: 101.77 | Y138: 1.9259 | Z138: 0 | AA138: 0 | AB138: 0 | AC138: 0 | AD138: 0 | AE138: 75.45 | AF138: 75.44 | AG138: 75.56 | AH138: 75.53 | AI138: 75.67 | AJ138: 75.77 | AK138: 1.5365 | AL138: 0 | AM138: 0
A139: pCO2 | B139: 36.73940167 | C139: -122.2164033 | D139: 2013-05-15T01:30:57Z | E139: 2013-05-15T00:31:16 | F139: 459.32 | G139: 12.567 | H139: 83.804 | I139: 449.08 | J139: 12.635 | K139: 100.72 | L139: 1.9293 | M139: 1.1212 | N139: 12.822 | O139: 91.196 | P139: 1.441 | Q139: 12.851 | R139: 100.04 | S139: 413.61 | T139: 13.018 | U139: 85.918 | V139: 407.33 | W139: 13.087 | X139: 101.78 | Y139: 1.9319 | Z139: 0 | AA139: 0 | AB139: 0 | AC139: 0 | AD139: 0 | AE139: 75.78 | AF139: 75.86 | AG139: 76.08 | AH139: 76.14 | AI139: 75.99 | AJ139: 75.94 | AK139: 1.5336 | AL139: 0 | AM139: 0
A140: pCO2 | B140: 36.73730167 | C140: -122.229495 | D140: 2013-05-15T02:30:58Z | E140: 2013-05-15T01:31:16 | F140: 454.92 | G140: 12.616 | H140: 83.602 | I140: 447.78 | J140: 12.684 | K140: 100.8 | L140: 1.9243 | M140: 1.1427 | N140: 12.861 | O140: 91.519 | P140: 1.4194 | Q140: 12.89 | R140: 100.06 | S140: 413.87 | T140: 13.067 | U140: 85.931 | V140: 407.6 | W140: 13.126 | X140: 101.79 | Y140: 1.9326 | Z140: 0 | AA140: 0 | AB140: 0 | AC140: 0 | AD140: 0 | AE140: 75.98 | AF140: 75.86 | AG140: 75.79 | AH140: 75.64 | AI140: 75.82 | AJ140: 75.69 | AK140: 1.5342 | AL140: 0 | AM140: 0
A141: pCO2 | B141: 36.73493167 | C141: -122.244075 | D141: 2013-05-15T03:30:57Z | E141: 2013-05-15T02:31:17 | F141: 458.96 | G141: 12.606 | H141: 84.248 | I141: 452.45 | J141: 12.665 | K141: 102.18 | L141: 1.9326 | M141: 1.1903 | N141: 12.841 | O141: 92.058 | P141: 1.1555 | Q141: 12.871 | R141: 100.82 | S141: 413.73 | T141: 13.047 | U141: 85.958 | V141: 407.63 | W141: 13.107 | X141: 101.85 | Y141: 1.9311 | Z141: 0 | AA141: 0 | AB141: 0 | AC141: 0 | AD141: 0 | AE141: 75.21 | AF141: 75.58 | AG141: 76.11 | AH141: 76.4 | AI141: 76.69 | AJ141: 76.79 | AK141: 1.5355 | AL141: 0 | AM141: 0
A142: pCO2 | B142: 36.73247667 | C142: -122.260105 | D142: 2013-05-15T04:30:58Z | E142: 2013-05-15T03:31:16 | F142: 432.86 | G142: 12.626 | H142: 83.75 | I142: 427.2 | J142: 12.694 | K142: 101.5 | L142: 1.9311 | M142: 1.1211 | N142: 12.88 | O142: 92.165 | P142: 1.2919 | Q142: 12.91 | R142: 100.89 | S142: 414.28 | T142: 13.077 | U142: 86.066 | V142: 407.9 | W142: 13.136 | X142: 101.89 | Y142: 1.9299 | Z142: 0 | AA142: 0 | AB142: 0 | AC142: 0 | AD142: 0 | AE142: 76.82 | AF142: 76.84 | AG142: 76.85 | AH142: 76.45 | AI142: 76.09 | AJ142: 76.66 | AK142: 1.534 | AL142: 0 | AM142: 0
A143: pCO2 | B143: 36.72997 | C143: -122.2762217 | D143: 2013-05-15T05:30:57Z | E143: 2013-05-15T04:31:16 | F143: 432.41 | G143: 12.655 | H143: 84.248 | I143: 426.61 | J143: 12.723 | K143: 101.7 | L143: 1.9256 | M143: 1.3145 | N143: 12.9 | O143: 92.058 | P143: 1.3839 | Q143: 12.93 | R143: 100.81 | S143: 413.98 | T143: 13.107 | U143: 86.147 | V143: 407.82 | W143: 13.166 | X143: 101.91 | Y143: 1.9299 | Z143: 0 | AA143: 0 | AB143: 0 | AC143: 0 | AD143: 0 | AE143: 76.92 | AF143: 77 | AG143: 77.2 | AH143: 77.43 | AI143: 77.66 | AJ143: 77.73 | AK143: 1.5341 | AL143: 0 | AM143: 0
A144: pCO2 | B144: 36.726965 | C144: -122.293785 | D144: 2013-05-15T06:30:58Z | E144: 2013-05-15T05:31:16 | F144: 420.68 | G144: 12.822 | H144: 84.329 | I144: 412.59 | J144: 12.89 | K144: 101.4 | L144: 1.9254 | M144: 1.0454 | N144: 13.077 | O144: 91.842 | P144: 1.4067 | Q144: 13.106 | R144: 100.57 | S144: 414.03 | T144: 13.284 | U144: 86.16 | V144: 407.59 | W144: 13.343 | X144: 101.97 | Y144: 1.9279 | Z144: 0 | AA144: 0 | AB144: 0 | AC144: 0 | AD144: 0 | AE144: 77.47 | AF144: 77.79 | AG144: 77.72 | AH144: 77.32 | AI144: 77.39 | AJ144: 77.63 | AK144: 1.5337 | AL144: 0 | AM144: 0
A145: pCO2 | B145: 36.72409833 | C145: -122.3117633 | D145: 2013-05-15T07:30:57Z | E145: 2013-05-15T06:31:16 | F145: 422.24 | G145: 12.92 | H145: 84.1 | I145: 415.09 | J145: 12.998 | K145: 100.9 | L145: 1.9124 | M145: 1.061 | N145: 13.175 | O145: 91.694 | P145: 1.2694 | Q145: 13.205 | R145: 100.53 | S145: 413.83 | T145: 13.382 | U145: 86.174 | V145: 407.86 | W145: 13.432 | X145: 101.97 | Y145: 1.9269 | Z145: 0 | AA145: 0 | AB145: 0 | AC145: 0 | AD145: 0 | AE145: 77.64 | AF145: 77.56 | AG145: 77.4 | AH145: 77.61 | AI145: 77.86 | AJ145: 77.86 | AK145: 1.5325 | AL145: 0 | AM145: 0
A146: pCO2 | B146: 36.72166 | C146: -122.3270317 | D146: 2013-05-15T08:30:57Z | E146: 2013-05-15T07:31:16 | F146: 424.14 | G146: 12.949 | H146: 83.858 | I146: 417.88 | J146: 13.018 | K146: 100.76 | L146: 1.9188 | M146: 1.0667 | N146: 13.195 | O146: 91.425 | P146: 1.2848 | Q146: 13.225 | R146: 100.27 | S146: 414.29 | T146: 13.402 | U146: 86.174 | V146: 408.21 | W146: 13.461 | X146: 101.95 | Y146: 1.9241 | Z146: 0 | AA146: 0 | AB146: 0 | AC146: 0 | AD146: 0 | AE146: 77.67 | AF146: 77.47 | AG146: 77.51 | AH146: 77.53 | AI146: 77.34 | AJ146: 77.4 | AK146: 1.531 | AL146: 0 | AM146: 0
A147: pCO2 | B147: 36.71967 | C147: -122.3398917 | D147: 2013-05-15T09:30:57Z | E147: 2013-05-15T08:31:16 | F147: 425.8 | G147: 12.939 | H147: 83.992 | I147: 418.92 | J147: 12.998 | K147: 100.8 | L147: 1.9153 | M147: 1.031 | N147: 13.175 | O147: 91.398 | P147: 1.3078 | Q147: 13.205 | R147: 100.45 | S147: 413.94 | T147: 13.382 | U147: 86.201 | V147: 408.27 | W147: 13.442 | X147: 101.94 | Y147: 1.9238 | Z147: 0 | AA147: 0 | AB147: 0 | AC147: 0 | AD147: 0 | AE147: 77.34 | AF147: 77.45 | AG147: 77.45 | AH147: 77.37 | AI147: 77.18 | AJ147: 77.2 | AK147: 1.5327 | AL147: 0 | AM147: 0
A148: pCO2 | B148: 36.718065 | C148: -122.3498 | D148: 2013-05-15T10:30:59Z | E148: 2013-05-15T09:31:16 | F148: 431.47 | G148: 12.9 | H148: 83.683 | I148: 425.12 | J148: 12.969 | K148: 100.84 | L148: 1.913 | M148: 0.969 | N148: 13.146 | O148: 91.452 | P148: 1.2601 | Q148: 13.166 | R148: 100.23 | S148: 414.25 | T148: 13.343 | U148: 86.214 | V148: 408.24 | W148: 13.402 | X148: 101.9 | Y148: 1.921 | Z148: 0 | AA148: 0 | AB148: 0 | AC148: 0 | AD148: 0 | AE148: 77.15 | AF148: 77.05 | AG148: 77.01 | AH148: 77.01 | AI148: 76.9 | AJ148: 76.81 | AK148: 1.5334 | AL148: 0 | AM148: 0
A149: pCO2 | B149: 36.71167167 | C149: -122.3609633 | D149: 2013-05-15T11:30:57Z | E149: 2013-05-15T10:31:17 | F149: 438.4 | G149: 12.841 | H149: 83.494 | I149: 430.71 | J149: 12.92 | K149: 100.57 | L149: 1.9148 | M149: 1.2766 | N149: 13.097 | O149: 91.708 | P149: 1.4043 | Q149: 13.126 | R149: 100.62 | S149: 414.52 | T149: 13.294 | U149: 86.187 | V149: 408.02 | W149: 13.353 | X149: 101.91 | Y149: 1.9173 | Z149: 0 | AA149: 0 | AB149: 0 | AC149: 0 | AD149: 0 | AE149: 76.76 | AF149: 76.71 | AG149: 76.67 | AH149: 76.25 | AI149: 76.29 | AJ149: 76.35 | AK149: 1.5324 | AL149: 0 | AM149: 0
A150: pCO2 | B150: 36.70188333 | C150: -122.3723483 | D150: 2013-05-15T12:30:58Z | E150: 2013-05-15T11:31:17 | F150: 442.07 | G150: 12.841 | H150: 84.221 | I150: 433.81 | J150: 12.91 | K150: 101.71 | L150: 1.9061 | M150: 1.072 | N150: 13.087 | O150: 92.031 | P150: 1.2857 | Q150: 13.126 | R150: 101.08 | S150: 414.07 | T150: 13.294 | U150: 86.201 | V150: 407.69 | W150: 13.353 | X150: 101.89 | Y150: 1.9146 | Z150: 102.99 | AA150: 406.48 | AB150: 13.57 | AC150: 101.89 | AD150: 1.7717 | AE150: 76.48 | AF150: 76.52 | AG150: 76.47 | AH150: 76.52 | AI150: 76.48 | AJ150: 76.48 | AK150: 1.532 | AL150: 0 | AM150: 0
A151: pCO2 | B151: 36.70239833 | C151: -122.3736017 | D151: 2013-05-15T13:30:57Z | E151: 2013-05-15T12:31:16 | F151: 442.4 | G151: 12.88 | H151: 84.262 | I151: 433.9 | J151: 12.949 | K151: 101.46 | L151: 1.9022 | M151: 1.1352 | N151: 13.126 | O151: 91.64 | P151: 1.1739 | Q151: 13.146 | R151: 100.57 | S151: 413.81 | T151: 13.323 | U151: 86.295 | V151: 407.33 | W151: 13.372 | X151: 101.91 | Y151: 1.9092 | Z151: 0 | AA151: 0 | AB151: 0 | AC151: 0 | AD151: 0 | AE151: 76.44 | AF151: 76.48 | AG151: 76.5 | AH151: 76.54 | AI151: 76.59 | AJ151: 76.64 | AK151: 1.5309 | AL151: 0 | AM151: 0
A152: pCO2 | B152: 36.71350333 | C152: -122.3595583 | D152: 2013-05-15T14:30:58Z | E152: 2013-05-15T13:31:16 | F152: 441.03 | G152: 12.802 | H152: 84.046 | I152: 433.3 | J152: 12.871 | K152: 101.03 | L152: 1.9074 | M152: 1.2502 | N152: 13.047 | O152: 91.411 | P152: 1.4221 | Q152: 13.067 | R152: 100.39 | S152: 414.33 | T152: 13.244 | U152: 86.201 | V152: 407.96 | W152: 13.313 | X152: 101.98 | Y152: 1.9148 | Z152: 0 | AA152: 0 | AB152: 0 | AC152: 0 | AD152: 0 | AE152: 76.67 | AF152: 76.71 | AG152: 76.73 | AH152: 76.72 | AI152: 76.71 | AJ152: 76.74 | AK152: 1.5282 | AL152: 0 | AM152: 0
A153: pCO2 | B153: 36.71955167 | C153: -122.3414017 | D153: 2013-05-15T15:30:57Z | E153: 2013-05-15T14:31:16 | F153: 442.21 | G153: 12.792 | H153: 85.312 | I153: 435.02 | J153: 12.861 | K153: 100.85 | L153: 1.9001 | M153: 1.1529 | N153: 13.038 | O153: 92.435 | P153: 1.3485 | Q153: 13.067 | R153: 100.72 | S153: 413.44 | T153: 13.244 | U153: 87.224 | V153: 407.7 | W153: 13.313 | X153: 101.99 | Y153: 1.9004 | Z153: 0 | AA153: 0 | AB153: 0 | AC153: 0 | AD153: 0 | AE153: 76.63 | AF153: 76.49 | AG153: 76.36 | AH153: 76.34 | AI153: 76.28 | AJ153: 76.38 | AK153: 1.5243 | AL153: 0 | AM153: 0
A154: pCO2 | B154: 36.72276667 | C154: -122.3199867 | D154: 2013-05-15T16:30:58Z | E154: 2013-05-15T15:31:17 | F154: 449.61 | G154: 12.812 | H154: 84.513 | I154: 441.41 | J154: 12.88 | K154: 100.68 | L154: 1.9089 | M154: 1.1944 | N154: 13.067 | O154: 92.071 | P154: 1.2344 | Q154: 13.087 | R154: 100.11 | S154: 413.8 | T154: 13.264 | U154: 87.318 | V154: 407.54 | W154: 13.323 | X154: 102.04 | Y154: 1.9028 | Z154: 0 | AA154: 0 | AB154: 0 | AC154: 0 | AD154: 0 | AE154: 76.24 | AF154: 76.56 | AG154: 76.53 | AH154: 76.6 | AI154: 76.72 | AJ154: 76.62 | AK154: 1.5266 | AL154: 0 | AM154: 0
A155: pCO2 | B155: 36.72626 | C155: -122.2972967 | D155: 2013-05-15T17:30:57Z | E155: 2013-05-15T16:31:16 | F155: 441.83 | G155: 12.88 | H155: 83.44 | I155: 434.92 | J155: 12.949 | K155: 100.35 | L155: 1.9313 | M155: 1.0971 | N155: 13.136 | O155: 91.169 | P155: 1.1563 | Q155: 13.156 | R155: 100.19 | S155: 413.43 | T155: 13.333 | U155: 85.958 | V155: 407.51 | W155: 13.392 | X155: 102.06 | Y155: 1.9405 | Z155: 0 | AA155: 0 | AB155: 0 | AC155: 0 | AD155: 0 | AE155: 76.77 | AF155: 76.73 | AG155: 76.48 | AH155: 76.62 | AI155: 77.29 | AJ155: 77.32 | AK155: 1.5256 | AL155: 0 | AM155: 0
A156: pCO2 | B156: 36.72992833 | C156: -122.27456 | D156: 2013-05-15T18:30:57Z | E156: 2013-05-15T17:31:16 | F156: 427.05 | G156: 12.93 | H156: 83.584 | I156: 418.61 | J156: 12.998 | K156: 100.69 | L156: 1.9295 | M156: 1.278 | N156: 13.175 | O156: 91.384 | P156: 1.3068 | Q156: 13.205 | R156: 100.57 | S156: 413.75 | T156: 13.382 | U156: 86.039 | V156: 407.16 | W156: 13.442 | X156: 102.08 | Y156: 1.9389 | Z156: 0 | AA156: 0 | AB156: 0 | AC156: 0 | AD156: 0 | AE156: 77.57 | AF156: 77.57 | AG156: 77.82 | AH156: 77.8 | AI156: 77.75 | AJ156: 77.73 | AK156: 1.526 | AL156: 0 | AM156: 0
A157: pCO2 | B157: 36.73320667 | C157: -122.2533267 | D157: 2013-05-15T19:30:58Z | E157: 2013-05-15T18:31:16 | F157: 423.38 | G157: 13.028 | H157: 83.736 | I157: 415.93 | J157: 13.097 | K157: 101 | L157: 1.9426 | M157: 0.93145 | N157: 13.274 | O157: 91.29 | P157: 1.1547 | Q157: 13.303 | R157: 100.34 | S157: 414.05 | T157: 13.481 | U157: 86.133 | V157: 407.56 | W157: 13.54 | X157: 102.1 | Y157: 1.9393 | Z157: 0 | AA157: 0 | AB157: 0 | AC157: 0 | AD157: 0 | AE157: 77.67 | AF157: 77.69 | AG157: 77.67 | AH157: 77.63 | AI157: 77.53 | AJ157: 77.41 | AK157: 1.5249 | AL157: 0 | AM157: 0
A158: pCO2 | B158: 36.736255 | C158: -122.2344333 | D158: 2013-05-15T20:30:58Z | E158: 2013-05-15T19:31:16 | F158: 427.7 | G158: 13.077 | H158: 83.723 | I158: 421.32 | J158: 13.146 | K158: 100.96 | L158: 1.9378 | M158: 1.0517 | N158: 13.323 | O158: 91.896 | P158: 0.96719 | Q158: 13.353 | R158: 100.88 | S158: 413.94 | T158: 13.521 | U158: 86.12 | V158: 407.45 | W158: 13.59 | X158: 102.08 | Y158: 1.9429 | Z158: 0 | AA158: 0 | AB158: 0 | AC158: 0 | AD158: 0 | AE158: 77.38 | AF158: 77.31 | AG158: 77.25 | AH158: 77.14 | AI158: 77.02 | AJ158: 76.95 | AK158: 1.5239 | AL158: 0 | AM158: 0
A159: pCO2 | B159: 36.73858 | C159: -122.2192617 | D159: 2013-05-15T21:30:58Z | E159: 2013-05-15T20:31:16 | F159: 435.39 | G159: 13.057 | H159: 84.019 | I159: 428.65 | J159: 13.126 | K159: 101 | L159: 1.9424 | M159: 1.0872 | N159: 13.313 | O159: 91.627 | P159: 1.2449 | Q159: 13.333 | R159: 101 | S159: 414 | T159: 13.511 | U159: 86.093 | V159: 407.73 | W159: 13.57 | X159: 102.06 | Y159: 1.9435 | Z159: 0 | AA159: 0 | AB159: 0 | AC159: 0 | AD159: 0 | AE159: 76.89 | AF159: 76.87 | AG159: 76.88 | AH159: 76.88 | AI159: 76.92 | AJ159: 76.92 | AK159: 1.5235 | AL159: 0 | AM159: 0
A160: pCO2 | B160: 36.74033 | C160: -122.2083733 | D160: 2013-05-15T22:30:58Z | E160: 2013-05-15T21:31:16 | F160: 432.4 | G160: 12.998 | H160: 83.979 | I160: 425.25 | J160: 13.077 | K160: 101.29 | L160: 1.9372 | M160: 0.82961 | N160: 13.254 | O160: 91.694 | P160: 1.1079 | Q160: 13.284 | R160: 100.8 | S160: 413.18 | T160: 13.451 | U160: 86.981 | V160: 406.72 | W160: 13.511 | X160: 102.06 | Y160: 1.9259 | Z160: 0 | AA160: 0 | AB160: 0 | AC160: 0 | AD160: 0 | AE160: 77.03 | AF160: 77.1 | AG160: 77.16 | AH160: 77.17 | AI160: 77.14 | AJ160: 77.11 | AK160: 1.5244 | AL160: 0 | AM160: 0
A161: pCO2 | B161: 36.74166167 | C161: -122.19996 | D161: 2013-05-15T23:30:59Z | E161: 2013-05-15T22:31:16 | F161: 434.27 | G161: 12.959 | H161: 84.14 | I161: 425.16 | J161: 13.028 | K161: 101.31 | L161: 1.9337 | M161: 0.94266 | N161: 13.215 | O161: 91.977 | P161: 1.3342 | Q161: 13.244 | R161: 101.07 | S161: 413.05 | T161: 13.412 | U161: 86.147 | V161: 406.67 | W161: 13.471 | X161: 102.02 | Y161: 1.9374 | Z161: 0 | AA161: 0 | AB161: 0 | AC161: 0 | AD161: 0 | AE161: 77.11 | AF161: 77.05 | AG161: 77.06 | AH161: 77.09 | AI161: 77.15 | AJ161: 77.17 | AK161: 1.5217 | AL161: 0 | AM161: 0
A162: pCO2 | B162: 36.74306167 | C162: -122.1907533 | D162: 2013-05-16T00:30:59Z | E162: 2013-05-15T23:31:18 | F162: 433.27 | G162: 12.959 | H162: 83.844 | I162: 424.49 | J162: 13.018 | K162: 101.66 | L162: 1.9433 | M162: 1.0497 | N162: 13.215 | O162: 91.694 | P162: 1.1477 | Q162: 13.244 | R162: 100.72 | S162: 412.7 | T162: 13.412 | U162: 86.281 | V162: 406.62 | W162: 13.471 | X162: 101.99 | Y162: 1.9404 | Z162: 0 | AA162: 0 | AB162: 0 | AC162: 0 | AD162: 0 | AE162: 77.12 | AF162: 77.06 | AG162: 77.06 | AH162: 77.03 | AI162: 77.1 | AJ162: 77.03 | AK162: 1.5205 | AL162: 0 | AM162: 0
A163: pCO2 | B163: 36.74481333 | C163: -122.1797367 | D163: 2013-05-16T01:30:58Z | E163: 2013-05-16T00:31:16 | F163: 433.91 | G163: 12.959 | H163: 83.979 | I163: 427.14 | J163: 13.018 | K163: 101.89 | L163: 1.9415 | M163: 0.99343 | N163: 13.205 | O163: 92.219 | P163: 1.1175 | Q163: 13.244 | R163: 101.44 | S163: 412.96 | T163: 13.402 | U163: 86.025 | V163: 406.73 | W163: 13.471 | X163: 101.97 | Y163: 1.9412 | Z163: 0 | AA163: 0 | AB163: 0 | AC163: 0 | AD163: 0 | AE163: 76.93 | AF163: 76.94 | AG163: 76.93 | AH163: 76.88 | AI163: 76.91 | AJ163: 76.81 | AK163: 1.5223 | AL163: 0 | AM163: 0
A164: pCO2 | B164: 36.747065 | C164: -122.1655867 | D164: 2013-05-16T02:30:59Z | E164: 2013-05-16T01:31:17 | F164: 435.3 | G164: 12.92 | H164: 83.723 | I164: 427.3 | J164: 12.988 | K164: 101.29 | L164: 1.9379 | M164: 1.1402 | N164: 13.175 | O164: 91.546 | P164: 1.2439 | Q164: 13.205 | R164: 100.73 | S164: 412.86 | T164: 13.372 | U164: 85.81 | V164: 406.65 | W164: 13.432 | X164: 101.93 | Y164: 1.9462 | Z164: 0 | AA164: 0 | AB164: 0 | AC164: 0 | AD164: 0 | AE164: 76.8 | AF164: 76.78 | AG164: 76.7 | AH164: 76.66 | AI164: 76.77 | AJ164: 76.75 | AK164: 1.5214 | AL164: 0 | AM164: 0
A165: pCO2 | B165: 36.74936167 | C165: -122.1508317 | D165: 2013-05-16T03:30:58Z | E165: 2013-05-16T02:31:16 | F165: 439.55 | G165: 12.851 | H165: 83.561 | I165: 432.44 | J165: 12.92 | K165: 101.09 | L165: 1.9372 | M165: 1.0269 | N165: 13.097 | O165: 91.398 | P165: 1.1924 | Q165: 13.126 | R165: 100.39 | S165: 412.54 | T165: 13.294 | U165: 85.891 | V165: 406.55 | W165: 13.353 | X165: 101.91 | Y165: 1.943 | Z165: 0 | AA165: 0 | AB165: 0 | AC165: 0 | AD165: 0 | AE165: 76.59 | AF165: 76.41 | AG165: 76.38 | AH165: 76.34 | AI165: 76.16 | AJ165: 76.07 | AK165: 1.5201 | AL165: 0 | AM165: 0
A166: pCO2 | B166: 36.75173 | C166: -122.1353333 | D166: 2013-05-16T04:30:59Z | E166: 2013-05-16T03:31:16 | F166: 448.54 | G166: 12.733 | H166: 83.651 | I166: 441.32 | J166: 12.802 | K166: 101.38 | L166: 1.9342 | M166: 1.3179 | N166: 12.979 | O166: 91.613 | P166: 1.2084 | Q166: 13.008 | R166: 101.11 | S166: 412.96 | T166: 13.175 | U166: 86.133 | V166: 406.72 | W166: 13.234 | X166: 101.93 | Y166: 1.9382 | Z166: 0 | AA166: 0 | AB166: 0 | AC166: 0 | AD166: 0 | AE166: 76.02 | AF166: 75.92 | AG166: 75.94 | AH166: 75.79 | AI166: 75.69 | AJ166: 75.61 | AK166: 1.5222 | AL166: 0 | AM166: 0
A167: pCO2 | B167: 36.754385 | C167: -122.1184333 | D167: 2013-05-16T05:30:59Z | E167: 2013-05-16T04:31:17 | F167: 461.55 | G167: 12.616 | H167: 83.454 | I167: 455.82 | J167: 12.684 | K167: 100.81 | L167: 1.9285 | M167: 1.2302 | N167: 12.861 | O167: 91.573 | P167: 1.3134 | Q167: 12.89 | R167: 101.04 | S167: 413.21 | T167: 13.067 | U167: 86.214 | V167: 406.86 | W167: 13.116 | X167: 101.95 | Y167: 1.9332 | Z167: 0 | AA167: 0 | AB167: 0 | AC167: 0 | AD167: 0 | AE167: 75.4 | AF167: 75.17 | AG167: 74.98 | AH167: 74.87 | AI167: 74.58 | AJ167: 75.04 | AK167: 1.5217 | AL167: 0 | AM167: 0
A168: pCO2 | B168: 36.75692 | C168: -122.1022533 | D168: 2013-05-16T06:30:58Z | E168: 2013-05-16T05:31:17 | F168: 445.55 | G168: 12.489 | H168: 83.494 | I168: 438.38 | J168: 12.557 | K168: 100.98 | L168: 1.928 | M168: 1.2749 | N168: 12.743 | O168: 91.384 | P168: 1.444 | Q168: 12.773 | R168: 100.66 | S168: 413.23 | T168: 12.939 | U168: 85.864 | V168: 406.93 | W168: 12.998 | X168: 101.95 | Y168: 1.9375 | Z168: 0 | AA168: 0 | AB168: 0 | AC168: 0 | AD168: 0 | AE168: 75.57 | AF168: 76.61 | AG168: 76.95 | AH168: 76.88 | AI168: 77.21 | AJ168: 76.51 | AK168: 1.5202 | AL168: 0 | AM168: 0
A169: pCO2 | B169: 36.75952167 | C169: -122.0859983 | D169: 2013-05-16T07:30:59Z | E169: 2013-05-16T06:31:16 | F169: 439.16 | G169: 12.41 | H169: 83.413 | I169: 432.1 | J169: 12.489 | K169: 100.72 | L169: 1.9251 | M169: 1.2588 | N169: 12.665 | O169: 91.088 | P169: 1.538 | Q169: 12.694 | R169: 100.39 | S169: 413.57 | T169: 12.871 | U169: 85.837 | V169: 407.2 | W169: 12.92 | X169: 101.93 | Y169: 1.9364 | Z169: 0 | AA169: 0 | AB169: 0 | AC169: 0 | AD169: 0 | AE169: 76.5 | AF169: 76.39 | AG169: 76.6 | AH169: 76.36 | AI169: 76.91 | AJ169: 77.06 | AK169: 1.5186 | AL169: 0 | AM169: 0
A170: pCO2 | B170: 36.76242167 | C170: -122.0676917 | D170: 2013-05-16T08:31Z | E170: 2013-05-16T07:31:16 | F170: 428.75 | G170: 12.391 | H170: 83.386 | I170: 422.02 | J170: 12.459 | K170: 100.76 | L170: 1.9247 | M170: 1.2647 | N170: 12.645 | O170: 91.277 | P170: 1.4982 | Q170: 12.675 | R170: 100.33 | S170: 414.44 | T170: 12.851 | U170: 85.783 | V170: 407.8 | W170: 12.91 | X170: 101.9 | Y170: 1.9379 | Z170: 0 | AA170: 0 | AB170: 0 | AC170: 0 | AD170: 0 | AE170: 77.16 | AF170: 77.14 | AG170: 77.03 | AH170: 76.95 | AI170: 76.59 | AJ170: 76.12 | AK170: 1.5173 | AL170: 0 | AM170: 0
A171: pCO2 | B171: 36.76525167 | C171: -122.0490367 | D171: 2013-05-16T09:30:59Z | E171: 2013-05-16T08:31:17 | F171: 465.48 | G171: 12.479 | H171: 83.517 | I171: 457.35 | J171: 12.547 | K171: 100.55 | L171: 1.9278 | M171: 1.2201 | N171: 12.733 | O171: 90.94 | P171: 1.3719 | Q171: 12.753 | R171: 100.06 | S171: 414.09 | T171: 12.93 | U171: 85.756 | V171: 408.14 | W171: 12.989 | X171: 101.87 | Y171: 1.9381 | Z171: 0 | AA171: 0 | AB171: 0 | AC171: 0 | AD171: 0 | AE171: 75.57 | AF171: 74.98 | AG171: 74.66 | AH171: 74.77 | AI171: 76.09 | AJ171: 76.31 | AK171: 1.5146 | AL171: 0 | AM171: 0
A172: pCO2 | B172: 36.768265 | C172: -122.0299217 | D172: 2013-05-16T10:30:58Z | E172: 2013-05-16T09:31:16 | F172: 446.96 | G172: 12.44 | H172: 83.535 | I172: 439.51 | J172: 12.508 | K172: 101.17 | L172: 1.9304 | M172: 1.2284 | N172: 12.684 | O172: 91.277 | P172: 1.2536 | Q172: 12.714 | R172: 100.51 | S172: 414.81 | T172: 12.89 | U172: 85.743 | V172: 407.98 | W172: 12.939 | X172: 101.83 | Y172: 1.9384 | Z172: 0 | AA172: 0 | AB172: 0 | AC172: 0 | AD172: 0 | AE172: 76.35 | AF172: 76.08 | AG172: 76 | AH172: 76.24 | AI172: 76.7 | AJ172: 77.06 | AK172: 1.5173 | AL172: 0 | AM172: 0
A173: pCO2 | B173: 36.77109333 | C173: -122.01163 | D173: 2013-05-16T11:30:59Z | E173: 2013-05-16T10:31:16 | F173: 412.12 | G173: 12.449 | H173: 83.292 | I173: 405.49 | J173: 12.518 | K173: 100.55 | L173: 1.9267 | M173: 1.4584 | N173: 12.704 | O173: 90.954 | P173: 1.5557 | Q173: 12.733 | R173: 100.14 | S173: 414.83 | T173: 12.91 | U173: 85.756 | V173: 408.29 | W173: 12.969 | X173: 101.83 | Y173: 1.9383 | Z173: 102.96 | AA173: 405.87 | AB173: 13.205 | AC173: 101.83 | AD173: 1.7972 | AE173: 77.64 | AF173: 78.38 | AG173: 78.62 | AH173: 78.67 | AI173: 78.84 | AJ173: 78.67 | AK173: 1.5159 | AL173: 0 | AM173: 0
A174: pCO2 | B174: 36.77424167 | C174: -121.9921967 | D174: 2013-05-16T12:31Z | E174: 2013-05-16T11:31:17 | F174: 417.58 | G174: 12.684 | H174: 83.369 | I174: 409.08 | J174: 12.743 | K174: 100.46 | L174: 1.9217 | M174: 1.0286 | N174: 12.93 | O174: 90.994 | P174: 1.4998 | Q174: 12.949 | R174: 100.15 | S174: 414.89 | T174: 13.126 | U174: 85.729 | V174: 408.88 | W174: 13.185 | X174: 101.83 | Y174: 1.9359 | Z174: 0 | AA174: 0 | AB174: 0 | AC174: 0 | AD174: 0 | AE174: 78.36 | AF174: 78 | AG174: 77.85 | AH174: 77.4 | AI174: 76.72 | AJ174: 76.38 | AK174: 1.5153 | AL174: 0 | AM174: 0
A175: pCO2 | B175: 36.77733667 | C175: -121.9719967 | D175: 2013-05-16T13:31Z | E175: 2013-05-16T12:31:18 | F175: 421.66 | G175: 12.528 | H175: 83.454 | I175: 414.76 | J175: 12.596 | K175: 100.47 | L175: 1.9253 | M175: 1.2658 | N175: 12.773 | O175: 90.913 | P175: 1.3965 | Q175: 12.802 | R175: 100.1 | S175: 416.01 | T175: 12.969 | U175: 85.729 | V175: 409.17 | W175: 13.028 | X175: 101.79 | Y175: 1.9349 | Z175: 0 | AA175: 0 | AB175: 0 | AC175: 0 | AD175: 0 | AE175: 76.76 | AF175: 77.67 | AG175: 78.45 | AH175: 78.65 | AI175: 78.78 | AJ175: 78.91 | AK175: 1.5183 | AL175: 0 | AM175: 0
A176: pCO2 | B176: 36.78055667 | C176: -121.9517017 | D176: 2013-05-16T14:30:58Z | E176: 2013-05-16T13:31:18 | F176: 398.33 | G176: 12.508 | H176: 83.602 | I176: 391.06 | J176: 12.577 | K176: 100.55 | L176: 1.9186 | M176: 1.2179 | N176: 12.763 | O176: 91.236 | P176: 1.4641 | Q176: 12.792 | R176: 100.31 | S176: 425.98 | T176: 12.959 | U176: 85.931 | V176: 419.89 | W176: 13.018 | X176: 101.83 | Y176: 1.9279 | Z176: 0 | AA176: 0 | AB176: 0 | AC176: 0 | AD176: 0 | AE176: 79.05 | AF176: 79.06 | AG176: 78.97 | AH176: 79.01 | AI176: 79.09 | AJ176: 79.18 | AK176: 1.5145 | AL176: 0 | AM176: 0
A177: pCO2 | B177: 36.783805 | C177: -121.9311617 | D177: 2013-05-16T15:30:58Z | E177: 2013-05-16T14:31:16 | F177: 404.51 | G177: 12.528 | H177: 83.979 | I177: 397.12 | J177: 12.596 | K177: 101.6 | L177: 1.926 | M177: 1.1263 | N177: 12.773 | O177: 91.6 | P177: 1.3171 | Q177: 12.812 | R177: 100.97 | S177: 417.68 | T177: 12.979 | U177: 85.931 | V177: 411.5 | W177: 13.038 | X177: 101.89 | Y177: 1.9336 | Z177: 0 | AA177: 0 | AB177: 0 | AC177: 0 | AD177: 0 | AE177: 79.05 | AF177: 78.23 | AG177: 77.68 | AH177: 77.57 | AI177: 77.42 | AJ177: 76.95 | AK177: 1.5151 | AL177: 0 | AM177: 0
A178: pCO2 | B178: 36.786595 | C178: -121.912965 | D178: 2013-05-16T16:30:59Z | E178: 2013-05-16T15:31:16 | F178: 436.89 | G178: 12.469 | H178: 83.952 | I178: 429.45 | J178: 12.537 | K178: 101.71 | L178: 1.9281 | M178: 1.1297 | N178: 12.724 | O178: 91.842 | P178: 1.353 | Q178: 12.753 | R178: 100.63 | S178: 420.35 | T178: 12.92 | U178: 85.837 | V178: 413.88 | W178: 12.979 | X178: 101.91 | Y178: 1.9355 | Z178: 0 | AA178: 0 | AB178: 0 | AC178: 0 | AD178: 0 | AE178: 76.77 | AF178: 76.4 | AG178: 75.81 | AH178: 74.16 | AI178: 74.13 | AJ178: 74.12 | AK178: 1.5142 | AL178: 0 | AM178: 0
A179: pCO2 | B179: 36.789755 | C179: -121.892895 | D179: 2013-05-16T17:30:59Z | E179: 2013-05-16T16:31:17 | F179: 486.71 | G179: 12.547 | H179: 84.194 | I179: 478.9 | J179: 12.606 | K179: 101.75 | L179: 1.9264 | M179: 1.1877 | N179: 12.802 | O179: 92.26 | P179: 1.3138 | Q179: 12.831 | R179: 101.25 | S179: 418.71 | T179: 12.998 | U179: 85.891 | V179: 411.98 | W179: 13.057 | X179: 101.94 | Y179: 1.9357 | Z179: 0 | AA179: 0 | AB179: 0 | AC179: 0 | AD179: 0 | AE179: 74.06 | AF179: 73.95 | AG179: 73.77 | AH179: 73.73 | AI179: 73.64 | AJ179: 74.07 | AK179: 1.5105 | AL179: 0 | AM179: 0
A180: pCO2 | B180: 36.793045 | C180: -121.8715583 | D180: 2013-05-16T18:31Z | E180: 2013-05-16T17:31:16 | F180: 483.09 | G180: 12.822 | H180: 84.464 | I180: 474.52 | J180: 12.9 | K180: 102.29 | L180: 1.9393 | M180: 1.1228 | N180: 13.097 | O180: 92.354 | P180: 1.235 | Q180: 13.126 | R180: 101.59 | S180: 417.93 | T180: 13.303 | U180: 85.945 | V180: 411.91 | W180: 13.372 | X180: 101.9 | Y180: 1.9421 | Z180: 0 | AA180: 0 | AB180: 0 | AC180: 0 | AD180: 0 | AE180: 74.18 | AF180: 74.19 | AG180: 74.32 | AH180: 74.92 | AI180: 74.8 | AJ180: 77.88 | AK180: 1.5047 | AL180: 0 | AM180: 0
A181: pCO2 | B181: 36.79626833 | C181: -121.8514317 | D181: 2013-05-16T19:31Z | E181: 2013-05-16T18:31:17 | F181: 359.75 | G181: 13.254 | H181: 84.154 | I181: 352.86 | J181: 13.323 | K181: 101.97 | L181: 1.9543 | M181: 0.74436 | N181: 13.52 | O181: 92.085 | P181: 0.96977 | Q181: 13.55 | R181: 101.28 | S181: 418.28 | T181: 13.738 | U181: 85.85 | V181: 411.87 | W181: 13.807 | X181: 101.9 | Y181: 1.9574 | Z181: 0 | AA181: 0 | AB181: 0 | AC181: 0 | AD181: 0 | AE181: 81.36 | AF181: 82.05 | AG181: 81.51 | AH181: 80.04 | AI181: 83.56 | AJ181: 83.7 | AK181: 1.5018 | AL181: 0 | AM181: 0
A182: pCO2 | B182: 36.79842333 | C182: -121.847835 | D182: 2013-05-16T20:30:59Z | E182: 2013-05-16T19:31:16 | F182: 329.12 | G182: 13.768 | H182: 84.423 | I182: 323.01 | J182: 13.827 | K182: 102.29 | L182: 1.9581 | M182: 0.58512 | N182: 14.026 | O182: 92.3 | P182: 0.86386 | Q182: 14.045 | R182: 101.48 | S182: 414.33 | T182: 14.225 | U182: 85.945 | V182: 407.98 | W182: 14.284 | X182: 101.89 | Y182: 1.9603 | Z182: 0 | AA182: 0 | AB182: 0 | AC182: 0 | AD182: 0 | AE182: 84.43 | AF182: 84.46 | AG182: 84.54 | AH182: 84.58 | AI182: 83.27 | AJ182: 80.82 | AK182: 1.5067 | AL182: 0 | AM182: 0
A183: pCO2 | B183: 36.79778667 | C183: -121.85196 | D183: 2013-05-16T21:30:58Z | E183: 2013-05-16T20:31:16 | F183: 405.93 | G183: 13.847 | H183: 84.827 | I183: 399.67 | J183: 13.916 | K183: 102.82 | L183: 1.9618 | M183: 0.63567 | N183: 14.105 | O183: 92.717 | P183: 0.92138 | Q183: 14.135 | R183: 101.62 | S183: 414.26 | T183: 14.304 | U183: 85.985 | V183: 407.91 | W183: 14.364 | X183: 101.85 | Y183: 1.9604 | Z183: 0 | AA183: 0 | AB183: 0 | AC183: 0 | AD183: 0 | AE183: 81.21 | AF183: 77.32 | AG183: 75.95 | AH183: 75.01 | AI183: 75.03 | AJ183: 74.82 | AK183: 1.509 | AL183: 0 | AM183: 0
A184: pCO2 | B184: 36.79653833 | C184: -121.85976 | D184: 2013-05-16T22:30:59Z | E184: 2013-05-16T21:31:16 | F184: 469.76 | G184: 13.57 | H184: 84.652 | I184: 461.34 | J184: 13.629 | K184: 102.92 | L184: 1.9602 | M184: 0.8053 | N184: 13.807 | O184: 92.583 | P184: 1.0402 | Q184: 13.837 | R184: 101.63 | S184: 413.52 | T184: 13.996 | U184: 86.025 | V184: 407.23 | W184: 14.056 | X184: 101.82 | Y184: 1.9551 | Z184: 0 | AA184: 0 | AB184: 0 | AC184: 0 | AD184: 0 | AE184: 74.83 | AF184: 74.71 | AG184: 74.6 | AH184: 74.63 | AI184: 74.45 | AJ184: 74.21 | AK184: 1.5158 | AL184: 0 | AM184: 0
A185: pCO2 | B185: 36.79464167 | C185: -121.871625 | D185: 2013-05-16T23:30:59Z | E185: 2013-05-16T22:31:16 | F185: 486 | G185: 13.175 | H185: 83.79 | I185: 478.15 | J185: 13.234 | K185: 101.89 | L185: 1.9437 | M185: 1.0483 | N185: 13.412 | O185: 91.896 | P185: 1.2534 | Q185: 13.441 | R185: 101.33 | S185: 413.49 | T185: 13.609 | U185: 85.716 | V185: 407.13 | W185: 13.669 | X185: 101.77 | Y185: 1.9497 | Z185: 0 | AA185: 0 | AB185: 0 | AC185: 0 | AD185: 0 | AE185: 74.06 | AF185: 74.12 | AG185: 74.23 | AH185: 74.33 | AI185: 74.45 | AJ185: 74.39 | AK185: 1.5133 | AL185: 0 | AM185: 0
A186: pCO2 | B186: 36.79178833 | C186: -121.890205 | D186: 2013-05-17T00:31Z | E186: 2013-05-16T23:31:16 | F186: 476.68 | G186: 12.89 | H186: 83.759 | I186: 468.26 | J186: 12.949 | K186: 101.52 | L186: 1.9327 | M186: 0.96199 | N186: 13.136 | O186: 91.856 | P186: 1.3336 | Q186: 13.166 | R186: 101.08 | S186: 413.88 | T186: 13.323 | U186: 85.945 | V186: 407.4 | W186: 13.392 | X186: 101.74 | Y186: 1.9387 | Z186: 0 | AA186: 0 | AB186: 0 | AC186: 0 | AD186: 0 | AE186: 74.6 | AF186: 74.71 | AG186: 74.88 | AH186: 75.32 | AI186: 75.88 | AJ186: 76.71 | AK186: 1.5121 | AL186: 0 | AM186: 0
A187: pCO2 | B187: 36.788305 | C187: -121.9110667 | D187: 2013-05-17T01:30:59Z | E187: 2013-05-17T00:31:16 | F187: 347.26 | G187: 12.763 | H187: 83.427 | I187: 340.68 | J187: 12.822 | K187: 101.17 | L187: 1.9321 | M187: 1.0834 | N187: 13.008 | O187: 91.6 | P187: 1.3625 | Q187: 13.028 | R187: 100.63 | S187: 413.79 | T187: 13.205 | U187: 85.756 | V187: 407.23 | W187: 13.274 | X187: 101.73 | Y187: 1.9377 | Z187: 0 | AA187: 0 | AB187: 0 | AC187: 0 | AD187: 0 | AE187: 80.31 | AF187: 82.69 | AG187: 82.98 | AH187: 83.82 | AI187: 83.32 | AJ187: 82.72 | AK187: 1.5097 | AL187: 0 | AM187: 0
A188: pCO2 | B188: 36.78524333 | C188: -121.93007 | D188: 2013-05-17T02:30:58Z | E188: 2013-05-17T01:31:16 | F188: 327.58 | G188: 12.822 | H188: 83.517 | I188: 322.24 | J188: 12.88 | K188: 101.03 | L188: 1.9277 | M188: 1.0501 | N188: 13.057 | O188: 91.425 | P188: 1.1192 | Q188: 13.087 | R188: 100.59 | S188: 413.51 | T188: 13.264 | U188: 85.662 | V188: 407.3 | W188: 13.323 | X188: 101.64 | Y188: 1.9383 | Z188: 0 | AA188: 0 | AB188: 0 | AC188: 0 | AD188: 0 | AE188: 83.85 | AF188: 83.54 | AG188: 82.76 | AH188: 82.34 | AI188: 81.36 | AJ188: 80.25 | AK188: 1.5066 | AL188: 0 | AM188: 0
A189: pCO2 | B189: 36.78287167 | C189: -121.9446567 | D189: 2013-05-17T03:30:59Z | E189: 2013-05-17T02:31:16 | F189: 395.81 | G189: 12.645 | H189: 83.561 | I189: 389.8 | J189: 12.714 | K189: 101.29 | L189: 1.9319 | M189: 1.0032 | N189: 12.89 | O189: 91.398 | P189: 1.4675 | Q189: 12.91 | R189: 100.5 | S189: 413.17 | T189: 13.087 | U189: 85.716 | V189: 407.15 | W189: 13.146 | X189: 101.68 | Y189: 1.9354 | Z189: 0 | AA189: 0 | AB189: 0 | AC189: 0 | AD189: 0 | AE189: 79.46 | AF189: 78.56 | AG189: 77.78 | AH189: 77.44 | AI189: 77.27 | AJ189: 77.14 | AK189: 1.5093 | AL189: 0 | AM189: 0
A190: pCO2 | B190: 36.78046 | C190: -121.9599317 | D190: 2013-05-17T04:30:58Z | E190: 2013-05-17T03:31:16 | F190: 421.74 | G190: 12.528 | H190: 84.221 | I190: 413.82 | J190: 12.586 | K190: 102.18 | L190: 1.9279 | M190: 1.1456 | N190: 12.773 | O190: 92.058 | P190: 1.448 | Q190: 12.792 | R190: 100.65 | S190: 413.61 | T190: 12.969 | U190: 85.85 | V190: 407.09 | W190: 13.038 | X190: 101.67 | Y190: 1.928 | Z190: 0 | AA190: 0 | AB190: 0 | AC190: 0 | AD190: 0 | AE190: 77.18 | AF190: 77.17 | AG190: 77.32 | AH190: 77.76 | AI190: 78.31 | AJ190: 78.11 | AK190: 1.5075 | AL190: 0 | AM190: 0
A191: pCO2 | B191: 36.77805667 | C191: -121.9753167 | D191: 2013-05-17T05:31:01Z | E191: 2013-05-17T04:31:16 | F191: 415.29 | G191: 12.508 | H191: 83.777 | I191: 408.11 | J191: 12.577 | K191: 101.51 | L191: 1.9304 | M191: 1.3737 | N191: 12.753 | O191: 91.573 | P191: 1.173 | Q191: 12.782 | R191: 100.47 | S191: 413.7 | T191: 12.959 | U191: 85.837 | V191: 407.36 | W191: 13.018 | X191: 101.77 | Y191: 1.9321 | Z191: 0 | AA191: 0 | AB191: 0 | AC191: 0 | AD191: 0 | AE191: 78.05 | AF191: 77.71 | AG191: 77.56 | AH191: 77.13 | AI191: 77.31 | AJ191: 77.23 | AK191: 1.5081 | AL191: 0 | AM191: 0
A192: pCO2 | B192: 36.77577667 | C192: -121.9896167 | D192: 2013-05-17T06:30:59Z | E192: 2013-05-17T05:31:17 | F192: 428.37 | G192: 12.537 | H192: 84.033 | I192: 420.24 | J192: 12.606 | K192: 101.85 | L192: 1.9303 | M192: 1.2072 | N192: 12.782 | O192: 92.138 | P192: 1.3701 | Q192: 12.812 | R192: 101.38 | S192: 413.65 | T192: 12.989 | U192: 85.904 | V192: 407.4 | W192: 13.047 | X192: 101.78 | Y192: 1.9314 | Z192: 0 | AA192: 0 | AB192: 0 | AC192: 0 | AD192: 0 | AE192: 77.07 | AF192: 77.02 | AG192: 77 | AH192: 76.96 | AI192: 77.22 | AJ192: 77.18 | AK192: 1.5059 | AL192: 0 | AM192: 0
A193: pCO2 | B193: 36.77381167 | C193: -122.0014433 | D193: 2013-05-17T07:30:58Z | E193: 2013-05-17T06:31:16 | F193: 428.12 | G193: 12.547 | H193: 83.831 | I193: 420.54 | J193: 12.616 | K193: 101.83 | L193: 1.9324 | M193: 1.2023 | N193: 12.802 | O193: 91.761 | P193: 1.2945 | Q193: 12.831 | R193: 100.46 | S193: 413.58 | T193: 12.998 | U193: 85.81 | V193: 407.38 | W193: 13.057 | X193: 101.79 | Y193: 1.9347 | Z193: 0 | AA193: 0 | AB193: 0 | AC193: 0 | AD193: 0 | AE193: 77.09 | AF193: 77.11 | AG193: 76.64 | AH193: 74.53 | AI193: 74.86 | AJ193: 74.98 | AK193: 1.506 | AL193: 0 | AM193: 0
A194: pCO2 | B194: 36.77213667 | C194: -122.0119667 | D194: 2013-05-17T08:31Z | E194: 2013-05-17T07:31:16 | F194: 460.05 | G194: 12.449 | H194: 84.356 | I194: 452.41 | J194: 12.518 | K194: 102.48 | L194: 1.9294 | M194: 1.3695 | N194: 12.694 | O194: 92.017 | P194: 1.4428 | Q194: 12.724 | R194: 101.05 | S194: 414.45 | T194: 12.89 | U194: 85.729 | V194: 408.15 | W194: 12.949 | X194: 101.78 | Y194: 1.9352 | Z194: 0 | AA194: 0 | AB194: 0 | AC194: 0 | AD194: 0 | AE194: 75.21 | AF194: 74.96 | AG194: 74.35 | AH194: 74.34 | AI194: 74.35 | AJ194: 74.39 | AK194: 1.5076 | AL194: 0 | AM194: 0
A195: pCO2 | B195: 36.77014167 | C195: -122.024645 | D195: 2013-05-17T09:30:59Z | E195: 2013-05-17T08:31:16 | F195: 478.83 | G195: 12.371 | H195: 84.679 | I195: 471.06 | J195: 12.44 | K195: 102.59 | L195: 1.9239 | M195: 1.2374 | N195: 12.616 | O195: 92.556 | P195: 1.4159 | Q195: 12.635 | R195: 101.71 | S195: 413.77 | T195: 12.812 | U195: 85.81 | V195: 407.37 | W195: 12.871 | X195: 101.77 | Y195: 1.9322 | Z195: 0 | AA195: 0 | AB195: 0 | AC195: 0 | AD195: 0 | AE195: 74.36 | AF195: 74.14 | AG195: 74.11 | AH195: 74.09 | AI195: 73.97 | AJ195: 73.91 | AK195: 1.5059 | AL195: 0 | AM195: 0
A196: pCO2 | B196: 36.767925 | C196: -122.038005 | D196: 2013-05-17T10:30:59Z | E196: 2013-05-17T09:31:16 | F196: 484.23 | G196: 12.322 | H196: 84.396 | I196: 475.79 | J196: 12.391 | K196: 102.48 | L196: 1.9237 | M196: 1.1633 | N196: 12.567 | O196: 92.394 | P196: 1.5204 | Q196: 12.596 | R196: 101.54 | S196: 414.92 | T196: 12.773 | U196: 85.662 | V196: 408.73 | W196: 12.822 | X196: 101.74 | Y196: 1.9321 | Z196: 102.86 | AA196: 406.18 | AB196: 13.048 | AC196: 101.74 | AD196: 1.7878 | AE196: 73.61 | AF196: 73.91 | AG196: 73.91 | AH196: 73.99 | AI196: 74.1 | AJ196: 74.23 | AK196: 1.506 | AL196: 0 | AM196: 0
A197: pCO2 | B197: 36.76577333 | C197: -122.051955 | D197: 2013-05-17T11:30:59Z | E197: 2013-05-17T10:31:16 | F197: 474.96 | G197: 12.313 | H197: 84.302 | I197: 466.33 | J197: 12.381 | K197: 102.51 | L197: 1.9181 | M197: 1.3879 | N197: 12.557 | O197: 92.085 | P197: 1.4491 | Q197: 12.577 | R197: 101.51 | S197: 415.23 | T197: 12.753 | U197: 85.648 | V197: 408.79 | W197: 12.812 | X197: 101.73 | Y197: 1.928 | Z197: 0 | AA197: 0 | AB197: 0 | AC197: 0 | AD197: 0 | AE197: 74.43 | AF197: 74.51 | AG197: 74.83 | AH197: 74.87 | AI197: 74.85 | AJ197: 75.06 | AK197: 1.5057 | AL197: 0 | AM197: 0
A198: pCO2 | B198: 36.76361667 | C198: -122.0657083 | D198: 2013-05-17T12:30:59Z | E198: 2013-05-17T11:31:16 | F198: 458.77 | G198: 12.244 | H198: 84.477 | I198: 450.24 | J198: 12.313 | K198: 102.74 | L198: 1.9189 | M198: 1.3153 | N198: 12.498 | O198: 92.367 | P198: 1.4897 | Q198: 12.518 | R198: 101.46 | S198: 415.02 | T198: 12.694 | U198: 85.635 | V198: 408.87 | W198: 12.763 | X198: 101.75 | Y198: 1.9291 | Z198: 0 | AA198: 0 | AB198: 0 | AC198: 0 | AD198: 0 | AE198: 75.27 | AF198: 75.37 | AG198: 75.5 | AH198: 75.54 | AI198: 75.55 | AJ198: 75.36 | AK198: 1.5033 | AL198: 0 | AM198: 0
A199: pCO2 | B199: 36.76207667 | C199: -122.07467 | D199: 2013-05-17T13:30:59Z | E199: 2013-05-17T12:31:16 | F199: 461.02 | G199: 12.293 | H199: 84.45 | I199: 452.78 | J199: 12.352 | K199: 102.56 | L199: 1.9199 | M199: 1.3808 | N199: 12.538 | O199: 92.26 | P199: 1.4577 | Q199: 12.557 | R199: 101.35 | S199: 414.04 | T199: 12.733 | U199: 85.622 | V199: 407.88 | W199: 12.802 | X199: 101.73 | Y199: 1.9304 | Z199: 0 | AA199: 0 | AB199: 0 | AC199: 0 | AD199: 0 | AE199: 75.22 | AF199: 75.33 | AG199: 75.22 | AH199: 75.78 | AI199: 75.86 | AJ199: 76.12 | AK199: 1.5011 | AL199: 0 | AM199: 0
A200: pCO2 | B200: 36.76072167 | C200: -122.0833667 | D200: 2013-05-17T14:31Z | E200: 2013-05-17T13:31:16 | F200: 444.27 | G200: 12.381 | H200: 84.504 | I200: 437.26 | J200: 12.449 | K200: 102.64 | L200: 1.9293 | M200: 1.2023 | N200: 12.635 | O200: 92.273 | P200: 1.5305 | Q200: 12.655 | R200: 101.52 | S200: 414.68 | T200: 12.831 | U200: 85.675 | V200: 408.77 | W200: 12.9 | X200: 101.78 | Y200: 1.935 | Z200: 0 | AA200: 0 | AB200: 0 | AC200: 0 | AD200: 0 | AE200: 76.09 | AF200: 76.31 | AG200: 76.32 | AH200: 76.34 | AI200: 76.25 | AJ200: 75.74 | AK200: 1.4995 | AL200: 0 | AM200: 0
... 145 more rows

Sheet pH_Proc
A1: pCO2* | B1: latitude | C1: longitude | D1: time | E1: Da e. ime | F1: Durafet pH 1 | G1: Durafet pH 2 | H1: Durafet pH 3 | I1: Durafet pH 4 | J1: Durafet pH 5 | K1: Durafet pH 6 | O1: pH Time | P1: pH voltage | Q1: Temperature
A2: pCO2 | B2: 36.80266167 | C2: -121.78808 | D2: 2013-05-09T04:31:04Z | E2: 2013-05-09T03:31:27 | F2: 76.48 | G2: 76.51 | H2: 76.47 | I2: 76.48 | J2: 76.57 | K2: 76.63 | O2: 2013-05-09T03:31:27 | P2: 76.48 | Q2: =VLOOKUP(O2,[1]Raw!$D:$K,8) -> 
A3: pCO2 | B3: 36.80289333 | C3: -121.7877733 | D3: 2013-05-09T05:31:06Z | E3: 2013-05-09T04:31:27 | F3: 76.68 | G3: 83.43 | H3: 78.98 | I3: 77.26 | J3: 77.03 | K3: 76.87 | O3: 2013-05-09T03:41:27 | P3: 76.51 | Q3: =VLOOKUP(O3,[1]Raw!$D:$K,8) -> 
A4: pCO2 | B4: 36.80259333 | C4: -121.7880083 | D4: 2013-05-09T06:31:04Z | E4: 2013-05-09T05:31:29 | F4: 76.92 | G4: 76.88 | H4: 76.79 | I4: 76.9 | J4: 76.75 | K4: 76.95 | O4: 2013-05-09T03:51:27 | P4: 76.47 | Q4: =VLOOKUP(O4,[1]Raw!$D:$K,8) -> 
A5: pCO2 | B5: 36.8028 | C5: -121.7879233 | D5: 2013-05-09T07:31:05Z | E5: 2013-05-09T06:31:27 | F5: 76.95 | G5: 76.99 | H5: 76.97 | I5: 76.82 | J5: 77.01 | K5: 77.02 | O5: 2013-05-09T04:01:27 | P5: 76.48 | Q5: =VLOOKUP(O5,[1]Raw!$D:$K,8) -> 
A6: pCO2 | B6: 36.80251333 | C6: -121.7879567 | D6: 2013-05-09T08:31:04Z | E6: 2013-05-09T07:31:29 | F6: 76.99 | G6: 77.12 | H6: 77.12 | I6: 77.01 | J6: 77.01 | K6: 76.95 | O6: 2013-05-09T04:11:27 | P6: 76.57 | Q6: =VLOOKUP(O6,[1]Raw!$D:$K,8) -> 19.17219925
A7: pCO2 | B7: 36.79994167 | C7: -121.7872917 | D7: 2013-05-09T09:31:04Z | E7: 2013-05-09T08:31:27 | F7: 76.94 | G7: 77.13 | H7: 77.05 | I7: 76.94 | J7: 76.95 | K7: 76.99 | O7: 2013-05-09T04:21:27 | P7: 76.63 | Q7: =VLOOKUP(O7,[1]Raw!$D:$K,8) -> 19.18300057
A8: pCO2 | B8: 36.80288667 | C8: -121.78838 | D8: 2013-05-09T10:31:04Z | E8: 2013-05-09T09:31:27 | F8: 77.02 | G8: 77.09 | H8: 76.99 | I8: 77.02 | J8: 77.02 | K8: 77.07 | O8: 2013-05-09T04:31:27 | P8: 76.68 | Q8: =VLOOKUP(O8,[1]Raw!$D:$K,8) -> 19.18180084 | R8: 7.968916463
A9: pCO2 | B9: 36.80288167 | C9: -121.788015 | D9: 2013-05-09T11:31:03Z | E9: 2013-05-09T10:31:27 | F9: 77.02 | G9: 77.12 | H9: 76.07 | I9: 77.06 | J9: 77.07 | K9: 77.07 | O9: 2013-05-09T04:41:27 | P9: 83.43 | Q9: =VLOOKUP(O9,[1]Raw!$D:$K,8) -> 19.17980003 | R9: 8.085308146
A10: pCO2 | B10: 36.802425 | C10: -121.7878367 | D10: 2013-05-09T12:31:05Z | E10: 2013-05-09T11:31:27 | F10: 77.05 | G10: 77.23 | H10: 77.1 | I10: 77.08 | J10: 77.07 | K10: 77.01 | O10: 2013-05-09T04:51:27 | P10: 78.98 | Q10: =VLOOKUP(O10,[1]Raw!$D:$K,8) -> 19.18490028 | R10: 8.008537273
A11: pCO2 | B11: 36.80290833 | C11: -121.78831 | D11: 2013-05-09T13:31:04Z | E11: 2013-05-09T12:31:29 | F11: 77.09 | G11: 77.08 | H11: 77.14 | I11: 77.11 | J11: 76.97 | K11: 76.64 | O11: 2013-05-09T05:01:27 | P11: 77.26 | Q11: =VLOOKUP(O11,[1]Raw!$D:$K,8) -> 19.18400001 | R11: 7.978893625
A12: pCO2 | B12: 36.80177667 | C12: -121.7888917 | D12: 2013-05-09T14:31:04Z | E12: 2013-05-09T13:31:29 | F12: 76.53 | G12: 76.7 | H12: 76.58 | I12: 76.65 | J12: 76.6 | K12: 76.36 | O12: 2013-05-09T05:11:27 | P12: 77.03 | Q12: =VLOOKUP(O12,[1]Raw!$D:$K,8) -> 19.18580055 | R12: 7.974910348
A13: pCO2 | B13: 36.80287167 | C13: -121.7917467 | D13: 2013-05-09T15:31:05Z | E13: 2013-05-09T14:31:27 | F13: 76.5 | G13: 76.64 | H13: 76.55 | I13: 76.54 | J13: 76.51 | K13: 76.47 | O13: 2013-05-09T05:21:27 | P13: 76.87 | Q13: =VLOOKUP(O13,[1]Raw!$D:$K,8) -> 19.18779945 | R13: 7.972131916
A14: pCO2 | B14: 36.80259 | C14: -121.7879633 | D14: 2013-05-09T16:31:06Z | E14: 2013-05-09T15:31:29 | F14: 76.47 | G14: 76.66 | H14: 76.56 | I14: 76.54 | J14: 76.53 | K14: 76.52 | O14: 2013-05-09T05:31:29 | P14: 76.92 | Q14: =VLOOKUP(O14,[1]Raw!$D:$K,8) -> 19.18779945 | R14: 7.972993905
A15: pCO2 | B15: 36.80270667 | C15: -121.7880333 | D15: 2013-05-09T17:31:05Z | E15: 2013-05-09T16:31:29 | F15: 76.53 | G15: 76.67 | H15: 76.51 | I15: 76.52 | J15: 76.64 | K15: 76.59 | O15: 2013-05-09T05:41:29 | P15: 76.88 | Q15: =VLOOKUP(O15,[1]Raw!$D:$K,8) -> 19.1882 | R15: 7.972300296
A16: pCO2 | B16: 36.80320167 | C16: -121.7875767 | D16: 2013-05-09T18:31:04Z | E16: 2013-05-09T17:31:27 | F16: 76.6 | G16: 76.62 | H16: 76.43 | I16: 76.67 | J16: 76.59 | K16: 76.57 | O16: 2013-05-09T05:51:29 | P16: 76.79 | Q16: =VLOOKUP(O16,[1]Raw!$D:$K,8) -> 19.18810081 | R16: 7.970749713
A17: pCO2 | B17: 36.79709 | C17: -121.8018183 | D17: 2013-05-09T19:31:05Z | E17: 2013-05-09T18:31:27 | F17: 76.48 | G17: 76.62 | H17: 76.54 | I17: 76.49 | J17: 76.47 | K17: 76.63 | O17: 2013-05-09T06:01:29 | P17: 76.9 | Q17: =VLOOKUP(O17,[1]Raw!$D:$K,8) -> 19.18919945 | R17: 7.972635064
A18: pCO2 | B18: 36.80297333 | C18: -121.7881333 | D18: 2013-05-09T20:31:06Z | E18: 2013-05-09T19:31:27 | F18: 76.64 | G18: 76.66 | H18: 76.57 | I18: 76.65 | J18: 76.62 | K18: 76.52 | O18: 2013-05-09T06:11:29 | P18: 76.75 | Q18: =VLOOKUP(O18,[1]Raw!$D:$K,8) -> 19.18939972 | R18: 7.970047103
A19: pCO2 | B19: 36.80288667 | C19: -121.7878167 | D19: 2013-05-09T21:31:04Z | E19: 2013-05-09T20:31:29 | F19: 76.51 | G19: 77.28 | H19: 76.64 | I19: 76.61 | J19: 76.58 | K19: 76.59 | O19: 2013-05-09T06:21:29 | P19: 76.95 | Q19: =VLOOKUP(O19,[1]Raw!$D:$K,8) -> 19.19000053 | R19: 7.973489009
A20: pCO2 | B20: 36.817535 | C20: -121.84939 | D20: 2013-05-09T22:31:05Z | E20: 2013-05-09T21:31:27 | F20: 76.54 | G20: 76.68 | H20: 76.65 | I20: 76.63 | J20: 76.6 | K20: 76.56 | O20: 2013-05-09T06:31:27 | P20: 76.95 | Q20: =VLOOKUP(O20,[1]Raw!$D:$K,8) -> 19.1821003 | R20: 7.973568291
A21: pCO2 | B21: 36.80216333 | C21: -121.7878167 | D21: 2013-05-09T23:31:04Z | E21: 2013-05-09T22:31:27 | F21: 76.61 | G21: 76.76 | H21: 76.74 | I21: 76.63 | J21: 76.49 | K21: 76.62 | O21: 2013-05-09T06:41:27 | P21: 76.99 | Q21: =VLOOKUP(O21,[1]Raw!$D:$K,8) -> 19.19269943 | R21: 7.974151505
A22: pCO2 | B22: 36.80271667 | C22: -121.787995 | D22: 2013-05-10T00:31:05Z | E22: 2013-05-09T23:31:27 | F22: 76.59 | G22: 76.75 | H22: 76.76 | I22: 76.72 | J22: 76.54 | K22: 76.66 | O22: 2013-05-09T06:51:27 | P22: 76.97 | Q22: =VLOOKUP(O22,[1]Raw!$D:$K,8) -> 19.18950081 | R22: 7.973838818
A23: pCO2 | B23: 36.80284667 | C23: -121.7880883 | D23: 2013-05-10T01:31:05Z | E23: 2013-05-10T00:31:28 | F23: 76.73 | G23: 76.84 | H23: 76.71 | I23: 76.74 | J23: 76.63 | K23: 76.69 | O23: 2013-05-09T07:01:27 | P23: 76.82 | Q23: =VLOOKUP(O23,[1]Raw!$D:$K,8) -> 19.19339943 | R23: 7.971213774
A24: pCO2 | B24: 36.801455 | C24: -121.7916117 | D24: 2013-05-10T02:31:05Z | E24: 2013-05-10T01:31:27 | F24: 76.64 | G24: 76.75 | H24: 76.78 | I24: 76.78 | J24: 76.8 | K24: 76.67 | O24: 2013-05-09T07:11:27 | P24: 77.01 | Q24: =VLOOKUP(O24,[1]Raw!$D:$K,8) -> 19.19459915 | R24: 7.974477225
A25: pCO2 | B25: 36.80053 | C25: -121.7875717 | D25: 2013-05-10T03:31:05Z | E25: 2013-05-10T02:31:27 | F25: 76.71 | G25: 76.81 | H25: 76.81 | I25: 76.82 | J25: 76.8 | K25: 76.75 | O25: 2013-05-09T07:21:27 | P25: 77.02 | Q25: =VLOOKUP(O25,[1]Raw!$D:$K,8) -> 19.19420052 | R25: 7.97465362
A26: pCO2 | B26: 36.80275 | C26: -121.7883467 | D26: 2013-05-10T04:31:05Z | E26: 2013-05-10T03:31:27 | F26: 76.78 | G26: 76.91 | H26: 76.93 | I26: 76.85 | J26: 76.9 | K26: 76.84 | O26: 2013-05-09T07:31:29 | P26: 76.99 | Q26: =VLOOKUP(O26,[1]Raw!$D:$K,8) -> 19.19420052 | R26: 7.974136439
A27: pCO2 | B27: 36.80152 | C27: -121.7879083 | D27: 2013-05-10T05:31:05Z | E27: 2013-05-10T04:31:27 | F27: 76.93 | G27: 76.95 | H27: 76.91 | I27: 77.01 | J27: 76.76 | K27: 76.91 | O27: 2013-05-09T07:41:29 | P27: 77.12 | Q27: =VLOOKUP(O27,[1]Raw!$D:$K,8) -> 19.19569969 | R27: 7.976362501
A28: pCO2 | B28: 36.81845 | C28: -121.7928283 | D28: 2013-05-10T06:31:05Z | E28: 2013-05-10T05:31:27 | F28: 76.9 | G28: 76.99 | H28: 76.94 | I28: 76.88 | J28: 76.94 | K28: 76.92 | O28: 2013-05-09T07:51:29 | P28: 77.12 | Q28: =VLOOKUP(O28,[1]Raw!$D:$K,8) -> 19.19569969 | R28: 7.976362501
A29: pCO2 | B29: 36.81255667 | C29: -121.7833183 | D29: 2013-05-10T07:31:05Z | E29: 2013-05-10T06:31:27 | F29: 76.9 | G29: 76.92 | H29: 76.88 | I29: 76.89 | J29: 76.79 | K29: 76.76 | O29: 2013-05-09T08:01:29 | P29: 77.01 | Q29: =VLOOKUP(O29,[1]Raw!$D:$K,8) -> 19.19610023 | R29: 7.974462157
A30: pCO2 | B30: 36.75591167 | C30: -121.7710183 | D30: 2013-05-10T08:31:04Z | E30: 2013-05-10T07:31:28 | F30: 76.82 | G30: 76.9 | H30: 76.84 | I30: 76.72 | J30: 76.73 | K30: 76.68 | O30: 2013-05-09T08:11:29 | P30: 77.01 | Q30: =VLOOKUP(O30,[1]Raw!$D:$K,8) -> 19.19809914 | R30: 7.974442091
A31: pCO2 | B31: 36.75591167 | C31: -121.7710183 | D31: 2013-05-10T09:31:06Z | E31: 2013-05-10T08:31:28 | F31: 76.77 | G31: 76.73 | H31: 76.9 | I31: 76.83 | J31: 76.76 | K31: 76.79 | O31: 2013-05-09T08:21:29 | P31: 76.95 | Q31: =VLOOKUP(O31,[1]Raw!$D:$K,8) -> 19.19790077 | R31: 7.973409732
A32: pCO2 | B32: 36.80262333 | C32: -121.7877183 | D32: 2013-05-10T10:31:05Z | E32: 2013-05-10T09:31:27 | F32: 76.73 | G32: 76.65 | H32: 76.87 | I32: 76.75 | J32: 76.74 | K32: 76.74 | O32: 2013-05-09T08:31:27 | P32: 76.94 | Q32: =VLOOKUP(O32,[1]Raw!$D:$K,8) -> 19.18429947 | R32: 7.973373821
A33: pCO2 | B33: 36.802755 | C33: -121.7880517 | D33: 2013-05-10T11:31:06Z | E33: 2013-05-10T10:31:27 | F33: 76.78 | G33: 76.88 | H33: 76.89 | I33: 76.66 | J33: 76.85 | K33: 76.84 | O33: 2013-05-09T08:41:27 | P33: 77.13 | Q33: =VLOOKUP(O33,[1]Raw!$D:$K,8) -> 19.18569946 | R33: 7.976635353
A34: pCO2 | B34: 36.80269167 | C34: -121.7880183 | D34: 2013-05-10T12:31:04Z | E34: 2013-05-10T11:31:28 | F34: 76.8 | G34: 76.9 | H34: 76.67 | I34: 76.79 | J34: 76.85 | K34: 76.82 | O34: 2013-05-09T08:51:27 | P34: 77.05 | Q34: =VLOOKUP(O34,[1]Raw!$D:$K,8) -> 19.19790077 | R34: 7.97513365
A35: pCO2 | B35: 36.80299167 | C35: -121.788465 | D35: 2013-05-10T13:31:05Z | E35: 2013-05-10T12:31:27 | F35: 76.84 | G35: 76.85 | H35: 76.79 | I35: 76.89 | J35: 76.87 | K35: 76.91 | O35: 2013-05-09T09:01:27 | P35: 76.94 | Q35: =VLOOKUP(O35,[1]Raw!$D:$K,8) -> 19.19039917 | R35: 7.973312613
A36: pCO2 | B36: 36.79583833 | C36: -121.8459433 | D36: 2013-05-10T18:30:54Z | E36: 2013-05-10T17:31:33 | F36: 66.55 | G36: 66.37 | H36: 88.08 | I36: 86.91 | J36: 88.61 | K36: 88.15 | O36: 2013-05-09T09:11:27 | P36: 76.95 | Q36: =VLOOKUP(O36,[1]Raw!$D:$K,8) -> 19.19960022 | R36: 7.973392679
A37: pCO2 | B37: 36.797525 | C37: -121.8537417 | D37: 2013-05-10T19:30:54Z | E37: 2013-05-10T18:31:16 | F37: 88.47 | G37: 88.65 | H37: 89.93 | I37: 91.08 | J37: 91.44 | K37: 91.7 | O37: 2013-05-09T09:21:27 | P37: 76.99 | Q37: =VLOOKUP(O37,[1]Raw!$D:$K,8) -> 19.1996994 | R37: 7.974081247
A38: pCO2 | B38: 36.795565 | C38: -121.8653533 | D38: 2013-05-10T20:30:54Z | E38: 2013-05-10T19:31:16 | F38: 91.73 | G38: 91.34 | H38: 91.3 | I38: 90.69 | J38: 90.29 | K38: 90.11 | O38: 2013-05-09T09:31:27 | P38: 77.02 | Q38: =VLOOKUP(O38,[1]Raw!$D:$K,8) -> 19.19879913 | R38: 7.974607456
A39: pCO2 | B39: 36.794225 | C39: -121.8746417 | D39: 2013-05-10T21:30:54Z | E39: 2013-05-10T20:31:16 | F39: 89.53 | G39: 88.2 | H39: 87.32 | I39: 86.89 | J39: 86.69 | K39: 86.41 | O39: 2013-05-09T09:41:27 | P39: 77.09 | Q39: =VLOOKUP(O39,[1]Raw!$D:$K,8) -> 19.2003994 | R39: 7.975798124
A40: pCO2 | B40: 36.79299833 | C40: -121.8820783 | D40: 2013-05-10T22:30:55Z | E40: 2013-05-10T21:31:17 | F40: 86.77 | G40: 85.66 | H40: 85.39 | I40: 85.08 | J40: 84.5 | K40: 84.1 | O40: 2013-05-09T09:51:27 | P40: 76.99 | Q40: =VLOOKUP(O40,[1]Raw!$D:$K,8) -> 19.20219994 | R40: 7.97405615
A41: pCO2 | B41: 36.79247833 | C41: -121.8847517 | D41: 2013-05-10T23:30:54Z | E41: 2013-05-10T22:31:16 | F41: 83.64 | G41: 83.48 | H41: 82.78 | I41: 81.69 | J41: 80.83 | K41: 80.52 | O41: 2013-05-09T10:01:27 | P41: 77.02 | Q41: =VLOOKUP(O41,[1]Raw!$D:$K,8) -> 19.2038002 | R41: 7.974557253
A42: pCO2 | B42: 36.79083833 | C42: -121.8870517 | D42: 2013-05-11T00:30:54Z | E42: 2013-05-10T23:31:16 | F42: 80.57 | G42: 79.61 | H42: 78.73 | I42: 78.11 | J42: 78.13 | K42: 77.93 | O42: 2013-05-09T10:11:27 | P42: 77.02 | Q42: =VLOOKUP(O42,[1]Raw!$D:$K,8) -> 19.20350075 | R42: 7.974560259
A43: pCO2 | B43: 36.78997 | C43: -121.8917883 | D43: 2013-05-11T01:30:56Z | E43: 2013-05-11T00:31:16 | F43: 76.99 | G43: 76.84 | H43: 76.82 | I43: 76.66 | J43: 76.71 | K43: 76.78 | O43: 2013-05-09T10:21:27 | P43: 77.07 | Q43: =VLOOKUP(O43,[1]Raw!$D:$K,8) -> 19.20079994 | R43: 7.975449321
A44: pCO2 | B44: 36.78850333 | C44: -121.9007967 | D44: 2013-05-11T02:30:54Z | E44: 2013-05-11T01:31:18 | F44: 76.63 | G44: 76.62 | H44: 76.55 | I44: 76.53 | J44: 76.52 | K44: 76.58 | O44: 2013-05-09T10:31:27 | P44: 77.02 | Q44: =VLOOKUP(O44,[1]Raw!$D:$K,8) -> 19.20540047 | R44: 7.974541189
A45: pCO2 | B45: 36.786525 | C45: -121.9142533 | D45: 2013-05-11T03:30:55Z | E45: 2013-05-11T02:31:16 | F45: 76.64 | G45: 79.94 | H45: 79.37 | I45: 79.27 | J45: 78.5 | K45: 77.06 | O45: 2013-05-09T10:41:27 | P45: 77.12 | Q45: =VLOOKUP(O45,[1]Raw!$D:$K,8) -> 19.2064991 | R45: 7.976254028
A46: pCO2 | B46: 36.78325667 | C46: -121.9348367 | D46: 2013-05-11T04:30:54Z | E46: 2013-05-11T03:31:17 | F46: 76.78 | G46: 76.79 | H46: 76.83 | I46: 76.82 | J46: 76.99 | K46: 77.18 | O46: 2013-05-09T10:51:27 | P46: 76.07 | Q46: =VLOOKUP(O46,[1]Raw!$D:$K,8) -> 19.20149994 | R46: 7.95820333
A47: pCO2 | B47: 36.780255 | C47: -121.9531317 | D47: 2013-05-11T05:30:56Z | E47: 2013-05-11T04:31:16 | F47: 77.33 | G47: 77.16 | H47: 76.66 | I47: 76.83 | J47: 77.27 | K47: 77.47 | O47: 2013-05-09T11:01:27 | P47: 77.06 | Q47: =VLOOKUP(O47,[1]Raw!$D:$K,8) -> 19.20770073 | R47: 7.975207643
A48: pCO2 | B48: 36.77775667 | C48: -121.9693517 | D48: 2013-05-11T06:30:55Z | E48: 2013-05-11T05:31:17 | F48: 77.48 | G48: 77.35 | H48: 77.66 | I48: 77.81 | J48: 77.23 | K48: 77.1 | O48: 2013-05-09T11:11:27 | P48: 77.07 | Q48: =VLOOKUP(O48,[1]Raw!$D:$K,8) -> 19.20829964 | R48: 7.975374016
A49: pCO2 | B49: 36.77532333 | C49: -121.985195 | D49: 2013-05-11T07:30:54Z | E49: 2013-05-11T06:31:16 | F49: 76.92 | G49: 77.04 | H49: 77.23 | I49: 77.28 | J49: 77.64 | K49: 77.78 | O49: 2013-05-09T11:21:27 | P49: 77.07 | Q49: =VLOOKUP(O49,[1]Raw!$D:$K,8) -> 19.2003994 | R49: 7.975453343
A50: pCO2 | B50: 36.77266667 | C50: -122.002585 | D50: 2013-05-11T08:30:55Z | E50: 2013-05-11T07:31:17 | F50: 77.91 | G50: 78.09 | H50: 78.2 | I50: 78.32 | J50: 78.42 | K50: 78.39 | O50: 2013-05-09T11:31:27 | P50: 77.05 | Q50: =VLOOKUP(O50,[1]Raw!$D:$K,8) -> 19.19219971 | R50: 7.975190892
A51: pCO2 | B51: 36.80125333 | C51: -122.0037117 | D51: 2013-05-11T09:30:55Z | E51: 2013-05-11T08:31:17 | F51: 78.49 | G51: 78.6 | H51: 78.63 | I51: 78.62 | J51: 78.6 | K51: 78.49 | O51: 2013-05-09T11:41:27 | P51: 77.23 | Q51: =VLOOKUP(O51,[1]Raw!$D:$K,8) -> 19.20339966 | R51: 7.978181433
A52: pCO2 | B52: 36.76993167 | C52: -122.019775 | D52: 2013-05-11T10:30:55Z | E52: 2013-05-11T09:31:16 | F52: 78.18 | G52: 78.16 | H52: 78.37 | I52: 78.48 | J52: 78.4 | K52: 78.5 | O52: 2013-05-09T11:51:27 | P52: 77.1 | Q52: =VLOOKUP(O52,[1]Raw!$D:$K,8) -> 19.20490074 | R52: 7.975925307
A53: pCO2 | B53: 36.767335 | C53: -122.0357617 | D53: 2013-05-11T11:30:56Z | E53: 2013-05-11T10:31:16 | F53: 78.44 | G53: 78.27 | H53: 78.27 | I53: 78.02 | J53: 77.98 | K53: 78.02 | O53: 2013-05-09T12:01:27 | P53: 77.08 | Q53: =VLOOKUP(O53,[1]Raw!$D:$K,8) -> 19.20490074 | R53: 7.975580532
A54: pCO2 | B54: 36.76540333 | C54: -122.0484967 | D54: 2013-05-11T12:30:55Z | E54: 2013-05-11T11:31:17 | F54: 78.08 | G54: 78.12 | H54: 78.12 | I54: 78.08 | J54: 77.9 | K54: 77.82 | O54: 2013-05-09T12:11:27 | P54: 77.07 | Q54: =VLOOKUP(O54,[1]Raw!$D:$K,8) -> 19.19099999 | R54: 7.97554773
A55: pCO2 | B55: 36.763635 | C55: -122.058595 | D55: 2013-05-11T13:30:54Z | E55: 2013-05-11T12:31:16 | F55: 77.72 | G55: 77.73 | H55: 77.72 | I55: 77.69 | J55: 77.73 | K55: 77.69 | O55: 2013-05-09T12:21:27 | P55: 77.01 | Q55: =VLOOKUP(O55,[1]Raw!$D:$K,8) -> 19.20590019 | R55: 7.974363786
A56: pCO2 | B56: 36.76241833 | C56: -122.0670233 | D56: 2013-05-11T14:30:55Z | E56: 2013-05-11T13:31:16 | F56: 77.66 | G56: 77.66 | H56: 77.63 | I56: 77.71 | J56: 77.71 | K56: 77.75 | O56: 2013-05-09T12:31:29 | P56: 77.09 | Q56: =VLOOKUP(O56,[1]Raw!$D:$K,8) -> 19.20949936 | R56: 7.975706739
A57: pCO2 | B57: 36.760915 | C57: -122.0769233 | D57: 2013-05-11T15:30:54Z | E57: 2013-05-11T14:31:17 | F57: 77.71 | G57: 77.73 | H57: 77.67 | I57: 77.6 | J57: 77.48 | K57: 77.52 | O57: 2013-05-09T12:41:29 | P57: 77.08 | Q57: =VLOOKUP(O57,[1]Raw!$D:$K,8) -> 19.20949936 | R57: 7.975534354
A58: pCO2 | B58: 36.75912333 | C58: -122.0882167 | D58: 2013-05-11T16:30:55Z | E58: 2013-05-11T15:31:16 | F58: 77.37 | G58: 77.44 | H58: 77.36 | I58: 77.41 | J58: 77.43 | K58: 77.51 | O58: 2013-05-09T12:51:29 | P58: 77.14 | Q58: =VLOOKUP(O58,[1]Raw!$D:$K,8) -> 19.20949936 | R58: 7.976568664
A59: pCO2 | B59: 36.75796667 | C59: -122.0961333 | D59: 2013-05-11T17:30:55Z | E59: 2013-05-11T16:31:17 | F59: 77.55 | G59: 77.66 | H59: 77.74 | I59: 77.56 | J59: 77.62 | K59: 77.61 | O59: 2013-05-09T13:01:29 | P59: 77.11 | Q59: =VLOOKUP(O59,[1]Raw!$D:$K,8) -> 19.21010017 | R59: 7.976045475
A60: pCO2 | B60: 36.75669667 | C60: -122.10336 | D60: 2013-05-11T18:30:55Z | E60: 2013-05-11T17:31:16 | F60: 77.61 | G60: 77.64 | H60: 77.72 | I60: 77.68 | J60: 77.75 | K60: 77.66 | O60: 2013-05-09T13:11:29 | P60: 76.97 | Q60: =VLOOKUP(O60,[1]Raw!$D:$K,8) -> 19.20730019 | R60: 7.973660189
A61: pCO2 | B61: 36.75642 | C61: -122.1058583 | D61: 2013-05-11T19:30:55Z | E61: 2013-05-11T18:31:16 | F61: 77.62 | G61: 77.81 | H61: 77.53 | I61: 77.38 | J61: 77.28 | K61: 77.22 | O61: 2013-05-09T13:21:29 | P61: 76.64 | Q61: =VLOOKUP(O61,[1]Raw!$D:$K,8) -> 19.21299934 | R61: 7.967914365
A62: pCO2 | B62: 36.75581333 | C62: -122.1093633 | D62: 2013-05-11T20:30:54Z | E62: 2013-05-11T19:31:16 | F62: 77.12 | G62: 77.07 | H62: 77.15 | I62: 77.03 | J62: 76.97 | K62: 77.21 | O62: 2013-05-09T13:31:29 | P62: 76.53 | Q62: =VLOOKUP(O62,[1]Raw!$D:$K,8) -> 19.21310043 | R62: 7.966017142
A63: pCO2 | B63: 36.754645 | C63: -122.1164583 | D63: 2013-05-11T21:30:56Z | E63: 2013-05-11T20:31:16 | F63: 77.31 | G63: 77.34 | H63: 77.37 | I63: 77.14 | J63: 76.86 | K63: 76.77 | O63: 2013-05-09T13:41:29 | P63: 76.7 | Q63: =VLOOKUP(O63,[1]Raw!$D:$K,8) -> 19.21509934 | R63: 7.968927623
A64: pCO2 | B64: 36.75341833 | C64: -122.1248217 | D64: 2013-05-11T22:30:56Z | E64: 2013-05-11T21:31:16 | F64: 76.52 | G64: 76.21 | H64: 76.23 | I64: 76.25 | J64: 76.31 | K64: 76.22 | O64: 2013-05-09T13:51:29 | P64: 76.58 | Q64: =VLOOKUP(O64,[1]Raw!$D:$K,8) -> 19.21590042 | R64: 7.966851023
A65: pCO2 | B65: 36.75211333 | C65: -122.1330183 | D65: 2013-05-11T23:30:55Z | E65: 2013-05-11T22:31:17 | F65: 76.18 | G65: 75.91 | H65: 75.67 | I65: 75.61 | J65: 75.42 | K65: 75.15 | O65: 2013-05-09T14:01:29 | P65: 76.65 | Q65: =VLOOKUP(O65,[1]Raw!$D:$K,8) -> 19.21769905 | R65: 7.968039677
A66: pCO2 | B66: 36.751065 | C66: -122.14021 | D66: 2013-05-12T00:30:51Z | E66: 2013-05-11T23:31:16 | F66: 75.17 | G66: 75.51 | H66: 75.78 | I66: 75.91 | J66: 76.12 | K66: 76.23 | O66: 2013-05-09T14:11:29 | P66: 76.6 | Q66: =VLOOKUP(O66,[1]Raw!$D:$K,8) -> 19.21879959 | R66: 7.967166757
A67: pCO2 | B67: 36.74957 | C67: -122.14915 | D67: 2013-05-12T01:30:51Z | E67: 2013-05-12T00:31:16 | F67: 76.03 | G67: 75.8 | H67: 75.86 | I67: 75.52 | J67: 75.53 | K67: 75.53 | O67: 2013-05-09T14:21:29 | P67: 76.36 | Q67: =VLOOKUP(O67,[1]Raw!$D:$K,8) -> 19.21710014 | R67: 7.963046643
A68: pCO2 | B68: 36.74732167 | C68: -122.1635733 | D68: 2013-05-12T02:30:53Z | E68: 2013-05-12T01:31:16 | F68: 75.54 | G68: 75.82 | H68: 76.13 | I68: 76.25 | J68: 76.06 | K68: 75.95 | O68: 2013-05-09T14:31:27 | P68: 76.5 | Q68: =VLOOKUP(O68,[1]Raw!$D:$K,8) -> 19.2201004 | R68: 7.965429947
A69: pCO2 | B69: 36.744485 | C69: -122.181145 | D69: 2013-05-12T03:30:51Z | E69: 2013-05-12T02:31:18 | F69: 75.83 | G69: 75.79 | H69: 75.83 | I69: 75.78 | J69: 75.35 | K69: 75.02 | O69: 2013-05-09T14:41:27 | P69: 76.64 | Q69: =VLOOKUP(O69,[1]Raw!$D:$K,8) -> 19.21870041 | R69: 7.967857268
A70: pCO2 | B70: 36.74187333 | C70: -122.198285 | D70: 2013-05-12T04:30:52Z | E70: 2013-05-12T03:31:16 | F70: 74.91 | G70: 74.74 | H70: 74.83 | I70: 74.71 | J70: 75.16 | K70: 75.31 | O70: 2013-05-09T14:51:27 | P70: 76.55 | Q70: =VLOOKUP(O70,[1]Raw!$D:$K,8) -> 19.22520065 | R70: 7.96624079
A71: pCO2 | B71: 36.738645 | C71: -122.2187833 | D71: 2013-05-12T05:30:52Z | E71: 2013-05-12T04:31:16 | F71: 75.44 | G71: 75.2 | H71: 75.31 | I71: 75.38 | J71: 75.31 | K71: 75.6 | O71: 2013-05-09T15:01:27 | P71: 76.54 | Q71: =VLOOKUP(O71,[1]Raw!$D:$K,8) -> 19.22109985 | R71: 7.966109458
A72: pCO2 | B72: 36.73543833 | C72: -122.2396117 | D72: 2013-05-12T06:30:51Z | E72: 2013-05-12T05:31:16 | F72: 75.58 | G72: 75.56 | H72: 75.08 | I72: 75.13 | J72: 75.26 | K72: 75.32 | O72: 2013-05-09T15:11:27 | P72: 76.51 | Q72: =VLOOKUP(O72,[1]Raw!$D:$K,8) -> 19.21699905 | R72: 7.965633361
A73: pCO2 | B73: 36.73166 | C73: -122.26356 | D73: 2013-05-12T07:30:52Z | E73: 2013-05-12T06:31:16 | F73: 75.28 | G73: 75.37 | H73: 75.43 | I73: 75.5 | J73: 75.53 | K73: 75.5 | O73: 2013-05-09T15:21:27 | P73: 76.47 | Q73: =VLOOKUP(O73,[1]Raw!$D:$K,8) -> 19.21899986 | R73: 7.964923821
A74: pCO2 | B74: 36.72795833 | C74: -122.28707 | D74: 2013-05-12T08:30:52Z | E74: 2013-05-12T07:31:16 | F74: 75.51 | G74: 75.53 | H74: 75.5 | I74: 75.54 | J74: 75.2 | K74: 75.07 | O74: 2013-05-09T15:31:29 | P74: 76.47 | Q74: =VLOOKUP(O74,[1]Raw!$D:$K,8) -> 19.21559906 | R74: 7.964957846
A75: pCO2 | B75: 36.724685 | C75: -122.307555 | D75: 2013-05-12T09:30:52Z | E75: 2013-05-12T08:31:17 | F75: 75.16 | G75: 75.39 | H75: 75.62 | I75: 75.4 | J75: 74.72 | K75: 74.89 | O75: 2013-05-09T15:41:29 | P75: 76.66 | Q75: =VLOOKUP(O75,[1]Raw!$D:$K,8) -> 19.2166996 | R75: 7.968222068
A76: pCO2 | B76: 36.72170333 | C76: -122.3265433 | D76: 2013-05-12T10:30:53Z | E76: 2013-05-12T09:31:17 | F76: 75.12 | G76: 75.47 | H76: 75.54 | I76: 75.74 | J76: 75.89 | K76: 75.99 | O76: 2013-05-09T15:51:29 | P76: 76.56 | Q76: =VLOOKUP(O76,[1]Raw!$D:$K,8) -> 19.22120094 | R76: 7.966453202
A77: pCO2 | B77: 36.71845167 | C77: -122.3473217 | D77: 2013-05-12T11:30:52Z | E77: 2013-05-12T10:31:17 | F77: 76.01 | G77: 75.86 | H77: 75.61 | I77: 75.73 | J77: 75.54 | K77: 75.54 | O77: 2013-05-09T16:01:29 | P77: 76.54 | Q77: =VLOOKUP(O77,[1]Raw!$D:$K,8) -> 19.2159996 | R77: 7.966160506
A78: pCO2 | B78: 36.71193167 | C78: -122.3607917 | D78: 2013-05-12T12:30:52Z | E78: 2013-05-12T11:31:16 | F78: 75.4 | G78: 75.27 | H78: 75.33 | I78: 75.49 | J78: 75.68 | K78: 75.78 | O78: 2013-05-09T16:11:29 | P78: 76.53 | Q78: =VLOOKUP(O78,[1]Raw!$D:$K,8) -> 19.2159996 | R78: 7.965988125
A79: pCO2 | B79: 36.70389167 | C79: -122.3700233 | D79: 2013-05-12T13:30:51Z | E79: 2013-05-12T12:31:16 | F79: 75.93 | G79: 76.01 | H79: 76.1 | I79: 76.18 | J79: 76.22 | K79: 76.22 | O79: 2013-05-09T16:21:29 | P79: 76.52 | Q79: =VLOOKUP(O79,[1]Raw!$D:$K,8) -> 19.2201004 | R79: 7.965774704
A80: pCO2 | B80: 36.69896833 | C80: -122.375675 | D80: 2013-05-12T14:30:51Z | E80: 2013-05-12T13:31:17 | F80: 76.12 | G80: 76.1 | H80: 76.09 | I80: 76.13 | J80: 76.15 | K80: 76.29 | O80: 2013-05-09T16:31:29 | P80: 76.53 | Q80: =VLOOKUP(O80,[1]Raw!$D:$K,8) -> 19.21549988 | R80: 7.965993126
A81: pCO2 | B81: 36.69876167 | C81: -122.37815 | D81: 2013-05-12T15:30:52Z | E81: 2013-05-12T14:31:16 | F81: 76.51 | G81: 76.59 | H81: 76.71 | I81: 76.79 | J81: 77.01 | K81: 77.19 | O81: 2013-05-09T16:41:29 | P81: 76.67 | Q81: =VLOOKUP(O81,[1]Raw!$D:$K,8) -> 19.2173996 | R81: 7.968387437
A82: pCO2 | B82: 36.71423667 | C82: -122.3584133 | D82: 2013-05-12T16:30:52Z | E82: 2013-05-12T15:31:16 | F82: 77.33 | G82: 77.1 | H82: 76.96 | I82: 76.85 | J82: 76.82 | K82: 76.77 | O82: 2013-05-09T16:51:29 | P82: 76.51 | Q82: =VLOOKUP(O82,[1]Raw!$D:$K,8) -> 19.21960068 | R82: 7.965607326
A83: pCO2 | B83: 36.72121833 | C83: -122.330415 | D83: 2013-05-12T17:30:52Z | E83: 2013-05-12T16:31:16 | F83: 76.54 | G83: 76.49 | H83: 76.4 | I83: 76.45 | J83: 76.51 | K83: 76.52 | O83: 2013-05-09T17:01:29 | P83: 76.52 | Q83: =VLOOKUP(O83,[1]Raw!$D:$K,8) -> 19.21299934 | R83: 7.965845771
A84: pCO2 | B84: 36.72601667 | C84: -122.2989783 | D84: 2013-05-12T18:30:52Z | E84: 2013-05-12T17:31:16 | F84: 76.78 | G84: 76.84 | H84: 76.89 | I84: 76.96 | J84: 76.83 | K84: 76.91 | O84: 2013-05-09T17:11:29 | P84: 76.64 | Q84: =VLOOKUP(O84,[1]Raw!$D:$K,8) -> 19.21610069 | R84: 7.967883304
A85: pCO2 | B85: 36.73035167 | C85: -122.2720583 | D85: 2013-05-12T19:30:51Z | E85: 2013-05-12T18:31:17 | F85: 76.87 | G85: 76.78 | H85: 76.69 | I85: 76.57 | J85: 76.36 | K85: 76.55 | O85: 2013-05-09T17:21:29 | P85: 76.59 | Q85: =VLOOKUP(O85,[1]Raw!$D:$K,8) -> 19.21990013 | R85: 7.96698336
A86: pCO2 | B86: 36.73350833 | C86: -122.2520133 | D86: 2013-05-12T20:30:53Z | E86: 2013-05-12T19:31:16 | F86: 76.8 | G86: 76.82 | H86: 76.76 | I86: 76.79 | J86: 76.71 | K86: 76.51 | O86: 2013-05-09T17:31:27 | P86: 76.6 | Q86: =VLOOKUP(O86,[1]Raw!$D:$K,8) -> 19.2098999 | R86: 7.967255868
A87: pCO2 | B87: 36.73648667 | C87: -122.2328567 | D87: 2013-05-12T21:30:51Z | E87: 2013-05-12T20:31:17 | F87: 76.61 | G87: 76.44 | H87: 75.9 | I87: 75.96 | J87: 75.64 | K87: 75.27 | O87: 2013-05-09T17:41:27 | P87: 76.62 | Q87: =VLOOKUP(O87,[1]Raw!$D:$K,8) -> 19.20849991 | R87: 7.967614657
A88: pCO2 | B88: 36.7389 | C88: -122.2166517 | D88: 2013-05-12T22:30:52Z | E88: 2013-05-12T21:31:16 | F88: 74.98 | G88: 75.12 | H88: 75.02 | I88: 75.41 | J88: 75.11 | K88: 75.42 | O88: 2013-05-09T17:51:27 | P88: 76.43 | Q88: =VLOOKUP(O88,[1]Raw!$D:$K,8) -> 19.21229935 | R88: 7.964301327
A89: pCO2 | B89: 36.741035 | C89: -122.20295 | D89: 2013-05-12T23:30:52Z | E89: 2013-05-12T22:31:16 | F89: 75.53 | G89: 75.63 | H89: 75.59 | I89: 75.66 | J89: 75.67 | K89: 75.71 | O89: 2013-05-09T18:01:27 | P89: 76.67 | Q89: =VLOOKUP(O89,[1]Raw!$D:$K,8) -> 19.20929909 | R89: 7.968468579
A90: pCO2 | B90: 36.743045 | C90: -122.1915367 | D90: 2013-05-13T00:30:56Z | E90: 2013-05-12T23:31:16 | F90: 75.71 | G90: 75.61 | H90: 75.59 | I90: 75.49 | J90: 75.37 | K90: 75.26 | O90: 2013-05-09T18:11:27 | P90: 76.59 | Q90: =VLOOKUP(O90,[1]Raw!$D:$K,8) -> 19.20739937 | R90: 7.96710852
A91: pCO2 | B91: 36.74499667 | C91: -122.1787483 | D91: 2013-05-13T01:30:57Z | E91: 2013-05-13T00:31:16 | F91: 75.12 | G91: 74.94 | H91: 74.86 | I91: 74.77 | J91: 74.7 | K91: 74.7 | O91: 2013-05-09T18:21:27 | P91: 76.57 | Q91: =VLOOKUP(O91,[1]Raw!$D:$K,8) -> 19.20730019 | R91: 7.966764741
A92: pCO2 | B92: 36.747305 | C92: -122.1639167 | D92: 2013-05-13T02:30:56Z | E92: 2013-05-13T01:31:16 | F92: 74.59 | G92: 74.39 | H92: 74.31 | I92: 74.08 | J92: 74.1 | K92: 74.12 | O92: 2013-05-09T18:31:27 | P92: 76.48 | Q92: =VLOOKUP(O92,[1]Raw!$D:$K,8) -> 19.20829964 | R92: 7.965203264
A93: pCO2 | B93: 36.74971167 | C93: -122.1481567 | D93: 2013-05-13T03:30:57Z | E93: 2013-05-13T02:31:16 | F93: 74.19 | G93: 74.32 | H93: 74.38 | I93: 74.22 | J93: 74.36 | K93: 74.14 | O93: 2013-05-09T18:41:27 | P93: 76.62 | Q93: =VLOOKUP(O93,[1]Raw!$D:$K,8) -> 19.20809936 | R93: 7.967618668
A94: pCO2 | B94: 36.75247333 | C94: -122.1309033 | D94: 2013-05-13T04:30:57Z | E94: 2013-05-13T03:31:17 | F94: 73.82 | G94: 73.66 | H94: 73.6 | I94: 73.57 | J94: 73.54 | K94: 73.41 | O94: 2013-05-09T18:51:27 | P94: 76.54 | Q94: =VLOOKUP(O94,[1]Raw!$D:$K,8) -> 19.20680046 | R94: 7.966252584
A95: pCO2 | B95: 36.75531 | C95: -122.1128517 | D95: 2013-05-13T05:30:56Z | E95: 2013-05-13T04:31:17 | F95: 73.49 | G95: 73.53 | H95: 73.88 | I95: 74.02 | J95: 74.05 | K95: 75 | O95: 2013-05-09T19:01:27 | P95: 76.49 | Q95: =VLOOKUP(O95,[1]Raw!$D:$K,8) -> 19.20809936 | R95: 7.965377654
A96: pCO2 | B96: 36.75803333 | C96: -122.0949033 | D96: 2013-05-13T06:30:57Z | E96: 2013-05-13T05:31:16 | F96: 76.04 | G96: 77.05 | H96: 77.69 | I96: 77.92 | J96: 78.47 | K96: 78.76 | O96: 2013-05-09T19:11:27 | P96: 76.47 | Q96: =VLOOKUP(O96,[1]Raw!$D:$K,8) -> 19.21489906 | R96: 7.964964849
A97: pCO2 | B97: 36.760635 | C97: -122.0782683 | D97: 2013-05-13T07:30:57Z | E97: 2013-05-13T06:31:16 | F97: 78.89 | G97: 78.75 | H97: 79.15 | I97: 79.62 | J97: 79.85 | K97: 80.15 | O97: 2013-05-09T19:21:27 | P97: 76.63 | Q97: =VLOOKUP(O97,[1]Raw!$D:$K,8) -> 19.20730019 | R97: 7.967799058
A98: pCO2 | B98: 36.763085 | C98: -122.0631867 | D98: 2013-05-13T08:30:55Z | E98: 2013-05-13T07:31:18 | F98: 80.11 | G98: 81.86 | H98: 82.82 | I98: 83.01 | J98: 82.93 | K98: 83.63 | O98: 2013-05-09T19:31:27 | P98: 76.64 | Q98: =VLOOKUP(O98,[1]Raw!$D:$K,8) -> 19.2091999 | R98: 7.967952417
A99: pCO2 | B99: 36.76582333 | C99: -122.045685 | D99: 2013-05-13T09:30:56Z | E99: 2013-05-13T08:31:16 | F99: 83.59 | G99: 83.66 | H99: 83.76 | I99: 82.37 | J99: 82.32 | K99: 83.04 | O99: 2013-05-09T19:41:27 | P99: 76.66 | Q99: =VLOOKUP(O99,[1]Raw!$D:$K,8) -> 19.20759964 | R99: 7.968313217
A100: pCO2 | B100: 36.76905833 | C100: -122.02468 | D100: 2013-05-13T10:30:55Z | E100: 2013-05-13T09:31:16 | F100: 82.74 | G100: 81.52 | H100: 80.31 | I100: 79.55 | J100: 78.4 | K100: 77.83 | O100: 2013-05-09T19:51:27 | P100: 76.57 | Q100: =VLOOKUP(O100,[1]Raw!$D:$K,8) -> 19.2071991 | R100: 7.966765753
A101: pCO2 | B101: 36.77272333 | C101: -122.0016917 | D101: 2013-05-13T11:30:57Z | E101: 2013-05-13T10:31:16 | F101: 77.35 | G101: 76.92 | H101: 76.9 | I101: 76.83 | J101: 76.78 | K101: 76.75 | O101: 2013-05-09T20:01:27 | P101: 76.65 | Q101: =VLOOKUP(O101,[1]Raw!$D:$K,8) -> 19.20929909 | R101: 7.968123809
A102: pCO2 | B102: 36.77664667 | C102: -121.9766517 | D102: 2013-05-13T12:30:56Z | E102: 2013-05-13T11:31:16 | F102: 76.88 | G102: 77.14 | H102: 77.4 | I102: 77.75 | J102: 77.85 | K102: 77.71 | O102: 2013-05-09T20:11:27 | P102: 76.62 | Q102: =VLOOKUP(O102,[1]Raw!$D:$K,8) -> 19.20770073 | R102: 7.967622661
A103: pCO2 | B103: 36.77997 | C103: -121.9549533 | D103: 2013-05-13T13:30:56Z | E103: 2013-05-13T12:31:16 | F103: 77.34 | G103: 76.58 | H103: 76.57 | I103: 76.7 | J103: 76.94 | K103: 76.97 | O103: 2013-05-09T20:21:27 | P103: 76.52 | Q103: =VLOOKUP(O103,[1]Raw!$D:$K,8) -> 19.21290016 | R103: 7.965846763
A104: pCO2 | B104: 36.78304167 | C104: -121.935325 | D104: 2013-05-13T14:30:56Z | E104: 2013-05-13T13:31:16 | F104: 76.83 | G104: 76.7 | H104: 76.78 | I104: 76.79 | J104: 77.13 | K104: 79.16 | O104: 2013-05-09T20:31:29 | P104: 76.51 | Q104: =VLOOKUP(O104,[1]Raw!$D:$K,8) -> 19.20590019 | R104: 7.965744435
A105: pCO2 | B105: 36.78579833 | C105: -121.9179383 | D105: 2013-05-13T15:30:56Z | E105: 2013-05-13T14:31:17 | F105: 79.08 | G105: 78.81 | H105: 78.68 | I105: 78.47 | J105: 79.43 | K105: 79.49 | O105: 2013-05-09T20:41:29 | P105: 77.28 | Q105: =VLOOKUP(O105,[1]Raw!$D:$K,8) -> 19.20490074 | R105: 7.979028284
A106: pCO2 | B106: 36.78840833 | C106: -121.90076 | D106: 2013-05-13T16:30:57Z | E106: 2013-05-13T15:31:16 | F106: 79.23 | G106: 79.4 | H106: 80.04 | I106: 80.55 | J106: 80.78 | K106: 80.84 | O106: 2013-05-09T20:51:29 | P106: 76.64 | Q106: =VLOOKUP(O106,[1]Raw!$D:$K,8) -> 19.20509911 | R106: 7.967993489
A107: pCO2 | B107: 36.79096167 | C107: -121.88484 | D107: 2013-05-13T17:30:56Z | E107: 2013-05-13T16:31:16 | F107: 80.77 | G107: 81.66 | H107: 82.78 | I107: 83.59 | J107: 83.3 | K107: 82.94 | O107: 2013-05-09T21:01:29 | P107: 76.61 | Q107: =VLOOKUP(O107,[1]Raw!$D:$K,8) -> 19.20599937 | R107: 7.967467312
A108: pCO2 | B108: 36.78937333 | C108: -121.874795 | D108: 2013-05-13T18:30:57Z | E108: 2013-05-13T17:31:16 | F108: 82.89 | G108: 84.15 | H108: 82.41 | I108: 83.82 | J108: 84.55 | K108: 84.56 | O108: 2013-05-09T21:11:29 | P108: 76.58 | Q108: =VLOOKUP(O108,[1]Raw!$D:$K,8) -> 19.20639992 | R108: 7.96694614
A109: pCO2 | B109: 36.792985 | C109: -121.8615983 | D109: 2013-05-13T19:30:57Z | E109: 2013-05-13T18:31:16 | F109: 86.24 | G109: 86.88 | H109: 87.25 | I109: 87.78 | J109: 90 | K109: 90.75 | O109: 2013-05-09T21:21:29 | P109: 76.59 | Q109: =VLOOKUP(O109,[1]Raw!$D:$K,8) -> 19.20700073 | R109: 7.967112511
A110: pCO2 | B110: 36.79685833 | C110: -121.8472767 | D110: 2013-05-13T20:30:56Z | E110: 2013-05-13T19:31:17 | F110: 91.11 | G110: 91.05 | H110: 90.95 | I110: 90.95 | J110: 90.87 | K110: 92.03 | O110: 2013-05-09T21:31:27 | P110: 76.54 | Q110: =VLOOKUP(O110,[1]Raw!$D:$K,8) -> 19.20709992 | R110: 7.966249587
A111: pCO2 | B111: 36.79738667 | C111: -121.8549667 | D111: 2013-05-13T21:30:56Z | E111: 2013-05-13T20:31:16 | F111: 92.93 | G111: 93.46 | H111: 93.37 | I111: 92.83 | J111: 90.78 | K111: 87.87 | O111: 2013-05-09T21:41:27 | P111: 76.68 | Q111: =VLOOKUP(O111,[1]Raw!$D:$K,8) -> 19.21489906 | R111: 7.968584866
A112: pCO2 | B112: 36.794715 | C112: -121.8711467 | D112: 2013-05-13T22:30:56Z | E112: 2013-05-13T21:31:16 | F112: 86.64 | G112: 85.73 | H112: 82.65 | I112: 82.46 | J112: 81.79 | K112: 81.07 | O112: 2013-05-09T21:51:27 | P112: 76.65 | Q112: =VLOOKUP(O112,[1]Raw!$D:$K,8) -> 19.1989994 | R112: 7.968226975
A113: pCO2 | B113: 36.792005 | C113: -121.887985 | D113: 2013-05-13T23:30:56Z | E113: 2013-05-13T22:31:17 | F113: 83.22 | G113: 85.46 | H113: 85.31 | I113: 84.87 | J113: 84.39 | K113: 83.58 | O113: 2013-05-09T22:01:27 | P113: 76.63 | Q113: =VLOOKUP(O113,[1]Raw!$D:$K,8) -> 19.20129967 | R113: 7.967859154
A114: pCO2 | B114: 36.78962 | C114: -121.9030133 | D114: 2013-05-14T00:30:57Z | E114: 2013-05-13T23:31:16 | F114: 81.85 | G114: 80.3 | H114: 79.76 | I114: 80.03 | J114: 79.41 | K114: 79.57 | O114: 2013-05-09T22:11:27 | P114: 76.6 | Q114: =VLOOKUP(O114,[1]Raw!$D:$K,8) -> 19.19910049 | R114: 7.967364007
A115: pCO2 | B115: 36.78773833 | C115: -121.9147433 | D115: 2013-05-14T01:30:56Z | E115: 2013-05-14T00:31:17 | F115: 79.72 | G115: 79.53 | H115: 79.87 | I115: 80.19 | J115: 80.2 | K115: 80.08 | O115: 2013-05-09T22:21:27 | P115: 76.56 | Q115: =VLOOKUP(O115,[1]Raw!$D:$K,8) -> 19.19989967 | R115: 7.966666442
A116: pCO2 | B116: 36.78591 | C116: -121.9262117 | D116: 2013-05-14T02:30:57Z | E116: 2013-05-14T01:31:16 | F116: 79.81 | G116: 79.64 | H116: 79.72 | I116: 79.74 | J116: 80.08 | K116: 80.03 | O116: 2013-05-09T22:31:27 | P116: 76.61 | Q116: =VLOOKUP(O116,[1]Raw!$D:$K,8) -> 19.19809914 | R116: 7.967546426
A117: pCO2 | B117: 36.78344333 | C117: -121.94136 | D117: 2013-05-14T03:30:57Z | E117: 2013-05-14T02:31:16 | F117: 79.91 | G117: 79.9 | H117: 79.96 | I117: 79.9 | J117: 80.03 | K117: 80.15 | O117: 2013-05-09T22:41:27 | P117: 76.76 | Q117: =VLOOKUP(O117,[1]Raw!$D:$K,8) -> 19.19650078 | R117: 7.970148322
A118: pCO2 | B118: 36.78045833 | C118: -121.9605 | D118: 2013-05-14T04:30:56Z | E118: 2013-05-14T03:31:18 | F118: 80.23 | G118: 80.29 | H118: 80.24 | I118: 80.22 | J118: 80.11 | K118: 80.08 | O118: 2013-05-09T22:51:27 | P118: 76.74 | Q118: =VLOOKUP(O118,[1]Raw!$D:$K,8) -> 19.1977005 | R118: 7.969791513
A119: pCO2 | B119: 36.77693167 | C119: -121.9825283 | D119: 2013-05-14T05:30:57Z | E119: 2013-05-14T04:31:16 | F119: 80.05 | G119: 80.93 | H119: 81.57 | I119: 82.14 | J119: 82.03 | K119: 82.77 | O119: 2013-05-09T23:01:27 | P119: 76.63 | Q119: =VLOOKUP(O119,[1]Raw!$D:$K,8) -> 19.20149994 | R119: 7.967857149
A120: pCO2 | B120: 36.77358 | C120: -122.0036633 | D120: 2013-05-14T06:30:57Z | E120: 2013-05-14T05:31:16 | F120: 82.73 | G120: 82.22 | H120: 81.79 | I120: 81.75 | J120: 81.86 | K120: 81.95 | O120: 2013-05-09T23:11:27 | P120: 76.49 | Q120: =VLOOKUP(O120,[1]Raw!$D:$K,8) -> 19.19869995 | R120: 7.965471714
A121: pCO2 | B121: 36.76975333 | C121: -122.0264783 | D121: 2013-05-14T07:30:56Z | E121: 2013-05-14T06:31:17 | F121: 81.79 | G121: 81.43 | H121: 81.44 | I121: 80.86 | J121: 80.36 | K121: 80.19 | O121: 2013-05-09T23:21:27 | P121: 76.62 | Q121: =VLOOKUP(O121,[1]Raw!$D:$K,8) -> 19.1935997 | R121: 7.967763881
A122: pCO2 | B122: 36.76593333 | C122: -122.0509967 | D122: 2013-05-14T08:30:56Z | E122: 2013-05-14T07:31:16 | F122: 79.3 | G122: 78.36 | H122: 77 | I122: 77.16 | J122: 77.63 | K122: 78.08 | O122: 2013-05-09T23:31:27 | P122: 76.59 | Q122: =VLOOKUP(O122,[1]Raw!$D:$K,8) -> 19.19319916 | R122: 7.967250709
A123: pCO2 | B123: 36.76245667 | C123: -122.072165 | D123: 2013-05-14T09:30:56Z | E123: 2013-05-14T08:31:16 | F123: 77.95 | G123: 78.35 | H123: 78.56 | I123: 78.69 | J123: 78.62 | K123: 78.93 | O123: 2013-05-09T23:41:27 | P123: 76.75 | Q123: =VLOOKUP(O123,[1]Raw!$D:$K,8) -> 19.19580078 | R123: 7.969982945
A124: pCO2 | B124: 36.759685 | C124: -122.089845 | D124: 2013-05-14T10:30:57Z | E124: 2013-05-14T09:31:16 | F124: 78.9 | G124: 78.78 | H124: 78.36 | I124: 78.39 | J124: 77.89 | K124: 77.8 | O124: 2013-05-09T23:51:27 | P124: 76.76 | Q124: =VLOOKUP(O124,[1]Raw!$D:$K,8) -> 19.19639969 | R124: 7.970149335
A125: pCO2 | B125: 36.757 | C125: -122.1067717 | D125: 2013-05-14T11:30:56Z | E125: 2013-05-14T10:31:16 | F125: 77.3 | G125: 76.92 | H125: 76.81 | I125: 76.17 | J125: 75.86 | K125: 73.58 | O125: 2013-05-10T00:01:27 | P125: 76.72 | Q125: =VLOOKUP(O125,[1]Raw!$D:$K,8) -> 19.19750023 | R125: 7.969448736
A126: pCO2 | B126: 36.75443 | C126: -122.1228667 | D126: 2013-05-14T12:30:57Z | E126: 2013-05-14T11:31:16 | F126: 73.28 | G126: 73.16 | H126: 73 | I126: 73.01 | J126: 73.14 | K126: 73.21 | O126: 2013-05-10T00:11:27 | P126: 76.54 | Q126: =VLOOKUP(O126,[1]Raw!$D:$K,8) -> 19.19610023 | R126: 7.966359695
A127: pCO2 | B127: 36.75261833 | C127: -122.1343883 | D127: 2013-05-14T13:30:57Z | E127: 2013-05-14T12:31:16 | F127: 73.22 | G127: 73.39 | H127: 73.52 | I127: 73.63 | J127: 73.77 | K127: 73.8 | O127: 2013-05-10T00:21:27 | P127: 76.66 | Q127: =VLOOKUP(O127,[1]Raw!$D:$K,8) -> 19.20350075 | R127: 7.968354275
A128: pCO2 | B128: 36.75086833 | C128: -122.1445333 | D128: 2013-05-14T14:30:58Z | E128: 2013-05-14T13:31:17 | F128: 73.8 | G128: 73.83 | H128: 73.88 | I128: 74 | J128: 73.97 | K128: 73.99 | O128: 2013-05-10T00:31:28 | P128: 76.73 | Q128: =VLOOKUP(O128,[1]Raw!$D:$K,8) -> 19.19939995 | R128: 7.96960209
A129: pCO2 | B129: 36.749645 | C129: -122.1525033 | D129: 2013-05-14T15:30:57Z | E129: 2013-05-14T14:31:18 | F129: 73.82 | G129: 73.7 | H129: 73.68 | I129: 73.71 | J129: 73.83 | K129: 73.82 | O129: 2013-05-10T00:41:28 | P129: 76.84 | Q129: =VLOOKUP(O129,[1]Raw!$D:$K,8) -> 19.19490051 | R129: 7.97154351
A130: pCO2 | B130: 36.74863167 | C130: -122.158235 | D130: 2013-05-14T16:30:57Z | E130: 2013-05-14T15:31:16 | F130: 73.87 | G130: 73.95 | H130: 73.74 | I130: 73.97 | J130: 73.68 | K130: 73.83 | O130: 2013-05-10T00:51:28 | P130: 76.71 | Q130: =VLOOKUP(O130,[1]Raw!$D:$K,8) -> 19.1942997 | R130: 7.969308415
A131: pCO2 | B131: 36.74797333 | C131: -122.163165 | D131: 2013-05-14T17:30:57Z | E131: 2013-05-14T16:31:16 | F131: 74.13 | G131: 74.01 | H131: 73.93 | I131: 73.9 | J131: 73.92 | K131: 73.91 | O131: 2013-05-10T01:01:28 | P131: 76.74 | Q131: =VLOOKUP(O131,[1]Raw!$D:$K,8) -> 19.19269943 | R131: 7.969841635
A132: pCO2 | B132: 36.74682667 | C132: -122.1693683 | D132: 2013-05-14T18:30:59Z | E132: 2013-05-14T17:31:16 | F132: 73.87 | G132: 73.77 | H132: 73.79 | I132: 73.64 | J132: 73.54 | K132: 73.54 | O132: 2013-05-10T01:11:28 | P132: 76.63 | Q132: =VLOOKUP(O132,[1]Raw!$D:$K,8) -> 19.19219971 | R132: 7.967950297
A133: pCO2 | B133: 36.745815 | C133: -122.176425 | D133: 2013-05-14T19:30:57Z | E133: 2013-05-14T18:31:18 | F133: 73.48 | G133: 73.52 | H133: 73.7 | I133: 73.77 | J133: 73.81 | K133: 73.66 | O133: 2013-05-10T01:21:28 | P133: 76.69 | Q133: =VLOOKUP(O133,[1]Raw!$D:$K,8) -> 19.19169998 | R133: 7.968989675
A134: pCO2 | B134: 36.74464833 | C134: -122.1835217 | D134: 2013-05-14T20:30:57Z | E134: 2013-05-14T19:31:16 | F134: 73.68 | G134: 73.73 | H134: 73.64 | I134: 73.61 | J134: 73.55 | K134: 73.62 | O134: 2013-05-10T01:31:27 | P134: 76.64 | Q134: =VLOOKUP(O134,[1]Raw!$D:$K,8) -> 19.19210053 | R134: 7.968123686
A135: pCO2 | B135: 36.74388833 | C135: -122.188375 | D135: 2013-05-14T21:30:57Z | E135: 2013-05-14T20:31:16 | F135: 73.7 | G135: 73.77 | H135: 73.9 | I135: 73.91 | J135: 73.97 | K135: 73.95 | O135: 2013-05-10T01:41:27 | P135: 76.75 | Q135: =VLOOKUP(O135,[1]Raw!$D:$K,8) -> 19.19169998 | R135: 7.970024047
A136: pCO2 | B136: 36.74309333 | C136: -122.193145 | D136: 2013-05-14T22:30:58Z | E136: 2013-05-14T21:31:16 | F136: 73.86 | G136: 74.15 | H136: 74.88 | I136: 75.02 | J136: 75.16 | K136: 75.27 | O136: 2013-05-10T01:51:27 | P136: 76.78 | Q136: =VLOOKUP(O136,[1]Raw!$D:$K,8) -> 19.19519997 | R136: 7.970506147
A137: pCO2 | B137: 36.74182333 | C137: -122.200435 | D137: 2013-05-14T23:30:58Z | E137: 2013-05-14T22:31:16 | F137: 75.29 | G137: 75.2 | H137: 75.14 | I137: 75.39 | J137: 75.3 | K137: 75.4 | O137: 2013-05-10T02:01:27 | P137: 76.78 | Q137: =VLOOKUP(O137,[1]Raw!$D:$K,8) -> 19.19529915 | R137: 7.970505153
A138: pCO2 | B138: 36.74138 | C138: -122.2051883 | D138: 2013-05-15T00:30:57Z | E138: 2013-05-14T23:31:16 | F138: 75.45 | G138: 75.44 | H138: 75.56 | I138: 75.53 | J138: 75.67 | K138: 75.77 | O138: 2013-05-10T02:11:27 | P138: 76.8 | Q138: =VLOOKUP(O138,[1]Raw!$D:$K,8) -> 19.1935997 | R138: 7.970866978
A139: pCO2 | B139: 36.73940167 | C139: -122.2164033 | D139: 2013-05-15T01:30:57Z | E139: 2013-05-15T00:31:16 | F139: 75.78 | G139: 75.86 | H139: 76.08 | I139: 76.14 | J139: 75.99 | K139: 75.94 | O139: 2013-05-10T02:21:27 | P139: 76.67 | Q139: =VLOOKUP(O139,[1]Raw!$D:$K,8) -> 19.18869972 | R139: 7.968674942
A140: pCO2 | B140: 36.73730167 | C140: -122.229495 | D140: 2013-05-15T02:30:58Z | E140: 2013-05-15T01:31:16 | F140: 75.98 | G140: 75.86 | H140: 75.79 | I140: 75.64 | J140: 75.82 | K140: 75.69 | O140: 2013-05-10T02:31:27 | P140: 76.71 | Q140: =VLOOKUP(O140,[1]Raw!$D:$K,8) -> 19.18449974 | R140: 7.96940662
A141: pCO2 | B141: 36.73493167 | C141: -122.244075 | D141: 2013-05-15T03:30:57Z | E141: 2013-05-15T02:31:17 | F141: 75.21 | G141: 75.58 | H141: 76.11 | I141: 76.4 | J141: 76.69 | K141: 76.79 | O141: 2013-05-10T02:41:27 | P141: 76.81 | Q141: =VLOOKUP(O141,[1]Raw!$D:$K,8) -> 19.18810081 | R141: 7.971094508
A142: pCO2 | B142: 36.73247667 | C142: -122.260105 | D142: 2013-05-15T04:30:58Z | E142: 2013-05-15T03:31:16 | F142: 76.82 | G142: 76.84 | H142: 76.85 | I142: 76.45 | J142: 76.09 | K142: 76.66 | O142: 2013-05-10T02:51:27 | P142: 76.81 | Q142: =VLOOKUP(O142,[1]Raw!$D:$K,8) -> 19.18740082 | R142: 7.971101527
A143: pCO2 | B143: 36.72997 | C143: -122.2762217 | D143: 2013-05-15T05:30:57Z | E143: 2013-05-15T04:31:16 | F143: 76.92 | G143: 77 | H143: 77.2 | I143: 77.43 | J143: 77.66 | K143: 77.73 | O143: 2013-05-10T03:01:27 | P143: 76.82 | Q143: =VLOOKUP(O143,[1]Raw!$D:$K,8) -> 19.19039917 | R143: 7.971243859
A144: pCO2 | B144: 36.726965 | C144: -122.293785 | D144: 2013-05-15T06:30:58Z | E144: 2013-05-15T05:31:16 | F144: 77.47 | G144: 77.79 | H144: 77.72 | I144: 77.32 | J144: 77.39 | K144: 77.63 | O144: 2013-05-10T03:11:27 | P144: 76.8 | Q144: =VLOOKUP(O144,[1]Raw!$D:$K,8) -> 19.1909008 | R144: 7.970894037
A145: pCO2 | B145: 36.72409833 | C145: -122.3117633 | D145: 2013-05-15T07:30:57Z | E145: 2013-05-15T06:31:16 | F145: 77.64 | G145: 77.56 | H145: 77.4 | I145: 77.61 | J145: 77.86 | K145: 77.86 | O145: 2013-05-10T03:21:27 | P145: 76.75 | Q145: =VLOOKUP(O145,[1]Raw!$D:$K,8) -> 19.19179916 | R145: 7.970023053
A146: pCO2 | B146: 36.72166 | C146: -122.3270317 | D146: 2013-05-15T08:30:57Z | E146: 2013-05-15T07:31:16 | F146: 77.67 | G146: 77.47 | H146: 77.51 | I146: 77.53 | J146: 77.34 | K146: 77.4 | O146: 2013-05-10T03:31:27 | P146: 76.78 | Q146: =VLOOKUP(O146,[1]Raw!$D:$K,8) -> 19.19190025 | R146: 7.970539226
A147: pCO2 | B147: 36.71967 | C147: -122.3398917 | D147: 2013-05-15T09:30:57Z | E147: 2013-05-15T08:31:16 | F147: 77.34 | G147: 77.45 | H147: 77.45 | I147: 77.37 | J147: 77.18 | K147: 77.2 | O147: 2013-05-10T03:41:27 | P147: 76.91 | Q147: =VLOOKUP(O147,[1]Raw!$D:$K,8) -> 19.1928997 | R147: 7.972770338
A148: pCO2 | B148: 36.718065 | C148: -122.3498 | D148: 2013-05-15T10:30:59Z | E148: 2013-05-15T09:31:16 | F148: 77.15 | G148: 77.05 | H148: 77.01 | I148: 77.01 | J148: 76.9 | K148: 76.81 | O148: 2013-05-10T03:51:27 | P148: 76.93 | Q148: =VLOOKUP(O148,[1]Raw!$D:$K,8) -> 19.19459915 | R148: 7.973098075
A149: pCO2 | B149: 36.71167167 | C149: -122.3609633 | D149: 2013-05-15T11:30:57Z | E149: 2013-05-15T10:31:17 | F149: 76.76 | G149: 76.71 | H149: 76.67 | I149: 76.25 | J149: 76.29 | K149: 76.35 | O149: 2013-05-10T04:01:27 | P149: 76.85 | Q149: =VLOOKUP(O149,[1]Raw!$D:$K,8) -> 19.1935997 | R149: 7.971728949
A150: pCO2 | B150: 36.70188333 | C150: -122.3723483 | D150: 2013-05-15T12:30:58Z | E150: 2013-05-15T11:31:17 | F150: 76.48 | G150: 76.52 | H150: 76.47 | I150: 76.52 | J150: 76.48 | K150: 76.48 | O150: 2013-05-10T04:11:27 | P150: 76.9 | Q150: =VLOOKUP(O150,[1]Raw!$D:$K,8) -> 19.19499969 | R150: 7.972576876
A151: pCO2 | B151: 36.70239833 | C151: -122.3736017 | D151: 2013-05-15T13:30:57Z | E151: 2013-05-15T12:31:16 | F151: 76.44 | G151: 76.48 | H151: 76.5 | I151: 76.54 | J151: 76.59 | K151: 76.64 | O151: 2013-05-10T04:21:27 | P151: 76.84 | Q151: =VLOOKUP(O151,[1]Raw!$D:$K,8) -> 19.19639969 | R151: 7.971528476
A152: pCO2 | B152: 36.71350333 | C152: -122.3595583 | D152: 2013-05-15T14:30:58Z | E152: 2013-05-15T13:31:16 | F152: 76.67 | G152: 76.71 | H152: 76.73 | I152: 76.72 | J152: 76.71 | K152: 76.74 | O152: 2013-05-10T04:31:27 | P152: 76.93 | Q152: =VLOOKUP(O152,[1]Raw!$D:$K,8) -> 19.19540024 | R152: 7.973090038
A153: pCO2 | B153: 36.71955167 | C153: -122.3414017 | D153: 2013-05-15T15:30:57Z | E153: 2013-05-15T14:31:16 | F153: 76.63 | G153: 76.49 | H153: 76.36 | I153: 76.34 | J153: 76.28 | K153: 76.38 | O153: 2013-05-10T04:41:27 | P153: 76.95 | Q153: =VLOOKUP(O153,[1]Raw!$D:$K,8) -> 19.19669914 | R153: 7.97342179
A154: pCO2 | B154: 36.72276667 | C154: -122.3199867 | D154: 2013-05-15T16:30:58Z | E154: 2013-05-15T15:31:17 | F154: 76.24 | G154: 76.56 | H154: 76.53 | I154: 76.6 | J154: 76.72 | K154: 76.62 | O154: 2013-05-10T04:51:27 | P154: 76.91 | Q154: =VLOOKUP(O154,[1]Raw!$D:$K,8) -> 19.19869995 | R154: 7.972712148
A155: pCO2 | B155: 36.72626 | C155: -122.2972967 | D155: 2013-05-15T17:30:57Z | E155: 2013-05-15T16:31:16 | F155: 76.77 | G155: 76.73 | H155: 76.48 | I155: 76.62 | J155: 77.29 | K155: 77.32 | O155: 2013-05-10T05:01:27 | P155: 77.01 | Q155: =VLOOKUP(O155,[1]Raw!$D:$K,8) -> 19.19610023 | R155: 7.974462157
A156: pCO2 | B156: 36.72992833 | C156: -122.27456 | D156: 2013-05-15T18:30:57Z | E156: 2013-05-15T17:31:16 | F156: 77.57 | G156: 77.57 | H156: 77.82 | I156: 77.8 | J156: 77.75 | K156: 77.73 | O156: 2013-05-10T05:11:27 | P156: 76.76 | Q156: =VLOOKUP(O156,[1]Raw!$D:$K,8) -> 19.20030022 | R156: 7.970110239
A157: pCO2 | B157: 36.73320667 | C157: -122.2533267 | D157: 2013-05-15T19:30:58Z | E157: 2013-05-15T18:31:16 | F157: 77.67 | G157: 77.69 | H157: 77.67 | I157: 77.63 | J157: 77.53 | K157: 77.41 | O157: 2013-05-10T05:21:27 | P157: 76.91 | Q157: =VLOOKUP(O157,[1]Raw!$D:$K,8) -> 19.19440079 | R157: 7.972755278
A158: pCO2 | B158: 36.736255 | C158: -122.2344333 | D158: 2013-05-15T20:30:58Z | E158: 2013-05-15T19:31:16 | F158: 77.38 | G158: 77.31 | H158: 77.25 | I158: 77.14 | J158: 77.02 | K158: 76.95 | O158: 2013-05-10T05:31:27 | P158: 76.9 | Q158: =VLOOKUP(O158,[1]Raw!$D:$K,8) -> 19.20070076 | R158: 7.972519685
A159: pCO2 | B159: 36.73858 | C159: -122.2192617 | D159: 2013-05-15T21:30:58Z | E159: 2013-05-15T20:31:16 | F159: 76.89 | G159: 76.87 | H159: 76.88 | I159: 76.88 | J159: 76.92 | K159: 76.92 | O159: 2013-05-10T05:41:27 | P159: 76.99 | Q159: =VLOOKUP(O159,[1]Raw!$D:$K,8) -> 19.19610023 | R159: 7.974117371
A160: pCO2 | B160: 36.74033 | C160: -122.2083733 | D160: 2013-05-15T22:30:58Z | E160: 2013-05-15T21:31:16 | F160: 77.03 | G160: 77.1 | H160: 77.16 | I160: 77.17 | J160: 77.14 | K160: 77.11 | O160: 2013-05-10T05:51:27 | P160: 76.94 | Q160: =VLOOKUP(O160,[1]Raw!$D:$K,8) -> 19.20100021 | R160: 7.973206241
A161: pCO2 | B161: 36.74166167 | C161: -122.19996 | D161: 2013-05-15T23:30:59Z | E161: 2013-05-15T22:31:16 | F161: 77.11 | G161: 77.05 | H161: 77.06 | I161: 77.09 | J161: 77.15 | K161: 77.17 | O161: 2013-05-10T06:01:27 | P161: 76.88 | Q161: =VLOOKUP(O161,[1]Raw!$D:$K,8) -> 19.1996994 | R161: 7.972184949
A162: pCO2 | B162: 36.74306167 | C162: -122.1907533 | D162: 2013-05-16T00:30:59Z | E162: 2013-05-15T23:31:18 | F162: 77.12 | G162: 77.06 | H162: 77.06 | I162: 77.03 | J162: 77.1 | K162: 77.03 | O162: 2013-05-10T06:11:27 | P162: 76.94 | Q162: =VLOOKUP(O162,[1]Raw!$D:$K,8) -> 19.19790077 | R162: 7.97323734
A163: pCO2 | B163: 36.74481333 | C163: -122.1797367 | D163: 2013-05-16T01:30:58Z | E163: 2013-05-16T00:31:16 | F163: 76.93 | G163: 76.94 | H163: 76.93 | I163: 76.88 | J163: 76.91 | K163: 76.81 | O163: 2013-05-10T06:21:27 | P163: 76.92 | Q163: =VLOOKUP(O163,[1]Raw!$D:$K,8) -> 19.2038002 | R163: 7.972833371
A164: pCO2 | B164: 36.747065 | C164: -122.1655867 | D164: 2013-05-16T02:30:59Z | E164: 2013-05-16T01:31:17 | F164: 76.8 | G164: 76.78 | H164: 76.7 | I164: 76.66 | J164: 76.77 | K164: 76.75 | O164: 2013-05-10T06:31:27 | P164: 76.9 | Q164: =VLOOKUP(O164,[1]Raw!$D:$K,8) -> 19.20339966 | R164: 7.972492612
A165: pCO2 | B165: 36.74936167 | C165: -122.1508317 | D165: 2013-05-16T03:30:58Z | E165: 2013-05-16T02:31:16 | F165: 76.59 | G165: 76.41 | H165: 76.38 | I165: 76.34 | J165: 76.16 | K165: 76.07 | O165: 2013-05-10T06:41:27 | P165: 76.92 | Q165: =VLOOKUP(O165,[1]Raw!$D:$K,8) -> 19.20260048 | R165: 7.972845407
A166: pCO2 | B166: 36.75173 | C166: -122.1353333 | D166: 2013-05-16T04:30:59Z | E166: 2013-05-16T03:31:16 | F166: 76.02 | G166: 75.92 | H166: 75.94 | I166: 75.79 | J166: 75.69 | K166: 75.61 | O166: 2013-05-10T06:51:27 | P166: 76.88 | Q166: =VLOOKUP(O166,[1]Raw!$D:$K,8) -> 19.19309998 | R166: 7.972251145
A167: pCO2 | B167: 36.754385 | C167: -122.1184333 | D167: 2013-05-16T05:30:59Z | E167: 2013-05-16T04:31:17 | F167: 75.4 | G167: 75.17 | H167: 74.98 | I167: 74.87 | J167: 74.58 | K167: 75.04 | O167: 2013-05-10T07:01:27 | P167: 76.89 | Q167: =VLOOKUP(O167,[1]Raw!$D:$K,8) -> 19.1989994 | R167: 7.972364361
A168: pCO2 | B168: 36.75692 | C168: -122.1022533 | D168: 2013-05-16T06:30:58Z | E168: 2013-05-16T05:31:17 | F168: 75.57 | G168: 76.61 | H168: 76.95 | I168: 76.88 | J168: 77.21 | K168: 76.51 | O168: 2013-05-10T07:11:27 | P168: 76.79 | Q168: =VLOOKUP(O168,[1]Raw!$D:$K,8) -> 19.20400047 | R168: 7.970590315
A169: pCO2 | B169: 36.75952167 | C169: -122.0859983 | D169: 2013-05-16T07:30:59Z | E169: 2013-05-16T06:31:16 | F169: 76.5 | G169: 76.39 | H169: 76.6 | I169: 76.36 | J169: 76.91 | K169: 77.06 | O169: 2013-05-10T07:21:27 | P169: 76.76 | Q169: =VLOOKUP(O169,[1]Raw!$D:$K,8) -> 19.20639992 | R169: 7.970049102
A170: pCO2 | B170: 36.76242167 | C170: -122.0676917 | D170: 2013-05-16T08:31Z | E170: 2013-05-16T07:31:16 | F170: 77.16 | G170: 77.14 | H170: 77.03 | I170: 76.95 | J170: 76.59 | K170: 76.12 | O170: 2013-05-10T07:31:28 | P170: 76.82 | Q170: =VLOOKUP(O170,[1]Raw!$D:$K,8) -> 19.20709992 | R170: 7.971076404
A171: pCO2 | B171: 36.76525167 | C171: -122.0490367 | D171: 2013-05-16T09:30:59Z | E171: 2013-05-16T08:31:17 | F171: 75.57 | G171: 74.98 | H171: 74.66 | I171: 74.77 | J171: 76.09 | K171: 76.31 | O171: 2013-05-10T07:41:28 | P171: 76.9 | Q171: =VLOOKUP(O171,[1]Raw!$D:$K,8) -> 19.2071991 | R171: 7.9724545
A172: pCO2 | B172: 36.768265 | C172: -122.0299217 | D172: 2013-05-16T10:30:58Z | E172: 2013-05-16T09:31:16 | F172: 76.35 | G172: 76.08 | H172: 76 | I172: 76.24 | J172: 76.7 | K172: 77.06 | O172: 2013-05-10T07:51:28 | P172: 76.84 | Q172: =VLOOKUP(O172,[1]Raw!$D:$K,8) -> 19.20770073 | R172: 7.971415152
A173: pCO2 | B173: 36.77109333 | C173: -122.01163 | D173: 2013-05-16T11:30:59Z | E173: 2013-05-16T10:31:16 | F173: 77.64 | G173: 78.38 | H173: 78.62 | I173: 78.67 | J173: 78.84 | K173: 78.67 | O173: 2013-05-10T08:01:28 | P173: 76.72 | Q173: =VLOOKUP(O173,[1]Raw!$D:$K,8) -> 19.20639992 | R173: 7.969359555
A174: pCO2 | B174: 36.77424167 | C174: -121.9921967 | D174: 2013-05-16T12:31Z | E174: 2013-05-16T11:31:17 | F174: 78.36 | G174: 78 | H174: 77.85 | I174: 77.4 | J174: 76.72 | K174: 76.38 | O174: 2013-05-10T08:11:28 | P174: 76.73 | Q174: =VLOOKUP(O174,[1]Raw!$D:$K,8) -> 19.20899963 | R174: 7.96950589
A175: pCO2 | B175: 36.77733667 | C175: -121.9719967 | D175: 2013-05-16T13:31Z | E175: 2013-05-16T12:31:18 | F175: 76.76 | G175: 77.67 | H175: 78.45 | I175: 78.65 | J175: 78.78 | K175: 78.91 | O175: 2013-05-10T08:21:28 | P175: 76.68 | Q175: =VLOOKUP(O175,[1]Raw!$D:$K,8) -> 19.21039963 | R175: 7.968629939
A176: pCO2 | B176: 36.78055667 | C176: -121.9517017 | D176: 2013-05-16T14:30:58Z | E176: 2013-05-16T13:31:18 | F176: 79.05 | G176: 79.06 | H176: 78.97 | I176: 79.01 | J176: 79.09 | K176: 79.18 | O176: 2013-05-10T08:31:28 | P176: 76.77 | Q176: =VLOOKUP(O176,[1]Raw!$D:$K,8) -> 19.20590019 | R176: 7.970226497
A177: pCO2 | B177: 36.783805 | C177: -121.9311617 | D177: 2013-05-16T15:30:58Z | E177: 2013-05-16T14:31:16 | F177: 79.05 | G177: 78.23 | H177: 77.68 | I177: 77.57 | J177: 77.42 | K177: 76.95 | O177: 2013-05-10T08:41:28 | P177: 76.73 | Q177: =VLOOKUP(O177,[1]Raw!$D:$K,8) -> 19.21010017 | R177: 7.969494862
A178: pCO2 | B178: 36.786595 | C178: -121.912965 | D178: 2013-05-16T16:30:59Z | E178: 2013-05-16T15:31:16 | F178: 76.77 | G178: 76.4 | H178: 75.81 | I178: 74.16 | J178: 74.13 | K178: 74.12 | O178: 2013-05-10T08:51:28 | P178: 76.9 | Q178: =VLOOKUP(O178,[1]Raw!$D:$K,8) -> 19.21229935 | R178: 7.97240334
A179: pCO2 | B179: 36.789755 | C179: -121.892895 | D179: 2013-05-16T17:30:59Z | E179: 2013-05-16T16:31:17 | F179: 74.06 | G179: 73.95 | H179: 73.77 | I179: 73.73 | J179: 73.64 | K179: 74.07 | O179: 2013-05-10T09:01:28 | P179: 76.83 | Q179: =VLOOKUP(O179,[1]Raw!$D:$K,8) -> 19.21240044 | R179: 7.971195644
A180: pCO2 | B180: 36.793045 | C180: -121.8715583 | D180: 2013-05-16T18:31Z | E180: 2013-05-16T17:31:16 | F180: 74.18 | G180: 74.19 | H180: 74.32 | I180: 74.92 | J180: 74.8 | K180: 77.88 | O180: 2013-05-10T09:11:28 | P180: 76.76 | Q180: =VLOOKUP(O180,[1]Raw!$D:$K,8) -> 19.21279907 | R180: 7.969984966
A181: pCO2 | B181: 36.79626833 | C181: -121.8514317 | D181: 2013-05-16T19:31Z | E181: 2013-05-16T18:31:17 | F181: 81.36 | G181: 82.05 | H181: 81.51 | I181: 80.04 | J181: 83.56 | K181: 83.7 | O181: 2013-05-10T09:21:28 | P181: 76.79 | Q181: =VLOOKUP(O181,[1]Raw!$D:$K,8) -> 19.2147007 | R181: 7.970483053
A182: pCO2 | B182: 36.79842333 | C182: -121.847835 | D182: 2013-05-16T20:30:59Z | E182: 2013-05-16T19:31:16 | F182: 84.43 | G182: 84.46 | H182: 84.54 | I182: 84.58 | J182: 83.27 | K182: 80.82 | O182: 2013-05-10T09:31:27 | P182: 76.73 | Q182: =VLOOKUP(O182,[1]Raw!$D:$K,8) -> 19.21299934 | R182: 7.96946581
A183: pCO2 | B183: 36.79778667 | C183: -121.85196 | D183: 2013-05-16T21:30:58Z | E183: 2013-05-16T20:31:16 | F183: 81.21 | G183: 77.32 | H183: 75.95 | I183: 75.01 | J183: 75.03 | K183: 74.82 | O183: 2013-05-10T09:41:27 | P183: 76.65 | Q183: =VLOOKUP(O183,[1]Raw!$D:$K,8) -> 19.2147007 | R183: 7.968069707
A184: pCO2 | B184: 36.79653833 | C184: -121.85976 | D184: 2013-05-16T22:30:59Z | E184: 2013-05-16T21:31:16 | F184: 74.83 | G184: 74.71 | H184: 74.6 | I184: 74.63 | J184: 74.45 | K184: 74.21 | O184: 2013-05-10T09:51:27 | P184: 76.87 | Q184: =VLOOKUP(O184,[1]Raw!$D:$K,8) -> 19.21489906 | R184: 7.971860118
A185: pCO2 | B185: 36.79464167 | C185: -121.871625 | D185: 2013-05-16T23:30:59Z | E185: 2013-05-16T22:31:16 | F185: 74.06 | G185: 74.12 | H185: 74.23 | I185: 74.33 | J185: 74.45 | K185: 74.39 | O185: 2013-05-10T10:01:27 | P185: 76.75 | Q185: =VLOOKUP(O185,[1]Raw!$D:$K,8) -> 19.21310043 | R185: 7.969809563
A186: pCO2 | B186: 36.79178833 | C186: -121.890205 | D186: 2013-05-17T00:31Z | E186: 2013-05-16T23:31:16 | F186: 74.6 | G186: 74.71 | H186: 74.88 | I186: 75.32 | J186: 75.88 | K186: 76.71 | O186: 2013-05-10T10:11:27 | P186: 76.74 | Q186: =VLOOKUP(O186,[1]Raw!$D:$K,8) -> 19.21089935 | R186: 7.969659238
A187: pCO2 | B187: 36.788305 | C187: -121.9110667 | D187: 2013-05-17T01:30:59Z | E187: 2013-05-17T00:31:16 | F187: 80.31 | G187: 82.69 | H187: 82.98 | I187: 83.82 | J187: 83.32 | K187: 82.72 | O187: 2013-05-10T10:21:27 | P187: 76.74 | Q187: =VLOOKUP(O187,[1]Raw!$D:$K,8) -> 19.2166996 | R187: 7.969601113
A188: pCO2 | B188: 36.78524333 | C188: -121.93007 | D188: 2013-05-17T02:30:58Z | E188: 2013-05-17T01:31:16 | F188: 83.85 | G188: 83.54 | H188: 82.76 | I188: 82.34 | J188: 81.36 | K188: 80.25 | O188: 2013-05-10T10:31:27 | P188: 76.78 | Q188: =VLOOKUP(O188,[1]Raw!$D:$K,8) -> 19.2173996 | R188: 7.970283619
A189: pCO2 | B189: 36.78287167 | C189: -121.9446567 | D189: 2013-05-17T03:30:59Z | E189: 2013-05-17T02:31:16 | F189: 79.46 | G189: 78.56 | H189: 77.78 | I189: 77.44 | J189: 77.27 | K189: 77.14 | O189: 2013-05-10T10:41:27 | P189: 76.88 | Q189: =VLOOKUP(O189,[1]Raw!$D:$K,8) -> 19.20879936 | R189: 7.972093677
A190: pCO2 | B190: 36.78046 | C190: -121.9599317 | D190: 2013-05-17T04:30:58Z | E190: 2013-05-17T03:31:16 | F190: 77.18 | G190: 77.17 | H190: 77.32 | I190: 77.76 | J190: 78.31 | K190: 78.11 | O190: 2013-05-10T10:51:27 | P190: 76.89 | Q190: =VLOOKUP(O190,[1]Raw!$D:$K,8) -> 19.21809959 | R190: 7.972172781
A191: pCO2 | B191: 36.77805667 | C191: -121.9753167 | D191: 2013-05-17T05:31:01Z | E191: 2013-05-17T04:31:16 | F191: 78.05 | G191: 77.71 | H191: 77.56 | I191: 77.13 | J191: 77.31 | K191: 77.23 | O191: 2013-05-10T11:01:27 | P191: 76.66 | Q191: =VLOOKUP(O191,[1]Raw!$D:$K,8) -> 19.21769905 | R191: 7.968212057
A192: pCO2 | B192: 36.77577667 | C192: -121.9896167 | D192: 2013-05-17T06:30:59Z | E192: 2013-05-17T05:31:17 | F192: 77.07 | G192: 77.02 | H192: 77 | I192: 76.96 | J192: 77.22 | K192: 77.18 | O192: 2013-05-10T11:11:27 | P192: 76.85 | Q192: =VLOOKUP(O192,[1]Raw!$D:$K,8) -> 19.21780014 | R192: 7.971486265
A193: pCO2 | B193: 36.77381167 | C193: -122.0014433 | D193: 2013-05-17T07:30:58Z | E193: 2013-05-17T06:31:16 | F193: 77.09 | G193: 77.11 | H193: 76.64 | I193: 74.53 | J193: 74.86 | K193: 74.98 | O193: 2013-05-10T11:21:27 | P193: 76.84 | Q193: =VLOOKUP(O193,[1]Raw!$D:$K,8) -> 19.21199989 | R193: 7.971372043
A194: pCO2 | B194: 36.77213667 | C194: -122.0119667 | D194: 2013-05-17T08:31Z | E194: 2013-05-17T07:31:16 | F194: 75.21 | G194: 74.96 | H194: 74.35 | I194: 74.34 | J194: 74.35 | K194: 74.39 | O194: 2013-05-10T11:31:28 | P194: 76.8 | Q194: =VLOOKUP(O194,[1]Raw!$D:$K,8) -> 19.2208004 | R194: 7.97059429
A195: pCO2 | B195: 36.77014167 | C195: -122.024645 | D195: 2013-05-17T09:30:59Z | E195: 2013-05-17T08:31:16 | F195: 74.36 | G195: 74.14 | H195: 74.11 | I195: 74.09 | J195: 73.97 | K195: 73.91 | O195: 2013-05-10T11:41:28 | P195: 76.9 | Q195: =VLOOKUP(O195,[1]Raw!$D:$K,8) -> 19.20759964 | R195: 7.972450482
A196: pCO2 | B196: 36.767925 | C196: -122.038005 | D196: 2013-05-17T10:30:59Z | E196: 2013-05-17T09:31:16 | F196: 73.61 | G196: 73.91 | H196: 73.91 | I196: 73.99 | J196: 74.1 | K196: 74.23 | O196: 2013-05-10T11:51:28 | P196: 76.67 | Q196: =VLOOKUP(O196,[1]Raw!$D:$K,8) -> 19.20829964 | R196: 7.968478591
A197: pCO2 | B197: 36.76577333 | C197: -122.051955 | D197: 2013-05-17T11:30:59Z | E197: 2013-05-17T10:31:16 | F197: 74.43 | G197: 74.51 | H197: 74.83 | I197: 74.87 | J197: 74.85 | K197: 75.06 | O197: 2013-05-10T12:01:28 | P197: 76.79 | Q197: =VLOOKUP(O197,[1]Raw!$D:$K,8) -> 19.20459938 | R197: 7.970584312
A198: pCO2 | B198: 36.76361667 | C198: -122.0657083 | D198: 2013-05-17T12:30:59Z | E198: 2013-05-17T11:31:16 | F198: 75.27 | G198: 75.37 | H198: 75.5 | I198: 75.54 | J198: 75.55 | K198: 75.36 | O198: 2013-05-10T12:11:28 | P198: 76.85 | Q198: =VLOOKUP(O198,[1]Raw!$D:$K,8) -> 19.21529961 | R198: 7.971511339
A199: pCO2 | B199: 36.76207667 | C199: -122.07467 | D199: 2013-05-17T13:30:59Z | E199: 2013-05-17T12:31:16 | F199: 75.22 | G199: 75.33 | H199: 75.22 | I199: 75.78 | J199: 75.86 | K199: 76.12 | O199: 2013-05-10T12:21:28 | P199: 76.82 | Q199: =VLOOKUP(O199,[1]Raw!$D:$K,8) -> 19.21509934 | R199: 7.970996202
A200: pCO2 | B200: 36.76072167 | C200: -122.0833667 | D200: 2013-05-17T14:31Z | E200: 2013-05-17T13:31:16 | F200: 76.09 | G200: 76.31 | H200: 76.32 | I200: 76.34 | J200: 76.25 | K200: 75.74 | O200: 2013-05-10T12:31:27 | P200: 76.84 | Q200: =VLOOKUP(O200,[1]Raw!$D:$K,8) -> 19.21769905 | R200: 7.971314898
... 1865 more rows

Sheet pCO2
A1: latitude | B1: longitude | C1: Da e. ime | D1: Day | E1: Distance | F1: pCO2-Water | G1: pCO2-Air | H1: pH | I1: Oxygen-%Sat | L1: EquilPumpOn pco2 | M1: EquilPumpOn Temp | N1: EquilPumpOn Pressure | O1: EquilPumpOff pco2 | P1: EquilPumpOff Temp | Q1: EquilPumpOff Pressure | R1: EquilPumpOff Humidity | S1: ZeroPumpOn pco2 | T1: ZeroPumpOn Temp | U1: ZeroPumpOn Pressure | V1: ZeroPumpOff pco2 | W1: ZeroPumpOff Temp | X1: ZeroPumpOff Pressure | Y1: AirPumpOn pco2 | Z1: AirPumpOn Temp | AA1: AirPumpOn Pressure | AB1: AirPumpOff pco2 | AC1: AirPumpOff Temp | AD1: AirPumpOff Pressure | AE1: AirPumpOff Humidity
A2: 36.80266167 | B2: -121.78808 | C2: 2013-05-09T03:31:27 | D2: =C2-41274 -> 129.1468403 | E2: =ABS(Rhumb(36.806,A2,-121.791,B2)) -> 0.4531137786 | F2: =0.9908*(O2-V2) -> 533.5810725 | G2: =0.9908*(AB2-V2) -> 401.8046725 | L2: 542.56 | M2: 19.836 | N2: 86.636 | O2: 536.97 | P2: 19.901 | Q2: 103.05 | R2: 2.0631 | S2: -2.2418 | T2: 20.074 | U2: 93.694 | V2: -1.5656 | W2: 20.107 | X2: 101.95 | Y2: 408.8 | Z2: 20.27 | AA2: 86.461 | AB2: 403.97 | AC2: 20.335 | AD2: 102.03 | AE2: 2.0136
A3: 36.80289333 | B3: -121.7877733 | C3: 2013-05-09T04:31:27 | D3: =C3-41274 -> 129.1885069 | E3: =ABS(Rhumb(36.806,A3,-121.791,B3)) -> 0.4491964709 | F3: =0.9908*(O3-V3) -> 532.8923674 | G3: =0.9908*(AB3-V3) -> 403.0777514 | H3: =VLOOKUP(C3,pH_Proc!O:R,4) -> 7.968916463 | I3: =VLOOKUP(C3,[1]Proc_CTD!$A:$H,8) -> 94.19917281 | L3: 542.05 | M3: 19.793 | N3: 86.811 | O3: 536.19 | P3: 19.869 | Q3: 103.11 | R3: 2.056 | S3: -2.1918 | T3: 20.053 | U3: 93.99 | V3: -1.6505 | W3: 20.074 | X3: 102.31 | Y3: 410.6 | Z3: 20.248 | AA3: 86.542 | AB3: 405.17 | AC3: 20.303 | AD3: 102.07 | AE3: 2.0111
A4: 36.80259333 | B4: -121.7880083 | C4: 2013-05-09T05:31:29 | D4: 129.2301968 | E4: 0.4629967345 | F4: 533.0413837 | G4: 405.4659757 | H4: =VLOOKUP(C4,pH_Proc!O:R,4) -> 7.972993905 | I4: =VLOOKUP(C4,[1]Proc_CTD!$A:$H,8) -> 94.07404329 | L4: 542.89 | M4: 19.772 | N4: 86.892 | O4: 536.34 | P4: 19.836 | Q4: 103.12 | R4: 2.0479 | S4: -2.2979 | T4: 20.009 | U4: 94.125 | V4: -1.6509 | W4: 20.042 | X4: 102.33 | Y4: 412.77 | Z4: 20.216 | AA4: 86.569 | AB4: 407.58 | AC4: 20.27 | AD4: 102.1 | AE4: 2.0049
A5: 36.8028 | B5: -121.7879233 | C5: 2013-05-09T06:31:27 | D5: 129.2718403 | E5: 0.4489636036 | F5: 533.7330612 | G5: 405.9198612 | H5: =VLOOKUP(C5,pH_Proc!O:R,4) -> 7.973568291 | I5: =VLOOKUP(C5,[1]Proc_CTD!$A:$H,8) -> 94.58005173 | L5: 543.26 | M5: 19.75 | N5: 86.865 | O5: 537.21 | P5: 19.815 | Q5: 103.12 | R5: 2.0477 | S5: -2.2274 | T5: 19.988 | U5: 93.99 | V5: -1.479 | W5: 20.02 | X5: 102.5 | Y5: 413.05 | Z5: 20.183 | AA5: 86.582 | AB5: 408.21 | AC5: 20.259 | AD5: 102.08 | AE5: 2.0061
A6: 36.80251333 | B6: -121.7879567 | C6: 2013-05-09T07:31:29 | D6: 129.3135301 | E6: 0.472920357 | F6: 534.7202943 | G6: 403.0231583 | H6: =VLOOKUP(C6,pH_Proc!O:R,4) -> 7.974136439 | I6: =VLOOKUP(C6,[1]Proc_CTD!$A:$H,8) -> 93.92422325 | L6: 544.08 | M6: 19.728 | N6: 86.865 | O6: 538.13 | P6: 19.793 | Q6: 103.12 | R6: 2.0384 | S6: -2.0992 | T6: 19.966 | U6: 94.556 | V6: -1.5554 | W6: 19.999 | X6: 102.8 | Y6: 410.37 | Z6: 20.161 | AA6: 86.677 | AB6: 405.21 | AC6: 20.226 | AD6: 102.1 | AE6: 1.9992
A7: 36.79994167 | B7: -121.7872917 | C7: 2013-05-09T08:31:27 | D7: 129.3551736 | E7: 0.750141971 | F7: 534.6124953 | G7: 403.4900233 | H7: =VLOOKUP(C7,pH_Proc!O:R,4) -> 7.973373821 | I7: =VLOOKUP(C7,[1]Proc_CTD!$A:$H,8) -> 91.57452962 | L7: 544.48 | M7: 19.707 | N7: 86.785 | O7: 537.87 | P7: 19.782 | Q7: 103.09 | R7: 2.0402 | S7: -2.1187 | T7: 19.955 | U7: 94.125 | V7: -1.7066 | W7: 19.977 | X7: 102.58 | Y7: 410.56 | Z7: 20.14 | AA7: 86.556 | AB7: 405.53 | AC7: 20.216 | AD7: 102.06 | AE7: 1.999
A8: 36.80288667 | B8: -121.78838 | C8: 2013-05-09T09:31:27 | D8: 129.3968403 | E8: 0.4173759022 | F8: 535.5229414 | G8: 410.1966494 | H8: =VLOOKUP(C8,pH_Proc!O:R,4) -> 7.974607456 | I8: =VLOOKUP(C8,[1]Proc_CTD!$A:$H,8) -> 89.21251683 | L8: 544.91 | M8: 19.707 | N8: 86.919 | O8: 539.04 | P8: 19.771 | Q8: 103.07 | R8: 2.0389 | S8: -1.9811 | T8: 19.944 | U8: 94.098 | V8: -1.4555 | W8: 19.977 | X8: 102.33 | Y8: 417.6 | Z8: 20.15 | AA8: 86.717 | AB8: 412.55 | AC8: 20.216 | AD8: 102.04 | AE8: 1.9954
A9: 36.80288167 | B9: -121.788015 | C9: 2013-05-09T10:31:27 | D9: 129.4385069 | E9: 0.4367930696 | F9: 536.1969826 | G9: 409.4538466 | H9: =VLOOKUP(C9,pH_Proc!O:R,4) -> 7.974541189 | I9: =VLOOKUP(C9,[1]Proc_CTD!$A:$H,8) -> 92.7717338 | L9: 545.88 | M9: 19.728 | N9: 86.744 | O9: 539.56 | P9: 19.804 | Q9: 103.07 | R9: 2.0469 | S9: -2.0985 | T9: 19.988 | U9: 93.99 | V9: -1.6158 | W9: 20.009 | X9: 102.31 | Y9: 416.78 | Z9: 20.183 | AA9: 86.488 | AB9: 411.64 | AC9: 20.237 | AD9: 102.03 | AE9: 2.0047
A10: 36.802425 | B10: -121.7878367 | C10: 2013-05-09T11:31:27 | D10: 129.4801736 | E10: 0.4870977664 | F10: 536.3260839 | G10: 407.6211639 | H10: =VLOOKUP(C10,pH_Proc!O:R,4) -> 7.975190892 | I10: =VLOOKUP(C10,[1]Proc_CTD!$A:$H,8) -> 94.56848977 | L10: 546.27 | M10: 19.75 | N10: 86.65 | O10: 539.81 | P10: 19.804 | Q10: 103.05 | R10: 2.0441 | S10: -2.0309 | T10: 19.988 | U10: 94.152 | V10: -1.4961 | W10: 20.02 | X10: 102.68 | Y10: 415.36 | Z10: 20.183 | AA10: 86.502 | AB10: 409.91 | AC10: 20.248 | AD10: 102.02 | AE10: 2.0028
A11: 36.80290833 | B11: -121.78831 | C11: 2013-05-09T12:31:29 | D11: 129.5218634 | E11: 0.4189078427 | F11: 537.0254896 | G11: 408.4196496 | H11: =VLOOKUP(C11,pH_Proc!O:R,4) -> 7.975706739 | I11: =VLOOKUP(C11,[1]Proc_CTD!$A:$H,8) -> 95.21833005 | L11: 547.2 | M11: 19.75 | N11: 86.811 | O11: 540.47 | P11: 19.815 | Q11: 103.04 | R11: 2.0429 | S11: -2.0383 | T11: 19.988 | U11: 94.286 | V11: -1.542 | W11: 20.02 | X11: 102.56 | Y11: 415.79 | Z11: 20.194 | AA11: 86.475 | AB11: 410.67 | AC11: 20.259 | AD11: 102.02 | AE11: 2.0051
A12: 36.80177667 | B12: -121.7888917 | C12: 2013-05-09T13:31:29 | D12: 129.5635301 | E12: 0.5057040102 | F12: 537.9302882 | G12: 410.8700962 | H12: =VLOOKUP(C12,pH_Proc!O:R,4) -> 7.966017142 | I12: =VLOOKUP(C12,[1]Proc_CTD!$A:$H,8) -> 94.17980975 | L12: 547.45 | M12: 19.815 | N12: 86.798 | O12: 541.16 | P12: 19.89 | Q12: 103.08 | R12: 2.0516 | S12: -2.2084 | T12: 20.074 | U12: 94.434 | V12: -1.7652 | W12: 20.096 | X12: 102.95 | Y12: 417.88 | Z12: 20.27 | AA12: 86.529 | AB12: 412.92 | AC12: 20.335 | AD12: 102.04 | AE12: 2.0132
A13: 36.80287167 | B13: -121.7917467 | C13: 2013-05-09T14:31:27 | D13: 129.6051736 | E13: 0.354143846 | F13: 537.8404226 | G13: 413.0392546 | H13: =VLOOKUP(C13,pH_Proc!O:R,4) -> 7.965429947 | I13: =VLOOKUP(C13,[1]Proc_CTD!$A:$H,8) -> 94.40720259 | L13: 547.78 | M13: 19.901 | N13: 86.987 | O13: 541.24 | P13: 19.966 | Q13: 103.13 | R13: 2.0554 | S13: -2.2852 | T13: 20.161 | U13: 94.461 | V13: -1.5945 | W13: 20.183 | X13: 102.69 | Y13: 420.59 | Z13: 20.357 | AA13: 86.677 | AB13: 415.28 | AC13: 20.412 | AD13: 102.11 | AE13: 2.0187
A14: 36.80259 | B14: -121.7879633 | C14: 2013-05-09T15:31:29 | D14: 129.6468634 | E14: 0.4656125552 | F14: 537.0920714 | G14: 430.1748434 | H14: =VLOOKUP(C14,pH_Proc!O:R,4) -> 7.964957846 | I14: =VLOOKUP(C14,[1]Proc_CTD!$A:$H,8) -> 94.86558551 | L14: 545.91 | M14: 19.988 | N14: 86.96 | O14: 540.28 | P14: 20.053 | Q14: 103.19 | R14: 2.0648 | S14: -2.2354 | T14: 20.226 | U14: 94.232 | V14: -1.7992 | W14: 20.259 | X14: 102.64 | Y14: 437.54 | Z14: 20.423 | AA14: 86.677 | AB14: 432.37 | AC14: 20.488 | AD14: 102.15 | AE14: 2.0224
A15: 36.80270667 | B15: -121.7880333 | C15: 2013-05-09T16:31:29 | D15: 129.6885301 | E15: 0.451439486 | F15: 538.5994745 | G15: 436.4479945 | H15: =VLOOKUP(C15,pH_Proc!O:R,4) -> 7.965993126 | I15: =VLOOKUP(C15,[1]Proc_CTD!$A:$H,8) -> 94.0631886 | L15: 547.99 | M15: 19.988 | N15: 86.892 | O15: 541.92 | P15: 20.063 | Q15: 103.2 | R15: 2.0652 | S15: -2.2761 | T15: 20.248 | U15: 94.448 | V15: -1.6806 | W15: 20.27 | X15: 102.74 | Y15: 444.53 | Z15: 20.444 | AA15: 86.749 | AB15: 438.82 | AC15: 20.499 | AD15: 102.2 | AE15: 2.0188
A16: 36.80320167 | B16: -121.7875767 | C16: 2013-05-09T17:31:27 | D16: 129.7301736 | E16: 0.4354555349 | F16: 538.2711234 | G16: 445.5817834 | H16: =VLOOKUP(C16,pH_Proc!O:R,4) -> 7.967255868 | I16: =VLOOKUP(C16,[1]Proc_CTD!$A:$H,8) -> 94.50357975 | L16: 548.29 | M16: 19.966 | N16: 86.973 | O16: 541.56 | P16: 20.042 | Q16: 103.23 | R16: 2.0645 | S16: -2.4065 | T16: 20.226 | U16: 94.111 | V16: -1.7092 | W16: 20.248 | X16: 102.58 | Y16: 452.53 | Z16: 20.423 | AA16: 86.704 | AB16: 448.01 | AC16: 20.477 | AD16: 102.2 | AE16: 2.0209
A17: 36.79709 | B17: -121.8018183 | C17: 2013-05-09T18:31:27 | D17: 129.7718403 | E17: 1.38145824 | F17: 540.1535443 | G17: 431.4132443 | H17: =VLOOKUP(C17,pH_Proc!O:R,4) -> 7.965203264 | I17: =VLOOKUP(C17,[1]Proc_CTD!$A:$H,8) -> 94.50357975 | L17: 549.68 | M17: 19.944 | N17: 86.838 | O17: 543.53 | P17: 20.02 | Q17: 103.18 | R17: 2.0638 | S17: -2.2925 | T17: 20.205 | U17: 94.3 | V17: -1.6391 | W17: 20.226 | X17: 102.68 | Y17: 439.22 | Z17: 20.401 | AA17: 86.623 | AB17: 433.78 | AC17: 20.455 | AD17: 102.15 | AE17: 2.0194
A18: 36.80297333 | B18: -121.7881333 | C18: 2013-05-09T19:31:27 | D18: 129.8135069 | E18: 0.4223034036 | F18: 538.4640321 | G18: 426.8206881 | H18: =VLOOKUP(C18,pH_Proc!O:R,4) -> 7.967952417 | I18: =VLOOKUP(C18,[1]Proc_CTD!$A:$H,8) -> 94.50357975 | L18: 549.14 | M18: 19.923 | N18: 86.879 | O18: 541.79 | P18: 19.998 | Q18: 103.18 | R18: 2.0569 | S18: -2.311 | T18: 20.183 | U18: 94.556 | V18: -1.6739 | W18: 20.205 | X18: 102.8 | Y18: 433.74 | Z18: 20.379 | AA18: 86.636 | AB18: 429.11 | AC18: 20.433 | AD18: 102.14 | AE18: 2.0144
A19: 36.80288667 | B19: -121.7878167 | C19: 2013-05-09T20:31:29 | D19: 129.8551968 | E19: 0.4473148182 | F19: 538.0803944 | G19: 405.1051264 | H19: =VLOOKUP(C19,pH_Proc!O:R,4) -> 7.965744435 | I19: =VLOOKUP(C19,[1]Proc_CTD!$A:$H,8) -> 94.50357975 | L19: 547.82 | M19: 19.901 | N19: 86.798 | O19: 541.4 | P19: 19.966 | Q19: 103.16 | R19: 2.0551 | S19: -2.2572 | T19: 20.139 | U19: 94.178 | V19: -1.6767 | W19: 20.172 | X19: 102.61 | Y19: 412.1 | Z19: 20.346 | AA19: 86.596 | AB19: 407.19 | AC19: 20.401 | AD19: 102.16 | AE19: 2.0116
A20: 36.817535 | B20: -121.84939 | C20: 2013-05-09T21:31:27 | D20: 129.8968403 | E20: 5.351444438 | F20: 537.7821636 | G20: 404.6979076 | H20: =VLOOKUP(C20,pH_Proc!O:R,4) -> 7.966249587 | I20: =VLOOKUP(C20,[1]Proc_CTD!$A:$H,8) -> 94.50357975 | L20: 547.6 | M20: 19.966 | N20: 86.865 | O20: 540.94 | P20: 20.031 | Q20: 103.15 | R20: 2.0433 | S20: -2.1969 | T20: 20.205 | U20: 94.556 | V20: -1.8357 | W20: 20.237 | X20: 102.97 | Y20: 411.69 | Z20: 20.401 | AA20: 86.582 | AB20: 406.62 | AC20: 20.455 | AD20: 102.12 | AE20: 2.0045
A21: 36.80216333 | B21: -121.7878167 | C21: 2013-05-09T22:31:27 | D21: 129.9385069 | E21: 0.5121024307 | F21: 537.0696793 | G21: 406.7002153 | H21: =VLOOKUP(C21,pH_Proc!O:R,4) -> 7.967546426 | I21: =VLOOKUP(C21,[1]Proc_CTD!$A:$H,8) -> 94.51694819 | L21: 547.26 | M21: 19.901 | N21: 86.726 | O21: 540.45 | P21: 19.977 | Q21: 103.12 | R21: 2.0495 | S21: -2.139 | T21: 20.161 | U21: 94.03 | V21: -1.6066 | W21: 20.183 | X21: 102.46 | Y21: 413.71 | Z21: 20.357 | AA21: 86.448 | AB21: 408.87 | AC21: 20.412 | AD21: 102.07 | AE21: 2.0081
A22: 36.80271667 | B22: -121.787995 | C22: 2013-05-09T23:31:27 | D22: 129.9801736 | E22: 0.4525451689 | F22: 537.5892548 | G22: 404.6040788 | H22: =VLOOKUP(C22,pH_Proc!O:R,4) -> 7.967250709 | I22: =VLOOKUP(C22,[1]Proc_CTD!$A:$H,8) -> 94.51694819 | L22: 547.09 | M22: 19.901 | N22: 86.717 | O22: 541.04 | P22: 19.977 | Q22: 103.05 | R22: 2.0493 | S22: -2.1902 | T22: 20.161 | U22: 93.99 | V22: -1.541 | W22: 20.183 | X22: 102.81 | Y22: 411.56 | Z22: 20.357 | AA22: 86.569 | AB22: 406.82 | AC22: 20.412 | AD22: 102.04 | AE22: 2.0059
A23: 36.80284667 | B23: -121.7880883 | C23: 2013-05-10T00:31:28 | D23: 130.0218519 | E23: 0.4359794491 | F23: 538.7936713 | G23: 407.3046033 | H23: =VLOOKUP(C23,pH_Proc!O:R,4) -> 7.96960209 | I23: =VLOOKUP(C23,[1]Proc_CTD!$A:$H,8) -> 94.51694819 | L23: 548.47 | M23: 19.955 | N23: 86.677 | O23: 542.04 | P23: 20.02 | Q23: 103.03 | R23: 2.0608 | S23: -2.1945 | T23: 20.205 | U23: 94.03 | V23: -1.7566 | W23: 20.226 | X23: 102.66 | Y23: 414.32 | Z23: 20.401 | AA23: 86.677 | AB23: 409.33 | AC23: 20.455 | AD23: 101.99 | AE23: 2.0079
A24: 36.801455 | B24: -121.7916117 | C24: 2013-05-10T01:31:27 | D24: 130.0635069 | E24: 0.5083040088 | F24: 538.320168 | G24: 404.730604 | H24: =VLOOKUP(C24,pH_Proc!O:R,4) -> 7.968123686 | I24: =VLOOKUP(C24,[1]Proc_CTD!$A:$H,8) -> 94.51694819 | L24: 547.51 | M24: 20.009 | N24: 86.892 | O24: 541.47 | P24: 20.085 | Q24: 103.04 | R24: 2.0579 | S24: -2.3907 | T24: 20.27 | U24: 94.071 | V24: -1.8487 | W24: 20.292 | X24: 102.33 | Y24: 411.35 | Z24: 20.466 | AA24: 86.623 | AB24: 406.64 | AC24: 20.521 | AD24: 101.99 | AE24: 2.0088
A25: 36.80053 | B25: -121.7875717 | C25: 2013-05-10T02:31:27 | D25: 130.1051736 | E25: 0.680460822 | F25: 538.2058296 | G25: 402.2086216 | H25: =VLOOKUP(C25,pH_Proc!O:R,4) -> 7.96940662 | I25: =VLOOKUP(C25,[1]Proc_CTD!$A:$H,8) -> 94.57736965 | L25: 547.67 | M25: 20.009 | N25: 86.758 | O25: 541.4 | P25: 20.074 | Q25: 103.05 | R25: 2.0577 | S25: -2.3643 | T25: 20.259 | U25: 93.559 | V25: -1.8033 | W25: 20.292 | X25: 101.72 | Y25: 409.07 | Z25: 20.455 | AA25: 86.609 | AB25: 404.14 | AC25: 20.51 | AD25: 102.02 | AE25: 2.0119
A26: 36.80275 | B26: -121.7883467 | C26: 2013-05-10T03:31:27 | D26: 130.1468403 | E26: 0.4316797354 | F26: 538.9218808 | G26: 403.8560248 | H26: =VLOOKUP(C26,pH_Proc!O:R,4) -> 7.970539226 | I26: =VLOOKUP(C26,[1]Proc_CTD!$A:$H,8) -> 94.9353414 | L26: 548.52 | M26: 19.966 | N26: 86.946 | O26: 542.1 | P26: 20.042 | Q26: 103.08 | R26: 2.0566 | S26: -2.3769 | T26: 20.226 | U26: 93.438 | V26: -1.826 | W26: 20.248 | X26: 101.33 | Y26: 410.8 | Z26: 20.423 | AA26: 86.704 | AB26: 405.78 | AC26: 20.477 | AD26: 102.08 | AE26: 2.01
A27: 36.80152 | B27: -121.7879083 | C27: 2013-05-10T04:31:27 | D27: 130.1885069 | E27: 0.5690769296 | F27: 538.9182148 | G27: 405.9330388 | H27: =VLOOKUP(C27,pH_Proc!O:R,4) -> 7.973090038 | I27: =VLOOKUP(C27,[1]Proc_CTD!$A:$H,8) -> 95.34523854 | L27: 548.59 | M27: 19.944 | N27: 87.189 | O27: 542.14 | P27: 20.009 | Q27: 103.15 | R27: 2.0451 | S27: -2.3463 | T27: 20.183 | U27: 93.599 | V27: -1.7823 | W27: 20.216 | X27: 101.76 | Y27: 412.79 | Z27: 20.379 | AA27: 86.744 | AB27: 407.92 | AC27: 20.444 | AD27: 102.14 | AE27: 2.0091
A28: 36.81845 | B28: -121.7928283 | C28: 2013-05-10T05:31:27 | D28: 130.2301736 | E28: 1.393903524 | F28: 538.6552565 | G28: 407.0572005 | H28: =VLOOKUP(C28,pH_Proc!O:R,4) -> 7.972519685 | I28: =VLOOKUP(C28,[1]Proc_CTD!$A:$H,8) -> 94.70506408 | L28: 548.36 | M28: 19.879 | N28: 87.081 | O28: 541.92 | P28: 19.955 | Q28: 103.16 | R28: 2.0442 | S28: -2.2139 | T28: 20.139 | U28: 93.357 | V28: -1.7369 | W28: 20.15 | X28: 101.8 | Y28: 413.74 | Z28: 20.324 | AA28: 86.785 | AB28: 409.1 | AC28: 20.39 | AD28: 102.15 | AE28: 2.0012
A29: 36.81255667 | B29: -121.7833183 | C29: 2013-05-10T06:31:27 | D29: 130.2718403 | E29: 0.9993743174 | F29: 538.4605643 | G29: 408.3487083 | H29: =VLOOKUP(C29,pH_Proc!O:R,4) -> 7.972492612 | I29: =VLOOKUP(C29,[1]Proc_CTD!$A:$H,8) -> 93.85238751 | L29: 548.19 | M29: 19.836 | N29: 87.094 | O29: 541.84 | P29: 19.901 | Q29: 103.23 | R29: 2.0433 | S29: -1.9862 | T29: 20.074 | U29: 93.438 | V29: -1.6204 | W29: 20.107 | X29: 101.38 | Y29: 415.53 | Z29: 20.281 | AA29: 86.758 | AB29: 410.52 | AC29: 20.346 | AD29: 102.19 | AE29: 1.9988
A30: 36.75591167 | B30: -121.7710183 | C30: 2013-05-10T07:31:28 | D30: 130.3135185 | E30: 5.846687187 | F30: 538.5851079 | G30: 416.3203879 | H30: =VLOOKUP(C30,pH_Proc!O:R,4) -> 7.971076404 | I30: =VLOOKUP(C30,[1]Proc_CTD!$A:$H,8) -> 94.67835952 | L30: 548.47 | M30: 19.815 | N30: 87.296 | O30: 541.91 | P30: 19.879 | Q30: 103.24 | R30: 2.0389 | S30: -2.116 | T30: 20.053 | U30: 93.451 | V30: -1.6761 | W30: 20.085 | X30: 101.96 | Y30: 422.47 | Z30: 20.259 | AA30: 86.744 | AB30: 418.51 | AC30: 20.324 | AD30: 102.21 | AE30: 2.0016
A31: 36.75591167 | B31: -121.7710183 | C31: 2013-05-10T08:31:28 | D31: 130.3551852 | E31: 5.846687187 | F31: 539.2252638 | G31: 414.4538198 | H31: =VLOOKUP(C31,pH_Proc!O:R,4) -> 7.970226497 | I31: =VLOOKUP(C31,[1]Proc_CTD!$A:$H,8) -> 94.91728473 | L31: 549.16 | M31: 19.793 | N31: 87.108 | O31: 542.65 | P31: 19.869 | Q31: 103.22 | R31: 2.0375 | S31: -2.2932 | T31: 20.053 | U31: 93.68 | V31: -1.5822 | W31: 20.064 | X31: 101.94 | Y31: 422.01 | Z31: 20.248 | AA31: 86.798 | AB31: 416.72 | AC31: 20.303 | AD31: 102.19 | AE31: 1.997
A32: 36.80262333 | B32: -121.7877183 | C32: 2013-05-10T09:31:27 | D32: 130.3968403 | E32: 0.4756638468 | F32: 539.3095808 | G32: 414.9344568 | H32: =VLOOKUP(C32,pH_Proc!O:R,4) -> 7.96946581 | I32: =VLOOKUP(C32,[1]Proc_CTD!$A:$H,8) -> 94.88264908 | L32: 549.35 | M32: 19.793 | N32: 87.04 | O32: 542.7 | P32: 19.847 | Q32: 103.16 | R32: 2.0349 | S32: -2.1574 | T32: 20.031 | U32: 93.384 | V32: -1.6173 | W32: 20.064 | X32: 101.63 | Y32: 422.61 | Z32: 20.226 | AA32: 86.69 | AB32: 417.17 | AC32: 20.281 | AD32: 102.15 | AE32: 1.9969
A33: 36.802755 | B33: -121.7880517 | C33: 2013-05-10T10:31:27 | D33: 130.4385069 | E33: 0.4461294367 | F33: 539.4115342 | G33: 412.5594102 | H33: =VLOOKUP(C33,pH_Proc!O:R,4) -> 7.970283619 | I33: =VLOOKUP(C33,[1]Proc_CTD!$A:$H,8) -> 95.01648719 | L33: 549.23 | M33: 19.761 | N33: 86.987 | O33: 542.64 | P33: 19.825 | Q33: 103.18 | R33: 2.0349 | S33: -2.1495 | T33: 20.009 | U33: 93.572 | V33: -1.7802 | W33: 20.042 | X33: 101.55 | Y33: 419.36 | Z33: 20.205 | AA33: 86.695 | AB33: 414.61 | AC33: 20.259 | AD33: 102.14 | AE33: 1.997
A34: 36.80269167 | B34: -121.7880183 | C34: 2013-05-10T11:31:28 | D34: 130.4801852 | E34: 0.4535730912 | F34: 540.2416264 | G34: 409.7532664 | H34: =VLOOKUP(C34,pH_Proc!O:R,4) -> 7.97059429 | I34: =VLOOKUP(C34,[1]Proc_CTD!$A:$H,8) -> 94.65725106 | L34: 550.18 | M34: 19.75 | N34: 86.838 | O34: 543.65 | P34: 19.825 | Q34: 103.11 | R34: 2.0363 | S34: -2.3413 | T34: 20.009 | U34: 93.29 | V34: -1.608 | W34: 20.031 | X34: 101.65 | Y34: 417.18 | Z34: 20.205 | AA34: 86.609 | AB34: 411.95 | AC34: 20.259 | AD34: 102.06 | AE34: 1.9967
A35: 36.80299167 | B35: -121.788465 | C35: 2013-05-10T12:31:27 | D35: 130.5218403 | E35: 0.4034666222 | F35: 540.6835232 | G35: 411.2156872 | H35: =VLOOKUP(C35,pH_Proc!O:R,4) -> 7.971314898 | I35: =VLOOKUP(C35,[1]Proc_CTD!$A:$H,8) -> 94.83626888 | L35: 550.34 | M35: 19.772 | N35: 86.919 | O35: 544.14 | P35: 19.825 | Q35: 103.08 | R35: 2.0431 | S35: -2.2551 | T35: 20.009 | U35: 93.343 | V35: -1.564 | W35: 20.042 | X35: 101.49 | Y35: 418.42 | Z35: 20.205 | AA35: 86.569 | AB35: 413.47 | AC35: 20.27 | AD35: 102.06 | AE35: 2.0038
A36: 36.79583833 | B36: -121.8459433 | C36: 2013-05-10T17:31:33 | D36: 130.7302431 | E36: 5.018334697 | F36: 414.1544991 | G36: 413.4411231 | H36: =VLOOKUP(C36,pH_Proc!O:R,4) -> 7.793826529 | I36: =VLOOKUP(C36,[1]Proc_CTD!$A:$H,8) -> 97.24428112 | L36: 421.91 | M36: 19.653 | N36: 85.882 | O36: 416.2 | P36: 19.739 | Q36: 102.27 | R36: 2.0002 | S36: -2.2867 | T36: 19.944 | U36: 92.926 | V36: -1.8001 | W36: 19.977 | X36: 100.8 | Y36: 420.79 | Z36: 20.183 | AA36: 86.852 | AB36: 415.48 | AC36: 20.259 | AD36: 102.28 | AE36: 1.9402
A37: 36.797525 | B37: -121.8537417 | C37: 2013-05-10T18:31:16 | D37: 130.771713 | E37: 5.662364756 | F37: 267.8368161 | G37: 407.3810881 | H37: =VLOOKUP(C37,pH_Proc!O:R,4) -> 8.237441837 | I37: =VLOOKUP(C37,[1]Proc_CTD!$A:$H,8) -> 123.2391454 | L37: 276.41 | M37: 16.69 | N37: 86.658 | O37: 270.38 | P37: 16.742 | Q37: 103.03 | R37: 1.9834 | S37: -0.072758 | T37: 16.855 | U37: 92.495 | V37: 0.056205 | W37: 16.876 | X37: 100.61 | Y37: 417.61 | Z37: 16.979 | AA37: 86.604 | AB37: 411.22 | AC37: 17.01 | AD37: 102.31 | AE37: 1.9741
A38: 36.795565 | B38: -121.8653533 | C38: 2013-05-10T19:31:16 | D38: 130.8133796 | E38: 6.717770604 | F38: 224.8754061 | G38: 399.0976781 | H38: =VLOOKUP(C38,pH_Proc!O:R,4) -> 8.294242893 | I38: =VLOOKUP(C38,[1]Proc_CTD!$A:$H,8) -> 130.1839286 | L38: 231.81 | M38: 14.714 | N38: 86.537 | O38: 227.62 | P38: 14.774 | Q38: 102.65 | R38: 1.9529 | S38: 0.42419 | T38: 14.944 | U38: 92.165 | V38: 0.65653 | W38: 14.974 | X38: 100.57 | Y38: 409.85 | Z38: 15.125 | AA38: 86.497 | AB38: 403.46 | AC38: 15.176 | AD38: 102.28 | AE38: 1.9439
A39: 36.794225 | B39: -121.8746417 | C39: 2013-05-10T20:31:16 | D39: 130.8550463 | E39: 7.557730072 | F39: 244.2377287 | G39: 399.2781127 | H39: =VLOOKUP(C39,pH_Proc!O:R,4) -> 8.256947575 | I39: =VLOOKUP(C39,[1]Proc_CTD!$A:$H,8) -> 126.1129646 | L39: 252.28 | M39: 14.165 | N39: 85.891 | O39: 247.39 | P39: 14.224 | Q39: 102.43 | R39: 1.9405 | S39: 0.60456 | T39: 14.404 | U39: 92.34 | V39: 0.88442 | W39: 14.434 | X39: 100.93 | Y39: 409.59 | Z39: 14.594 | AA39: 86.362 | AB39: 403.87 | AC39: 14.644 | AD39: 102.25 | AE39: 1.9287
A40: 36.79299833 | B40: -121.8820783 | C40: 2013-05-10T21:31:17 | D40: 130.8967245 | E40: 8.233245446 | F40: 273.8176961 | G40: 398.8467481 | H40: =VLOOKUP(C40,pH_Proc!O:R,4) -> 8.211058911 | I40: =VLOOKUP(C40,[1]Proc_CTD!$A:$H,8) -> 116.7661975 | L40: 281.95 | M40: 13.788 | N40: 86.497 | O40: 277.26 | P40: 13.847 | Q40: 102.37 | R40: 1.929 | S40: 0.69742 | T40: 14.026 | U40: 92.717 | V40: 0.89979 | W40: 14.055 | X40: 101.11 | Y40: 409.39 | Z40: 14.215 | AA40: 86.847 | AB40: 403.45 | AC40: 14.274 | AD40: 102.24 | AE40: 1.9177
A41: 36.79247833 | B41: -121.8847517 | C41: 2013-05-10T22:31:16 | D41: 130.9383796 | E41: 8.477651132 | F41: 300.5129096 | G41: 398.8696256 | H41: =VLOOKUP(C41,pH_Proc!O:R,4) -> 8.158796637 | I41: =VLOOKUP(C41,[1]Proc_CTD!$A:$H,8) -> 107.033699 | L41: 310.64 | M41: 13.55 | N41: 85.985 | O41: 304.47 | P41: 13.609 | Q41: 102.26 | R41: 1.9268 | S41: 1.0059 | T41: 13.788 | U41: 92.744 | V41: 1.1667 | W41: 13.817 | X41: 101.21 | Y41: 409.64 | Z41: 13.986 | AA41: 86.578 | AB41: 403.74 | AC41: 14.046 | AD41: 102.2 | AE41: 1.9259
A42: 36.79083833 | B42: -121.8870517 | C42: 2013-05-10T23:31:16 | D42: 130.9800463 | E42: 8.712698864 | F42: 351.7072484 | G42: 399.0674884 | H42: =VLOOKUP(C42,pH_Proc!O:R,4) -> 8.105333156 | I42: =VLOOKUP(C42,[1]Proc_CTD!$A:$H,8) -> 98.9111686 | L42: 361.29 | M42: 13.353 | N42: 85.931 | O42: 355.98 | P42: 13.422 | Q42: 102.33 | R42: 1.9216 | S42: 0.89932 | T42: 13.609 | U42: 92.233 | V42: 1.007 | W42: 13.639 | X42: 100.82 | Y42: 409.47 | Z42: 13.798 | AA42: 86.429 | AB42: 403.78 | AC42: 13.857 | AD42: 102.13 | AE42: 1.9244
A43: 36.78997 | B43: -121.8917883 | C43: 2013-05-11T00:31:16 | D43: 131.021713 | E43: 9.145009905 | F43: 404.3744114 | G43: 398.5485074 | H43: =VLOOKUP(C43,pH_Proc!O:R,4) -> 8.044117493 | I43: =VLOOKUP(C43,[1]Proc_CTD!$A:$H,8) -> 92.49209831 | L43: 416.14 | M43: 13.175 | N43: 85.864 | O43: 409.27 | P43: 13.234 | Q43: 102.25 | R43: 1.925 | S43: 1.0356 | T43: 13.412 | U43: 92.3 | V43: 1.1408 | W43: 13.441 | X43: 101.16 | Y43: 409.6 | Z43: 13.609 | AA43: 86.322 | AB43: 403.39 | AC43: 13.669 | AD43: 102.08 | AE43: 1.9201
A44: 36.78850333 | B44: -121.9007967 | C44: 2013-05-11T01:31:18 | D44: 131.0634028 | E44: 9.96320705 | F44: 410.5517521 | G44: 398.0478561 | H44: =VLOOKUP(C44,pH_Proc!O:R,4) -> 8.039493535 | I44: =VLOOKUP(C44,[1]Proc_CTD!$A:$H,8) -> 90.96533069 | L44: 422.83 | M44: 12.988 | N44: 85.702 | O44: 415.63 | P44: 13.057 | Q44: 102.25 | R44: 1.9159 | S44: 1.1568 | T44: 13.234 | U44: 92.017 | V44: 1.2661 | W44: 13.264 | X44: 100.35 | Y44: 409.72 | Z44: 13.432 | AA44: 86.51 | AB44: 403.01 | AC44: 13.491 | AD44: 102.09 | AE44: 1.9164
A45: 36.786525 | B45: -121.9142533 | C45: 2013-05-11T02:31:16 | D45: 131.1050463 | E45: 11.18084446 | F45: 368.2631201 | G45: 397.6304321 | H45: =VLOOKUP(C45,pH_Proc!O:R,4) -> 8.038895602 | I45: =VLOOKUP(C45,[1]Proc_CTD!$A:$H,8) -> 90.10347262 | L45: 379.96 | M45: 12.88 | N45: 85.864 | O45: 373.11 | P45: 12.949 | Q45: 102.32 | R45: 1.9175 | S45: 1.1896 | T45: 13.126 | U45: 92.327 | V45: 1.4274 | W45: 13.146 | X45: 100.78 | Y45: 408.93 | Z45: 13.323 | AA45: 86.726 | AB45: 402.75 | AC45: 13.392 | AD45: 102.13 | AE45: 1.9143
A46: 36.78325667 | B46: -121.9348367 | C46: 2013-05-11T03:31:17 | D46: 131.1467245 | E46: 13.04866061 | F46: 407.2685382 | G46: 397.8856622 | H46: =VLOOKUP(C46,pH_Proc!O:R,4) -> 8.042576169 | I46: =VLOOKUP(C46,[1]Proc_CTD!$A:$H,8) -> 89.28801095 | L46: 418.01 | M46: 12.92 | N46: 85.999 | O46: 412.22 | P46: 12.998 | Q46: 102.29 | R46: 1.912 | S46: 1.0352 | T46: 13.175 | U46: 92.448 | V46: 1.1698 | W46: 13.205 | X46: 101.03 | Y46: 408.75 | Z46: 13.372 | AA46: 86.739 | AB46: 402.75 | AC46: 13.432 | AD46: 102.17 | AE46: 1.9103
A47: 36.780255 | B47: -121.9531317 | C47: 2013-05-11T04:31:16 | D47: 131.1883796 | E47: 14.71098573 | F47: 403.3155434 | G47: 398.1831994 | H47: =VLOOKUP(C47,pH_Proc!O:R,4) -> 8.053024921 | I47: =VLOOKUP(C47,[1]Proc_CTD!$A:$H,8) -> 89.39160811 | L47: 414.65 | M47: 12.812 | N47: 85.77 | O47: 408.45 | P47: 12.88 | Q47: 102.01 | R47: 1.9129 | S47: 1.082 | T47: 13.057 | U47: 92.34 | V47: 1.3895 | W47: 13.087 | X47: 100.65 | Y47: 409.05 | Z47: 13.254 | AA47: 86.739 | AB47: 403.27 | AC47: 13.313 | AD47: 102.18 | AE47: 1.9112
A48: 36.77775667 | B48: -121.9693517 | C48: 2013-05-11T05:31:17 | D48: 131.2300579 | E48: 16.18128877 | F48: 399.0196328 | G48: 400.2284088 | H48: =VLOOKUP(C48,pH_Proc!O:R,4) -> 8.054833726 | I48: =VLOOKUP(C48,[1]Proc_CTD!$A:$H,8) -> 88.64863016 | L48: 411.28 | M48: 12.763 | N48: 86.12 | O48: 404.08 | P48: 12.831 | Q48: 102.21 | R48: 1.9101 | S48: 1.1761 | T48: 13.018 | U48: 92.475 | V48: 1.3553 | W48: 13.047 | X48: 100.53 | Y48: 411.22 | Z48: 13.215 | AA48: 86.712 | AB48: 405.3 | AC48: 13.274 | AD48: 102.2 | AE48: 1.9088
A49: 36.77532333 | B49: -121.985195 | C49: 2013-05-11T06:31:16 | D49: 131.271713 | E49: 17.61734491 | F49: 408.0282836 | G49: 399.8938156 | H49: =VLOOKUP(C49,pH_Proc!O:R,4) -> 8.045018473 | I49: =VLOOKUP(C49,[1]Proc_CTD!$A:$H,8) -> 86.22604996 | L49: 420.38 | M49: 12.812 | N49: 86.147 | O49: 413.37 | P49: 12.88 | Q49: 102.39 | R49: 1.9118 | S49: 1.3581 | T49: 13.057 | U49: 92.314 | V49: 1.553 | W49: 13.087 | X49: 101.01 | Y49: 411.26 | Z49: 13.264 | AA49: 86.604 | AB49: 405.16 | AC49: 13.323 | AD49: 102.2 | AE49: 1.9134
A50: 36.77266667 | B50: -122.002585 | C50: 2013-05-11T07:31:17 | D50: 131.3133912 | E50: 19.19333985 | F50: 392.9031271 | G50: 399.6801991 | H50: =VLOOKUP(C50,pH_Proc!O:R,4) -> 8.061586755 | I50: =VLOOKUP(C50,[1]Proc_CTD!$A:$H,8) -> 88.45911981 | L50: 405.01 | M50: 12.851 | N50: 85.77 | O50: 397.91 | P50: 12.92 | Q50: 102.33 | R50: 1.9229 | S50: 1.1352 | T50: 13.097 | U50: 92.421 | V50: 1.3586 | W50: 13.126 | X50: 100.96 | Y50: 410.65 | Z50: 13.303 | AA50: 86.402 | AB50: 404.75 | AC50: 13.363 | AD50: 102.22 | AE50: 1.9172
A51: 36.80125333 | B51: -122.0037117 | C51: 2013-05-11T08:31:17 | D51: 131.3550579 | E51: 18.9361551 | F51: 384.6499613 | G51: 402.8707733 | H51: =VLOOKUP(C51,pH_Proc!O:R,4) -> 8.071367275 | I51: =VLOOKUP(C51,[1]Proc_CTD!$A:$H,8) -> 90.08215381 | L51: 395.97 | M51: 12.9 | N51: 85.805 | O51: 389.45 | P51: 12.979 | Q51: 102.45 | R51: 1.9203 | S51: 1.2157 | T51: 13.156 | U51: 92.502 | V51: 1.2284 | W51: 13.185 | X51: 101.23 | Y51: 414.18 | Z51: 13.363 | AA51: 86.416 | AB51: 407.84 | AC51: 13.412 | AD51: 102.2 | AE51: 1.9153
A52: 36.76993167 | B52: -122.019775 | C52: 2013-05-11T09:31:16 | D52: 131.396713 | E52: 20.75361612 | F52: 391.8167149 | G52: 401.8634269 | H52: =VLOOKUP(C52,pH_Proc!O:R,4) -> 8.066194249 | I52: =VLOOKUP(C52,[1]Proc_CTD!$A:$H,8) -> 89.8412362 | L52: 403.88 | M52: 12.93 | N52: 86.039 | O52: 396.62 | P52: 12.998 | Q52: 102.25 | R52: 1.9142 | S52: 1.2655 | T52: 13.175 | U52: 92.515 | V52: 1.1651 | W52: 13.205 | X52: 100.72 | Y52: 412.85 | Z52: 13.382 | AA52: 86.564 | AB52: 406.76 | AC52: 13.442 | AD52: 102.16 | AE52: 1.9129
A53: 36.767335 | B53: -122.0357617 | C53: 2013-05-11T10:31:16 | D53: 131.4383796 | E53: 22.20586873 | F53: 390.3507272 | G53: 402.3394072 | H53: =VLOOKUP(C53,pH_Proc!O:R,4) -> 8.07060556 | I53: =VLOOKUP(C53,[1]Proc_CTD!$A:$H,8) -> 89.8412362 | L53: 402.87 | M53: 12.92 | N53: 85.298 | O53: 395.28 | P53: 12.988 | Q53: 101.78 | R53: 1.9247 | S53: 1.1045 | T53: 13.175 | U53: 92.071 | V53: 1.3047 | W53: 13.205 | X53: 100.76 | Y53: 413.73 | Z53: 13.382 | AA53: 86.12 | AB53: 407.38 | AC53: 13.432 | AD53: 102.09 | AE53: 1.9156
A54: 36.76540333 | B54: -122.0484967 | C54: 2013-05-11T11:31:17 | D54: 131.4800579 | E54: 23.35980558 | F54: 391.783325 | G54: 405.030321 | H54: =VLOOKUP(C54,pH_Proc!O:R,4) -> 8.064350152 | I54: =VLOOKUP(C54,[1]Proc_CTD!$A:$H,8) -> 89.8412362 | L54: 403.85 | M54: 12.92 | N54: 85.595 | O54: 396.76 | P54: 12.979 | Q54: 102.29 | R54: 1.9287 | S54: 1.2452 | T54: 13.156 | U54: 92.031 | V54: 1.3388 | W54: 13.185 | X54: 100.76 | Y54: 416.02 | Z54: 13.363 | AA54: 86.12 | AB54: 410.13 | AC54: 13.432 | AD54: 102.06 | AE54: 1.9208
A55: 36.763635 | B55: -122.058595 | C55: 2013-05-11T12:31:16 | D55: 131.521713 | E55: 24.27997902 | F55: 399.0444028 | G55: 404.4640788 | H55: =VLOOKUP(C55,pH_Proc!O:R,4) -> 8.058184204 | I55: =VLOOKUP(C55,[1]Proc_CTD!$A:$H,8) -> 89.8412362 | L55: 410.9 | M55: 12.91 | N55: 85.702 | O55: 404 | P55: 12.979 | Q55: 102.21 | R55: 1.9221 | S55: 1.1273 | T55: 13.156 | U55: 92.152 | V55: 1.2503 | W55: 13.185 | X55: 100.73 | Y55: 415.96 | Z55: 13.363 | AA55: 86.268 | AB55: 409.47 | AC55: 13.422 | AD55: 102.02 | AE55: 1.9149
A56: 36.76241833 | B56: -122.0670233 | C56: 2013-05-11T13:31:16 | D56: 131.5633796 | E56: 25.04237145 | F56: 401.2757834 | G56: 405.3479714 | H56: =VLOOKUP(C56,pH_Proc!O:R,4) -> 8.057228358 | I56: =VLOOKUP(C56,[1]Proc_CTD!$A:$H,8) -> 88.2947301 | L56: 413.05 | M56: 12.9 | N56: 85.433 | O56: 406.3 | P56: 12.959 | Q56: 102.16 | R56: 1.9285 | S56: 1.2938 | T56: 13.146 | U56: 91.815 | V56: 1.2982 | W56: 13.166 | X56: 100.28 | Y56: 416.51 | Z56: 13.343 | AA56: 86.093 | AB56: 410.41 | AC56: 13.412 | AD56: 102.06 | AE56: 1.9207
A57: 36.760915 | B57: -122.0769233 | C57: 2013-05-11T14:31:17 | D57: 131.6050579 | E57: 25.93951359 | F57: 400.7558116 | G57: 406.8987716 | H57: =VLOOKUP(C57,pH_Proc!O:R,4) -> 8.058622124 | I57: =VLOOKUP(C57,[1]Proc_CTD!$A:$H,8) -> 88.2947301 | L57: 412.06 | M57: 12.88 | N57: 85.756 | O57: 405.83 | P57: 12.949 | Q57: 102.32 | R57: 1.9206 | S57: 1.1937 | T57: 13.126 | U57: 92.044 | V57: 1.353 | W57: 13.146 | X57: 100.66 | Y57: 418.24 | Z57: 13.323 | AA57: 86.241 | AB57: 412.03 | AC57: 13.382 | AD57: 102.04 | AE57: 1.9152
A58: 36.75912333 | B58: -122.0882167 | C58: 2013-05-11T15:31:16 | D58: 131.646713 | E58: 26.96460432 | F58: 406.3252966 | G58: 405.9289766 | H58: =VLOOKUP(C58,pH_Proc!O:R,4) -> 8.053062967 | I58: =VLOOKUP(C58,[1]Proc_CTD!$A:$H,8) -> 88.2947301 | L58: 417.69 | M58: 12.851 | N58: 85.541 | O58: 411.44 | P58: 12.92 | Q58: 102.29 | R58: 1.9273 | S58: 1.2104 | T58: 13.097 | U58: 92.138 | V58: 1.3418 | W58: 13.126 | X58: 100.84 | Y58: 417.3 | Z58: 13.294 | AA58: 86.12 | AB58: 411.04 | AC58: 13.353 | AD58: 102.08 | AE58: 1.9179
A59: 36.75796667 | B59: -122.0961333 | C59: 2013-05-11T16:31:17 | D59: 131.6883912 | E59: 27.68106037 | F59: 404.4079004 | G59: 401.2967884 | H59: =VLOOKUP(C59,pH_Proc!O:R,4) -> 8.055860824 | I59: =VLOOKUP(C59,[1]Proc_CTD!$A:$H,8) -> 87.8479329 | L59: 416.82 | M59: 12.92 | N59: 85.568 | O59: 409.52 | P59: 12.988 | Q59: 102.2 | R59: 1.9206 | S59: 1.3369 | T59: 13.156 | U59: 92.085 | V59: 1.357 | W59: 13.185 | X59: 100.72 | Y59: 412.1 | Z59: 13.363 | AA59: 86.12 | AB59: 406.38 | AC59: 13.422 | AD59: 102.06 | AE59: 1.9202
A60: 36.75669667 | B60: -122.10336 | C60: 2013-05-11T17:31:16 | D60: 131.7300463 | E60: 28.33971872 | F60: 404.4818141 | G60: 399.6863421 | H60: =VLOOKUP(C60,pH_Proc!O:R,4) -> 8.057241975 | I60: =VLOOKUP(C60,[1]Proc_CTD!$A:$H,8) -> 87.97303845 | L60: 417.11 | M60: 12.871 | N60: 86.322 | O60: 409.73 | P60: 12.939 | Q60: 102.3 | R60: 1.9099 | S60: 1.2081 | T60: 13.116 | U60: 92.462 | V60: 1.4924 | W60: 13.146 | X60: 100.96 | Y60: 410.96 | Z60: 13.313 | AA60: 86.537 | AB60: 404.89 | AC60: 13.372 | AD60: 102.08 | AE60: 1.9131
A61: 36.75642 | B61: -122.1058583 | C61: 2013-05-11T18:31:16 | D61: 131.771713 | E61: 28.56390813 | F61: 404.5125289 | G61: 399.5486209 | H61: =VLOOKUP(C61,pH_Proc!O:R,4) -> 8.057498974 | I61: =VLOOKUP(C61,[1]Proc_CTD!$A:$H,8) -> 88.23779214 | L61: 416.07 | M61: 12.841 | N61: 86.147 | O61: 409.58 | P61: 12.91 | Q61: 102.33 | R61: 1.9114 | S61: 1.2173 | T61: 13.097 | U61: 92.448 | V61: 1.3114 | W61: 13.126 | X61: 100.7 | Y61: 410.43 | Z61: 13.284 | AA61: 86.497 | AB61: 404.57 | AC61: 13.353 | AD61: 102.09 | AE61: 1.9129
A62: 36.75581333 | B62: -122.1093633 | C62: 2013-05-11T19:31:16 | D62: 131.8133796 | E62: 28.88316677 | F62: 413.7411373 | G62: 399.2655493 | H62: =VLOOKUP(C62,pH_Proc!O:R,4) -> 8.048937077 | I62: =VLOOKUP(C62,[1]Proc_CTD!$A:$H,8) -> 87.47474283 | L62: 424.98 | M62: 12.822 | N62: 86.133 | O62: 418.86 | P62: 12.89 | Q62: 102.3 | R62: 1.9094 | S62: 1.1709 | T62: 13.077 | U62: 92.462 | V62: 1.2771 | W62: 13.106 | X62: 100.78 | Y62: 410.43 | Z62: 13.274 | AA62: 86.618 | AB62: 404.25 | AC62: 13.333 | AD62: 102.09 | AE62: 1.9129
A63: 36.754645 | B63: -122.1164583 | C63: 2013-05-11T20:31:16 | D63: 131.8550463 | E63: 29.52814159 | F63: 409.7122473 | G63: 399.3583873 | H63: =VLOOKUP(C63,pH_Proc!O:R,4) -> 8.05244133 | I63: =VLOOKUP(C63,[1]Proc_CTD!$A:$H,8) -> 89.78043979 | L63: 421.82 | M63: 12.822 | N63: 85.729 | O63: 414.86 | P63: 12.89 | Q63: 102.33 | R63: 1.927 | S63: 1.1174 | T63: 13.077 | U63: 92.448 | V63: 1.3434 | W63: 13.106 | X63: 101.19 | Y63: 410.6 | Z63: 13.274 | AA63: 86.147 | AB63: 404.41 | AC63: 13.333 | AD63: 102.09 | AE63: 1.9275
A64: 36.75341833 | B64: -122.1248217 | C64: 2013-05-11T21:31:16 | D64: 131.896713 | E64: 30.28516398 | F64: 426.8429811 | G64: 398.7042611 | H64: =VLOOKUP(C64,pH_Proc!O:R,4) -> 8.039664828 | I64: =VLOOKUP(C64,[1]Proc_CTD!$A:$H,8) -> 88.35778827 | L64: 439.74 | M64: 12.763 | N64: 85.321 | O64: 432.2 | P64: 12.831 | Q64: 101.74 | R64: 1.9291 | S64: 1.2316 | T64: 13.018 | U64: 92.017 | V64: 1.3936 | W64: 13.047 | X64: 100.82 | Y64: 410.72 | Z64: 13.205 | AA64: 86.106 | AB64: 403.8 | AC64: 13.274 | AD64: 102.08 | AE64: 1.93
A65: 36.75211333 | B65: -122.1330183 | C65: 2013-05-11T22:31:17 | D65: 131.9383912 | E65: 31.02933949 | F65: 431.9989062 | G65: 399.1637942 | H65: =VLOOKUP(C65,pH_Proc!O:R,4) -> 8.034257632 | I65: =VLOOKUP(C65,[1]Proc_CTD!$A:$H,8) -> 87.45079177 | L65: 445.16 | M65: 12.674 | N65: 85.406 | O65: 437.54 | P65: 12.743 | Q65: 102.1 | R65: 1.9364 | S65: 1.2517 | T65: 12.92 | U65: 91.937 | V65: 1.5298 | W65: 12.949 | X65: 100.76 | Y65: 410.3 | Z65: 13.126 | AA65: 85.985 | AB65: 404.4 | AC65: 13.175 | AD65: 102.04 | AE65: 1.9326
A66: 36.751065 | B66: -122.14021 | C66: 2013-05-11T23:31:16 | D66: 131.9800463 | E66: 31.68018781 | F66: 444.1648403 | G66: 399.3113243 | H66: =VLOOKUP(C66,pH_Proc!O:R,4) -> 8.016798814 | I66: =VLOOKUP(C66,[1]Proc_CTD!$A:$H,8) -> 85.37180242 | L66: 457.66 | M66: 12.616 | N66: 85.514 | O66: 449.76 | P66: 12.675 | Q66: 101.74 | R66: 1.9231 | S66: 1.3073 | T66: 12.861 | U66: 91.923 | V66: 1.4709 | W66: 12.89 | X66: 100.65 | Y66: 410.82 | Z66: 13.057 | AA66: 86.079 | AB66: 404.49 | AC66: 13.116 | AD66: 102.02 | AE66: 1.9266
A67: 36.74957 | B67: -122.14915 | C67: 2013-05-12T00:31:16 | D67: =C67-41274 -> 132.021713 | E67: =ABS(Rhumb(36.806,A67,-121.791,B67)) -> 32.49342753 | F67: =0.9908*(O67-V67) -> 435.0521554 | G67: =0.9908*(AB67-V67) -> 399.5418834 | H67: =VLOOKUP(C67,pH_Proc!O:R,4) -> 8.03233034 | I67: =VLOOKUP(C67,[1]Proc_CTD!$A:$H,8) -> 88.5449601 | L67: 447.79 | M67: 12.577 | N67: 85.783 | O67: 440.69 | P67: 12.645 | Q67: 102.37 | R67: 1.9287 | S67: 1.4504 | T67: 12.822 | U67: 92.61 | V67: 1.5982 | W67: 12.851 | X67: 101.24 | Y67: 410.99 | Z67: 13.028 | AA67: 86.079 | AB67: 404.85 | AC67: 13.087 | AD67: 102.01 | AE67: 1.9268
A68: 36.74732167 | B68: -122.1635733 | C68: 2013-05-12T01:31:16 | D68: 132.0633796 | E68: 33.80195268 | F68: 439.6988093 | G68: 399.4128813 | H68: =VLOOKUP(C68,pH_Proc!O:R,4) -> 8.024071813 | I68: =VLOOKUP(C68,[1]Proc_CTD!$A:$H,8) -> 88.41349828 | L68: 452.19 | M68: 12.537 | N68: 85.204 | O68: 445.25 | P68: 12.606 | Q68: 101.86 | R68: 1.9268 | S68: 1.4437 | T68: 12.782 | U68: 91.842 | V68: 1.4684 | W68: 12.812 | X68: 100.35 | Y68: 411.14 | Z68: 12.989 | AA68: 86.052 | AB68: 404.59 | AC68: 13.047 | AD68: 101.97 | AE68: 1.9249
A69: 36.744485 | B69: -122.181145 | C69: 2013-05-12T02:31:18 | D69: 132.1050694 | E69: 35.3982701 | F69: 438.1189787 | G69: 399.5966747 | H69: =VLOOKUP(C69,pH_Proc!O:R,4) -> 8.029501062 | I69: =VLOOKUP(C69,[1]Proc_CTD!$A:$H,8) -> 88.0530173 | L69: 450.14 | M69: 12.489 | N69: 85.186 | O69: 443.79 | P69: 12.557 | Q69: 101.89 | R69: 1.9281 | S69: 1.2574 | T69: 12.733 | U69: 91.963 | V69: 1.6029 | W69: 12.773 | X69: 100.63 | Y69: 410.78 | Z69: 12.93 | AA69: 85.985 | AB69: 404.91 | AC69: 12.998 | AD69: 102.01 | AE69: 1.9251
A70: 36.74187333 | B70: -122.198285 | C70: 2013-05-12T03:31:16 | D70: 132.146713 | E70: 36.95205581 | F70: 454.7341993 | G70: 399.5169153 | H70: =VLOOKUP(C70,pH_Proc!O:R,4) -> 8.013616773 | I70: =VLOOKUP(C70,[1]Proc_CTD!$A:$H,8) -> 87.27455347 | L70: 467.7 | M70: 12.459 | N70: 85.783 | O70: 460.63 | P70: 12.528 | Q70: 102.41 | R70: 1.924 | S70: 1.3953 | T70: 12.704 | U70: 92.462 | V70: 1.6734 | W70: 12.733 | X70: 101.16 | Y70: 410.77 | Z70: 12.9 | AA70: 86.133 | AB70: 404.9 | AC70: 12.969 | AD70: 102.02 | AE70: 1.9208
A71: 36.738645 | B71: -122.2187833 | C71: 2013-05-12T04:31:16 | D71: 132.1883796 | E71: 38.81262905 | F71: 448.2995478 | G71: 399.8197038 | H71: =VLOOKUP(C71,pH_Proc!O:R,4) -> 8.022953463 | I71: =VLOOKUP(C71,[1]Proc_CTD!$A:$H,8) -> 85.86938877 | L71: 461.77 | M71: 12.41 | N71: 85.352 | O71: 454.01 | P71: 12.479 | Q71: 101.71 | R71: 1.9221 | S71: 1.3212 | T71: 12.665 | U71: 92.058 | V71: 1.5478 | W71: 12.694 | X71: 100.89 | Y71: 411.34 | Z71: 12.861 | AA71: 86.106 | AB71: 405.08 | AC71: 12.92 | AD71: 102.12 | AE71: 1.9213
A72: 36.73543833 | B72: -122.2396117 | C72: 2013-05-12T05:31:16 | D72: 132.2300463 | E72: 40.70163459 | F72: 442.8859156 | G72: 399.8158396 | H72: =VLOOKUP(C72,pH_Proc!O:R,4) -> 8.024814747 | I72: =VLOOKUP(C72,[1]Proc_CTD!$A:$H,8) -> 87.03407549 | L72: 456.24 | M72: 12.43 | N72: 85.204 | O72: 448.52 | P72: 12.498 | Q72: 100.92 | R72: 1.9267 | S72: 1.3311 | T72: 12.684 | U72: 91.398 | V72: 1.5217 | W72: 12.704 | X72: 100.15 | Y72: 410.8 | Z72: 12.881 | AA72: 86.106 | AB72: 405.05 | AC72: 12.939 | AD72: 102.14 | AE72: 1.9222
A73: 36.73166 | B73: -122.26356 | C73: 2013-05-12T06:31:16 | D73: 132.271713 | E73: 42.87568227 | F73: 446.155952 | G73: 400.876392 | H73: =VLOOKUP(C73,pH_Proc!O:R,4) -> 8.01935598 | I73: =VLOOKUP(C73,[1]Proc_CTD!$A:$H,8) -> 86.06686733 | L73: 459.55 | M73: 12.459 | N73: 85.541 | O73: 451.88 | P73: 12.528 | Q73: 102.2 | R73: 1.926 | S73: 1.4386 | T73: 12.714 | U73: 91.586 | V73: 1.5813 | W73: 12.743 | X73: 100.54 | Y73: 412.17 | Z73: 12.91 | AA73: 86.079 | AB73: 406.18 | AC73: 12.979 | AD73: 102.14 | AE73: 1.9229
A74: 36.72795833 | B74: -122.28707 | C74: 2013-05-12T07:31:16 | D74: 132.3133796 | E74: 45.00987478 | F74: 443.5249816 | G74: 401.2574536 | H74: =VLOOKUP(C74,pH_Proc!O:R,4) -> 8.023298439 | I74: =VLOOKUP(C74,[1]Proc_CTD!$A:$H,8) -> 86.89408186 | L74: 457.22 | M74: 12.489 | N74: 85.662 | O74: 449.22 | P74: 12.557 | Q74: 102.08 | R74: 1.9222 | S74: 1.2807 | T74: 12.733 | U74: 92.004 | V74: 1.5767 | W74: 12.773 | X74: 100.93 | Y74: 412.91 | Z74: 12.93 | AA74: 86.106 | AB74: 406.56 | AC74: 12.998 | AD74: 102.14 | AE74: 1.923
A75: 36.724685 | B75: -122.307555 | C75: 2013-05-12T08:31:17 | D75: 132.3550579 | E75: 46.87058681 | F75: 445.2388675 | G75: 401.0392795 | H75: =VLOOKUP(C75,pH_Proc!O:R,4) -> 8.019240084 | I75: =VLOOKUP(C75,[1]Proc_CTD!$A:$H,8) -> 85.83117547 | L75: 457.66 | M75: 12.41 | N75: 85.671 | O75: 450.9 | P75: 12.489 | Q75: 102.26 | R75: 1.9231 | S75: 1.257 | T75: 12.665 | U75: 91.99 | V75: 1.5269 | W75: 12.694 | X75: 100.9 | Y75: 412.84 | Z75: 12.861 | AA75: 86.012 | AB75: 406.29 | AC75: 12.92 | AD75: 102.1 | AE75: 1.9261
A76: 36.72170333 | B76: -122.3265433 | C76: 2013-05-12T09:31:17 | D76: 132.3967245 | E76: 48.59427822 | F76: 444.5685913 | G76: 400.6959673 | H76: =VLOOKUP(C76,pH_Proc!O:R,4) -> 8.018992531 | I76: =VLOOKUP(C76,[1]Proc_CTD!$A:$H,8) -> 85.06750385 | L76: 457.44 | M76: 12.313 | N76: 85.999 | O76: 450.11 | P76: 12.381 | Q76: 102.17 | R76: 1.9092 | S76: 1.2671 | T76: 12.567 | U76: 92.273 | V76: 1.4134 | W76: 12.596 | X76: 101.13 | Y76: 412.14 | Z76: 12.763 | AA76: 86.429 | AB76: 405.83 | AC76: 12.822 | AD76: 102.08 | AE76: 1.916
A77: 36.71845167 | B77: -122.3473217 | C77: 2013-05-12T10:31:17 | D77: 132.4383912 | E77: 50.48029211 | F77: 434.0055734 | G77: 401.1605534 | H77: =VLOOKUP(C77,pH_Proc!O:R,4) -> 8.033916806 | I77: =VLOOKUP(C77,[1]Proc_CTD!$A:$H,8) -> 85.26917206 | L77: 447.27 | M77: 12.313 | N77: 86.066 | O77: 439.4 | P77: 12.381 | Q77: 102.68 | R77: 1.9224 | S77: 1.4298 | T77: 12.567 | U77: 92.327 | V77: 1.3645 | W77: 12.596 | X77: 101.08 | Y77: 412.61 | Z77: 12.773 | AA77: 86.12 | AB77: 406.25 | AC77: 12.822 | AD77: 102.09 | AE77: 1.9216
A78: 36.71193167 | B78: -122.3607917 | C78: 2013-05-12T11:31:16 | D78: 132.4800463 | E78: 51.80124351 | F78: 448.5658748 | G78: 400.8390388 | H78: =VLOOKUP(C78,pH_Proc!O:R,4) -> 8.023075176 | I78: =VLOOKUP(C78,[1]Proc_CTD!$A:$H,8) -> 83.30846662 | L78: 461.32 | M78: 12.332 | N78: 86.12 | O78: 454.22 | P78: 12.401 | Q78: 102.01 | R78: 1.9082 | S78: 1.4947 | T78: 12.586 | U78: 92.596 | V78: 1.489 | W78: 12.616 | X78: 100.81 | Y78: 412.09 | Z78: 12.782 | AA78: 86.483 | AB78: 406.05 | AC78: 12.841 | AD78: 102.08 | AE78: 1.9119
A79: 36.70389167 | B79: -122.3700233 | C79: 2013-05-12T12:31:16 | D79: 132.521713 | E79: 52.79422608 | F79: 434.9038327 | G79: 400.4041767 | H79: =VLOOKUP(C79,pH_Proc!O:R,4) -> 8.031190858 | I79: =VLOOKUP(C79,[1]Proc_CTD!$A:$H,8) -> 85.47402063 | L79: 447.53 | M79: 12.371 | N79: 86.066 | O79: 440.57 | P79: 12.44 | Q79: 102.56 | R79: 1.9183 | S79: 1.2954 | T79: 12.626 | U79: 92.866 | V79: 1.6279 | W79: 12.655 | X79: 101.46 | Y79: 411.92 | Z79: 12.822 | AA79: 86.47 | AB79: 405.75 | AC79: 12.881 | AD79: 102.09 | AE79: 1.9151
A80: 36.69896833 | B80: -122.375675 | C80: 2013-05-12T13:31:17 | D80: 132.5633912 | E80: 53.4067649 | F80: 432.6570946 | G80: 400.5948066 | H80: =VLOOKUP(C80,pH_Proc!O:R,4) -> 8.033975205 | I80: =VLOOKUP(C80,[1]Proc_CTD!$A:$H,8) -> 85.32659425 | L80: 445.77 | M80: 12.459 | N80: 86.201 | O80: 438.15 | P80: 12.528 | Q80: 102.17 | R80: 1.912 | S80: 1.3769 | T80: 12.724 | U80: 92.556 | V80: 1.4755 | W80: 12.733 | X80: 101.21 | Y80: 411.69 | Z80: 12.91 | AA80: 86.564 | AB80: 405.79 | AC80: 12.979 | AD80: 102.13 | AE80: 1.9122
A81: 36.69876167 | B81: -122.37815 | C81: 2013-05-12T14:31:16 | D81: 132.6050463 | E81: 53.62681156 | F81: 427.6724789 | G81: 400.0886069 | H81: =VLOOKUP(C81,pH_Proc!O:R,4) -> 8.039928908 | I81: =VLOOKUP(C81,[1]Proc_CTD!$A:$H,8) -> 87.14610024 | L81: 439.66 | M81: 12.518 | N81: 86.214 | O81: 433.17 | P81: 12.586 | Q81: 102.87 | R81: 1.9238 | S81: 1.3037 | T81: 12.773 | U81: 92.489 | V81: 1.5264 | W81: 12.792 | X81: 101.24 | Y81: 411.95 | Z81: 12.969 | AA81: 86.133 | AB81: 405.33 | AC81: 13.038 | AD81: 102.17 | AE81: 1.9264
A82: 36.71423667 | B82: -122.3584133 | C82: 2013-05-12T15:31:16 | D82: 132.646713 | E82: 51.54176215 | F82: 415.8931549 | G82: 400.6051109 | H82: =VLOOKUP(C82,pH_Proc!O:R,4) -> 8.053414741 | I82: =VLOOKUP(C82,[1]Proc_CTD!$A:$H,8) -> 88.84347861 | L82: 428.96 | M82: 12.723 | N82: 85.877 | O82: 421.23 | P82: 12.792 | Q82: 102.51 | R82: 1.9285 | S82: 1.1585 | T82: 12.979 | U82: 92.314 | V82: 1.4751 | W82: 13.008 | X82: 101.09 | Y82: 412.79 | Z82: 13.175 | AA82: 86.106 | AB82: 405.8 | AC82: 13.234 | AD82: 102.17 | AE82: 1.9321
A83: 36.72121833 | B83: -122.330415 | C83: 2013-05-12T16:31:16 | D83: 132.6883796 | E83: 48.94306888 | F83: 427.2482183 | G83: 401.3189823 | H83: =VLOOKUP(C83,pH_Proc!O:R,4) -> 8.040267661 | I83: =VLOOKUP(C83,[1]Proc_CTD!$A:$H,8) -> 87.37053402 | L83: 439.71 | M83: 12.704 | N83: 85.81 | O83: 432.67 | P83: 12.763 | Q83: 102.25 | R83: 1.9308 | S83: 1.1902 | T83: 12.939 | U83: 92.098 | V83: 1.4546 | W83: 12.979 | X83: 100.9 | Y83: 412.65 | Z83: 13.146 | AA83: 86.12 | AB83: 406.5 | AC83: 13.205 | AD83: 102.2 | AE83: 1.9348
A84: 36.72601667 | B84: -122.2989783 | C84: 2013-05-12T17:31:16 | D84: 132.7300463 | E84: 46.09237768 | F84: 422.8725483 | G84: 401.2037523 | H84: =VLOOKUP(C84,pH_Proc!O:R,4) -> 8.044523264 | I84: =VLOOKUP(C84,[1]Proc_CTD!$A:$H,8) -> 87.75197568 | L84: 435 | M84: 12.665 | N84: 85.218 | O84: 428.11 | P84: 12.733 | Q84: 101.12 | R84: 1.9248 | S84: 1.2897 | T84: 12.92 | U84: 91.91 | V84: 1.3109 | W84: 12.949 | X84: 100.77 | Y84: 412.88 | Z84: 13.116 | AA84: 86.12 | AB84: 406.24 | AC84: 13.175 | AD84: 102.2 | AE84: 1.936
A85: 36.73035167 | B85: -122.2720583 | C85: 2013-05-12T18:31:17 | D85: 132.7717245 | E85: 43.64648764 | F85: 422.5930436 | G85: 400.8846156 | H85: =VLOOKUP(C85,pH_Proc!O:R,4) -> 8.046579028 | I85: =VLOOKUP(C85,[1]Proc_CTD!$A:$H,8) -> 89.32568386 | L85: 434.84 | M85: 12.665 | N85: 85.218 | O85: 427.9 | P85: 12.733 | Q85: 101.2 | R85: 1.9224 | S85: 1.1744 | T85: 12.92 | U85: 92.058 | V85: 1.383 | W85: 12.939 | X85: 100.62 | Y85: 412.67 | Z85: 13.107 | AA85: 86.16 | AB85: 405.99 | AC85: 13.175 | AD85: 102.17 | AE85: 1.9351
A86: 36.73350833 | B86: -122.2520133 | C86: 2013-05-12T19:31:16 | D86: 132.8133796 | E86: 41.82687692 | F86: 420.3167797 | G86: 401.0457197 | H86: =VLOOKUP(C86,pH_Proc!O:R,4) -> 8.045915191 | I86: =VLOOKUP(C86,[1]Proc_CTD!$A:$H,8) -> 90.25027875 | L86: 432.85 | M86: 12.616 | N86: 85.743 | O86: 425.69 | P86: 12.684 | Q86: 101.85 | R86: 1.9146 | S86: 1.3215 | T86: 12.871 | U86: 92.542 | V86: 1.4704 | W86: 12.89 | X86: 101.39 | Y86: 412.08 | Z86: 13.067 | AA86: 86.497 | AB86: 406.24 | AC86: 13.126 | AD86: 102.13 | AE86: 1.9261
A87: 36.73648667 | B87: -122.2328567 | C87: 2013-05-12T20:31:17 | D87: 132.8550579 | E87: 40.08880668 | F87: 429.1186506 | G87: 400.4944386 | H87: =VLOOKUP(C87,pH_Proc!O:R,4) -> 8.042908756 | I87: =VLOOKUP(C87,[1]Proc_CTD!$A:$H,8) -> 91.69210518 | L87: 440.69 | M87: 12.596 | N87: 85.325 | O87: 434.51 | P87: 12.665 | Q87: 101.56 | R87: 1.9255 | S87: 1.1989 | T87: 12.841 | U87: 92.071 | V87: 1.4068 | W87: 12.871 | X87: 100.82 | Y87: 412.23 | Z87: 13.038 | AA87: 86.147 | AB87: 405.62 | AC87: 13.097 | AD87: 102.1 | AE87: 1.9329
A88: 36.7389 | B88: -122.2166517 | C88: 2013-05-12T21:31:16 | D88: 132.896713 | E88: 38.6208931 | F88: 455.6797197 | G88: 400.4426197 | H88: =VLOOKUP(C88,pH_Proc!O:R,4) -> 8.014044917 | I88: =VLOOKUP(C88,[1]Proc_CTD!$A:$H,8) -> 88.92100467 | L88: 466.32 | M88: 12.547 | N88: 85.069 | O88: 461.43 | P88: 12.626 | Q88: 101.59 | R88: 1.9246 | S88: 1.2812 | T88: 12.802 | U88: 91.667 | V88: 1.5191 | W88: 12.831 | X88: 100.63 | Y88: 411.94 | Z88: 12.998 | AA88: 85.999 | AB88: 405.68 | AC88: 13.057 | AD88: 102.05 | AE88: 1.9365
A89: 36.741035 | B89: -122.20295 | C89: 2013-05-12T22:31:16 | D89: 132.9383796 | E89: 37.37772711 | F89: 448.17223 | G89: 400.534566 | H89: =VLOOKUP(C89,pH_Proc!O:R,4) -> 8.022710205 | I89: =VLOOKUP(C89,[1]Proc_CTD!$A:$H,8) -> 90.5963273 | L89: 462.3 | M89: 12.577 | N89: 85.352 | O89: 453.73 | P89: 12.645 | Q89: 100.93 | R89: 1.9196 | S89: 1.1437 | T89: 12.822 | U89: 91.546 | V89: 1.3963 | W89: 12.851 | X89: 100.22 | Y89: 412.01 | Z89: 13.028 | AA89: 86.308 | AB89: 405.65 | AC89: 13.087 | AD89: 101.95 | AE89: 1.9257
A90: 36.743045 | B90: -122.1915367 | C90: 2013-05-12T23:31:16 | D90: 132.9800463 | E90: 36.33718739 | F90: 447.1719183 | G90: 400.5052383 | H90: =VLOOKUP(C90,pH_Proc!O:R,4) -> 8.026013454 | I90: =VLOOKUP(C90,[1]Proc_CTD!$A:$H,8) -> 90.93299066 | L90: 461.95 | M90: 12.616 | N90: 84.76 | O90: 452.88 | P90: 12.684 | Q90: 101.05 | R90: 1.9259 | S90: 1.3782 | T90: 12.861 | U90: 91.586 | V90: 1.5559 | W90: 12.89 | X90: 100.63 | Y90: 412.17 | Z90: 13.067 | AA90: 85.877 | AB90: 405.78 | AC90: 13.116 | AD90: 101.91 | AE90: 1.9363
A91: 36.74499667 | B91: -122.1787483 | C91: 2013-05-13T00:31:16 | D91: 133.021713 | E91: 35.17783354 | F91: 456.8791822 | G91: 400.8890742 | H91: =VLOOKUP(C91,pH_Proc!O:R,4) -> 8.016255237 | I91: =VLOOKUP(C91,[1]Proc_CTD!$A:$H,8) -> 89.40538672 | L91: 473.08 | M91: 12.596 | N91: 84.746 | O91: 462.63 | P91: 12.665 | Q91: 100.8 | R91: 1.9215 | S91: 1.2361 | T91: 12.841 | U91: 91.708 | V91: 1.5085 | W91: 12.871 | X91: 100.51 | Y91: 412.13 | Z91: 13.038 | AA91: 85.864 | AB91: 406.12 | AC91: 13.097 | AD91: 101.86 | AE91: 1.9329
A92: 36.747305 | B92: -122.1639167 | C92: 2013-05-13T01:31:16 | D92: 133.0633796 | E92: 33.83230278 | F92: 466.421577 | G92: 400.711721 | H92: =VLOOKUP(C92,pH_Proc!O:R,4) -> 8.008260992 | I92: =VLOOKUP(C92,[1]Proc_CTD!$A:$H,8) -> 87.78877374 | L92: 478.71 | M92: 12.498 | N92: 84.719 | O92: 472.22 | P92: 12.567 | Q92: 101.09 | R92: 1.922 | S92: 1.1602 | T92: 12.743 | U92: 91.761 | V92: 1.4675 | W92: 12.773 | X92: 100.31 | Y92: 411.81 | Z92: 12.939 | AA92: 85.877 | AB92: 405.9 | AC92: 12.998 | AD92: 101.78 | AE92: 1.9307
A93: 36.74971167 | B93: -122.1481567 | C93: 2013-05-13T02:31:16 | D93: 133.1050463 | E93: 32.40359657 | F93: 469.9134534 | G93: 400.9141414 | H93: =VLOOKUP(C93,pH_Proc!O:R,4) -> 8.002184472 | I93: =VLOOKUP(C93,[1]Proc_CTD!$A:$H,8) -> 86.1191629 | L93: 483.48 | M93: 12.371 | N93: 84.773 | O93: 475.66 | P93: 12.449 | Q93: 100.45 | R93: 1.9047 | S93: 1.3843 | T93: 12.626 | U93: 91.91 | V93: 1.3832 | W93: 12.655 | X93: 100.18 | Y93: 412.21 | Z93: 12.822 | AA93: 86.295 | AB93: 406.02 | AC93: 12.881 | AD93: 101.77 | AE93: 1.9197
A94: 36.75247333 | B94: -122.1309033 | C94: 2013-05-13T03:31:17 | D94: 133.1467245 | E94: 30.83681342 | F94: 481.4404206 | G94: 400.7595766 | H94: =VLOOKUP(C94,pH_Proc!O:R,4) -> 7.996658775 | I94: =VLOOKUP(C94,[1]Proc_CTD!$A:$H,8) -> 86.44206208 | L94: 494.94 | M94: 12.274 | N94: 84.76 | O94: 487.53 | P94: 12.352 | Q94: 100.49 | R94: 1.9077 | S94: 1.4394 | T94: 12.528 | U94: 91.533 | V94: 1.6192 | W94: 12.557 | X94: 100.02 | Y94: 411.93 | Z94: 12.724 | AA94: 86.281 | AB94: 406.1 | AC94: 12.782 | AD94: 101.85 | AE94: 1.9175
A95: 36.75531 | B95: -122.1128517 | C95: 2013-05-13T04:31:17 | D95: 133.1883912 | E95: 29.19873435 | F95: 486.1390915 | G95: 401.1482675 | H95: =VLOOKUP(C95,pH_Proc!O:R,4) -> 7.991875938 | I95: =VLOOKUP(C95,[1]Proc_CTD!$A:$H,8) -> 85.27880994 | L95: 500.47 | M95: 12.157 | N95: 84.262 | O95: 492.19 | P95: 12.235 | Q95: 100.42 | R95: 1.9121 | S95: 1.432 | T95: 12.41 | U95: 91.95 | V95: 1.5369 | W95: 12.44 | X95: 100.47 | Y95: 412.45 | Z95: 12.616 | AA95: 86.389 | AB95: 406.41 | AC95: 12.665 | AD95: 101.87 | AE95: 1.9131
A96: 36.75803333 | B96: -122.0949033 | C96: 2013-05-13T05:31:16 | D96: 133.2300463 | E96: 27.57219316 | F96: 421.9837016 | G96: 400.7409496 | H96: =VLOOKUP(C96,pH_Proc!O:R,4) -> 8.034931236 | I96: =VLOOKUP(C96,[1]Proc_CTD!$A:$H,8) -> 91.66310589 | L96: 435.82 | M96: 12.157 | N96: 84.809 | O96: 427.48 | P96: 12.225 | Q96: 100.53 | R96: 1.9029 | S96: 1.3039 | T96: 12.41 | U96: 91.465 | V96: 1.578 | W96: 12.44 | X96: 99.935 | Y96: 411.76 | Z96: 12.616 | AA96: 86.308 | AB96: 406.04 | AC96: 12.665 | AD96: 101.9 | AE96: 1.9169
A97: 36.760635 | B97: -122.0782683 | C97: 2013-05-13T06:31:16 | D97: 133.271713 | E97: 26.063041 | F97: 389.2287453 | G97: 400.8508293 | H97: =VLOOKUP(C97,pH_Proc!O:R,4) -> 8.083221551 | I97: =VLOOKUP(C97,[1]Proc_CTD!$A:$H,8) -> 97.2162538 | L97: 402.32 | M97: 12.352 | N97: 84.921 | O97: 394.27 | P97: 12.42 | Q97: 100.82 | R97: 1.9131 | S97: 1.3335 | T97: 12.606 | U97: 91.748 | V97: 1.4271 | W97: 12.635 | X97: 100.46 | Y97: 412.17 | Z97: 12.812 | AA97: 86.281 | AB97: 406 | AC97: 12.881 | AD97: 101.89 | AE97: 1.9189
A98: 36.763085 | B98: -122.0631867 | C98: 2013-05-13T07:31:18 | D98: 133.3134028 | E98: 24.69287507 | F98: 358.2729828 | G98: 400.8278428 | H98: =VLOOKUP(C98,pH_Proc!O:R,4) -> 8.103967931 | I98: =VLOOKUP(C98,[1]Proc_CTD!$A:$H,8) -> 99.18692833 | L98: 368.2 | M98: 12.479 | N98: 85.083 | O98: 363.05 | P98: 12.547 | Q98: 100.73 | R98: 1.9103 | S98: 1.3663 | T98: 12.733 | U98: 91.788 | V98: 1.4503 | W98: 12.753 | X98: 100.34 | Y98: 412.92 | Z98: 12.93 | AA98: 86.295 | AB98: 406 | AC98: 12.998 | AD98: 101.89 | AE98: 1.9202
A99: 36.76582333 | B99: -122.045685 | C99: 2013-05-13T08:31:16 | D99: 133.3550463 | E99: 23.10517388 | F99: 319.7362131 | G99: 400.4963211 | H99: =VLOOKUP(C99,pH_Proc!O:R,4) -> 8.16031161 | I99: =VLOOKUP(C99,[1]Proc_CTD!$A:$H,8) -> 104.0897294 | L99: 328.91 | M99: 12.733 | N99: 85.016 | O99: 324.11 | P99: 12.812 | Q99: 101.19 | R99: 1.9204 | S99: 1.1666 | T99: 12.998 | U99: 91.842 | V99: 1.4049 | W99: 13.028 | X99: 100.19 | Y99: 411.69 | Z99: 13.205 | AA99: 86.214 | AB99: 405.62 | AC99: 13.264 | AD99: 101.86 | AE99: 1.9242
A100: 36.76905833 | B100: -122.02468 | C100: 2013-05-13T09:31:16 | D100: 133.396713 | E100: 21.20084775 | F100: 342.3521148 | G100: 400.9381188 | H100: =VLOOKUP(C100,pH_Proc!O:R,4) -> 8.143463544 | I100: =VLOOKUP(C100,[1]Proc_CTD!$A:$H,8) -> 100.579323 | L100: 351.92 | M100: 13.028 | N100: 84.235 | O100: 346.83 | P100: 13.097 | Q100: 99.988 | R100: 1.9267 | S100: 0.88915 | T100: 13.274 | U100: 91.371 | V100: 1.299 | W100: 13.303 | X100: 100.2 | Y100: 411.71 | Z100: 13.481 | AA100: 86.187 | AB100: 405.96 | AC100: 13.55 | AD100: 101.85 | AE100: 1.9275
A101: 36.77272333 | B101: -122.0016917 | C101: 2013-05-13T10:31:16 | D101: 133.4383796 | E101: 19.11410433 | F101: 420.2525758 | G101: 400.8923438 | H101: =VLOOKUP(C101,pH_Proc!O:R,4) -> 8.050639341 | I101: =VLOOKUP(C101,[1]Proc_CTD!$A:$H,8) -> 91.2419227 | L101: 432.3 | M101: 13.087 | N101: 84.719 | O101: 425.45 | P101: 13.156 | Q101: 100.65 | R101: 1.9326 | S101: 1.0581 | T101: 13.333 | U101: 91.358 | V101: 1.2952 | W101: 13.363 | X101: 100.34 | Y101: 411.75 | Z101: 13.53 | AA101: 86.147 | AB101: 405.91 | AC101: 13.59 | AD101: 101.83 | AE101: 1.9306
A102: 36.77664667 | B102: -121.9766517 | C102: 2013-05-13T11:31:16 | D102: 133.4800463 | E102: 16.84272013 | F102: 420.3140054 | G102: 401.5878854 | H102: =VLOOKUP(C102,pH_Proc!O:R,4) -> 8.042607107 | I102: =VLOOKUP(C102,[1]Proc_CTD!$A:$H,8) -> 88.73663039 | L102: 434.44 | M102: 12.988 | N102: 84.257 | O102: 425.48 | P102: 13.057 | Q102: 100.27 | R102: 1.9347 | S102: 1.1417 | T102: 13.234 | U102: 90.859 | V102: 1.2632 | W102: 13.264 | X102: 100.02 | Y102: 412.67 | Z102: 13.442 | AA102: 86.187 | AB102: 406.58 | AC102: 13.501 | AD102: 101.82 | AE102: 1.9308
A103: 36.77997 | B103: -121.9549533 | C103: 2013-05-13T12:31:16 | D103: 133.521713 | E103: 14.87620862 | F103: 427.618183 | G103: 409.536083 | H103: =VLOOKUP(C103,pH_Proc!O:R,4) -> 8.050932129 | I103: =VLOOKUP(C103,[1]Proc_CTD!$A:$H,8) -> 90.44424931 | L103: 440.03 | M103: 12.998 | N103: 84.275 | O103: 432.86 | P103: 13.067 | Q103: 100.19 | R103: 1.9249 | S103: 1.1428 | T103: 13.244 | U103: 90.954 | V103: 1.2712 | W103: 13.264 | X103: 99.894 | Y103: 420.94 | Z103: 13.442 | AA103: 86.187 | AB103: 414.61 | AC103: 13.511 | AD103: 101.85 | AE103: 1.9252
A104: 36.78304167 | B104: -121.935325 | C104: 2013-05-13T13:31:16 | D104: 133.5633796 | E104: 13.09595714 | F104: 426.503434 | G104: 406.548722 | H104: =VLOOKUP(C104,pH_Proc!O:R,4) -> 8.043217227 | I104: =VLOOKUP(C104,[1]Proc_CTD!$A:$H,8) -> 89.18326726 | L104: 438.87 | M104: 12.89 | N104: 84.814 | O104: 431.68 | P104: 12.959 | Q104: 100.7 | R104: 1.9221 | S104: 1.1101 | T104: 13.136 | U104: 91.438 | V104: 1.2163 | W104: 13.166 | X104: 100.24 | Y104: 417.91 | Z104: 13.343 | AA104: 86.281 | AB104: 411.54 | AC104: 13.392 | AD104: 101.94 | AE104: 1.9269
A105: 36.78579833 | B105: -121.9179383 | C105: 2013-05-13T14:31:17 | D105: 133.6050579 | E105: 11.51830014 | F105: 396.9830434 | G105: 408.7339314 | H105: =VLOOKUP(C105,pH_Proc!O:R,4) -> 8.080112723 | I105: =VLOOKUP(C105,[1]Proc_CTD!$A:$H,8) -> 92.88962335 | L105: 408.95 | M105: 13.008 | N105: 84.221 | O105: 401.79 | P105: 13.077 | Q105: 100.1 | R105: 1.92 | S105: 1.1222 | T105: 13.254 | U105: 91.075 | V105: 1.1208 | W105: 13.284 | X105: 99.8 | Y105: 420.2 | Z105: 13.461 | AA105: 86.174 | AB105: 413.65 | AC105: 13.521 | AD105: 101.97 | AE105: 1.9289
A106: 36.78840833 | B106: -121.90076 | C106: 2013-05-13T15:31:16 | D106: 133.646713 | E106: 9.96208145 | F106: 384.7275409 | G106: 404.7714249 | H106: =VLOOKUP(C106,pH_Proc!O:R,4) -> 8.08158592 | I106: =VLOOKUP(C106,[1]Proc_CTD!$A:$H,8) -> 93.44532818 | L106: 395.76 | M106: 13.116 | N106: 84.868 | O106: 389.43 | P106: 13.185 | Q106: 101 | R106: 1.9311 | S106: 1.1009 | T106: 13.372 | U106: 91.735 | V106: 1.1301 | W106: 13.402 | X106: 100.51 | Y106: 416.14 | Z106: 13.58 | AA106: 86.254 | AB106: 409.66 | AC106: 13.639 | AD106: 102.04 | AE106: 1.9334
A107: 36.79096167 | B107: -121.88484 | C107: 2013-05-13T16:31:16 | D107: 133.6883796 | E107: 8.516968802 | F107: 356.5385081 | G107: 409.1004481 | H107: =VLOOKUP(C107,pH_Proc!O:R,4) -> 8.106981316 | I107: =VLOOKUP(C107,[1]Proc_CTD!$A:$H,8) -> 96.82777944 | L107: 367.52 | M107: 13.264 | N107: 85.218 | O107: 360.83 | P107: 13.333 | Q107: 101.98 | R107: 1.9405 | S107: 0.85958 | T107: 13.53 | U107: 92.044 | V107: 0.98088 | W107: 13.54 | X107: 100.85 | Y107: 420.56 | Z107: 13.728 | AA107: 86.227 | AB107: 413.88 | AC107: 13.788 | AD107: 102.06 | AE107: 1.942
A108: 36.78937333 | B108: -121.874795 | C108: 2013-05-13T17:31:16 | D108: 133.7300463 | E108: 7.683090414 | F108: 318.701164 | G108: 410.538416 | H108: =VLOOKUP(C108,pH_Proc!O:R,4) -> 8.138696498 | I108: =VLOOKUP(C108,[1]Proc_CTD!$A:$H,8) -> 99.64025805 | L108: 328.84 | M108: 13.57 | N108: 85.245 | O108: 322.5 | P108: 13.639 | Q108: 102.45 | R108: 1.9574 | S108: 0.80885 | T108: 13.827 | U108: 92.542 | V108: 0.83956 | W108: 13.857 | X108: 101.64 | Y108: 421.8 | Z108: 14.036 | AA108: 86.174 | AB108: 415.19 | AC108: 14.095 | AD108: 102.06 | AE108: 1.9512
A109: 36.792985 | B109: -121.8615983 | C109: 2013-05-13T18:31:16 | D109: 133.771713 | E109: 6.4472718 | F109: 280.1202442 | G109: 401.0969242 | H109: =VLOOKUP(C109,pH_Proc!O:R,4) -> 8.197637348 | I109: =VLOOKUP(C109,[1]Proc_CTD!$A:$H,8) -> 110.2003685 | L109: 288.12 | M109: 13.768 | N109: 85.312 | O109: 283.56 | P109: 13.847 | Q109: 102.4 | R109: 1.9574 | S109: 0.61493 | T109: 14.026 | U109: 92.731 | V109: 0.83872 | W109: 14.055 | X109: 101.81 | Y109: 411.77 | Z109: 14.225 | AA109: 86.295 | AB109: 405.66 | AC109: 14.294 | AD109: 102.04 | AE109: 1.9528
A110: 36.79685833 | B110: -121.8472767 | C110: 2013-05-13T19:31:17 | D110: 133.8133912 | E110: 5.110215532 | F110: 232.6613305 | G110: 401.3747545 | H110: =VLOOKUP(C110,pH_Proc!O:R,4) -> 8.279410662 | I110: =VLOOKUP(C110,[1]Proc_CTD!$A:$H,8) -> 121.9105475 | L110: 239.8 | M110: 14.016 | N110: 85.15 | O110: 235.41 | P110: 14.085 | Q110: 102.14 | R110: 1.9644 | S110: 0.63186 | T110: 14.264 | U110: 92.408 | V110: 0.58831 | W110: 14.304 | X110: 100.98 | Y110: 411.47 | Z110: 14.484 | AA110: 86.147 | AB110: 405.69 | AC110: 14.534 | AD110: 101.97 | AE110: 1.9591
A111: 36.79738667 | B111: -121.8549667 | C111: 2013-05-13T20:31:16 | D111: 133.8550463 | E111: 5.772423262 | F111: 208.1789993 | G111: 401.2066553 | H111: =VLOOKUP(C111,pH_Proc!O:R,4) -> 8.311175774 | I111: =VLOOKUP(C111,[1]Proc_CTD!$A:$H,8) -> 132.5199111 | L111: 215.36 | M111: 14.165 | N111: 85.164 | O111: 210.69 | P111: 14.224 | Q111: 102.29 | R111: 1.9707 | S111: 0.58642 | T111: 14.424 | U111: 92.542 | V111: 0.57797 | W111: 14.444 | X111: 101.63 | Y111: 411.73 | Z111: 14.624 | AA111: 86.174 | AB111: 405.51 | AC111: 14.684 | AD111: 101.9 | AE111: 1.9614
A112: 36.794715 | B112: -121.8711467 | C112: 2013-05-13T21:31:16 | D112: 133.896713 | E112: 7.241943849 | F112: 286.5503975 | G112: 400.6806495 | H112: =VLOOKUP(C112,pH_Proc!O:R,4) -> 8.205775682 | I112: =VLOOKUP(C112,[1]Proc_CTD!$A:$H,8) -> 112.6871066 | L112: 294.68 | M112: 14.215 | N112: 84.342 | O112: 290.17 | P112: 14.284 | Q112: 101.27 | R112: 1.9703 | S112: 0.59095 | T112: 14.444 | U112: 91.681 | V112: 0.95886 | W112: 14.474 | X112: 100.55 | Y112: 411.42 | Z112: 14.644 | AA112: 86.066 | AB112: 405.36 | AC112: 14.704 | AD112: 101.82 | AE112: 1.9578
A113: 36.792005 | B113: -121.887985 | C113: 2013-05-13T22:31:17 | D113: 133.9383912 | E113: 8.770194876 | F113: 294.5612434 | G113: 400.6263834 | H113: =VLOOKUP(C113,pH_Proc!O:R,4) -> 8.145894623 | I113: =VLOOKUP(C113,[1]Proc_CTD!$A:$H,8) -> 105.4072767 | L113: 302.62 | M113: 13.807 | N113: 84.154 | O113: 297.97 | P113: 13.867 | Q113: 101.16 | R113: 1.9619 | S113: 0.57722 | T113: 14.045 | U113: 91.452 | V113: 0.67363 | W113: 14.075 | X113: 100.55 | Y113: 411.91 | Z113: 14.244 | AA113: 85.864 | AB113: 405.02 | AC113: 14.304 | AD113: 101.74 | AE113: 1.9592
A114: 36.78962 | B114: -121.9030133 | C114: 2013-05-13T23:31:16 | D114: 133.9800463 | E114: 10.13363244 | F114: 364.3409392 | G114: 400.8717352 | H114: =VLOOKUP(C114,pH_Proc!O:R,4) -> 8.125138266 | I114: =VLOOKUP(C114,[1]Proc_CTD!$A:$H,8) -> 102.3209624 | L114: 376.02 | M114: 13.698 | N114: 83.871 | O114: 368.84 | P114: 13.768 | Q114: 100.49 | R114: 1.9515 | S114: 0.67393 | T114: 13.946 | U114: 91.559 | V114: 1.116 | W114: 13.976 | X114: 100.12 | Y114: 412.02 | Z114: 14.135 | AA114: 85.945 | AB114: 405.71 | AC114: 14.195 | AD114: 101.66 | AE114: 1.9525
A115: 36.78773833 | B115: -121.9147433 | C115: 2013-05-14T00:31:17 | D115: 134.0217245 | E115: 11.19829574 | F115: 379.3877234 | G115: 401.4726554 | H115: =VLOOKUP(C115,pH_Proc!O:R,4) -> 8.088910901 | I115: =VLOOKUP(C115,[1]Proc_CTD!$A:$H,8) -> 96.13124541 | L115: 389.32 | M115: 13.451 | N115: 84.356 | O115: 383.99 | P115: 13.52 | Q115: 101.08 | R115: 1.9437 | S115: 0.97216 | T115: 13.708 | U115: 91.708 | V115: 1.0795 | W115: 13.728 | X115: 100.63 | Y115: 412.2 | Z115: 13.897 | AA115: 85.85 | AB115: 406.28 | AC115: 13.956 | AD115: 101.59 | AE115: 1.9463
A116: 36.78591 | B116: -121.9262117 | C116: 2013-05-14T01:31:16 | D116: 134.0633796 | E116: 12.23902564 | F116: 376.2461938 | G116: 401.4125138 | H116: =VLOOKUP(C116,pH_Proc!O:R,4) -> 8.091320739 | I116: =VLOOKUP(C116,[1]Proc_CTD!$A:$H,8) -> 96.46500218 | L116: 387.78 | M116: 13.343 | N116: 83.965 | O116: 380.75 | P116: 13.412 | Q116: 100.69 | R116: 1.9497 | S116: 0.8956 | T116: 13.59 | U116: 91.438 | V116: 1.0102 | W116: 13.619 | X116: 100.58 | Y116: 413.08 | Z116: 13.788 | AA116: 85.648 | AB116: 406.15 | AC116: 13.847 | AD116: 101.58 | AE116: 1.9484
A117: 36.78344333 | B117: -121.94136 | C117: 2013-05-14T02:31:16 | D117: 134.1050463 | E117: 13.61482929 | F117: 372.3643385 | G117: 401.7415585 | H117: =VLOOKUP(C117,pH_Proc!O:R,4) -> 8.093328988 | I117: =VLOOKUP(C117,[1]Proc_CTD!$A:$H,8) -> 95.51989317 | L117: 383.31 | M117: 13.274 | N117: 84.208 | O117: 376.86 | P117: 13.333 | Q117: 100.66 | R117: 1.9433 | S117: 1.0275 | T117: 13.511 | U117: 91.129 | V117: 1.0381 | W117: 13.54 | X117: 99.719 | Y117: 412.54 | Z117: 13.718 | AA117: 85.931 | AB117: 406.51 | AC117: 13.778 | AD117: 101.62 | AE117: 1.9388
A118: 36.78045833 | B118: -121.9605 | C118: 2013-05-14T03:31:18 | D118: 134.1467361 | E118: 15.35054421 | F118: 363.8950792 | G118: 402.7047152 | H118: =VLOOKUP(C118,pH_Proc!O:R,4) -> 8.100383436 | I118: =VLOOKUP(C118,[1]Proc_CTD!$A:$H,8) -> 96.53942048 | L118: 375.23 | M118: 13.175 | N118: 83.912 | O118: 368.48 | P118: 13.234 | Q118: 100.35 | R118: 1.9398 | S118: 0.97225 | T118: 13.412 | U118: 90.954 | V118: 1.206 | W118: 13.441 | X118: 99.733 | Y118: 413.86 | Z118: 13.619 | AA118: 85.797 | AB118: 407.65 | AC118: 13.679 | AD118: 101.66 | AE118: 1.9403
A119: 36.77693167 | B119: -121.9825283 | C119: 2013-05-14T04:31:16 | D119: 134.1883796 | E119: 17.35017517 | F119: 363.9098421 | G119: 401.7286781 | H119: =VLOOKUP(C119,pH_Proc!O:R,4) -> 8.098084226 | I119: =VLOOKUP(C119,[1]Proc_CTD!$A:$H,8) -> 95.7469274 | L119: 373.96 | M119: 13.077 | N119: 83.992 | O119: 368.48 | P119: 13.146 | Q119: 101.29 | R119: 1.9489 | S119: 1.1069 | T119: 13.333 | U119: 91.384 | V119: 1.1911 | W119: 13.353 | X119: 100.46 | Y119: 412.86 | Z119: 13.521 | AA119: 85.837 | AB119: 406.65 | AC119: 13.58 | AD119: 101.71 | AE119: 1.9404
A120: 36.77358 | B120: -122.0036633 | C120: 2013-05-14T05:31:16 | D120: 134.2300463 | E120: 19.26814925 | F120: 332.9409019 | G120: 401.7816859 | H120: =VLOOKUP(C120,pH_Proc!O:R,4) -> 8.145378304 | I120: =VLOOKUP(C120,[1]Proc_CTD!$A:$H,8) -> 99.04476964 | L120: 343.59 | M120: 13.047 | N120: 84.194 | O120: 337.13 | P120: 13.116 | Q120: 101.32 | R120: 1.9509 | S120: 0.99177 | T120: 13.294 | U120: 91.613 | V120: 1.0976 | W120: 13.323 | X120: 100.18 | Y120: 413.42 | Z120: 13.491 | AA120: 85.958 | AB120: 406.61 | AC120: 13.55 | AD120: 101.71 | AE120: 1.9356
A121: 36.76975333 | B121: -122.0264783 | C121: 2013-05-14T06:31:17 | D121: 134.2717245 | E121: 21.34307909 | F121: 343.4024619 | G121: 402.7315659 | H121: =VLOOKUP(C121,pH_Proc!O:R,4) -> 8.130710628 | I121: =VLOOKUP(C121,[1]Proc_CTD!$A:$H,8) -> 98.74980655 | L121: 354.27 | M121: 12.93 | N121: 85.231 | O121: 347.8 | P121: 12.998 | Q121: 102.22 | R121: 1.9352 | S121: 1.0858 | T121: 13.175 | U121: 92.044 | V121: 1.2089 | W121: 13.205 | X121: 101.05 | Y121: 414.23 | Z121: 13.382 | AA121: 85.945 | AB121: 407.68 | AC121: 13.442 | AD121: 101.7 | AE121: 1.9339
A122: 36.76593333 | B122: -122.0509967 | C122: 2013-05-14T07:31:16 | D122: 134.3133796 | E122: 23.56688197 | F122: 389.0236497 | G122: 402.2508297 | H122: =VLOOKUP(C122,pH_Proc!O:R,4) -> 8.089695725 | I122: =VLOOKUP(C122,[1]Proc_CTD!$A:$H,8) -> 95.05718896 | L122: 401.56 | M122: 12.782 | N122: 84.823 | O122: 393.97 | P122: 12.861 | Q122: 101.73 | R122: 1.9208 | S122: 1.0897 | T122: 13.038 | U122: 92.206 | V122: 1.3341 | W122: 13.057 | X122: 101.17 | Y122: 413.89 | Z122: 13.225 | AA122: 85.972 | AB122: 407.32 | AC122: 13.284 | AD122: 101.71 | AE122: 1.9284
A123: 36.76245667 | B123: -122.072165 | C123: 2013-05-14T08:31:16 | D123: 134.3550463 | E123: 25.49072107 | F123: 392.0548042 | G123: 402.3987562 | H123: =VLOOKUP(C123,pH_Proc!O:R,4) -> 8.068546414 | I123: =VLOOKUP(C123,[1]Proc_CTD!$A:$H,8) -> 91.88418731 | L123: 404.7 | M123: 12.498 | N123: 85.083 | O123: 396.99 | P123: 12.557 | Q123: 102.04 | R123: 1.9261 | S123: 1.3376 | T123: 12.743 | U123: 92.367 | V123: 1.2948 | W123: 12.773 | X123: 100.93 | Y123: 413.87 | Z123: 12.939 | AA123: 86.012 | AB123: 407.43 | AC123: 12.998 | AD123: 101.7 | AE123: 1.9243
A124: 36.759685 | B124: -122.089845 | C124: 2013-05-14T09:31:16 | D124: 134.396713 | E124: 27.09479106 | F124: 387.1756096 | G124: 402.1763216 | H124: =VLOOKUP(C124,pH_Proc!O:R,4) -> 8.084481591 | I124: =VLOOKUP(C124,[1]Proc_CTD!$A:$H,8) -> 94.45375288 | L124: 399.59 | M124: 12.391 | N124: 84.517 | O124: 392.22 | P124: 12.449 | Q124: 101.44 | R124: 1.9146 | S124: 1.0571 | T124: 12.645 | U124: 92.058 | V124: 1.4493 | W124: 12.665 | X124: 101.27 | Y124: 413.53 | Z124: 12.841 | AA124: 85.958 | AB124: 407.36 | AC124: 12.9 | AD124: 101.67 | AE124: 1.9179
A125: 36.757 | B125: -122.1067717 | C125: 2013-05-14T10:31:16 | D125: 134.4383796 | E125: 28.63123596 | F125: 414.3009393 | G125: 401.8366753 | H125: =VLOOKUP(C125,pH_Proc!O:R,4) -> 8.056176773 | I125: =VLOOKUP(C125,[1]Proc_CTD!$A:$H,8) -> 92.6065047 | L125: 428.83 | M125: 12.391 | N125: 84.571 | O125: 419.58 | P125: 12.459 | Q125: 101.44 | R125: 1.9152 | S125: 1.2295 | T125: 12.645 | U125: 91.708 | V125: 1.4321 | W125: 12.675 | X125: 100.94 | Y125: 413.6 | Z125: 12.831 | AA125: 85.877 | AB125: 407 | AC125: 12.9 | AD125: 101.67 | AE125: 1.924
A126: 36.75443 | B126: -122.1228667 | C126: 2013-05-14T11:31:16 | D126: 134.4800463 | E126: 30.09260094 | F126: 483.6963732 | G126: 402.0742692 | H126: =VLOOKUP(C126,pH_Proc!O:R,4) -> 7.989675696 | I126: =VLOOKUP(C126,[1]Proc_CTD!$A:$H,8) -> 85.87680935 | L126: 497.44 | M126: 12.254 | N126: 84.809 | O126: 489.83 | P126: 12.322 | Q126: 101.7 | R126: 1.9267 | S126: 1.5416 | T126: 12.508 | U126: 91.95 | V126: 1.6423 | W126: 12.538 | X126: 101.05 | Y126: 413.86 | Z126: 12.694 | AA126: 85.797 | AB126: 407.45 | AC126: 12.753 | AD126: 101.71 | AE126: 1.9273
A127: 36.75261833 | B127: -122.1343883 | C127: 2013-05-14T12:31:16 | D127: 134.521713 | E127: 31.13815382 | F127: 483.1844268 | G127: 401.9091028 | H127: =VLOOKUP(C127,pH_Proc!O:R,4) -> 7.988518358 | I127: =VLOOKUP(C127,[1]Proc_CTD!$A:$H,8) -> 82.49341335 | L127: 498.34 | M127: 12.03 | N127: 83.436 | O127: 489.21 | P127: 12.098 | Q127: 101.67 | R127: 1.9181 | S127: 1.4096 | T127: 12.283 | U127: 91.977 | V127: 1.539 | W127: 12.303 | X127: 100.94 | Y127: 414.14 | Z127: 12.479 | AA127: 85.689 | AB127: 407.18 | AC127: 12.538 | AD127: 101.68 | AE127: 1.9181
A128: 36.75086833 | B128: -122.1445333 | C128: 2013-05-14T13:31:17 | D128: 134.5633912 | E128: 32.06211655 | F128: 478.5862231 | G128: 402.2153591 | H128: =VLOOKUP(C128,pH_Proc!O:R,4) -> 7.998374682 | I128: =VLOOKUP(C128,[1]Proc_CTD!$A:$H,8) -> 83.30419087 | L128: 491.9 | M128: 12.079 | N128: 83.669 | O128: 484.77 | P128: 12.147 | Q128: 100.55 | R128: 1.9016 | S128: 1.5728 | T128: 12.323 | U128: 91.223 | V128: 1.7399 | W128: 12.362 | X128: 100.15 | Y128: 414.27 | Z128: 12.518 | AA128: 85.945 | AB128: 407.69 | AC128: 12.587 | AD128: 101.74 | AE128: 1.9127
A129: 36.749645 | B129: -122.1525033 | C129: 2013-05-14T14:31:18 | D129: 134.6050694 | E129: 32.78475631 | F129: 477.3939934 | G129: 401.6473334 | H129: =VLOOKUP(C129,pH_Proc!O:R,4) -> 7.998532416 | I129: =VLOOKUP(C129,[1]Proc_CTD!$A:$H,8) -> 83.30419087 | L129: 492.29 | M129: 12.03 | N129: 83.938 | O129: 483.51 | P129: 12.098 | Q129: 101.51 | R129: 1.9179 | S129: 1.2587 | T129: 12.283 | U129: 91.613 | V129: 1.6832 | W129: 12.303 | X129: 100.34 | Y129: 413.76 | Z129: 12.479 | AA129: 85.729 | AB129: 407.06 | AC129: 12.547 | AD129: 101.7 | AE129: 1.9185
A130: 36.74863167 | B130: -122.158235 | C130: 2013-05-14T15:31:16 | D130: 134.646713 | E130: 33.30732264 | F130: 472.0156338 | G130: 402.0453378 | H130: =VLOOKUP(C130,pH_Proc!O:R,4) -> 7.999636493 | I130: =VLOOKUP(C130,[1]Proc_CTD!$A:$H,8) -> 83.64530535 | L130: 486.02 | M130: 12.02 | N130: 83.817 | O130: 478.07 | P130: 12.088 | Q130: 101.55 | R130: 1.9173 | S130: 1.4956 | T130: 12.264 | U130: 91.492 | V130: 1.6715 | W130: 12.293 | X130: 100.68 | Y130: 413.47 | Z130: 12.469 | AA130: 85.77 | AB130: 407.45 | AC130: 12.528 | AD130: 101.75 | AE130: 1.9227
A131: 36.74797333 | B131: -122.163165 | C131: 2013-05-14T16:31:16 | D131: =C131-41274 -> 134.6883796 | E131: =ABS(Rhumb(36.806,A131,-121.791,B131)) -> 33.75222219 | F131: =0.9908*(O131-V131) -> 471.914275 | G131: =0.9908*(AB131-V131) -> 401.993519 | H131: =VLOOKUP(C131,pH_Proc!O:R,4) -> 8.003785815 | I131: =VLOOKUP(C131,[1]Proc_CTD!$A:$H,8) -> 83.93643299 | L131: 485.83 | M131: 12.02 | N131: 84.45 | O131: 477.93 | P131: 12.088 | Q131: 102.05 | R131: 1.91 | S131: 1.6174 | T131: 12.274 | U131: 92.327 | V131: 1.6338 | W131: 12.303 | X131: 101.23 | Y131: 413.9 | Z131: 12.479 | AA131: 85.891 | AB131: 407.36 | AC131: 12.538 | AD131: 101.79 | AE131: 1.92
A132: 36.74682667 | B132: -122.1693683 | C132: 2013-05-14T17:31:16 | D132: 134.7300463 | E132: 34.31887964 | F132: 477.9152533 | G132: 402.1884093 | H132: =VLOOKUP(C132,pH_Proc!O:R,4) -> 7.998825268 | I132: =VLOOKUP(C132,[1]Proc_CTD!$A:$H,8) -> 84.2654778 | L132: 492 | M132: 12.059 | N132: 84.311 | O132: 483.79 | P132: 12.118 | Q132: 101.91 | R132: 1.9154 | S132: 1.3797 | T132: 12.313 | U132: 92.165 | V132: 1.4371 | W132: 12.342 | X132: 100.85 | Y132: 413.36 | Z132: 12.518 | AA132: 86.066 | AB132: 407.36 | AC132: 12.567 | AD132: 101.83 | AE132: 1.9178
A133: 36.745815 | B133: -122.176425 | C133: 2013-05-14T18:31:18 | D133: 134.7717361 | E133: 34.95719928 | F133: 485.6893674 | G133: 401.7388834 | H133: =VLOOKUP(C133,pH_Proc!O:R,4) -> 7.991124381 | I133: =VLOOKUP(C133,[1]Proc_CTD!$A:$H,8) -> 83.2017414 | L133: 499.23 | M133: 12.118 | N133: 83.853 | O133: 491.7 | P133: 12.186 | Q133: 101.47 | R133: 1.9188 | S133: 1.5552 | T133: 12.371 | U133: 91.708 | V133: 1.5008 | W133: 12.401 | X133: 101.03 | Y133: 413.28 | Z133: 12.577 | AA133: 86.106 | AB133: 406.97 | AC133: 12.645 | AD133: 101.87 | AE133: 1.9207
A134: 36.74464833 | B134: -122.1835217 | C134: 2013-05-14T19:31:16 | D134: 134.8133796 | E134: 35.60235822 | F134: 480.9011282 | G134: 401.4984162 | H134: =VLOOKUP(C134,pH_Proc!O:R,4) -> 7.99412661 | I134: =VLOOKUP(C134,[1]Proc_CTD!$A:$H,8) -> 83.75802245 | L134: 496.71 | M134: 12.196 | N134: 84.033 | O134: 487.13 | P134: 12.274 | Q134: 101.16 | R134: 1.9178 | S134: 1.5232 | T134: 12.449 | U134: 91.856 | V134: 1.7635 | W134: 12.479 | X134: 100.76 | Y134: 413.75 | Z134: 12.655 | AA134: 85.85 | AB134: 406.99 | AC134: 12.714 | AD134: 101.85 | AE134: 1.9267
A135: 36.74388833 | B135: -122.188375 | C135: 2013-05-14T20:31:16 | D135: 134.8550463 | E135: 36.0427657 | F135: 481.5271156 | G135: 401.3813036 | H135: =VLOOKUP(C135,pH_Proc!O:R,4) -> 7.993990908 | I135: =VLOOKUP(C135,[1]Proc_CTD!$A:$H,8) -> 83.81180479 | L135: 496.11 | M135: 12.254 | N135: 84.069 | O135: 487.52 | P135: 12.322 | Q135: 101.32 | R135: 1.9147 | S135: 1.2976 | T135: 12.508 | U135: 91.856 | V135: 1.5217 | W135: 12.538 | X135: 100.84 | Y135: 413.26 | Z135: 12.714 | AA135: 85.958 | AB135: 406.63 | AC135: 12.773 | AD135: 101.83 | AE135: 1.9248
A136: 36.74309333 | B136: -122.193145 | C136: 2013-05-14T21:31:16 | D136: 134.896713 | E136: 36.47665055 | F136: 477.5379567 | G136: 401.7417567 | H136: =VLOOKUP(C136,pH_Proc!O:R,4) -> 7.99572855 | I136: =VLOOKUP(C136,[1]Proc_CTD!$A:$H,8) -> 84.82513051 | L136: 492.47 | M136: 12.332 | N136: 84.06 | O136: 483.52 | P136: 12.401 | Q136: 101.31 | R136: 1.9162 | S136: 1.2878 | T136: 12.586 | U136: 91.815 | V136: 1.5479 | W136: 12.616 | X136: 100.63 | Y136: 413.32 | Z136: 12.782 | AA136: 86.052 | AB136: 407.02 | AC136: 12.841 | AD136: 101.79 | AE136: 1.9235
A137: 36.74182333 | B137: -122.200435 | C137: 2013-05-14T22:31:16 | D137: 134.9383796 | E137: 37.14095479 | F137: 459.0234716 | G137: 401.6858756 | H137: =VLOOKUP(C137,pH_Proc!O:R,4) -> 8.020768011 | I137: =VLOOKUP(C137,[1]Proc_CTD!$A:$H,8) -> 89.2759313 | L137: 470.95 | M137: 12.391 | N137: 83.588 | O137: 464.62 | P137: 12.449 | Q137: 101.03 | R137: 1.9162 | S137: 1.2546 | T137: 12.645 | U137: 90.981 | V137: 1.3343 | W137: 12.675 | X137: 99.881 | Y137: 413.42 | Z137: 12.841 | AA137: 85.77 | AB137: 406.75 | AC137: 12.9 | AD137: 101.73 | AE137: 1.9245
A138: 36.74138 | B138: -122.2051883 | C138: 2013-05-14T23:31:16 | D138: 134.9800463 | E138: 37.56581524 | F138: 449.0992224 | G138: 401.6993504 | H138: =VLOOKUP(C138,pH_Proc!O:R,4) -> 8.022226025 | I138: =VLOOKUP(C138,[1]Proc_CTD!$A:$H,8) -> 87.98749404 | L138: 463.92 | M138: 12.42 | N138: 84.45 | O138: 454.82 | P138: 12.489 | Q138: 101.83 | R138: 1.9243 | S138: 1.3928 | T138: 12.665 | U138: 92.138 | V138: 1.5507 | W138: 12.694 | X138: 100.8 | Y138: 413.43 | Z138: 12.871 | AA138: 85.958 | AB138: 406.98 | AC138: 12.93 | AD138: 101.77 | AE138: 1.9259
A139: 36.73940167 | B139: -122.2164033 | C139: 2013-05-15T00:31:16 | D139: 135.021713 | E139: 38.58833658 | F139: 443.5207212 | G139: 402.1548212 | H139: =VLOOKUP(C139,pH_Proc!O:R,4) -> 8.026418058 | I139: =VLOOKUP(C139,[1]Proc_CTD!$A:$H,8) -> 89.22424576 | L139: 459.32 | M139: 12.567 | N139: 83.804 | O139: 449.08 | P139: 12.635 | Q139: 100.72 | R139: 1.9293 | S139: 1.1212 | T139: 12.822 | U139: 91.196 | V139: 1.441 | W139: 12.851 | X139: 100.04 | Y139: 413.61 | Z139: 13.018 | AA139: 85.918 | AB139: 407.33 | AC139: 13.087 | AD139: 101.78 | AE139: 1.9319
A140: 36.73730167 | B140: -122.229495 | C140: 2013-05-15T01:31:16 | D140: 135.0633796 | E140: 39.77748315 | F140: 442.2540825 | G140: 402.4437385 | H140: =VLOOKUP(C140,pH_Proc!O:R,4) -> 8.030398162 | I140: =VLOOKUP(C140,[1]Proc_CTD!$A:$H,8) -> 88.91049839 | L140: 454.92 | M140: 12.616 | N140: 83.602 | O140: 447.78 | P140: 12.684 | Q140: 100.8 | R140: 1.9243 | S140: 1.1427 | T140: 12.861 | U140: 91.519 | V140: 1.4194 | W140: 12.89 | X140: 100.06 | Y140: 413.87 | Z140: 13.067 | AA140: 85.931 | AB140: 407.6 | AC140: 13.126 | AD140: 101.79 | AE140: 1.9326
A141: 36.73493167 | B141: -122.244075 | C141: 2013-05-15T02:31:17 | D141: 135.1050579 | E141: 41.10253232 | F141: 447.1425906 | G141: 402.7349346 | H141: =VLOOKUP(C141,pH_Proc!O:R,4) -> 8.017519565 | I141: =VLOOKUP(C141,[1]Proc_CTD!$A:$H,8) -> 87.91758851 | L141: 458.96 | M141: 12.606 | N141: 84.248 | O141: 452.45 | P141: 12.665 | Q141: 102.18 | R141: 1.9326 | S141: 1.1903 | T141: 12.841 | U141: 92.058 | V141: 1.1555 | W141: 12.871 | X141: 100.82 | Y141: 413.73 | Z141: 13.047 | AA141: 85.958 | AB141: 407.63 | AC141: 13.107 | AD141: 101.85 | AE141: 1.9311
A142: 36.73247667 | B142: -122.260105 | C142: 2013-05-15T03:31:16 | D142: 135.146713 | E142: 42.55614438 | F142: 421.9897455 | G142: 402.8673055 | H142: =VLOOKUP(C142,pH_Proc!O:R,4) -> 8.044488443 | I142: =VLOOKUP(C142,[1]Proc_CTD!$A:$H,8) -> 90.55730842 | L142: 432.86 | M142: 12.626 | N142: 83.75 | O142: 427.2 | P142: 12.694 | Q142: 101.5 | R142: 1.9311 | S142: 1.1211 | T142: 12.88 | U142: 92.165 | V142: 1.2919 | W142: 12.91 | X142: 100.89 | Y142: 414.28 | Z142: 13.077 | AA142: 86.066 | AB142: 407.9 | AC142: 13.136 | AD142: 101.89 | AE142: 1.9299
A143: 36.72997 | B143: -122.2762217 | C143: 2013-05-15T04:31:16 | D143: 135.1883796 | E143: 44.01849193 | F143: 421.3140199 | G143: 402.6968879 | H143: =VLOOKUP(C143,pH_Proc!O:R,4) -> 8.045019538 | I143: =VLOOKUP(C143,[1]Proc_CTD!$A:$H,8) -> 90.49841476 | L143: 432.41 | M143: 12.655 | N143: 84.248 | O143: 426.61 | P143: 12.723 | Q143: 101.7 | R143: 1.9256 | S143: 1.3145 | T143: 12.9 | U143: 92.058 | V143: 1.3839 | W143: 12.93 | X143: 100.81 | Y143: 413.98 | Z143: 13.107 | AA143: 86.147 | AB143: 407.82 | AC143: 13.166 | AD143: 101.91 | AE143: 1.9299
A144: 36.726965 | B144: -122.293785 | C144: 2013-05-15T05:31:16 | D144: 135.2300463 | E144: 45.618079 | F144: 407.4004136 | G144: 402.4464136 | H144: =VLOOKUP(C144,pH_Proc!O:R,4) -> 8.053642072 | I144: =VLOOKUP(C144,[1]Proc_CTD!$A:$H,8) -> 92.21204654 | L144: 420.68 | M144: 12.822 | N144: 84.329 | O144: 412.59 | P144: 12.89 | Q144: 101.4 | R144: 1.9254 | S144: 1.0454 | T144: 13.077 | U144: 91.842 | V144: 1.4067 | W144: 13.106 | X144: 100.57 | Y144: 414.03 | Z144: 13.284 | AA144: 86.16 | AB144: 407.59 | AC144: 13.343 | AD144: 101.97 | AE144: 1.9279
A145: 36.72409833 | B145: -122.3117633 | C145: 2013-05-15T06:31:16 | D145: 135.271713 | E145: 47.25098647 | F145: 410.0134505 | G145: 402.8499665 | H145: =VLOOKUP(C145,pH_Proc!O:R,4) -> 8.056073097 | I145: =VLOOKUP(C145,[1]Proc_CTD!$A:$H,8) -> 91.31273442 | L145: 422.24 | M145: 12.92 | N145: 84.1 | O145: 415.09 | P145: 12.998 | Q145: 100.9 | R145: 1.9124 | S145: 1.061 | T145: 13.175 | U145: 91.694 | V145: 1.2694 | W145: 13.205 | X145: 100.53 | Y145: 413.83 | Z145: 13.382 | AA145: 86.174 | AB145: 407.86 | AC145: 13.432 | AD145: 101.97 | AE145: 1.9269
A146: 36.72166 | B146: -122.3270317 | C146: 2013-05-15T07:31:16 | D146: 135.3133796 | E146: 48.63788294 | F146: 412.7625242 | G146: 403.1814882 | H146: =VLOOKUP(C146,pH_Proc!O:R,4) -> 8.056599513 | I146: =VLOOKUP(C146,[1]Proc_CTD!$A:$H,8) -> 92.36451355 | L146: 424.14 | M146: 12.949 | N146: 83.858 | O146: 417.88 | P146: 13.018 | Q146: 100.76 | R146: 1.9188 | S146: 1.0667 | T146: 13.195 | U146: 91.425 | V146: 1.2848 | W146: 13.225 | X146: 100.27 | Y146: 414.29 | Z146: 13.402 | AA146: 86.174 | AB146: 408.21 | AC146: 13.461 | AD146: 101.95 | AE146: 1.9241
A147: 36.71967 | B147: -122.3398917 | C147: 2013-05-15T08:31:16 | D147: 135.3550463 | E147: 49.80466574 | F147: 413.7701678 | G147: 403.2181478 | H147: =VLOOKUP(C147,pH_Proc!O:R,4) -> 8.051204272 | I147: =VLOOKUP(C147,[1]Proc_CTD!$A:$H,8) -> 91.24158549 | L147: 425.8 | M147: 12.939 | N147: 83.992 | O147: 418.92 | P147: 12.998 | Q147: 100.8 | R147: 1.9153 | S147: 1.031 | T147: 13.175 | U147: 91.398 | V147: 1.3078 | W147: 13.205 | X147: 100.45 | Y147: 413.94 | Z147: 13.382 | AA147: 86.201 | AB147: 408.27 | AC147: 13.442 | AD147: 101.94 | AE147: 1.9238
A148: 36.718065 | B148: -122.3498 | C148: 2013-05-15T09:31:16 | D148: 135.396713 | E148: 50.70522573 | F148: 419.9603889 | G148: 403.2356849 | H148: =VLOOKUP(C148,pH_Proc!O:R,4) -> 8.048449381 | I148: =VLOOKUP(C148,[1]Proc_CTD!$A:$H,8) -> 91.31563278 | L148: 431.47 | M148: 12.9 | N148: 83.683 | O148: 425.12 | P148: 12.969 | Q148: 100.84 | R148: 1.913 | S148: 0.969 | T148: 13.146 | U148: 91.452 | V148: 1.2601 | W148: 13.166 | X148: 100.23 | Y148: 414.25 | Z148: 13.343 | AA148: 86.214 | AB148: 408.24 | AC148: 13.402 | AD148: 101.9 | AE148: 1.921
A149: 36.71167167 | B149: -122.3609633 | C149: 2013-05-15T10:31:17 | D149: 135.4383912 | E149: 51.82214186 | F149: 425.3560876 | G149: 402.8748356 | H149: =VLOOKUP(C149,pH_Proc!O:R,4) -> 8.041657934 | I149: =VLOOKUP(C149,[1]Proc_CTD!$A:$H,8) -> 91.30129147 | L149: 438.4 | M149: 12.841 | N149: 83.494 | O149: 430.71 | P149: 12.92 | Q149: 100.57 | R149: 1.9148 | S149: 1.2766 | T149: 13.097 | U149: 91.708 | V149: 1.4043 | W149: 13.126 | X149: 100.62 | Y149: 414.52 | Z149: 13.294 | AA149: 86.187 | AB149: 408.02 | AC149: 13.353 | AD149: 101.91 | AE149: 1.9173
A150: 36.70188333 | B150: -122.3723483 | C150: 2013-05-15T11:31:17 | D150: 135.4800579 | E150: 53.04538158 | F150: 428.5450764 | G150: 402.6653804 | H150: =VLOOKUP(C150,pH_Proc!O:R,4) -> 8.037198382 | I150: =VLOOKUP(C150,[1]Proc_CTD!$A:$H,8) -> 91.41622224 | L150: 442.07 | M150: 12.841 | N150: 84.221 | O150: 433.81 | P150: 12.91 | Q150: 101.71 | R150: 1.9061 | S150: 1.072 | T150: 13.087 | U150: 92.031 | V150: 1.2857 | W150: 13.126 | X150: 101.08 | Y150: 414.07 | Z150: 13.294 | AA150: 86.201 | AB150: 407.69 | AC150: 13.353 | AD150: 101.89 | AE150: 1.9146
A151: 36.70239833 | B151: -122.3736017 | C151: 2013-05-15T12:31:16 | D151: 135.521713 | E151: 53.14168759 | F151: 428.7450199 | G151: 402.4194639 | H151: =VLOOKUP(C151,pH_Proc!O:R,4) -> 8.036924629 | I151: =VLOOKUP(C151,[1]Proc_CTD!$A:$H,8) -> 91.31944927 | L151: 442.4 | M151: 12.88 | N151: 84.262 | O151: 433.9 | P151: 12.949 | Q151: 101.46 | R151: 1.9022 | S151: 1.1352 | T151: 13.126 | U151: 91.64 | V151: 1.1739 | W151: 13.146 | X151: 100.57 | Y151: 413.81 | Z151: 13.323 | AA151: 86.295 | AB151: 407.33 | AC151: 13.372 | AD151: 101.91 | AE151: 1.9092
A152: 36.71350333 | B152: -122.3595583 | C152: 2013-05-15T13:31:16 | D152: 135.5633796 | E152: 51.65810804 | F152: 427.9046233 | G152: 402.7977513 | H152: =VLOOKUP(C152,pH_Proc!O:R,4) -> 8.040699467 | I152: =VLOOKUP(C152,[1]Proc_CTD!$A:$H,8) -> 91.84704738 | L152: 441.03 | M152: 12.802 | N152: 84.046 | O152: 433.3 | P152: 12.871 | Q152: 101.03 | R152: 1.9074 | S152: 1.2502 | T152: 13.047 | U152: 91.411 | V152: 1.4221 | W152: 13.067 | X152: 100.39 | Y152: 414.33 | Z152: 13.244 | AA152: 86.201 | AB152: 407.96 | AC152: 13.313 | AD152: 101.98 | AE152: 1.9148
A153: 36.71955167 | B153: -122.3414017 | C153: 2013-05-15T14:31:16 | D153: 135.6050463 | E153: 49.9391632 | F153: 429.6817222 | G153: 402.6130662 | H153: =VLOOKUP(C153,pH_Proc!O:R,4) -> 8.039815217 | I153: =VLOOKUP(C153,[1]Proc_CTD!$A:$H,8) -> 90.88654308 | L153: 442.21 | M153: 12.792 | N153: 85.312 | O153: 435.02 | P153: 12.861 | Q153: 100.85 | R153: 1.9001 | S153: 1.1529 | T153: 13.038 | U153: 92.435 | V153: 1.3485 | W153: 13.067 | X153: 100.72 | Y153: 413.44 | Z153: 13.244 | AA153: 87.224 | AB153: 407.7 | AC153: 13.313 | AD153: 101.99 | AE153: 1.9004
A154: 36.72276667 | B154: -122.3199867 | C154: 2013-05-15T15:31:17 | D154: 135.6467245 | E154: 47.99834652 | F154: 436.1259845 | G154: 402.5675885 | H154: =VLOOKUP(C154,pH_Proc!O:R,4) -> 8.032861772 | I154: =VLOOKUP(C154,[1]Proc_CTD!$A:$H,8) -> 90.00630958 | L154: 449.61 | M154: 12.812 | N154: 84.513 | O154: 441.41 | P154: 12.88 | Q154: 100.68 | R154: 1.9089 | S154: 1.1944 | T154: 13.067 | U154: 92.071 | V154: 1.2344 | W154: 13.087 | X154: 100.11 | Y154: 413.8 | Z154: 13.264 | AA154: 87.318 | AB154: 407.54 | AC154: 13.323 | AD154: 102.04 | AE154: 1.9028
A155: 36.72626 | B155: -122.2972967 | C155: 2013-05-15T16:31:16 | D155: 135.6883796 | E155: 45.94017873 | F155: 429.773074 | G155: 402.615246 | H155: =VLOOKUP(C155,pH_Proc!O:R,4) -> 8.041530557 | I155: =VLOOKUP(C155,[1]Proc_CTD!$A:$H,8) -> 90.36992907 | L155: 441.83 | M155: 12.88 | N155: 83.44 | O155: 434.92 | P155: 12.949 | Q155: 100.35 | R155: 1.9313 | S155: 1.0971 | T155: 13.136 | U155: 91.169 | V155: 1.1563 | W155: 13.156 | X155: 100.19 | Y155: 413.43 | Z155: 13.333 | AA155: 85.958 | AB155: 407.51 | AC155: 13.392 | AD155: 102.06 | AE155: 1.9405
A156: 36.72992833 | B156: -122.27456 | C156: 2013-05-15T17:31:16 | D156: 135.7300463 | E156: 43.87422243 | F156: 413.4640106 | G156: 402.1193506 | H156: =VLOOKUP(C156,pH_Proc!O:R,4) -> 8.05468422 | I156: =VLOOKUP(C156,[1]Proc_CTD!$A:$H,8) -> 90.90163345 | L156: 427.05 | M156: 12.93 | N156: 83.584 | O156: 418.61 | P156: 12.998 | Q156: 100.69 | R156: 1.9295 | S156: 1.278 | T156: 13.175 | U156: 91.384 | V156: 1.3068 | W156: 13.205 | X156: 100.57 | Y156: 413.75 | Z156: 13.382 | AA156: 86.039 | AB156: 407.16 | AC156: 13.442 | AD156: 102.08 | AE156: 1.9389
A157: 36.73320667 | B157: -122.2533267 | C157: 2013-05-15T18:31:16 | D157: 135.771713 | E157: 41.94815295 | F157: 410.9593672 | G157: 402.6663712 | H157: =VLOOKUP(C157,pH_Proc!O:R,4) -> 8.055660403 | I157: =VLOOKUP(C157,[1]Proc_CTD!$A:$H,8) -> 92.88718037 | L157: 423.38 | M157: 13.028 | N157: 83.736 | O157: 415.93 | P157: 13.097 | Q157: 101 | R157: 1.9426 | S157: 0.93145 | T157: 13.274 | U157: 91.29 | V157: 1.1547 | W157: 13.303 | X157: 100.34 | Y157: 414.05 | Z157: 13.481 | AA157: 86.133 | AB157: 407.56 | AC157: 13.54 | AD157: 102.1 | AE157: 1.9393
A158: 36.736255 | B158: -122.2344333 | C158: 2013-05-15T19:31:16 | D158: 135.8133796 | E158: 40.23156201 | F158: 416.4855641 | G158: 402.7431681 | H158: =VLOOKUP(C158,pH_Proc!O:R,4) -> 8.05067959 | I158: =VLOOKUP(C158,[1]Proc_CTD!$A:$H,8) -> 92.43061756 | L158: 427.7 | M158: 13.077 | N158: 83.723 | O158: 421.32 | P158: 13.146 | Q158: 100.96 | R158: 1.9378 | S158: 1.0517 | T158: 13.323 | U158: 91.896 | V158: 0.96719 | W158: 13.353 | X158: 100.88 | Y158: 413.94 | Z158: 13.521 | AA158: 86.12 | AB158: 407.45 | AC158: 13.59 | AD158: 102.08 | AE158: 1.9429
A159: 36.73858 | B159: -122.2192617 | C159: 2013-05-15T20:31:16 | D159: 135.8550463 | E159: 38.85582268 | F159: 423.4729731 | G159: 402.7454371 | H159: =VLOOKUP(C159,pH_Proc!O:R,4) -> 8.042634281 | I159: =VLOOKUP(C159,[1]Proc_CTD!$A:$H,8) -> 89.51815973 | L159: 435.39 | M159: 13.057 | N159: 84.019 | O159: 428.65 | P159: 13.126 | Q159: 101 | R159: 1.9424 | S159: 1.0872 | T159: 13.313 | U159: 91.627 | V159: 1.2449 | W159: 13.333 | X159: 101 | Y159: 414 | Z159: 13.511 | AA159: 86.093 | AB159: 407.73 | AC159: 13.57 | AD159: 102.06 | AE159: 1.9435
A160: 36.74033 | B160: -122.2083733 | C160: 2013-05-15T21:31:16 | D160: 135.896713 | E160: 37.86674778 | F160: 420.2399927 | G160: 401.8804687 | H160: =VLOOKUP(C160,pH_Proc!O:R,4) -> 8.046090098 | I160: =VLOOKUP(C160,[1]Proc_CTD!$A:$H,8) -> 92.45894478 | L160: 432.4 | M160: 12.998 | N160: 83.979 | O160: 425.25 | P160: 13.077 | Q160: 101.29 | R160: 1.9372 | S160: 0.82961 | T160: 13.254 | U160: 91.694 | V160: 1.1079 | W160: 13.284 | X160: 100.8 | Y160: 413.18 | Z160: 13.451 | AA160: 86.981 | AB160: 406.72 | AC160: 13.511 | AD160: 102.06 | AE160: 1.9259
A161: 36.74166167 | B161: -122.19996 | C161: 2013-05-15T22:31:16 | D161: 135.9383796 | E161: 37.10295745 | F161: 419.9266026 | G161: 401.6067106 | H161: =VLOOKUP(C161,pH_Proc!O:R,4) -> 8.047442661 | I161: =VLOOKUP(C161,[1]Proc_CTD!$A:$H,8) -> 91.96289607 | L161: 434.27 | M161: 12.959 | N161: 84.14 | O161: 425.16 | P161: 13.028 | Q161: 101.31 | R161: 1.9337 | S161: 0.94266 | T161: 13.215 | U161: 91.977 | V161: 1.3342 | W161: 13.244 | X161: 101.07 | Y161: 413.05 | Z161: 13.412 | AA161: 86.147 | AB161: 406.67 | AC161: 13.471 | AD161: 102.02 | AE161: 1.9374
A162: 36.74306167 | B162: -122.1907533 | C162: 2013-05-15T23:31:18 | D162: 135.9800694 | E162: 36.26840083 | F162: 419.4475508 | G162: 401.7419548 | H162: =VLOOKUP(C162,pH_Proc!O:R,4) -> 8.047150361 | I162: =VLOOKUP(C162,[1]Proc_CTD!$A:$H,8) -> 92.91641099 | L162: 433.27 | M162: 12.959 | N162: 83.844 | O162: 424.49 | P162: 13.018 | Q162: 101.66 | R162: 1.9433 | S162: 1.0497 | T162: 13.215 | U162: 91.694 | V162: 1.1477 | W162: 13.244 | X162: 100.72 | Y162: 412.7 | Z162: 13.412 | AA162: 86.281 | AB162: 406.62 | AC162: 13.471 | AD162: 101.99 | AE162: 1.9404
A163: 36.74481333 | B163: -122.1797367 | C163: 2013-05-16T00:31:16 | D163: 136.021713 | E163: 35.26813622 | F163: 422.103093 | G163: 401.880865 | H163: =VLOOKUP(C163,pH_Proc!O:R,4) -> 8.043856972 | I163: =VLOOKUP(C163,[1]Proc_CTD!$A:$H,8) -> 93.13542425 | L163: 433.91 | M163: 12.959 | N163: 83.979 | O163: 427.14 | P163: 13.018 | Q163: 101.89 | R163: 1.9415 | S163: 0.99343 | T163: 13.205 | U163: 92.219 | V163: 1.1175 | W163: 13.244 | X163: 101.44 | Y163: 412.96 | Z163: 13.402 | AA163: 86.025 | AB163: 406.73 | AC163: 13.471 | AD163: 101.97 | AE163: 1.9412
A164: 36.747065 | B164: -122.1655867 | C164: 2013-05-16T01:31:17 | D164: 136.0633912 | E164: 33.98337218 | F164: 422.1363839 | G164: 401.6763639 | H164: =VLOOKUP(C164,pH_Proc!O:R,4) -> 8.042192846 | I164: =VLOOKUP(C164,[1]Proc_CTD!$A:$H,8) -> 91.6427866 | L164: 435.3 | M164: 12.92 | N164: 83.723 | O164: 427.3 | P164: 12.988 | Q164: 101.29 | R164: 1.9379 | S164: 1.1402 | T164: 13.175 | U164: 91.546 | V164: 1.2439 | W164: 13.205 | X164: 100.73 | Y164: 412.86 | Z164: 13.372 | AA164: 85.81 | AB164: 406.65 | AC164: 13.432 | AD164: 101.93 | AE164: 1.9462
A165: 36.74936167 | B165: -122.1508317 | C165: 2013-05-16T02:31:16 | D165: 136.1050463 | E165: 32.64482531 | F165: 427.2801221 | G165: 401.6283101 | H165: =VLOOKUP(C165,pH_Proc!O:R,4) -> 8.039570222 | I165: =VLOOKUP(C165,[1]Proc_CTD!$A:$H,8) -> 93.14965328 | L165: 439.55 | M165: 12.851 | N165: 83.561 | O165: 432.44 | P165: 12.92 | Q165: 101.09 | R165: 1.9372 | S165: 1.0269 | T165: 13.097 | U165: 91.398 | V165: 1.1924 | W165: 13.126 | X165: 100.39 | Y165: 412.54 | Z165: 13.294 | AA165: 85.891 | AB165: 406.55 | AC165: 13.353 | AD165: 101.91 | AE165: 1.943
A166: 36.75173 | B166: -122.1353333 | C166: 2013-05-16T03:31:16 | D166: 136.146713 | E166: 31.2398405 | F166: 436.0625733 | G166: 401.7808933 | H166: =VLOOKUP(C166,pH_Proc!O:R,4) -> 8.031056914 | I166: =VLOOKUP(C166,[1]Proc_CTD!$A:$H,8) -> 92.15342593 | L166: 448.54 | M166: 12.733 | N166: 83.651 | O166: 441.32 | P166: 12.802 | Q166: 101.38 | R166: 1.9342 | S166: 1.3179 | T166: 12.979 | U166: 91.613 | V166: 1.2084 | W166: 13.008 | X166: 101.11 | Y166: 412.96 | Z166: 13.175 | AA166: 86.133 | AB166: 406.72 | AC166: 13.234 | AD166: 101.93 | AE166: 1.9382
A167: 36.754385 | B167: -122.1184333 | C167: 2013-05-16T04:31:17 | D167: 136.1883912 | E167: 29.70626768 | F167: 450.3251393 | G167: 401.8155713 | H167: =VLOOKUP(C167,pH_Proc!O:R,4) -> 8.020934014 | I167: =VLOOKUP(C167,[1]Proc_CTD!$A:$H,8) -> 91.56077545 | L167: 461.55 | M167: 12.616 | N167: 83.454 | O167: 455.82 | P167: 12.684 | Q167: 100.81 | R167: 1.9285 | S167: 1.2302 | T167: 12.861 | U167: 91.573 | V167: 1.3134 | W167: 12.89 | X167: 101.04 | Y167: 413.21 | Z167: 13.067 | AA167: 86.214 | AB167: 406.86 | AC167: 13.116 | AD167: 101.95 | AE167: 1.9332
A168: 36.75692 | B168: -122.1022533 | C168: 2013-05-16T05:31:17 | D168: 136.2300579 | E168: 28.23822763 | F168: 432.9161888 | G168: 401.7555288 | H168: =VLOOKUP(C168,pH_Proc!O:R,4) -> 8.025006607 | I168: =VLOOKUP(C168,[1]Proc_CTD!$A:$H,8) -> 91.04236713 | L168: 445.55 | M168: 12.489 | N168: 83.494 | O168: 438.38 | P168: 12.557 | Q168: 100.98 | R168: 1.928 | S168: 1.2749 | T168: 12.743 | U168: 91.384 | V168: 1.444 | W168: 12.773 | X168: 100.66 | Y168: 413.23 | Z168: 12.939 | AA168: 85.864 | AB168: 406.93 | AC168: 12.998 | AD168: 101.95 | AE168: 1.9375
A169: 36.75952167 | B169: -122.0859983 | C169: 2013-05-16T06:31:16 | D169: 136.271713 | E169: 26.76224072 | F169: 426.6008296 | G169: 401.9299096 | H169: =VLOOKUP(C169,pH_Proc!O:R,4) -> 8.042637773 | I169: =VLOOKUP(C169,[1]Proc_CTD!$A:$H,8) -> 93.43685521 | L169: 439.16 | M169: 12.41 | N169: 83.413 | O169: 432.1 | P169: 12.489 | Q169: 100.72 | R169: 1.9251 | S169: 1.2588 | T169: 12.665 | U169: 91.088 | V169: 1.538 | W169: 12.694 | X169: 100.39 | Y169: 413.57 | Z169: 12.871 | AA169: 85.837 | AB169: 407.2 | AC169: 12.92 | AD169: 101.93 | AE169: 1.9364
A170: 36.76242167 | B170: -122.0676917 | C170: 2013-05-16T07:31:16 | D170: 136.3133796 | E170: 25.10066632 | F170: 416.6529994 | G170: 402.5638234 | H170: =VLOOKUP(C170,pH_Proc!O:R,4) -> 8.052241188 | I170: =VLOOKUP(C170,[1]Proc_CTD!$A:$H,8) -> 90.63860676 | L170: 428.75 | M170: 12.391 | N170: 83.386 | O170: 422.02 | P170: 12.459 | Q170: 100.76 | R170: 1.9247 | S170: 1.2647 | T170: 12.645 | U170: 91.277 | V170: 1.4982 | W170: 12.675 | X170: 100.33 | Y170: 414.44 | Z170: 12.851 | AA170: 85.783 | AB170: 407.8 | AC170: 12.91 | AD170: 101.9 | AE170: 1.9379
A171: 36.76525167 | B171: -122.0490367 | C171: 2013-05-16T08:31:17 | D171: 136.3550579 | E171: 23.41024677 | F171: 451.7831015 | G171: 403.0258335 | H171: =VLOOKUP(C171,pH_Proc!O:R,4) -> 8.024891383 | I171: =VLOOKUP(C171,[1]Proc_CTD!$A:$H,8) -> 89.30955641 | L171: 465.48 | M171: 12.479 | N171: 83.517 | O171: 457.35 | P171: 12.547 | Q171: 100.55 | R171: 1.9278 | S171: 1.2201 | T171: 12.733 | U171: 90.94 | V171: 1.3719 | W171: 12.753 | X171: 100.06 | Y171: 414.09 | Z171: 12.93 | AA171: 85.756 | AB171: 408.14 | AC171: 12.989 | AD171: 101.87 | AE171: 1.9381
A172: 36.768265 | B172: -122.0299217 | C172: 2013-05-16T09:31:16 | D172: 136.396713 | E172: 21.67575085 | F172: 434.2244411 | G172: 402.9845171 | H172: =VLOOKUP(C172,pH_Proc!O:R,4) -> 8.038798386 | I172: =VLOOKUP(C172,[1]Proc_CTD!$A:$H,8) -> 88.32998422 | L172: 446.96 | M172: 12.44 | N172: 83.535 | O172: 439.51 | P172: 12.508 | Q172: 101.17 | R172: 1.9304 | S172: 1.2284 | T172: 12.684 | U172: 91.277 | V172: 1.2536 | W172: 12.714 | X172: 100.51 | Y172: 414.81 | Z172: 12.89 | AA172: 85.743 | AB172: 407.98 | AC172: 12.939 | AD172: 101.83 | AE172: 1.9384
A173: 36.77109333 | B173: -122.01163 | C173: 2013-05-16T10:31:16 | D173: 136.4383796 | E173: 20.01722204 | F173: 400.2181044 | G173: 402.9923444 | H173: =VLOOKUP(C173,pH_Proc!O:R,4) -> 8.060290257 | I173: =VLOOKUP(C173,[1]Proc_CTD!$A:$H,8) -> 89.86391066 | L173: 412.12 | M173: 12.449 | N173: 83.292 | O173: 405.49 | P173: 12.518 | Q173: 100.55 | R173: 1.9267 | S173: 1.4584 | T173: 12.704 | U173: 90.954 | V173: 1.5557 | W173: 12.733 | X173: 100.14 | Y173: 414.83 | Z173: 12.91 | AA173: 85.756 | AB173: 408.29 | AC173: 12.969 | AD173: 101.83 | AE173: 1.9383
A174: 36.77424167 | B174: -121.9921967 | C174: 2013-05-16T11:31:17 | D174: 136.4800579 | E174: 18.25213459 | F174: 403.8304622 | G174: 403.6323022 | H174: =VLOOKUP(C174,pH_Proc!O:R,4) -> 8.072417452 | I174: =VLOOKUP(C174,[1]Proc_CTD!$A:$H,8) -> 92.12310793 | L174: 417.58 | M174: 12.684 | N174: 83.369 | O174: 409.08 | P174: 12.743 | Q174: 100.46 | R174: 1.9217 | S174: 1.0286 | T174: 12.93 | U174: 90.994 | V174: 1.4998 | W174: 12.949 | X174: 100.15 | Y174: 414.89 | Z174: 13.126 | AA174: 85.729 | AB174: 408.88 | AC174: 13.185 | AD174: 101.83 | AE174: 1.9359
A175: 36.77733667 | B175: -121.9719967 | C175: 2013-05-16T12:31:18 | D175: 136.5217361 | E175: 16.42132934 | F175: 409.5605558 | G175: 404.0219838 | H175: =VLOOKUP(C175,pH_Proc!O:R,4) -> 8.046531746 | I175: =VLOOKUP(C175,[1]Proc_CTD!$A:$H,8) -> 87.60778947 | L175: 421.66 | M175: 12.528 | N175: 83.454 | O175: 414.76 | P175: 12.596 | Q175: 100.47 | R175: 1.9253 | S175: 1.2658 | T175: 12.773 | U175: 90.913 | V175: 1.3965 | W175: 12.802 | X175: 100.1 | Y175: 416.01 | Z175: 12.969 | AA175: 85.729 | AB175: 409.17 | AC175: 13.028 | AD175: 101.79 | AE175: 1.9349
A176: 36.78055667 | B176: -121.9517017 | C176: 2013-05-16T13:31:18 | D176: 136.5634028 | E176: 14.57959547 | F176: 386.0116177 | G176: 414.5763817 | H176: =VLOOKUP(C176,pH_Proc!O:R,4) -> 8.08568852 | I176: =VLOOKUP(C176,[1]Proc_CTD!$A:$H,8) -> 89.18487864 | L176: 398.33 | M176: 12.508 | N176: 83.602 | O176: 391.06 | P176: 12.577 | Q176: 100.55 | R176: 1.9186 | S176: 1.2179 | T176: 12.763 | U176: 91.236 | V176: 1.4641 | W176: 12.792 | X176: 100.31 | Y176: 425.98 | Z176: 12.959 | AA176: 85.931 | AB176: 419.89 | AC176: 13.018 | AD176: 101.83 | AE176: 1.9279
A177: 36.783805 | B177: -121.9311617 | C177: 2013-05-16T14:31:16 | D177: 136.6050463 | E177: 12.71593236 | F177: 392.1615133 | G177: 406.4092173 | H177: =VLOOKUP(C177,pH_Proc!O:R,4) -> 8.086064696 | I177: =VLOOKUP(C177,[1]Proc_CTD!$A:$H,8) -> 89.59317913 | L177: 404.51 | M177: 12.528 | N177: 83.979 | O177: 397.12 | P177: 12.596 | Q177: 101.6 | R177: 1.926 | S177: 1.1263 | T177: 12.773 | U177: 91.6 | V177: 1.3171 | W177: 12.812 | X177: 100.97 | Y177: 417.68 | Z177: 12.979 | AA177: 85.931 | AB177: 411.5 | AC177: 13.038 | AD177: 101.89 | AE177: 1.9336
A178: 36.786595 | B178: -121.912965 | C178: 2013-05-16T15:31:16 | D178: 136.646713 | E178: 11.06685546 | F178: 424.1585076 | G178: 408.7317516 | H178: =VLOOKUP(C178,pH_Proc!O:R,4) -> 8.046379398 | I178: =VLOOKUP(C178,[1]Proc_CTD!$A:$H,8) -> 90.27307405 | L178: 436.89 | M178: 12.469 | N178: 83.952 | O178: 429.45 | P178: 12.537 | Q178: 101.71 | R178: 1.9281 | S178: 1.1297 | T178: 12.724 | U178: 91.842 | V178: 1.353 | W178: 12.753 | X178: 100.63 | Y178: 420.35 | Z178: 12.92 | AA178: 85.837 | AB178: 413.88 | AC178: 12.979 | AD178: 101.91 | AE178: 1.9355
A179: 36.789755 | B179: -121.892895 | C179: 2013-05-16T16:31:17 | D179: 136.6883912 | E179: 9.246281586 | F179: 473.192407 | G179: 406.888071 | H179: =VLOOKUP(C179,pH_Proc!O:R,4) -> 7.996498803 | I179: =VLOOKUP(C179,[1]Proc_CTD!$A:$H,8) -> 87.04105309 | L179: 486.71 | M179: 12.547 | N179: 84.194 | O179: 478.9 | P179: 12.606 | Q179: 101.75 | R179: 1.9264 | S179: 1.1877 | T179: 12.802 | U179: 92.26 | V179: 1.3138 | W179: 12.831 | X179: 101.25 | Y179: 418.71 | Z179: 12.998 | AA179: 85.891 | AB179: 411.98 | AC179: 13.057 | AD179: 101.94 | AE179: 1.9357
A180: 36.793045 | B180: -121.8715583 | C180: 2013-05-16T17:31:16 | D180: 136.7300463 | E180: 7.31240871 | F180: 468.930778 | G180: 406.89679 | H180: =VLOOKUP(C180,pH_Proc!O:R,4) -> 7.996227855 | I180: =VLOOKUP(C180,[1]Proc_CTD!$A:$H,8) -> 88.45999241 | L180: 483.09 | M180: 12.822 | N180: 84.464 | O180: 474.52 | P180: 12.9 | Q180: 102.29 | R180: 1.9393 | S180: 1.1228 | T180: 13.097 | U180: 92.354 | V180: 1.235 | W180: 13.126 | X180: 101.59 | Y180: 417.93 | Z180: 13.303 | AA180: 85.945 | AB180: 411.91 | AC180: 13.372 | AD180: 101.9 | AE180: 1.9421
A181: 36.79626833 | B181: -121.8514317 | C181: 2013-05-16T18:31:17 | D181: 136.7717245 | E181: 5.485660519 | F181: 348.6528399 | G181: 407.1199479 | H181: =VLOOKUP(C181,pH_Proc!O:R,4) -> 8.116861131 | I181: =VLOOKUP(C181,[1]Proc_CTD!$A:$H,8) -> 105.2503657 | L181: 359.75 | M181: 13.254 | N181: 84.154 | O181: 352.86 | P181: 13.323 | Q181: 101.97 | R181: 1.9543 | S181: 0.74436 | T181: 13.52 | U181: 92.085 | V181: 0.96977 | W181: 13.55 | X181: 101.28 | Y181: 418.28 | Z181: 13.738 | AA181: 85.85 | AB181: 411.87 | AC181: 13.807 | AD181: 101.9 | AE181: 1.9574
A182: 36.79842333 | B182: -121.847835 | C182: 2013-05-16T19:31:16 | D182: 136.8133796 | E182: 5.127417919 | F182: 319.1823955 | G182: 403.3706715 | H182: =VLOOKUP(C182,pH_Proc!O:R,4) -> 8.168277466 | I182: =VLOOKUP(C182,[1]Proc_CTD!$A:$H,8) -> 113.0174857 | L182: 329.12 | M182: 13.768 | N182: 84.423 | O182: 323.01 | P182: 13.827 | Q182: 102.29 | R182: 1.9581 | S182: 0.58512 | T182: 14.026 | U182: 92.3 | V182: 0.86386 | W182: 14.045 | X182: 101.48 | Y182: 414.33 | Z182: 14.225 | AA182: 85.945 | AB182: 407.98 | AC182: 14.284 | AD182: 101.89 | AE182: 1.9603
A183: 36.79778667 | B183: -121.85196 | C183: 2013-05-16T20:31:16 | D183: 136.8550463 | E183: 5.50117397 | F183: 395.0801327 | G183: 403.2443247 | H183: =VLOOKUP(C183,pH_Proc!O:R,4) -> 8.110431997 | I183: =VLOOKUP(C183,[1]Proc_CTD!$A:$H,8) -> 106.148181 | L183: 405.93 | M183: 13.847 | N183: 84.827 | O183: 399.67 | P183: 13.916 | Q183: 102.82 | R183: 1.9618 | S183: 0.63567 | T183: 14.105 | U183: 92.717 | V183: 0.92138 | W183: 14.135 | X183: 101.62 | Y183: 414.26 | Z183: 14.304 | AA183: 85.985 | AB183: 407.91 | AC183: 14.364 | AD183: 101.85 | AE183: 1.9604
A184: 36.79653833 | B184: -121.85976 | C184: 2013-05-16T21:31:16 | D184: 136.896713 | E184: 6.208795534 | F184: 456.0650418 | G184: 402.4528538 | H184: =VLOOKUP(C184,pH_Proc!O:R,4) -> 8.004935185 | I184: =VLOOKUP(C184,[1]Proc_CTD!$A:$H,8) -> 88.19718577 | L184: 469.76 | M184: 13.57 | N184: 84.652 | O184: 461.34 | P184: 13.629 | Q184: 102.92 | R184: 1.9602 | S184: 0.8053 | T184: 13.807 | U184: 92.583 | V184: 1.0402 | W184: 13.837 | X184: 101.63 | Y184: 413.52 | Z184: 13.996 | AA184: 86.025 | AB184: 407.23 | AC184: 14.056 | AD184: 101.82 | AE184: 1.9551
A185: 36.79464167 | B185: -121.871625 | C185: 2013-05-16T22:31:16 | D185: 136.9383796 | E185: 7.28528403 | F185: 472.5091513 | G185: 402.1425353 | H185: =VLOOKUP(C185,pH_Proc!O:R,4) -> 7.994546551 | I185: =VLOOKUP(C185,[1]Proc_CTD!$A:$H,8) -> 86.18966192 | L185: 486 | M185: 13.175 | N185: 83.79 | O185: 478.15 | P185: 13.234 | Q185: 101.89 | R185: 1.9437 | S185: 1.0483 | T185: 13.412 | U185: 91.896 | V185: 1.2534 | W185: 13.441 | X185: 101.33 | Y185: 413.49 | Z185: 13.609 | AA185: 85.716 | AB185: 407.13 | AC185: 13.669 | AD185: 101.77 | AE185: 1.9497
A186: 36.79178833 | B186: -121.890205 | C186: 2013-05-16T23:31:16 | D186: 136.9800463 | E186: 8.968919662 | F186: 462.6306771 | G186: 402.3305891 | H186: =VLOOKUP(C186,pH_Proc!O:R,4) -> 8.004966 | I186: =VLOOKUP(C186,[1]Proc_CTD!$A:$H,8) -> 87.95865913 | L186: 476.68 | M186: 12.89 | N186: 83.759 | O186: 468.26 | P186: 12.949 | Q186: 101.52 | R186: 1.9327 | S186: 0.96199 | T186: 13.136 | U186: 91.856 | V186: 1.3336 | W186: 13.166 | X186: 101.08 | Y186: 413.88 | Z186: 13.323 | AA186: 85.945 | AB186: 407.4 | AC186: 13.392 | AD186: 101.74 | AE186: 1.9387
A187: 36.788305 | B187: -121.9110667 | C187: 2013-05-17T00:31:16 | D187: 137.021713 | E187: 10.86504761 | F187: 336.195779 | G187: 402.133519 | H187: =VLOOKUP(C187,pH_Proc!O:R,4) -> 8.104314273 | I187: =VLOOKUP(C187,[1]Proc_CTD!$A:$H,8) -> 100.7107754 | L187: 347.26 | M187: 12.763 | N187: 83.427 | O187: 340.68 | P187: 12.822 | Q187: 101.17 | R187: 1.9321 | S187: 1.0834 | T187: 13.008 | U187: 91.6 | V187: 1.3625 | W187: 13.028 | X187: 100.63 | Y187: 413.79 | Z187: 13.205 | AA187: 85.756 | AB187: 407.23 | AC187: 13.274 | AD187: 101.73 | AE187: 1.9377
A188: 36.78524333 | B188: -121.93007 | C188: 2013-05-17T01:31:16 | D188: 137.0633796 | E188: 12.59022487 | F188: 318.1664886 | G188: 402.4439366 | H188: =VLOOKUP(C188,pH_Proc!O:R,4) -> 8.167039063 | I188: =VLOOKUP(C188,[1]Proc_CTD!$A:$H,8) -> 104.0257477 | L188: 327.58 | M188: 12.822 | N188: 83.517 | O188: 322.24 | P188: 12.88 | Q188: 101.03 | R188: 1.9277 | S188: 1.0501 | T188: 13.057 | U188: 91.425 | V188: 1.1192 | W188: 13.087 | X188: 100.59 | Y188: 413.51 | Z188: 13.264 | AA188: 85.662 | AB188: 407.3 | AC188: 13.323 | AD188: 101.64 | AE188: 1.9383
A189: 36.78287167 | B189: -121.9446567 | C189: 2013-05-17T02:31:16 | D189: 137.1050463 | E189: 13.91496883 | F189: 384.759841 | G189: 401.950221 | H189: =VLOOKUP(C189,pH_Proc!O:R,4) -> 8.09360295 | I189: =VLOOKUP(C189,[1]Proc_CTD!$A:$H,8) -> 95.21396679 | L189: 395.81 | M189: 12.645 | N189: 83.561 | O189: 389.8 | P189: 12.714 | Q189: 101.29 | R189: 1.9319 | S189: 1.0032 | T189: 12.89 | U189: 91.398 | V189: 1.4675 | W189: 12.91 | X189: 100.5 | Y189: 413.17 | Z189: 13.087 | AA189: 85.716 | AB189: 407.15 | AC189: 13.146 | AD189: 101.68 | AE189: 1.9354
A190: 36.78046 | B190: -121.9599317 | C190: 2013-05-17T03:31:16 | D190: 137.146713 | E190: 15.30080407 | F190: 408.5781776 | G190: 401.9100936 | H190: =VLOOKUP(C190,pH_Proc!O:R,4) -> 8.053046174 | I190: =VLOOKUP(C190,[1]Proc_CTD!$A:$H,8) -> 88.20254909 | L190: 421.74 | M190: 12.528 | N190: 84.221 | O190: 413.82 | P190: 12.586 | Q190: 102.18 | R190: 1.9279 | S190: 1.1456 | T190: 12.773 | U190: 92.058 | V190: 1.448 | W190: 12.792 | X190: 100.65 | Y190: 413.61 | Z190: 12.969 | AA190: 85.85 | AB190: 407.09 | AC190: 13.038 | AD190: 101.67 | AE190: 1.928
A191: 36.77805667 | B191: -121.9753167 | C191: 2013-05-17T04:31:16 | D191: 137.1883796 | E191: 16.69613509 | F191: 403.1931796 | G191: 402.4500796 | H191: =VLOOKUP(C191,pH_Proc!O:R,4) -> 8.067969495 | I191: =VLOOKUP(C191,[1]Proc_CTD!$A:$H,8) -> 90.77286986 | L191: 415.29 | M191: 12.508 | N191: 83.777 | O191: 408.11 | P191: 12.577 | Q191: 101.51 | R191: 1.9304 | S191: 1.3737 | T191: 12.753 | U191: 91.573 | V191: 1.173 | W191: 12.782 | X191: 100.47 | Y191: 413.7 | Z191: 12.959 | AA191: 85.837 | AB191: 407.36 | AC191: 13.018 | AD191: 101.77 | AE191: 1.9321
A192: 36.77577667 | B192: -121.9896167 | C192: 2013-05-17T05:31:17 | D192: 137.2300579 | E192: 17.99406701 | F192: 415.0162969 | G192: 402.2944249 | H192: =VLOOKUP(C192,pH_Proc!O:R,4) -> 8.050216932 | I192: =VLOOKUP(C192,[1]Proc_CTD!$A:$H,8) -> 88.74219907 | L192: 428.37 | M192: 12.537 | N192: 84.033 | O192: 420.24 | P192: 12.606 | Q192: 101.85 | R192: 1.9303 | S192: 1.2072 | T192: 12.782 | U192: 92.138 | V192: 1.3701 | W192: 12.812 | X192: 101.38 | Y192: 413.65 | Z192: 12.989 | AA192: 85.904 | AB192: 407.4 | AC192: 13.047 | AD192: 101.78 | AE192: 1.9314
A193: 36.77381167 | B193: -122.0014433 | C193: 2013-05-17T06:31:16 | D193: 137.271713 | E193: 19.06920528 | F193: 415.3884414 | G193: 402.3495134 | H193: =VLOOKUP(C193,pH_Proc!O:R,4) -> 8.050923256 | I193: =VLOOKUP(C193,[1]Proc_CTD!$A:$H,8) -> 88.53527566 | L193: 428.12 | M193: 12.547 | N193: 83.831 | O193: 420.54 | P193: 12.616 | Q193: 101.83 | R193: 1.9324 | S193: 1.2023 | T193: 12.802 | U193: 91.761 | V193: 1.2945 | W193: 12.831 | X193: 100.46 | Y193: 413.58 | Z193: 12.998 | AA193: 85.81 | AB193: 407.38 | AC193: 13.057 | AD193: 101.79 | AE193: 1.9347
A194: 36.77213667 | B194: -122.0119667 | C194: 2013-05-17T07:31:16 | D194: 137.3133796 | E194: 20.02434872 | F194: 446.8183018 | G194: 402.9654938 | H194: =VLOOKUP(C194,pH_Proc!O:R,4) -> 8.019437507 | I194: =VLOOKUP(C194,[1]Proc_CTD!$A:$H,8) -> 85.43010286 | L194: 460.05 | M194: 12.449 | N194: 84.356 | O194: 452.41 | P194: 12.518 | Q194: 102.48 | R194: 1.9294 | S194: 1.3695 | T194: 12.694 | U194: 92.017 | V194: 1.4428 | W194: 12.724 | X194: 101.05 | Y194: 414.45 | Z194: 12.89 | AA194: 85.729 | AB194: 408.15 | AC194: 12.949 | AD194: 101.78 | AE194: 1.9352
A195: 36.77014167 | B195: -122.024645 | C195: 2013-05-17T08:31:16 | D195: =C195-41274 -> 137.3550463 | E195: =ABS(Rhumb(36.806,A195,-121.791,B195)) -> 21.17463389 | F195: =0.9908*(O195-V195) -> 465.3233743 | G195: =0.9908*(AB195-V195) -> 402.2193223 | H195: =VLOOKUP(C195,pH_Proc!O:R,4) -> 8.004741907 | I195: =VLOOKUP(C195,[1]Proc_CTD!$A:$H,8) -> 85.3592655 | L195: 478.83 | M195: 12.371 | N195: 84.679 | O195: 471.06 | P195: 12.44 | Q195: 102.59 | R195: 1.9239 | S195: 1.2374 | T195: 12.616 | U195: 92.556 | V195: 1.4159 | W195: 12.635 | X195: 101.71 | Y195: 413.77 | Z195: 12.812 | AA195: 85.81 | AB195: 407.37 | AC195: 12.871 | AD195: 101.77 | AE195: 1.9322
A196: 36.767925 | B196: -122.038005 | C196: 2013-05-17T09:31:16 | D196: 137.396713 | E196: 22.38921643 | F196: 469.9063197 | G196: 403.4632717 | H196: =VLOOKUP(C196,pH_Proc!O:R,4) -> 7.992551526 | I196: =VLOOKUP(C196,[1]Proc_CTD!$A:$H,8) -> 83.46315617 | L196: 484.23 | M196: 12.322 | N196: 84.396 | O196: 475.79 | P196: 12.391 | Q196: 102.48 | R196: 1.9237 | S196: 1.1633 | T196: 12.567 | U196: 92.394 | V196: 1.5204 | W196: 12.596 | X196: 101.54 | Y196: 414.92 | Z196: 12.773 | AA196: 85.662 | AB196: 408.73 | AC196: 12.822 | AD196: 101.74 | AE196: 1.9321
A197: 36.76577333 | B197: -122.051955 | C197: 2013-05-17T10:31:16 | D197: 137.4383796 | E197: 23.65403091 | F197: 460.6039957 | G197: 403.5933637 | H197: =VLOOKUP(C197,pH_Proc!O:R,4) -> 8.007447239 | I197: =VLOOKUP(C197,[1]Proc_CTD!$A:$H,8) -> 87.04456417 | L197: 474.96 | M197: 12.313 | N197: 84.302 | O197: 466.33 | P197: 12.381 | Q197: 102.51 | R197: 1.9181 | S197: 1.3879 | T197: 12.557 | U197: 92.085 | V197: 1.4491 | W197: 12.577 | X197: 101.51 | Y197: 415.23 | Z197: 12.753 | AA197: 85.648 | AB197: 408.79 | AC197: 12.812 | AD197: 101.73 | AE197: 1.928
A198: 36.76361667 | B198: -122.0657083 | C198: 2013-05-17T11:31:16 | D198: 137.4800463 | E198: 24.90179634 | F198: 444.6217972 | G198: 403.6324012 | H198: =VLOOKUP(C198,pH_Proc!O:R,4) -> 8.021472279 | I198: =VLOOKUP(C198,[1]Proc_CTD!$A:$H,8) -> 89.95816373 | L198: 458.77 | M198: 12.244 | N198: 84.477 | O198: 450.24 | P198: 12.313 | Q198: 102.74 | R198: 1.9189 | S198: 1.3153 | T198: 12.498 | U198: 92.367 | V198: 1.4897 | W198: 12.518 | X198: 101.46 | Y198: 415.02 | Z198: 12.694 | AA198: 85.635 | AB198: 408.87 | AC198: 12.763 | AD198: 101.75 | AE198: 1.9291
A199: 36.76207667 | B199: -122.07467 | C199: 2013-05-17T12:31:16 | D199: 137.521713 | E199: 25.71772076 | F199: 447.1701348 | G199: 402.6832148 | H199: =VLOOKUP(C199,pH_Proc!O:R,4) -> 8.020118649 | I199: =VLOOKUP(C199,[1]Proc_CTD!$A:$H,8) -> 89.6585728 | L199: 461.02 | M199: 12.293 | N199: 84.45 | O199: 452.78 | P199: 12.352 | Q199: 102.56 | R199: 1.9199 | S199: 1.3808 | T199: 12.538 | U199: 92.26 | V199: 1.4577 | W199: 12.557 | X199: 101.35 | Y199: 414.04 | Z199: 12.733 | AA199: 85.622 | AB199: 407.88 | AC199: 12.802 | AD199: 101.73 | AE199: 1.9304
A200: 36.76072167 | B200: -122.0833667 | C200: 2013-05-17T13:31:16 | D200: 137.5633796 | E200: 26.50657012 | F200: 431.7207886 | G200: 403.4928966 | H200: =VLOOKUP(C200,pH_Proc!O:R,4) -> 8.033507767 | I200: =VLOOKUP(C200,[1]Proc_CTD!$A:$H,8) -> 90.50084964 | L200: 444.27 | M200: 12.381 | N200: 84.504 | O200: 437.26 | P200: 12.449 | Q200: 102.64 | R200: 1.9293 | S200: 1.2023 | T200: 12.635 | U200: 92.273 | V200: 1.5305 | W200: 12.655 | X200: 101.52 | Y200: 414.68 | Z200: 12.831 | AA200: 85.675 | AB200: 408.77 | AC200: 12.9 | AD200: 101.78 | AE200: 1.935
... 121 more rows

Sheet CO2_Std
A1: Da e. ime | B1: ZeroPumpOff pco2 | C1: StandardFlowOn Pressure | D1: StandardFlowOff pco2 | E1: StandardFlowOff Temp | F1: StandardFlowOff Pressure | G1: StandardFlowOff pco2 Humidity | H1: Std_ZeroCor | I1: CalFactor | L1: Standard value is 401.16
A2: 2013-05-09T20:31:29 | B2: -1.6767 | C2: 103.17 | D2: 404.56 | E2: 20.63 | F2: 102.17 | G2: 1.8735 | H2: =D2-B2 -> 406.2367 | I2: =401.16/H2 -> 0.9875030986
A3: 2013-05-11T15:31:16 | B3: 1.3418 | C3: 103.13 | D3: 406.44 | E3: 13.58 | F3: 102.06 | G3: 1.7899 | H3: =D3-B3 -> 405.0982 | I3: =401.16/H3 -> 0.9902784066
A4: 2013-05-12T14:31:16 | B4: 1.5264 | C4: 103.25 | D4: 406.21 | E4: 13.264 | F4: 102.17 | G4: 1.794 | H4: 404.6836 | I4: 0.9912929508
A5: 2013-05-13T13:31:16 | B5: 1.2163 | C5: 103.04 | D5: 405.87 | E5: 13.619 | F5: 101.94 | G5: 1.7944 | H5: 404.6537 | I5: 0.9913661978
A6: 2013-05-14T12:31:16 | B6: 1.539 | C6: 102.78 | D6: 406.17 | E6: 12.763 | F6: 101.68 | G6: 1.7825 | H6: 404.631 | I6: 0.9914218139
A7: 2013-05-15T11:31:17 | B7: 1.2857 | C7: 102.99 | D7: 406.48 | E7: 13.57 | F7: 101.89 | G7: 1.7717 | H7: 405.1943 | I7: 0.9900435421
A8: 2013-05-16T10:31:16 | B8: 1.5557 | C8: 102.96 | D8: 405.87 | E8: 13.205 | F8: 101.83 | G8: 1.7972 | H8: 404.3143 | I8: 0.9921983961
A9: 2013-05-17T09:31:16 | B9: 1.5204 | C9: 102.86 | D9: 406.18 | E9: 13.048 | F9: 101.74 | G9: 1.7878 | H9: 404.6596 | I9: 0.9913517435
A10: 2013-05-18T08:31:18 | B10: 1.3998 | C10: 103.17 | D10: 406.38 | E10: 13.235 | F10: 102.05 | G10: 1.7859 | H10: 404.9802 | I10: 0.9905669462
A11: 2013-05-19T07:31:16 | B11: 0.59424 | C11: 103.26 | D11: 405.61 | E11: 14.784 | F11: 102.13 | G11: 1.7985 | H11: 405.01576 | I11: 0.9904799754
A12: 2013-05-20T06:31:16 | B12: 0.98878 | C12: 102.87 | D12: 406.41 | E12: 14.165 | F12: 101.73 | G12: 1.7769 | H12: 405.42122 | I12: 0.9894894007 | J12: =AVERAGE(I3:I12) -> 0.9908489373 | K12: =STDEV(H3:H12) -> 0.3309867373
A13: 2013-05-21T05:31:16 | B13: 1.8188 | C13: 102.75 | D13: 406.82 | E13: 12.459 | F13: 101.6 | G13: 1.7428 | H13: =D13-B13 -> 405.0012 | I13: =401.16/H13 -> 0.9905155837 | J13: =AVERAGE(I4:I13) -> 0.990872655 | K13: =STDEV(H4:H13) -> 0.3247620932
A14: 2013-05-22T04:31:16 | B14: 1.8918 | C14: 102.92 | D14: 406.6 | E14: 12.362 | F14: 101.77 | G14: 1.727 | H14: 404.7082 | I14: 0.9912326956 | J14: 0.9908666295 | K14: 0.3234057494

Sheet pCO2-pH_Plot
